Workbook

Sheet Menu
Z1: 2
Z4: 2
A6: Far West Extension District - 6
D8: Budgets
D11: Forage Crops
D13: =+AlfalfaEstablish!A3 -> Alfalfa Establishment, Center Pivot Irrigated
D14: =AlfalfaHayPivot!A3 -> Alfalfa, Full Season, Baled - 7.5 Ton Goal, Center Pivot Irrigated
D15: =AlfalfaHayFlood!A3 -> Alfalfa, Full Season, Baled - 7.5 Ton Goal, Flood Irrigated
D16: =AlfalfaPivotDell!A3 -> Alfalfa, Full Season, Baled - 7.5 Ton Goal, Center Pivot Irrigated, Dell City
D17: =AlfalfaFloodDell!A3 -> Alfalfa, Full Season, Baled - 7.5 Ton Goal, Flood Irrigated, Dell City
B18: Comparative Returns | D18: =AlfalfaElPaso!A3 -> Alfalfa, Full Season, Baled - 7.5 Ton Goal, Flood Irrigated, El Paso Irrigation District
D19: =SorghumHayDryland!A3 -> Sorghum-Sudangrass for Hay, Dryland, 3 Ton Yield
B20: Links | D20: =SorghumHayIrrigated!A3 -> Sorghum-Sudangrass for Hay, Center Pivot Irrigated, 5 Ton Yield
D21: =SwitchgrassEstablish!A3 -> Alamo Switchgrass Establishment, Pivot Irrigated
D22: =SwitchgrassGraze!A3 -> Alamo Switchgrass, Full Season, Pivot Irrigated, Grazed
D23: =SwitchgrassHay!A3 -> Alamo Switchgrass, Full Season, Pivot Irrigated, Baled
D25: Field Crops
D27: =SLCottonDrip!A3 -> St. Lawrence Reduced Tillage Cotton, Drip Irrigated, 40 Inch Rows
D28: =SLXFCottonDrip!A3 -> St. Lawrence Auxin Technology Cotton, Drip Irrigated, 40 Inch Rows
D29: =SLCottonDrylandGM!A3 -> St. Lawrence Dryland Cotton, BIIFlex, 40 Inch Rows
D30: =SLXFCottonDryland!A3 -> St. Lawrence Dryland Auxin Technology Cotton, 40 Inch Rows
D31: =SLGSDrip!A3 -> St. Lawrence Early Planted Grain Sorghum, Drip Irrigated, 40 Inch Rows
D32: =TPCottonFurrow!A3 -> Trans Pecos Cotton, Furrow Irrigated, 40 Inch Rows
D33: =TPCottonPivot!A3 -> Trans Pecos Cotton, Center Pivot Irrigated, 40 Inch Rows
D34: =ElPasoCotton!A3 -> El Paso County Cotton, Canal Delivered Furrow Irrigated, 40 Inch Rows
D35: =WheatDryland!A3 -> Wheat, Dryland
D36: =WheatIrrigated!A3 -> Wheat, Center Pivot Irrigated, Trans Pecos
D38: Horticultural Crops
D40: =RedChile!A3 -> Red Chile Peppers, Dell City, Center Pivot Irrigated
D41: =Onions!A3 -> Spring Onions, Furrow Irrigated
D42: =Pecans!A3 -> Trans Pecos Flood Irrigated Pecans, Years 10-20
D44: Livestock
D46: =+CowCalfNative!A3 -> Cow-Calf Enterprise
D47: =+StockersSummer!A3 -> Stocker Steers - Summer Growth, 0.6 AU per Head
D48: =StockerWinter!A3 -> Stocker Steers - Winter Growth, 0.45 AU per Head
D49: =MeatGoats!A3 -> Trans Pecos Meat Goats, 6 Head per AU
D50: =Angoras!A3 -> Trans Pecos Angora Goats, 7 Head per AU
D51: =SheepWool!A3 -> Trans Pecos Wool Sheep, 5 Head per AU
D52: =SheepHair!A3 -> Trans Pecos Hair Sheep, 5 Head per AU
D54: Other Budgets
D56: ='Livestock Budget'!A3 -> Livestock Budget
D57: ='Crop Budget'!A3 -> Crop Enterprise
A71: Developed by Bill Thompson, Assistant Professor and Extension Economist, Texas A&M AgriLife Extension Service, 325-653-4576.

Sheet Links
B2: Texas Crop and Livestock Budgets
B3: A Program of the Texas A&M AgriLife Extension Service
B4: Agricultural Economics Department, The Texas A&M University System
B6: Developed by Texas A&M AgriLife Extension Service Economists and Other Specialists
B8: Contact Us | G8: Clickable Logos
B10: Resources
B12: Decision Aids (includes Machinery Cost Estimator)
B14: Custom Rate Survey
B16: Basis Data
B18: Master Marketer
B20: Extension Ag Economics
B22: Department of Agricultural Economics
B24: Menu Page
B26: Links last checked 4/17/2020

Sheet Pecans
A1: Projections for Planning Purposes Only -- Not to be Used without Updating
A2: 2021 Estimated Costs and Returns per Acre
A3: Trans Pecos Flood Irrigated Pecans, Years 10-20
A4: Enter your name for this budget in the cell above.
A5: Enter Your Values in the cells highlighed in MAROON.
E6: Your Acres | R6: Your
C7: Crop Acres | D7: 50 | L7: Your | Q7: Enterprise | R7: Enterprise
E8: Your | H8: Your | I8: Cash | J8: Your | K8: Landlord | L8: Landlord | N8: Your | P8: Your | Q8: Total | R8: Total
A9: REVENUE | D9: Quantity | E9: Quantity | F9: Units | G9: $/Unit | H9: $/Unit | I9: Total | J9: Total | K9: Share | L9: Share | M9: Landlord | N9: Landlord | O9: Tenant | P9: Tenant | Q9: (50 acres) | R9: ="(" & E7 & " acres)" -> ( acres)
B10: Pecans | D10: 1364 | F10: Pound | G10: 2.5 | I10: 3410 | J10: =E10*H10 -> 0 | K10: 0 | M10: 0 | N10: =J10*L10 -> 0 | O10: 3410 | P10: =+J10-N10 -> 0 | Q10: 170500 | R10: =+J10*E$7 -> 0
D11: 0 | G11: 0 | I11: 0 | J11: 0 | K11: 0 | M11: 0 | N11: 0 | O11: 0 | P11: =+J11-N11 -> 0 | Q11: 0 | R11: 0
D12: 0 | G12: 0 | I12: 0 | J12: 0 | K12: 0 | M12: 0 | N12: 0 | O12: 0 | P12: 0 | Q12: 0 | R12: 0
A13: Total Revenue | I13: 3410 | J13: =SUM(J10:J12) -> 0 | M13: 0 | N13: =SUM(N10:N12) -> 0 | O13: 3410 | P13: =SUM(P10:P12) -> 0 | Q13: 170500 | R13: =SUM(R10:R12) -> 0
Q14: Enterprise | R14: Enterprise
A15: VARIABLE COSTS | D15: Quantity | E15: Quantity | F15: Units | G15: $/Unit | H15: $/Unit | I15: Total | J15: Total | K15: Share | L15: Share | M15: Landlord | N15: Landlord | O15: Tenant | P15: Tenant | Q15: Total | R15: Total
A16: Production Costs
B17: Custom
C18: Hedging | D18: 0.33 | F18: Acre | G18: 100 | I18: 33 | J18: =E18*H18 -> 0 | K18: 0 | M18: 0 | N18: =J18*L18 -> 0 | O18: 33 | P18: =+J18-N18 -> 0 | Q18: 1650 | R18: =+J18*E$7 -> 0
B19: Fertilizer
C20: Fertilizer 11-52-0 | D20: 80 | F20: Pound | G20: 0.4519 | I20: 36.152 | J20: 0 | K20: 0 | M20: 0 | N20: 0 | O20: 36.152 | P20: 0 | Q20: 1807.6 | R20: 0
C21: N-32 in Water | D21: 291.5 | F21: Pound | G21: 0.3828 | I21: 111.5862 | J21: 0 | K21: 0 | M21: 0 | N21: 0 | O21: 111.5862 | P21: 0 | Q21: 5579.31 | R21: 0
C22: Zinc, Chelated 10% | D22: 24 | F22: Pint | G22: 1.34 | I22: 32.16 | J22: 0 | K22: 0 | M22: 0 | N22: 0 | O22: 32.16 | P22: 0 | Q22: 1608 | R22: 0
B23: Herbicide
C24: Glyphosate | D24: 16.98 | F24: Pint | G24: 2.125 | I24: 36.0825 | J24: 0 | K24: 0 | M24: 0 | N24: 0 | O24: 36.0825 | P24: 0 | Q24: 1804.125 | R24: 0
C25: Crop Oil Concentrate | D25: 16 | F25: Pint | G25: 2.175 | I25: 34.8 | J25: 0 | K25: 0 | M25: 0 | N25: 0 | O25: 34.8 | P25: 0 | Q25: 1740 | R25: 0
B26: Insecticide
C27: Confirm 2F | D27: 12 | F27: Ounce | G27: 1.54 | I27: 18.48 | J27: 0 | K27: 0 | M27: 0 | N27: 0 | O27: 18.48 | P27: 0 | Q27: 924 | R27: 0
C28: Pilot (Lorsban 4E) | D28: 4.5 | F28: Pint | G28: 3.6875 | I28: 16.59375 | J28: 0 | K28: 0 | M28: 0 | N28: 0 | O28: 16.59375 | P28: 0 | Q28: 829.6875 | R28: 0
B29: Other Labor
C30: Pecan Cleaning | D30: 4.092 | F30: Hour | G30: 8.5 | I30: 34.782 | J30: 0 | K30: 0 | M30: 0 | N30: 0 | O30: 34.782 | P30: 0 | Q30: 1739.1 | R30: 0
B31: Miscellaneous
C32: Electricity - Pecan Cleaning | D32: 920.7 | F32: kWh | G32: 0.17 | I32: 156.519 | J32: 0 | K32: 0 | M32: 0 | N32: 0 | O32: 156.519 | P32: 0 | Q32: 7825.95 | R32: 0
D33: 0 | G33: 0 | I33: 0 | J33: 0 | K33: 0 | M33: 0 | N33: 0 | O33: 0 | P33: 0 | Q33: 0 | R33: 0
D34: 0 | G34: 0 | I34: 0 | J34: 0 | K34: 0 | M34: 0 | N34: 0 | O34: 0 | P34: 0 | Q34: 0 | R34: 0
D35: 0 | G35: 0 | I35: 0 | J35: =E35*H35 -> 0 | K35: 0 | M35: 0 | N35: =J35*L35 -> 0 | O35: 0 | P35: =+J35-N35 -> 0 | Q35: 0 | R35: =+J35*E$7 -> 0
B36: Irrigation
C37: Energy Cost | D37: 35.2 | F37: Mcf | G37: 5.61 | I37: 197.472 | J37: =E37*H37 -> 0 | K37: 0 | M37: 0 | N37: =J37*L37 -> 0 | O37: 197.472 | P37: =+J37-N37 -> 0 | Q37: 9873.6 | R37: =+J37*E$7 -> 0
C38: Irrigation Labor | D38: 0.7784 | F38: Hour | G38: 15 | I38: 11.676 | J38: 0 | K38: 0 | M38: 0 | N38: 0 | O38: 11.676 | P38: 0 | Q38: 583.8 | R38: 0
B39: Machinery Labor
C40: Tractors/Self-Propelled | D40: 3.31 | F40: Hour | G40: 15 | I40: 49.65 | J40: =E40*H40 -> 0 | K40: 0 | M40: 0 | N40: =J40*L40 -> 0 | O40: 49.65 | P40: =+J40-N40 -> 0 | Q40: 2482.5 | R40: =+J40*E$7 -> 0
C41: Other Labor | D41: 0.75 | F41: Hour | G41: 15 | I41: 11.25 | J41: =E41*H41 -> 0 | K41: 0 | M41: 0 | N41: =J41*L41 -> 0 | O41: 11.25 | P41: =+J41-N41 -> 0 | Q41: 562.5 | R41: =+J41*E$7 -> 0
B43: Diesel Fuel
C44: Pickup/General Use Equipment | D44: 1 | F44: Acre | G44: 0 | I44: 0 | J44: =E44*H44 -> 0 | K44: 0 | M44: 0 | N44: =J44*L44 -> 0 | O44: 0 | P44: =+J44-N44 -> 0 | Q44: 0 | R44: =+J44*E$7 -> 0
C45: Tractors/Self-Propelled | D45: 16.33 | F45: Gallon | G45: 1.5 | I45: 24.495 | J45: =E45*H45 -> 0 | K45: 0 | M45: 0 | N45: =J45*L45 -> 0 | O45: 24.495 | P45: =+J45-N45 -> 0 | Q45: 1224.75 | R45: =+J45*E$7 -> 0
B47: Gasoline
C48: Pickup/General Use Equipment | D48: 1 | F48: Acre | G48: 11.5344 | I48: 11.5344 | J48: =E48*H48 -> 0 | K48: 0 | M48: 0 | N48: =J48*L48 -> 0 | O48: 11.5344 | P48: =+J48-N48 -> 0 | Q48: 576.72 | R48: =+J48*E$7 -> 0
C49: Tractors/Self-Propelled | D49: 0.818452381 | F49: Gallon | G49: 1.8 | I49: 1.473214286 | J49: =E49*H49 -> 0 | K49: 0 | M49: 0 | N49: =J49*L49 -> 0 | O49: 1.473214286 | P49: =+J49-N49 -> 0 | Q49: 73.66071429 | R49: =+J49*E$7 -> 0
B51: Repairs & Maintenance
C52: Pickup/General Use Equipment | D52: 1 | F52: Acre | G52: 234.4948 | I52: 234.4948 | J52: =E52*H52 -> 0 | K52: 0 | M52: 0 | N52: =J52*L52 -> 0 | O52: 234.4948 | P52: =+J52-N52 -> 0 | Q52: 11724.74 | R52: =+J52*E$7 -> 0
C53: Irrigation Equipment | D53: 1 | F53: Acre | G53: 16.39616 | I53: 16.39616 | J53: 0 | K53: 0 | M53: 0 | N53: 0 | O53: 16.39616 | P53: 0 | Q53: 819.808 | R53: 0
C54: Tractors/Self-Propelled | D54: 1 | F54: Acre | G54: 29.4099299 | I54: 29.4099299 | J54: 0 | K54: 0 | M54: 0 | N54: 0 | O54: 29.4099299 | P54: 0 | Q54: 1470.496495 | R54: 0
C55: Implements | D55: 1 | F55: Acre | G55: 10.33247433 | I55: 10.33247433 | J55: 0 | K55: 0 | M55: 0 | N55: 0 | O55: 10.33247433 | P55: 0 | Q55: 516.6237167 | R55: 0
I56: 0 | J56: 0 | K56: 0 | M56: 0 | N56: 0 | O56: 0 | P56: 0 | Q56: 0 | R56: 0
I57: 0 | J57: 0 | K57: 0 | M57: 0 | N57: 0 | O57: 0 | P57: 0 | Q57: 0 | R57: 0
B58: Interest on Credit Line | G58: 0.0455 | I58: 23.7806003 | J58: =+SUM(J17:J57)/2*H58 -> 0 | M58: 0 | N58: =+SUM(N17:N57)/2*L58 -> 0 | O58: 23.7806003 | P58: =+SUM(P17:P57)/2*L58 -> 0 | Q58: 1189.030015 | R58: =+J58*E$7 -> 0
A59: Total Variable Costs | I59: 1132.120029 | J59: =SUM(J18:J58) -> 0 | M59: 0 | N59: =SUM(N18:N58) -> 0 | O59: 1132.120029 | P59: =SUM(P18:P58) -> 0 | Q59: 56606.00144 | R59: =SUM(R18:R58) -> 0
A60: Planned Returns Above Variable Costs: | I60: 2277.879971 | J60: =+J13-J59 -> 0 | M60: 0 | N60: =+N13-N59 -> 0 | O60: 2277.879971 | P60: =+P13-P59 -> 0 | Q60: 113893.9986 | R60: =+R13-R59 -> 0
B61: Breakeven Price to Cover Variable Costs | G61: 0.8300000211 | H61: =IF(E10=0,"n/a",(YVarExp-(YTotExp+YTotRet-J10))/E10) -> n/a | I61: Pound
Q62: Enterprise | R62: Enterprise
A63: FIXED COSTS | D63: Quantity | E63: Quantity | F63: Units | G63: $/Unit | H63: $/Unit | I63: Total | J63: Total | K63: Share | L63: Share | M63: Landlord | N63: Landlord | O63: Tenant | P63: Tenant | Q63: Total | R63: Total
B64: Machinery Depreciation
C65: Pickup/General Use Equipment | D65: 1 | F65: Acre | G65: 104.53132 | I65: 104.53132 | J65: =E65*H65 -> 0 | K65: 0 | M65: 0 | N65: =J65*L65 -> 0 | O65: 104.53132 | P65: =+J65-N65 -> 0 | Q65: 5226.566 | R65: =+J65*E$7 -> 0
C66: Irrigation Equipment | D66: 1 | F66: Acre | G66: 48.6439868 | I66: 48.6439868 | J66: 0 | K66: 0 | M66: 0 | N66: =J66*L66 -> 0 | O66: 48.6439868 | P66: 0 | Q66: 2432.19934 | R66: 0
C67: Tractors/Self-Propelled | D67: 1 | F67: Acre | G67: 34.37181573 | I67: 34.37181573 | J67: 0 | K67: 0 | M67: 0 | N67: =J67*L67 -> 0 | O67: 34.37181573 | P67: 0 | Q67: 1718.590786 | R67: 0
C68: Implements | D68: 1 | F68: Acre | G68: 19.25850408 | I68: 19.25850408 | J68: 0 | K68: 0 | M68: 0 | N68: =J68*L68 -> 0 | O68: 19.25850408 | P68: 0 | Q68: 962.925204 | R68: 0
B69: Equipment Investment
C70: Pickup/General Use Equipment | D70: 1437.8073 | F70: Dollars | G70: 0.055 | I70: 79.0794015 | J70: =E70*H70 -> 0 | K70: 0 | M70: 0 | N70: =J70*L70 -> 0 | O70: 79.0794015 | P70: =+J70-N70 -> 0 | Q70: 3953.970075 | R70: =+J70*E$7 -> 0
C71: Irrigation Equipment | D71: 364.829901 | F71: Dollars | G71: 0.055 | I71: 20.06564456 | J71: 0 | K71: 0 | M71: 0 | N71: =J71*L71 -> 0 | O71: 20.06564456 | P71: 0 | Q71: 1003.282228 | R71: 0
C72: Tractors/Self-Propelled | D72: 289.6726026 | F72: Dollars | G72: 0.055 | I72: 15.93199314 | J72: 0 | K72: 0 | M72: 0 | N72: =J72*L72 -> 0 | O72: 15.93199314 | P72: 0 | Q72: 796.5996572 | R72: 0
C73: Implements | D73: 105.5155609 | F73: Dollars | G73: 0.055 | I73: 5.803355851 | J73: 0 | K73: 0 | M73: 0 | N73: =J73*L73 -> 0 | O73: 5.803355851 | P73: 0 | Q73: 290.1677926 | R73: 0
B74: Salaried Labor | D74: 1 | F74: Acre | G74: 0 | I74: 0 | J74: 0 | K74: 0 | M74: 0 | N74: =J74*L74 -> 0 | O74: 0 | P74: =+J74-N74 -> 0 | Q74: 0 | R74: =+J74*E$7 -> 0
B75: Management Fee, Owner/Operator Labor | D75: 1 | F75: Acre | G75: 0 | I75: 0 | J75: 0 | K75: 0 | M75: 0 | N75: 0 | O75: 0 | P75: 0 | Q75: 0 | R75: 0
B76: Allocated Establishment Cost | D76: 1 | F76: Acre | G76: 287.09 | I76: 287.09 | J76: 0 | K76: 0 | M76: 0 | N76: 0 | O76: 287.09 | P76: 0 | Q76: 14354.5 | R76: 0
B77: Trans Pecos Irrigated Land | D77: 1 | F77: Acre | G77: 50 | I77: 50 | J77: 0 | K77: 0 | M77: 0 | N77: 0 | O77: 50 | P77: 0 | Q77: 2500 | R77: 0
B78: Property Taxes | D78: 1 | F78: Acre | G78: 0 | I78: 0 | J78: 0 | K78: 0 | M78: 0 | N78: 0 | O78: 0 | P78: 0 | Q78: 0 | R78: 0
B79: Whole Farm Insurance | D79: 1 | F79: Acre | G79: 0 | I79: 0 | J79: 0 | K79: 0 | M79: 0 | N79: 0 | O79: 0 | P79: 0 | Q79: 0 | R79: 0
D80: 1 | G80: 0 | I80: 0 | J80: 0 | K80: 0 | M80: 0 | N80: 0 | O80: 0 | P80: 0 | Q80: 0 | R80: 0
D81: 1 | G81: 0 | I81: 0 | J81: =E81*H81 -> 0 | K81: 0 | M81: 0 | N81: 0 | O81: 0 | P81: 0 | Q81: 0 | R81: 0
A82: Total Fixed Costs | I82: 664.7760217 | J82: =+SUM(J65:J81) -> 0 | M82: 0 | N82: =+SUM(N65:N81) -> 0 | O82: 664.7760217 | P82: =+SUM(P65:P81) -> 0 | Q82: 33238.80108 | R82: =+SUM(R65:R81) -> 0
A83: Total Specified Costs | I83: 1796.89605 | J83: =+J59+J82 -> 0 | M83: 0 | N83: =+N59+N82 -> 0 | O83: 1796.89605 | P83: =+P59+P82 -> 0 | Q83: 89844.80252 | R83: =+R59+R82 -> 0
A85: Returns Above Specified Costs | I85: 1613.10395 | J85: =+J13-J83 -> 0 | M85: 0 | N85: =+N13-N83 -> 0 | O85: 1613.10395 | P85: =+P13-P83 -> 0 | Q85: 80655.19748 | R85: =+R13-R83 -> 0
A87: Breakeven Price to Cover Total Costs | G87: 1.317372471 | H87: =IF(E10=0,"n/a",(YTotExp-(YTotExp+YTotRet-J10))/E10) -> n/a | I87: Pound
D89: Example Breakeven Prices
B90: Example | C90: Example | D90: To Cover | G90: To Cover
B91: Yield | C91: Yield | D91: Variable | G91: Total
B92: Percent | C92: Pound | D92: Costs | G92: Costs
B93: 0.75 | C93: 1023 | D93: 1.106666695 | G93: 1.756496628
B94: 0.9 | C94: 1227.6 | D94: 0.9222222457 | G94: 1.46374719
B95: 1 | C95: 1364 | D95: 0.8300000211 | G95: 1.317372471
B96: 1.1 | C96: 1500.4 | D96: 0.7545454738 | G96: 1.197611337
B97: 1.25 | C97: 1705 | D97: 0.6640000169 | G97: 1.053897977
D99: Your Breakeven Prices
B100: Your | C100: Your | E100: To Cover | H100: To Cover
B101: Yield | C101: Yield | E101: Variable | H101: Total
B102: Percent | C102: Pound | E102: Costs | H102: Costs
B103: 0.75 | C103: =E10*YPER1 -> 0 | E103: =IF($E$10=0,0,(YVarExp-(YTotExp+YTotRet-J10))/($E$10*YPER1)) -> 0 | H103: =IF($E$10=0,0,(YTotExp-(YTotExp+YTotRet-J10))/($E$10*YPER1)) -> 0
B104: 0.9 | C104: =E10*YPER2 -> 0 | E104: =IF($E$10=0,0,(YVarExp-(YTotExp+YTotRet-J10))/($E$10*YPER2)) -> 0 | H104: =IF($E$10=0,0,(YTotExp-(YTotExp+YTotRet-J10))/($E$10*YPER2)) -> 0
B105: 1 | C105: =+E10 -> 0 | E105: =IF($E$10=0,0,(YVarExp-(YTotExp+YTotRet-J10))/($E$10*YPER3)) -> 0 | H105: =IF($E$10=0,0,(YTotExp-(YTotExp+YTotRet-J10))/($E$10*YPER3)) -> 0
B106: 1.1 | C106: =E10*YPER4 -> 0 | E106: =IF($E$10=0,0,(YVarExp-(YTotExp+YTotRet-J10))/($E$10*YPER4)) -> 0 | H106: =IF($E$10=0,0,(YTotExp-(YTotExp+YTotRet-J10))/($E$10*YPER4)) -> 0
B107: 1.25 | C107: =E10*YPER5 -> 0 | E107: =IF($E$10=0,0,(YVarExp-(YTotExp+YTotRet-J10))/($E$10*YPER5)) -> 0 | H107: =IF($E$10=0,0,(YTotExp-(YTotExp+YTotRet-J10))/($E$10*YPER5)) -> 0
A109: Developed by Bill Thompson, Assistant Professor and Extension Economist, Texas A&M AgriLife Extension Service, 325-653-4576.
A111: Information presented is prepared solely as a general guide and not intended to recognize or predict the costs and returns from any one operation. Brand names are mentioned only as examples and imply no endorsement.

Sheet RedChile
A1: Projections for Planning Purposes Only -- Not to be Used without Updating
A2: 2021 Estimated Costs and Returns per Acre
A3: Red Chile Peppers, Dell City, Center Pivot Irrigated
A4: Enter your name for this budget in the cell above.
A5: Enter Your Values in the cells highlighed in MAROON.
E6: Your Acres | R6: Your
C7: Crop Acres | D7: 122 | L7: Your | Q7: Enterprise | R7: Enterprise
E8: Your | H8: Your | I8: Cash | J8: Your | K8: Landlord | L8: Landlord | N8: Your | P8: Your | Q8: Total | R8: Total
A9: REVENUE | D9: Quantity | E9: Quantity | F9: Units | G9: $/Unit | H9: $/Unit | I9: Total | J9: Total | K9: Share | L9: Share | M9: Landlord | N9: Landlord | O9: Tenant | P9: Tenant | Q9: (122 acres) | R9: ="(" & E7 & " acres)" -> ( acres)
B10: Red Chiles | D10: 4000 | F10: Pound | G10: 0.95 | I10: 3800 | J10: =E10*H10 -> 0 | K10: 0 | M10: 0 | N10: =J10*L10 -> 0 | O10: 3800 | P10: =+J10-N10 -> 0 | Q10: 463600 | R10: =+J10*E$7 -> 0
D11: 0 | G11: 0 | I11: 0 | J11: 0 | K11: 0 | M11: 0 | N11: 0 | O11: 0 | P11: =+J11-N11 -> 0 | Q11: 0 | R11: 0
D12: 0 | G12: 0 | I12: 0 | J12: 0 | K12: 0 | M12: 0 | N12: 0 | O12: 0 | P12: 0 | Q12: 0 | R12: 0
A13: Total Revenue | I13: 3800 | J13: =SUM(J10:J12) -> 0 | M13: 0 | N13: =SUM(N10:N12) -> 0 | O13: 3800 | P13: =SUM(P10:P12) -> 0 | Q13: 463600 | R13: =SUM(R10:R12) -> 0
Q14: Enterprise | R14: Enterprise
A15: VARIABLE COSTS | D15: Quantity | E15: Quantity | F15: Units | G15: $/Unit | H15: $/Unit | I15: Total | J15: Total | K15: Share | L15: Share | M15: Landlord | N15: Landlord | O15: Tenant | P15: Tenant | Q15: Total | R15: Total
A16: Production Costs
B17: Fertilizer
C18: Urea, Solid (46% N) | D18: 1.97 | F18: CWT | G18: 22.25 | I18: 43.8325 | J18: =E18*H18 -> 0 | K18: 0 | M18: 0 | N18: =J18*L18 -> 0 | O18: 43.8325 | P18: =+J18-N18 -> 0 | Q18: 5347.565 | R18: =+J18*E$7 -> 0
C19: Fertilizer 18-46-0 | D19: 228 | F19: Pound | G19: 0.39 | I19: 88.92 | J19: 0 | K19: 0 | M19: 0 | N19: 0 | O19: 88.92 | P19: 0 | Q19: 10848.24 | R19: 0
C20: Fertilizer 0-0-22 Kmag | D20: 567 | F20: Pound | G20: 0.228 | I20: 129.276 | J20: 0 | K20: 0 | M20: 0 | N20: 0 | O20: 129.276 | P20: 0 | Q20: 15771.672 | R20: 0
B21: Herbicide
C22: Trifluralin | D22: 3 | F22: Pint | G22: 2.75 | I22: 8.25 | J22: 0 | K22: 0 | M22: 0 | N22: 0 | O22: 8.25 | P22: 0 | Q22: 1006.5 | R22: 0
B23: Seed
C24: Red Chile Seed Treated | D24: 10 | F24: Pound | G24: 30 | I24: 300 | J24: 0 | K24: 0 | M24: 0 | N24: 0 | O24: 300 | P24: 0 | Q24: 36600 | R24: 0
B25: Fungicides
C26: Quadris | D26: 15 | F26: Ounce | G26: 1.6409 | I26: 24.6135 | J26: 0 | K26: 0 | M26: 0 | N26: 0 | O26: 24.6135 | P26: 0 | Q26: 3002.847 | R26: 0
B27: Other Chemicals
C28: Ethephon 6 | D28: 16 | F28: Ounce | G28: 0.1554 | I28: 2.4864 | J28: 0 | K28: 0 | M28: 0 | N28: 0 | O28: 2.4864 | P28: 0 | Q28: 303.3408 | R28: 0
C29: Sodium Chlorate 5L | D29: 1 | F29: Gallon | G29: 6 | I29: 6 | J29: 0 | K29: 0 | M29: 0 | N29: 0 | O29: 6 | P29: 0 | Q29: 732 | R29: 0
D30: 0 | G30: 0 | I30: 0 | J30: 0 | K30: 0 | M30: 0 | N30: 0 | O30: 0 | P30: 0 | Q30: 0 | R30: 0
D31: 0 | G31: 0 | I31: 0 | J31: 0 | K31: 0 | M31: 0 | N31: 0 | O31: 0 | P31: 0 | Q31: 0 | R31: 0
D32: 0 | G32: 0 | I32: 0 | J32: =E32*H32 -> 0 | K32: 0 | M32: 0 | N32: =J32*L32 -> 0 | O32: 0 | P32: =+J32-N32 -> 0 | Q32: 0 | R32: =+J32*E$7 -> 0
B33: Irrigation
C34: Energy Cost | D34: 4.68 | F34: Mcf | G34: 5.61 | I34: 26.2548 | J34: =E34*H34 -> 0 | K34: 0 | M34: 0 | N34: =J34*L34 -> 0 | O34: 26.2548 | P34: =+J34-N34 -> 0 | Q34: 3203.0856 | R34: =+J34*E$7 -> 0
C35: Irrigation Labor | D35: 0.0173 | F35: Hour | G35: 15 | I35: 0.2595 | J35: 0 | K35: 0 | M35: 0 | N35: 0 | O35: 0.2595 | P35: 0 | Q35: 31.659 | R35: 0
B36: Machinery Labor
C37: Tractors/Self-Propelled | D37: 3.27 | F37: Hour | G37: 15 | I37: 49.05 | J37: =E37*H37 -> 0 | K37: 0 | M37: 0 | N37: =J37*L37 -> 0 | O37: 49.05 | P37: =+J37-N37 -> 0 | Q37: 5984.1 | R37: =+J37*E$7 -> 0
C38: Other Labor | D38: 2.07 | F38: Hour | G38: 15 | I38: 31.05 | J38: =E38*H38 -> 0 | K38: 0 | M38: 0 | N38: =J38*L38 -> 0 | O38: 31.05 | P38: =+J38-N38 -> 0 | Q38: 3788.1 | R38: =+J38*E$7 -> 0
B40: Diesel Fuel
C41: Pickup/General Use Equipment | D41: 1 | F41: Acre | G41: 0 | I41: 0 | J41: =E41*H41 -> 0 | K41: 0 | M41: 0 | N41: =J41*L41 -> 0 | O41: 0 | P41: =+J41-N41 -> 0 | Q41: 0 | R41: =+J41*E$7 -> 0
C42: Tractors/Self-Propelled | D42: 18.98 | F42: Gallon | G42: 1.5 | I42: 28.47 | J42: =E42*H42 -> 0 | K42: 0 | M42: 0 | N42: =J42*L42 -> 0 | O42: 28.47 | P42: =+J42-N42 -> 0 | Q42: 3473.34 | R42: =+J42*E$7 -> 0
B44: Gasoline
C45: Pickup/General Use Equipment | D45: 1 | F45: Acre | G45: 5.789508197 | I45: 5.789508197 | J45: =E45*H45 -> 0 | K45: 0 | M45: 0 | N45: =J45*L45 -> 0 | O45: 5.789508197 | P45: =+J45-N45 -> 0 | Q45: 706.32 | R45: =+J45*E$7 -> 0
C46: Tractors/Self-Propelled | D46: 0 | F46: Gallon | G46: 1.8 | I46: 0 | J46: =E46*H46 -> 0 | K46: 0 | M46: 0 | N46: =J46*L46 -> 0 | O46: 0 | P46: =+J46-N46 -> 0 | Q46: 0 | R46: =+J46*E$7 -> 0
B48: Repairs & Maintenance
C49: Pickup/General Use Equipment | D49: 1 | F49: Acre | G49: 1.608196721 | I49: 1.608196721 | J49: =E49*H49 -> 0 | K49: 0 | M49: 0 | N49: =J49*L49 -> 0 | O49: 1.608196721 | P49: =+J49-N49 -> 0 | Q49: 196.2 | R49: =+J49*E$7 -> 0
C50: Irrigation Equipment | D50: 1 | F50: Acre | G50: 7.970508 | I50: 7.970508 | J50: 0 | K50: 0 | M50: 0 | N50: 0 | O50: 7.970508 | P50: 0 | Q50: 972.401976 | R50: 0
C51: Tractors/Self-Propelled | D51: 1 | F51: Acre | G51: 57.21243785 | I51: 57.21243785 | J51: 0 | K51: 0 | M51: 0 | N51: 0 | O51: 57.21243785 | P51: 0 | Q51: 6979.917418 | R51: 0
C52: Implements | D52: 1 | F52: Acre | G52: 21.76087247 | I52: 21.76087247 | J52: 0 | K52: 0 | M52: 0 | N52: 0 | O52: 21.76087247 | P52: 0 | Q52: 2654.826441 | R52: 0
I53: 0 | J53: 0 | K53: 0 | M53: 0 | N53: 0 | O53: 0 | P53: 0 | Q53: 0 | R53: 0
I54: 0 | J54: 0 | K54: 0 | M54: 0 | N54: 0 | O54: 0 | P54: 0 | Q54: 0 | R54: 0
B55: Interest on Credit Line | G55: 0.0455 | I55: 20.35289558 | J55: =+SUM(J17:J54)/2*H55 -> 0 | M55: 0 | N55: =+SUM(N17:N54)/2*L55 -> 0 | O55: 20.35289558 | P55: =+SUM(P17:P54)/2*L55 -> 0 | Q55: 2483.05326 | R55: =+J55*E$7 -> 0
A56: Total Variable Costs | I56: 853.1571188 | J56: =SUM(J18:J55) -> 0 | M56: 0 | N56: =SUM(N18:N55) -> 0 | O56: 853.1571188 | P56: =SUM(P18:P55) -> 0 | Q56: 104085.1685 | R56: =SUM(R18:R55) -> 0
A57: Planned Returns Above Variable Costs: | I57: 2946.842881 | J57: =+J13-J56 -> 0 | M57: 0 | N57: =+N13-N56 -> 0 | O57: 2946.842881 | P57: =+P13-P56 -> 0 | Q57: 359514.8315 | R57: =+R13-R56 -> 0
B58: Breakeven Price to Cover Variable Costs | G58: 0.2132892797 | H58: =IF(E10=0,"n/a",(YVarExp-(YTotExp+YTotRet-J10))/E10) -> n/a | I58: Pound
Q59: Enterprise | R59: Enterprise
A60: FIXED COSTS | D60: Quantity | E60: Quantity | F60: Units | G60: $/Unit | H60: $/Unit | I60: Total | J60: Total | K60: Share | L60: Share | M60: Landlord | N60: Landlord | O60: Tenant | P60: Tenant | Q60: Total | R60: Total
B61: Machinery Depreciation
C62: Pickup/General Use Equipment | D62: 1 | F62: Acre | G62: 6.030737705 | I62: 6.030737705 | J62: =E62*H62 -> 0 | K62: 0 | M62: 0 | N62: =J62*L62 -> 0 | O62: 6.030737705 | P62: =+J62-N62 -> 0 | Q62: 735.75 | R62: =+J62*E$7 -> 0
C63: Irrigation Equipment | D63: 1 | F63: Acre | G63: 45.37377049 | I63: 45.37377049 | J63: 0 | K63: 0 | M63: 0 | N63: =J63*L63 -> 0 | O63: 45.37377049 | P63: 0 | Q63: 5535.6 | R63: 0
C64: Tractors/Self-Propelled | D64: 1 | F64: Acre | G64: 86.33991358 | I64: 86.33991358 | J64: 0 | K64: 0 | M64: 0 | N64: =J64*L64 -> 0 | O64: 86.33991358 | P64: 0 | Q64: 10533.46946 | R64: 0
C65: Implements | D65: 1 | F65: Acre | G65: 28.74378734 | I65: 28.74378734 | J65: 0 | K65: 0 | M65: 0 | N65: =J65*L65 -> 0 | O65: 28.74378734 | P65: 0 | Q65: 3506.742056 | R65: 0
B66: Equipment Investment
C67: Pickup/General Use Equipment | D67: 25.12807377 | F67: Dollars | G67: 0.055 | I67: 1.382044057 | J67: =E67*H67 -> 0 | K67: 0 | M67: 0 | N67: =J67*L67 -> 0 | O67: 1.382044057 | P67: =+J67-N67 -> 0 | Q67: 168.609375 | R67: =+J67*E$7 -> 0
C68: Irrigation Equipment | D68: 340.3032787 | F68: Dollars | G68: 0.055 | I68: 18.71668033 | J68: 0 | K68: 0 | M68: 0 | N68: =J68*L68 -> 0 | O68: 18.71668033 | P68: 0 | Q68: 2283.435 | R68: 0
C69: Tractors/Self-Propelled | D69: 801.1225291 | F69: Dollars | G69: 0.055 | I69: 44.0617391 | J69: 0 | K69: 0 | M69: 0 | N69: =J69*L69 -> 0 | O69: 44.0617391 | P69: 0 | Q69: 5375.532171 | R69: 0
C70: Implements | D70: 131.3972112 | F70: Dollars | G70: 0.055 | I70: 7.226846616 | J70: 0 | K70: 0 | M70: 0 | N70: =J70*L70 -> 0 | O70: 7.226846616 | P70: 0 | Q70: 881.6752871 | R70: 0
B71: Salaried Labor | D71: 1 | F71: Acre | G71: 0 | I71: 0 | J71: 0 | K71: 0 | M71: 0 | N71: =J71*L71 -> 0 | O71: 0 | P71: =+J71-N71 -> 0 | Q71: 0 | R71: =+J71*E$7 -> 0
B72: Management Fee, Owner/Operator Labor | D72: 1 | F72: Acre | G72: 0 | I72: 0 | J72: 0 | K72: 0 | M72: 0 | N72: 0 | O72: 0 | P72: 0 | Q72: 0 | R72: 0
B73: Allocated Establishment Cost | D73: 1 | F73: Acre | G73: 0 | I73: 0 | J73: 0 | K73: 0 | M73: 0 | N73: 0 | O73: 0 | P73: 0 | Q73: 0 | R73: 0
B74: Trans Pecos Irrigated Land | D74: 1 | F74: Acre | G74: 50 | I74: 50 | J74: 0 | K74: 0 | M74: 0 | N74: 0 | O74: 50 | P74: 0 | Q74: 6100 | R74: 0
B75: Property Taxes | D75: 1 | F75: Acre | G75: 0 | I75: 0 | J75: 0 | K75: 0 | M75: 0 | N75: 0 | O75: 0 | P75: 0 | Q75: 0 | R75: 0
B76: Whole Farm Insurance | D76: 1 | F76: Acre | G76: 0 | I76: 0 | J76: 0 | K76: 0 | M76: 0 | N76: 0 | O76: 0 | P76: 0 | Q76: 0 | R76: 0
D77: 1 | G77: 0 | I77: 0 | J77: 0 | K77: 0 | M77: 0 | N77: 0 | O77: 0 | P77: 0 | Q77: 0 | R77: 0
D78: 1 | G78: 0 | I78: 0 | J78: =E78*H78 -> 0 | K78: 0 | M78: 0 | N78: 0 | O78: 0 | P78: 0 | Q78: 0 | R78: 0
A79: Total Fixed Costs | I79: 287.8755192 | J79: =+SUM(J62:J78) -> 0 | M79: 0 | N79: =+SUM(N62:N78) -> 0 | O79: 287.8755192 | P79: =+SUM(P62:P78) -> 0 | Q79: 35120.81335 | R79: =+SUM(R62:R78) -> 0
A80: Total Specified Costs | I80: 1141.032638 | J80: =+J56+J79 -> 0 | M80: 0 | N80: =+N56+N79 -> 0 | O80: 1141.032638 | P80: =+P56+P79 -> 0 | Q80: 139205.9818 | R80: =+R56+R79 -> 0
A82: Returns Above Specified Costs | I82: 2658.967362 | J82: =+J13-J80 -> 0 | M82: 0 | N82: =+N13-N80 -> 0 | O82: 2658.967362 | P82: =+P13-P80 -> 0 | Q82: 324394.0182 | R82: =+R13-R80 -> 0
A84: Breakeven Price to Cover Total Costs | G84: 0.2852581595 | H84: =IF(E10=0,"n/a",(YTotExp-(YTotExp+YTotRet-J10))/E10) -> n/a | I84: Pound
D86: Example Breakeven Prices
B87: Example | C87: Example | D87: To Cover | G87: To Cover
B88: Yield | C88: Yield | D88: Variable | G88: Total
B89: Percent | C89: Pound | D89: Costs | G89: Costs
B90: 0.75 | C90: 3000 | D90: 0.2843857063 | G90: 0.3803442127
B91: 0.9 | C91: 3600 | D91: 0.2369880886 | G91: 0.3169535106
B92: 1 | C92: 4000 | D92: 0.2132892797 | G92: 0.2852581595
B93: 1.1 | C93: 4400 | D93: 0.1938993452 | G93: 0.2593255996
B94: 1.25 | C94: 5000 | D94: 0.1706314238 | G94: 0.2282065276
D96: Your Breakeven Prices
B97: Your | C97: Your | E97: To Cover | H97: To Cover
B98: Yield | C98: Yield | E98: Variable | H98: Total
B99: Percent | C99: Pound | E99: Costs | H99: Costs
B100: 0.75 | C100: =E10*YPER1 -> 0 | E100: =IF($E$10=0,0,(YVarExp-(YTotExp+YTotRet-J10))/($E$10*YPER1)) -> 0 | H100: =IF($E$10=0,0,(YTotExp-(YTotExp+YTotRet-J10))/($E$10*YPER1)) -> 0
B101: 0.9 | C101: =E10*YPER2 -> 0 | E101: =IF($E$10=0,0,(YVarExp-(YTotExp+YTotRet-J10))/($E$10*YPER2)) -> 0 | H101: =IF($E$10=0,0,(YTotExp-(YTotExp+YTotRet-J10))/($E$10*YPER2)) -> 0
B102: 1 | C102: =+E10 -> 0 | E102: =IF($E$10=0,0,(YVarExp-(YTotExp+YTotRet-J10))/($E$10*YPER3)) -> 0 | H102: =IF($E$10=0,0,(YTotExp-(YTotExp+YTotRet-J10))/($E$10*YPER3)) -> 0
B103: 1.1 | C103: =E10*YPER4 -> 0 | E103: =IF($E$10=0,0,(YVarExp-(YTotExp+YTotRet-J10))/($E$10*YPER4)) -> 0 | H103: =IF($E$10=0,0,(YTotExp-(YTotExp+YTotRet-J10))/($E$10*YPER4)) -> 0
B104: 1.25 | C104: =E10*YPER5 -> 0 | E104: =IF($E$10=0,0,(YVarExp-(YTotExp+YTotRet-J10))/($E$10*YPER5)) -> 0 | H104: =IF($E$10=0,0,(YTotExp-(YTotExp+YTotRet-J10))/($E$10*YPER5)) -> 0
A106: Developed by Bill Thompson, Assistant Professor and Extension Economist, Texas A&M AgriLife Extension Service, 325-653-4576.
A108: Information presented is prepared solely as a general guide and not intended to recognize or predict the costs and returns from any one operation. Brand names are mentioned only as examples and imply no endorsement.

Sheet Onions
A1: Projections for Planning Purposes Only -- Not to be Used without Updating
A2: 2021 Estimated Costs and Returns per Acre
A3: Spring Onions, Furrow Irrigated
A4: Enter your name for this budget in the cell above.
A5: Enter Your Values in the cells highlighed in MAROON.
E6: Your Acres | R6: Your
C7: Crop Acres | D7: 122 | L7: Your | Q7: Enterprise | R7: Enterprise
E8: Your | H8: Your | I8: Cash | J8: Your | K8: Landlord | L8: Landlord | N8: Your | P8: Your | Q8: Total | R8: Total
A9: REVENUE | D9: Quantity | E9: Quantity | F9: Units | G9: $/Unit | H9: $/Unit | I9: Total | J9: Total | K9: Share | L9: Share | M9: Landlord | N9: Landlord | O9: Tenant | P9: Tenant | Q9: (122 acres) | R9: ="(" & E7 & " acres)" -> ( acres)
B10: Spring Onions | D10: 650 | F10: Bag | G10: 8 | I10: 5200 | J10: =E10*H10 -> 0 | K10: 0 | M10: 0 | N10: =J10*L10 -> 0 | O10: 5200 | P10: =+J10-N10 -> 0 | Q10: 634400 | R10: =+J10*E$7 -> 0
D11: 0 | G11: 0 | I11: 0 | J11: 0 | K11: 0 | M11: 0 | N11: 0 | O11: 0 | P11: =+J11-N11 -> 0 | Q11: 0 | R11: 0
D12: 0 | G12: 0 | I12: 0 | J12: 0 | K12: 0 | M12: 0 | N12: 0 | O12: 0 | P12: 0 | Q12: 0 | R12: 0
A13: Total Revenue | I13: 5200 | J13: =SUM(J10:J12) -> 0 | M13: 0 | N13: =SUM(N10:N12) -> 0 | O13: 5200 | P13: =SUM(P10:P12) -> 0 | Q13: 634400 | R13: =SUM(R10:R12) -> 0
Q14: Enterprise | R14: Enterprise
A15: VARIABLE COSTS | D15: Quantity | E15: Quantity | F15: Units | G15: $/Unit | H15: $/Unit | I15: Total | J15: Total | K15: Share | L15: Share | M15: Landlord | N15: Landlord | O15: Tenant | P15: Tenant | Q15: Total | R15: Total
A16: Production Costs
B17: Custom
C18: Custom Apply Fertilizer | D18: 1 | F18: Acre | G18: 6 | I18: 6 | J18: =E18*H18 -> 0 | K18: 0 | M18: 0 | N18: =J18*L18 -> 0 | O18: 6 | P18: =+J18-N18 -> 0 | Q18: 732 | R18: =+J18*E$7 -> 0
C19: Harvest, Pack, Market Onions | D19: 650 | F19: Bag | G19: 4.02 | I19: 2613 | J19: 0 | K19: 0 | M19: 0 | N19: 0 | O19: 2613 | P19: 0 | Q19: 318786 | R19: 0
B20: Fertilizer
C21: Fertilizer 18-46-0 | D21: 100 | F21: Pound | G21: 0.39 | I21: 39 | J21: 0 | K21: 0 | M21: 0 | N21: 0 | O21: 39 | P21: 0 | Q21: 4758 | R21: 0
C22: N-32 in Water | D22: 100 | F22: Pound | G22: 0.3828 | I22: 38.28 | J22: 0 | K22: 0 | M22: 0 | N22: 0 | O22: 38.28 | P22: 0 | Q22: 4670.16 | R22: 0
B23: Herbicide
C24: Glyphosate | D24: 2 | F24: Pint | G24: 2.125 | I24: 4.25 | J24: 0 | K24: 0 | M24: 0 | N24: 0 | O24: 4.25 | P24: 0 | Q24: 518.5 | R24: 0
B25: Insecticide
C26: Mustang Max | D26: 31 | F26: Ounce | G26: 1.25 | I26: 38.75 | J26: 0 | K26: 0 | M26: 0 | N26: 0 | O26: 38.75 | P26: 0 | Q26: 4727.5 | R26: 0
B27: Seed
C28: Onion Seed | D28: 1.5 | F28: Pound | G28: 60 | I28: 90 | J28: 0 | K28: 0 | M28: 0 | N28: 0 | O28: 90 | P28: 0 | Q28: 10980 | R28: 0
B29: Fungicides
C30: Quadris | D30: 19 | F30: Ounce | G30: 1.6409 | I30: 31.1771 | J30: 0 | K30: 0 | M30: 0 | N30: 0 | O30: 31.1771 | P30: 0 | Q30: 3803.6062 | R30: 0
D31: 0 | G31: 0 | I31: 0 | J31: 0 | K31: 0 | M31: 0 | N31: 0 | O31: 0 | P31: 0 | Q31: 0 | R31: 0
D32: 0 | G32: 0 | I32: 0 | J32: 0 | K32: 0 | M32: 0 | N32: 0 | O32: 0 | P32: 0 | Q32: 0 | R32: 0
D33: 0 | G33: 0 | I33: 0 | J33: =E33*H33 -> 0 | K33: 0 | M33: 0 | N33: =J33*L33 -> 0 | O33: 0 | P33: =+J33-N33 -> 0 | Q33: 0 | R33: =+J33*E$7 -> 0
B34: Irrigation
C35: Energy Cost | D35: 2425.52 | F35: kWh | G35: 0.17 | I35: 412.3384 | J35: =E35*H35 -> 0 | K35: 0 | M35: 0 | N35: =J35*L35 -> 0 | O35: 412.3384 | P35: =+J35-N35 -> 0 | Q35: 50305.2848 | R35: =+J35*E$7 -> 0
C36: Irrigation Labor | D36: 7.6384 | F36: Hour | G36: 15 | I36: 114.576 | J36: 0 | K36: 0 | M36: 0 | N36: 0 | O36: 114.576 | P36: 0 | Q36: 13978.272 | R36: 0
B37: Machinery Labor
C38: Tractors/Self-Propelled | D38: 2.3 | F38: Hour | G38: 15 | I38: 34.5 | J38: =E38*H38 -> 0 | K38: 0 | M38: 0 | N38: =J38*L38 -> 0 | O38: 34.5 | P38: =+J38-N38 -> 0 | Q38: 4209 | R38: =+J38*E$7 -> 0
C39: Other Labor | D39: 0 | F39: Hour | G39: 15 | I39: 0 | J39: =E39*H39 -> 0 | K39: 0 | M39: 0 | N39: =J39*L39 -> 0 | O39: 0 | P39: =+J39-N39 -> 0 | Q39: 0 | R39: =+J39*E$7 -> 0
B41: Diesel Fuel
C42: Pickup/General Use Equipment | D42: 1 | F42: Acre | G42: 0 | I42: 0 | J42: =E42*H42 -> 0 | K42: 0 | M42: 0 | N42: =J42*L42 -> 0 | O42: 0 | P42: =+J42-N42 -> 0 | Q42: 0 | R42: =+J42*E$7 -> 0
C43: Tractors/Self-Propelled | D43: 18.31 | F43: Gallon | G43: 1.5 | I43: 27.465 | J43: =E43*H43 -> 0 | K43: 0 | M43: 0 | N43: =J43*L43 -> 0 | O43: 27.465 | P43: =+J43-N43 -> 0 | Q43: 3350.73 | R43: =+J43*E$7 -> 0
B45: Gasoline
C46: Pickup/General Use Equipment | D46: 1 | F46: Acre | G46: 5.789508197 | I46: 5.789508197 | J46: =E46*H46 -> 0 | K46: 0 | M46: 0 | N46: =J46*L46 -> 0 | O46: 5.789508197 | P46: =+J46-N46 -> 0 | Q46: 706.32 | R46: =+J46*E$7 -> 0
C47: Tractors/Self-Propelled | D47: 0 | F47: Gallon | G47: 1.8 | I47: 0 | J47: =E47*H47 -> 0 | K47: 0 | M47: 0 | N47: =J47*L47 -> 0 | O47: 0 | P47: =+J47-N47 -> 0 | Q47: 0 | R47: =+J47*E$7 -> 0
B49: Repairs & Maintenance
C50: Pickup/General Use Equipment | D50: 1 | F50: Acre | G50: 1.608196721 | I50: 1.608196721 | J50: =E50*H50 -> 0 | K50: 0 | M50: 0 | N50: =J50*L50 -> 0 | O50: 1.608196721 | P50: =+J50-N50 -> 0 | Q50: 196.2 | R50: =+J50*E$7 -> 0
C51: Irrigation Equipment | D51: 1 | F51: Acre | G51: 5.578696 | I51: 5.578696 | J51: 0 | K51: 0 | M51: 0 | N51: 0 | O51: 5.578696 | P51: 0 | Q51: 680.600912 | R51: 0
C52: Tractors/Self-Propelled | D52: 1 | F52: Acre | G52: 47.81939294 | I52: 47.81939294 | J52: 0 | K52: 0 | M52: 0 | N52: 0 | O52: 47.81939294 | P52: 0 | Q52: 5833.965939 | R52: 0
C53: Implements | D53: 1 | F53: Acre | G53: 26.4623379 | I53: 26.4623379 | J53: 0 | K53: 0 | M53: 0 | N53: 0 | O53: 26.4623379 | P53: 0 | Q53: 3228.405223 | R53: 0
I54: 0 | J54: 0 | K54: 0 | M54: 0 | N54: 0 | O54: 0 | P54: 0 | Q54: 0 | R54: 0
I55: 0 | J55: 0 | K55: 0 | M55: 0 | N55: 0 | O55: 0 | P55: 0 | Q55: 0 | R55: 0
B56: Interest on Credit Line | G56: 0.0455 | I56: 27.25816782 | J56: =+SUM(J17:J55)/2*H56 -> 0 | M56: 0 | N56: =+SUM(N17:N55)/2*L56 -> 0 | O56: 27.25816782 | P56: =+SUM(P17:P55)/2*L56 -> 0 | Q56: 3325.496475 | R56: =+J56*E$7 -> 0
A57: Total Variable Costs | I57: 3563.8528 | J57: =SUM(J18:J56) -> 0 | M57: 0 | N57: =SUM(N18:N56) -> 0 | O57: 3563.8528 | P57: =SUM(P18:P56) -> 0 | Q57: 434790.0415 | R57: =SUM(R18:R56) -> 0
A58: Planned Returns Above Variable Costs: | I58: 1636.1472 | J58: =+J13-J57 -> 0 | M58: 0 | N58: =+N13-N57 -> 0 | O58: 1636.1472 | P58: =+P13-P57 -> 0 | Q58: 199609.9585 | R58: =+R13-R57 -> 0
B59: Breakeven Price to Cover Variable Costs | G59: 5.482850461 | H59: =IF(E10=0,"n/a",(YVarExp-(YTotExp+YTotRet-J10))/E10) -> n/a | I59: Bag
Q60: Enterprise | R60: Enterprise
A61: FIXED COSTS | D61: Quantity | E61: Quantity | F61: Units | G61: $/Unit | H61: $/Unit | I61: Total | J61: Total | K61: Share | L61: Share | M61: Landlord | N61: Landlord | O61: Tenant | P61: Tenant | Q61: Total | R61: Total
B62: Machinery Depreciation
C63: Pickup/General Use Equipment | D63: 1 | F63: Acre | G63: 6.030737705 | I63: 6.030737705 | J63: =E63*H63 -> 0 | K63: 0 | M63: 0 | N63: =J63*L63 -> 0 | O63: 6.030737705 | P63: =+J63-N63 -> 0 | Q63: 735.75 | R63: =+J63*E$7 -> 0
C64: Irrigation Equipment | D64: 1 | F64: Acre | G64: 21.58469945 | I64: 21.58469945 | J64: 0 | K64: 0 | M64: 0 | N64: =J64*L64 -> 0 | O64: 21.58469945 | P64: 0 | Q64: 2633.333333 | R64: 0
C65: Tractors/Self-Propelled | D65: 1 | F65: Acre | G65: 49.41337271 | I65: 49.41337271 | J65: 0 | K65: 0 | M65: 0 | N65: =J65*L65 -> 0 | O65: 49.41337271 | P65: 0 | Q65: 6028.43147 | R65: 0
C66: Implements | D66: 1 | F66: Acre | G66: 31.98926295 | I66: 31.98926295 | J66: 0 | K66: 0 | M66: 0 | N66: =J66*L66 -> 0 | O66: 31.98926295 | P66: 0 | Q66: 3902.69008 | R66: 0
B67: Equipment Investment
C68: Pickup/General Use Equipment | D68: 25.12807377 | F68: Dollars | G68: 0.055 | I68: 1.382044057 | J68: =E68*H68 -> 0 | K68: 0 | M68: 0 | N68: =J68*L68 -> 0 | O68: 1.382044057 | P68: =+J68-N68 -> 0 | Q68: 168.609375 | R68: =+J68*E$7 -> 0
C69: Irrigation Equipment | D69: 161.8852459 | F69: Dollars | G69: 0.055 | I69: 8.903688525 | J69: 0 | K69: 0 | M69: 0 | N69: =J69*L69 -> 0 | O69: 8.903688525 | P69: 0 | Q69: 1086.25 | R69: 0
C70: Tractors/Self-Propelled | D70: 384.9461132 | F70: Dollars | G70: 0.055 | I70: 21.17203623 | J70: 0 | K70: 0 | M70: 0 | N70: =J70*L70 -> 0 | O70: 21.17203623 | P70: 0 | Q70: 2582.98842 | R70: 0
C71: Implements | D71: 136.8429582 | F71: Dollars | G71: 0.055 | I71: 7.526362699 | J71: 0 | K71: 0 | M71: 0 | N71: =J71*L71 -> 0 | O71: 7.526362699 | P71: 0 | Q71: 918.2162493 | R71: 0
B72: Salaried Labor | D72: 1 | F72: Acre | G72: 0 | I72: 0 | J72: 0 | K72: 0 | M72: 0 | N72: =J72*L72 -> 0 | O72: 0 | P72: =+J72-N72 -> 0 | Q72: 0 | R72: =+J72*E$7 -> 0
B73: Management Fee, Owner/Operator Labor | D73: 1 | F73: Acre | G73: 0 | I73: 0 | J73: 0 | K73: 0 | M73: 0 | N73: 0 | O73: 0 | P73: 0 | Q73: 0 | R73: 0
B74: Allocated Establishment Cost | D74: 1 | F74: Acre | G74: 0 | I74: 0 | J74: 0 | K74: 0 | M74: 0 | N74: 0 | O74: 0 | P74: 0 | Q74: 0 | R74: 0
B75: Trans Pecos Irrigated Land | D75: 1 | F75: Acre | G75: 50 | I75: 50 | J75: 0 | K75: 0 | M75: 0 | N75: 0 | O75: 50 | P75: 0 | Q75: 6100 | R75: 0
B76: Property Taxes | D76: 1 | F76: Acre | G76: 0 | I76: 0 | J76: 0 | K76: 0 | M76: 0 | N76: 0 | O76: 0 | P76: 0 | Q76: 0 | R76: 0
B77: Whole Farm Insurance | D77: 1 | F77: Acre | G77: 0 | I77: 0 | J77: 0 | K77: 0 | M77: 0 | N77: 0 | O77: 0 | P77: 0 | Q77: 0 | R77: 0
D78: 1 | G78: 0 | I78: 0 | J78: 0 | K78: 0 | M78: 0 | N78: 0 | O78: 0 | P78: 0 | Q78: 0 | R78: 0
D79: 1 | G79: 0 | I79: 0 | J79: =E79*H79 -> 0 | K79: 0 | M79: 0 | N79: 0 | O79: 0 | P79: 0 | Q79: 0 | R79: 0
A80: Total Fixed Costs | I80: 198.0022043 | J80: =+SUM(J63:J79) -> 0 | M80: 0 | N80: =+SUM(N63:N79) -> 0 | O80: 198.0022043 | P80: =+SUM(P63:P79) -> 0 | Q80: 24156.26893 | R80: =+SUM(R63:R79) -> 0
A81: Total Specified Costs | I81: 3761.855004 | J81: =+J57+J80 -> 0 | M81: 0 | N81: =+N57+N80 -> 0 | O81: 3761.855004 | P81: =+P57+P80 -> 0 | Q81: 458946.3105 | R81: =+R57+R80 -> 0
A83: Returns Above Specified Costs | I83: 1438.144996 | J83: =+J13-J81 -> 0 | M83: 0 | N83: =+N13-N81 -> 0 | O83: 1438.144996 | P83: =+P13-P81 -> 0 | Q83: 175453.6895 | R83: =+R13-R81 -> 0
A85: Breakeven Price to Cover Total Costs | G85: 5.787469237 | H85: =IF(E10=0,"n/a",(YTotExp-(YTotExp+YTotRet-J10))/E10) -> n/a | I85: Bag
D87: Example Breakeven Prices
B88: Example | C88: Example | D88: To Cover | G88: To Cover
B89: Yield | C89: Yield | D89: Variable | G89: Total
B90: Percent | C90: Bag | D90: Costs | G90: Costs
B91: 0.75 | C91: 487.5 | D91: 7.310467281 | G91: 7.716625649
B92: 0.9 | C92: 585 | D92: 6.092056068 | G92: 6.430521374
B93: 1 | C93: 650 | D93: 5.482850461 | G93: 5.787469237
B94: 1.1 | C94: 715 | D94: 4.98440951 | G94: 5.26133567
B95: 1.25 | C95: 812.5 | D95: 4.386280369 | G95: 4.629975389
D97: Your Breakeven Prices
B98: Your | C98: Your | E98: To Cover | H98: To Cover
B99: Yield | C99: Yield | E99: Variable | H99: Total
B100: Percent | C100: Bag | E100: Costs | H100: Costs
B101: 0.75 | C101: =E10*YPER1 -> 0 | E101: =IF($E$10=0,0,(YVarExp-(YTotExp+YTotRet-J10))/($E$10*YPER1)) -> 0 | H101: =IF($E$10=0,0,(YTotExp-(YTotExp+YTotRet-J10))/($E$10*YPER1)) -> 0
B102: 0.9 | C102: =E10*YPER2 -> 0 | E102: =IF($E$10=0,0,(YVarExp-(YTotExp+YTotRet-J10))/($E$10*YPER2)) -> 0 | H102: =IF($E$10=0,0,(YTotExp-(YTotExp+YTotRet-J10))/($E$10*YPER2)) -> 0
B103: 1 | C103: =+E10 -> 0 | E103: =IF($E$10=0,0,(YVarExp-(YTotExp+YTotRet-J10))/($E$10*YPER3)) -> 0 | H103: =IF($E$10=0,0,(YTotExp-(YTotExp+YTotRet-J10))/($E$10*YPER3)) -> 0
B104: 1.1 | C104: =E10*YPER4 -> 0 | E104: =IF($E$10=0,0,(YVarExp-(YTotExp+YTotRet-J10))/($E$10*YPER4)) -> 0 | H104: =IF($E$10=0,0,(YTotExp-(YTotExp+YTotRet-J10))/($E$10*YPER4)) -> 0
B105: 1.25 | C105: =E10*YPER5 -> 0 | E105: =IF($E$10=0,0,(YVarExp-(YTotExp+YTotRet-J10))/($E$10*YPER5)) -> 0 | H105: =IF($E$10=0,0,(YTotExp-(YTotExp+YTotRet-J10))/($E$10*YPER5)) -> 0
A107: Developed by Bill Thompson, Assistant Professor and Extension Economist, Texas A&M AgriLife Extension Service, 325-653-4576.
A109: Information presented is prepared solely as a general guide and not intended to recognize or predict the costs and returns from any one operation. Brand names are mentioned only as examples and imply no endorsement.

Sheet SwitchgrassEstablish
A1: Projections for Planning Purposes Only -- Not to be Used without Updating
A2: 2021 Estimated Costs and Returns per Acre
A3: Alamo Switchgrass Establishment, Pivot Irrigated
A4: Enter your name for this budget in the cell above.
A5: Enter Your Values in the cells highlighed in MAROON.
E6: Your Acres | R6: Your
C7: Crop Acres | D7: 122 | L7: Your | Q7: Enterprise | R7: Enterprise
E8: Your | H8: Your | I8: Cash | J8: Your | K8: Landlord | L8: Landlord | N8: Your | P8: Your | Q8: Total | R8: Total
A9: REVENUE | D9: Quantity | E9: Quantity | F9: Units | G9: $/Unit | H9: $/Unit | I9: Total | J9: Total | K9: Share | L9: Share | M9: Landlord | N9: Landlord | O9: Tenant | P9: Tenant | Q9: (122 acres) | R9: ="(" & E7 & " acres)" -> ( acres)
B10: 0 | D10: 0 | G10: 0 | I10: 0 | J10: =E10*H10 -> 0 | K10: 0 | M10: 0 | N10: =J10*L10 -> 0 | O10: 0 | P10: =+J10-N10 -> 0 | Q10: 0 | R10: =+J10*E$7 -> 0
D11: 0 | G11: 0 | I11: 0 | J11: 0 | K11: 0 | M11: 0 | N11: 0 | O11: 0 | P11: =+J11-N11 -> 0 | Q11: 0 | R11: 0
D12: 0 | G12: 0 | I12: 0 | J12: 0 | K12: 0 | M12: 0 | N12: 0 | O12: 0 | P12: 0 | Q12: 0 | R12: 0
A13: Total Revenue | I13: 0 | J13: =SUM(J10:J12) -> 0 | M13: 0 | N13: =SUM(N10:N12) -> 0 | O13: 0 | P13: =SUM(P10:P12) -> 0 | Q13: 0 | R13: =SUM(R10:R12) -> 0
Q14: Enterprise | R14: Enterprise
A15: VARIABLE COSTS | D15: Quantity | E15: Quantity | F15: Units | G15: $/Unit | H15: $/Unit | I15: Total | J15: Total | K15: Share | L15: Share | M15: Landlord | N15: Landlord | O15: Tenant | P15: Tenant | Q15: Total | R15: Total
A16: Production Costs
B17: Fertilizer
C18: N-32 in Water | D18: 20 | F18: Pound | G18: 0.3828 | I18: 7.656 | J18: =E18*H18 -> 0 | K18: 0 | M18: 0 | N18: =J18*L18 -> 0 | O18: 7.656 | P18: =+J18-N18 -> 0 | Q18: 934.032 | R18: =+J18*E$7 -> 0
B19: Herbicide
C20: Glyphosate | D20: 8 | F20: Pint | G20: 2.125 | I20: 17 | J20: 0 | K20: 0 | M20: 0 | N20: 0 | O20: 17 | P20: 0 | Q20: 2074 | R20: 0
B21: Seed
C22: Switchgrass Seed | D22: 3 | F22: Pound | G22: 18 | I22: 54 | J22: 0 | K22: 0 | M22: 0 | N22: 0 | O22: 54 | P22: 0 | Q22: 6588 | R22: 0
D23: 0 | G23: 0 | I23: 0 | J23: 0 | K23: 0 | M23: 0 | N23: 0 | O23: 0 | P23: 0 | Q23: 0 | R23: 0
D24: 0 | G24: 0 | I24: 0 | J24: 0 | K24: 0 | M24: 0 | N24: 0 | O24: 0 | P24: 0 | Q24: 0 | R24: 0
D25: 0 | G25: 0 | I25: 0 | J25: =E25*H25 -> 0 | K25: 0 | M25: 0 | N25: =J25*L25 -> 0 | O25: 0 | P25: =+J25-N25 -> 0 | Q25: 0 | R25: =+J25*E$7 -> 0
B26: Irrigation
C27: Energy Cost | D27: 3.04 | F27: Mcf | G27: 5.61 | I27: 17.0544 | J27: =E27*H27 -> 0 | K27: 0 | M27: 0 | N27: =J27*L27 -> 0 | O27: 17.0544 | P27: =+J27-N27 -> 0 | Q27: 2080.6368 | R27: =+J27*E$7 -> 0
C28: Irrigation Labor | D28: 0.0176 | F28: Hour | G28: 15 | I28: 0.264 | J28: 0 | K28: 0 | M28: 0 | N28: 0 | O28: 0.264 | P28: 0 | Q28: 32.208 | R28: 0
B29: Machinery Labor
C30: Tractors/Self-Propelled | D30: 1.28 | F30: Hour | G30: 15 | I30: 19.2 | J30: =E30*H30 -> 0 | K30: 0 | M30: 0 | N30: =J30*L30 -> 0 | O30: 19.2 | P30: =+J30-N30 -> 0 | Q30: 2342.4 | R30: =+J30*E$7 -> 0
C31: Other Labor | D31: 0 | F31: Hour | G31: 15 | I31: 0 | J31: =E31*H31 -> 0 | K31: 0 | M31: 0 | N31: =J31*L31 -> 0 | O31: 0 | P31: =+J31-N31 -> 0 | Q31: 0 | R31: =+J31*E$7 -> 0
B33: Diesel Fuel
C34: Pickup/General Use Equipment | D34: 1 | F34: Acre | G34: 0 | I34: 0 | J34: =E34*H34 -> 0 | K34: 0 | M34: 0 | N34: =J34*L34 -> 0 | O34: 0 | P34: =+J34-N34 -> 0 | Q34: 0 | R34: =+J34*E$7 -> 0
C35: Tractors/Self-Propelled | D35: 6.86 | F35: Gallon | G35: 1.5 | I35: 10.29 | J35: =E35*H35 -> 0 | K35: 0 | M35: 0 | N35: =J35*L35 -> 0 | O35: 10.29 | P35: =+J35-N35 -> 0 | Q35: 1255.38 | R35: =+J35*E$7 -> 0
B37: Gasoline
C38: Pickup/General Use Equipment | D38: 1 | F38: Acre | G38: 0 | I38: 0 | J38: =E38*H38 -> 0 | K38: 0 | M38: 0 | N38: =J38*L38 -> 0 | O38: 0 | P38: =+J38-N38 -> 0 | Q38: 0 | R38: =+J38*E$7 -> 0
C39: Tractors/Self-Propelled | D39: 0 | F39: Gallon | G39: 1.8 | I39: 0 | J39: =E39*H39 -> 0 | K39: 0 | M39: 0 | N39: =J39*L39 -> 0 | O39: 0 | P39: =+J39-N39 -> 0 | Q39: 0 | R39: =+J39*E$7 -> 0
B41: Repairs & Maintenance
C42: Pickup/General Use Equipment | D42: 1 | F42: Acre | G42: 0 | I42: 0 | J42: =E42*H42 -> 0 | K42: 0 | M42: 0 | N42: =J42*L42 -> 0 | O42: 0 | P42: =+J42-N42 -> 0 | Q42: 0 | R42: =+J42*E$7 -> 0
C43: Irrigation Equipment | D43: 1 | F43: Acre | G43: 8.011312 | I43: 8.011312 | J43: 0 | K43: 0 | M43: 0 | N43: 0 | O43: 8.011312 | P43: 0 | Q43: 977.380064 | R43: 0
C44: Tractors/Self-Propelled | D44: 1 | F44: Acre | G44: 16.71085348 | I44: 16.71085348 | J44: 0 | K44: 0 | M44: 0 | N44: 0 | O44: 16.71085348 | P44: 0 | Q44: 2038.724125 | R44: 0
C45: Implements | D45: 1 | F45: Acre | G45: 15.81236341 | I45: 15.81236341 | J45: 0 | K45: 0 | M45: 0 | N45: 0 | O45: 15.81236341 | P45: 0 | Q45: 1929.108336 | R45: 0
I46: 0 | J46: 0 | K46: 0 | M46: 0 | N46: 0 | O46: 0 | P46: 0 | Q46: 0 | R46: 0
I47: 0 | J47: 0 | K47: 0 | M47: 0 | N47: 0 | O47: 0 | P47: 0 | Q47: 0 | R47: 0
B48: Interest on Credit Line | G48: 0.0455 | I48: 2.718851195 | J48: =+SUM(J17:J47)/2*H48 -> 0 | M48: 0 | N48: =+SUM(N17:N47)/2*L48 -> 0 | O48: 2.718851195 | P48: =+SUM(P17:P47)/2*L48 -> 0 | Q48: 331.6998458 | R48: =+J48*E$7 -> 0
A49: Total Variable Costs | I49: 168.7177801 | J49: =SUM(J18:J48) -> 0 | M49: 0 | N49: =SUM(N18:N48) -> 0 | O49: 168.7177801 | P49: =SUM(P18:P48) -> 0 | Q49: 20583.56917 | R49: =SUM(R18:R48) -> 0
A50: Planned Returns Above Variable Costs: | I50: -168.7177801 | J50: =+J13-J49 -> 0 | M50: 0 | N50: =+N13-N49 -> 0 | O50: -168.7177801 | P50: =+P13-P49 -> 0 | Q50: -20583.56917 | R50: =+R13-R49 -> 0
B51: Breakeven Price to Cover Variable Costs | G51: n/a | H51: =IF(E10=0,"n/a",(YVarExp-(YTotExp+YTotRet-J10))/E10) -> n/a
Q52: Enterprise | R52: Enterprise
A53: FIXED COSTS | D53: Quantity | E53: Quantity | F53: Units | G53: $/Unit | H53: $/Unit | I53: Total | J53: Total | K53: Share | L53: Share | M53: Landlord | N53: Landlord | O53: Tenant | P53: Tenant | Q53: Total | R53: Total
B54: Machinery Depreciation
C55: Irrigation Equipment | D55: 1 | F55: Acre | G55: 48.63725833 | I55: 48.63725833 | J55: =E55*H55 -> 0 | K55: 0 | M55: 0 | N55: =J55*L55 -> 0 | O55: 48.63725833 | P55: =+J55-N55 -> 0 | Q55: 5933.745516 | R55: =+J55*E$7 -> 0
C56: Tractors/Self-Propelled | D56: 1 | F56: Acre | G56: 17.08115747 | I56: 17.08115747 | J56: 0 | K56: 0 | M56: 0 | N56: =J56*L56 -> 0 | O56: 17.08115747 | P56: 0 | Q56: 2083.901211 | R56: 0
C57: Implements | D57: 1 | F57: Acre | G57: 19.79741776 | I57: 19.79741776 | J57: 0 | K57: 0 | M57: 0 | N57: =J57*L57 -> 0 | O57: 19.79741776 | P57: 0 | Q57: 2415.284967 | R57: 0
B58: Equipment Investment
C59: Irrigation Equipment | D59: 364.7794375 | F59: Dollars | G59: 0.055 | I59: 20.06286906 | J59: =E59*H59 -> 0 | K59: 0 | M59: 0 | N59: =J59*L59 -> 0 | O59: 20.06286906 | P59: =+J59-N59 -> 0 | Q59: 2447.670025 | R59: =+J59*E$7 -> 0
C60: Tractors/Self-Propelled | D60: 133.0677268 | F60: Dollars | G60: 0.055 | I60: 7.318724971 | J60: 0 | K60: 0 | M60: 0 | N60: =J60*L60 -> 0 | O60: 7.318724971 | P60: 0 | Q60: 892.8844465 | R60: 0
C61: Implements | D61: 84.68895376 | F61: Dollars | G61: 0.055 | I61: 4.657892457 | J61: 0 | K61: 0 | M61: 0 | N61: =J61*L61 -> 0 | O61: 4.657892457 | P61: 0 | Q61: 568.2628797 | R61: 0
B62: Salaried Labor | D62: 1 | F62: Acre | G62: 0 | I62: 0 | J62: 0 | K62: 0 | M62: 0 | N62: =J62*L62 -> 0 | O62: 0 | P62: =+J62-N62 -> 0 | Q62: 0 | R62: =+J62*E$7 -> 0
B63: Management Fee, Owner/Operator Labor | D63: 1 | F63: Acre | G63: 0 | I63: 0 | J63: 0 | K63: 0 | M63: 0 | N63: 0 | O63: 0 | P63: 0 | Q63: 0 | R63: 0
B64: Allocated Establishment Cost | D64: 1 | F64: Acre | G64: 0 | I64: 0 | J64: 0 | K64: 0 | M64: 0 | N64: 0 | O64: 0 | P64: 0 | Q64: 0 | R64: 0
B65: None | D65: 1 | F65: Acre | G65: 0 | I65: 0 | J65: 0 | K65: 0 | M65: 0 | N65: 0 | O65: 0 | P65: 0 | Q65: 0 | R65: 0
B66: Property Taxes | D66: 1 | F66: Acre | G66: 0 | I66: 0 | J66: 0 | K66: 0 | M66: 0 | N66: 0 | O66: 0 | P66: 0 | Q66: 0 | R66: 0
B67: Whole Farm Insurance | D67: 1 | F67: Acre | G67: 0 | I67: 0 | J67: 0 | K67: 0 | M67: 0 | N67: 0 | O67: 0 | P67: 0 | Q67: 0 | R67: 0
D68: 1 | G68: 0 | I68: 0 | J68: 0 | K68: 0 | M68: 0 | N68: 0 | O68: 0 | P68: 0 | Q68: 0 | R68: 0
D69: 1 | G69: 0 | I69: 0 | J69: =E69*H69 -> 0 | K69: 0 | M69: 0 | N69: 0 | O69: 0 | P69: 0 | Q69: 0 | R69: 0
A70: Total Fixed Costs | I70: 117.55532 | J70: =+SUM(J55:J69) -> 0 | M70: 0 | N70: =+SUM(N55:N69) -> 0 | O70: 117.55532 | P70: =+SUM(P55:P69) -> 0 | Q70: 14341.74905 | R70: =+SUM(R55:R69) -> 0
A71: Total Specified Costs | I71: 286.2731001 | J71: =+J49+J70 -> 0 | M71: 0 | N71: =+N49+N70 -> 0 | O71: 286.2731001 | P71: =+P49+P70 -> 0 | Q71: 34925.31822 | R71: =+R49+R70 -> 0
A73: Returns Above Specified Costs | I73: -286.2731001 | J73: =+J13-J71 -> 0 | M73: 0 | N73: =+N13-N71 -> 0 | O73: -286.2731001 | P73: =+P13-P71 -> 0 | Q73: -34925.31822 | R73: =+R13-R71 -> 0
A75: Breakeven Price to Cover Total Costs | G75: n/a | H75: =IF(E10=0,"n/a",(YTotExp-(YTotExp+YTotRet-J10))/E10) -> n/a
D77: Example Breakeven Prices
B78: Example | C78: Example | D78: To Cover | G78: To Cover
B79: Yield | C79: Yield | D79: Variable | G79: Total
B80: Percent | D80: Costs | G80: Costs
B81: 0.75 | C81: 0 | D81: 0 | G81: 0
B82: 0.9 | C82: 0 | D82: 0 | G82: 0
B83: 1 | C83: 0 | D83: 0 | G83: 0
B84: 1.1 | C84: 0 | D84: 0 | G84: 0
B85: 1.25 | C85: 0 | D85: 0 | G85: 0
D87: Your Breakeven Prices
B88: Your | C88: Your | E88: To Cover | H88: To Cover
B89: Yield | C89: Yield | E89: Variable | H89: Total
B90: Percent | E90: Costs | H90: Costs
B91: 0.75 | C91: =E10*YPER1 -> 0 | E91: =IF($E$10=0,0,(YVarExp-(YTotExp+YTotRet-J10))/($E$10*YPER1)) -> 0 | H91: =IF($E$10=0,0,(YTotExp-(YTotExp+YTotRet-J10))/($E$10*YPER1)) -> 0
B92: 0.9 | C92: =E10*YPER2 -> 0 | E92: =IF($E$10=0,0,(YVarExp-(YTotExp+YTotRet-J10))/($E$10*YPER2)) -> 0 | H92: =IF($E$10=0,0,(YTotExp-(YTotExp+YTotRet-J10))/($E$10*YPER2)) -> 0
B93: 1 | C93: =+E10 -> 0 | E93: =IF($E$10=0,0,(YVarExp-(YTotExp+YTotRet-J10))/($E$10*YPER3)) -> 0 | H93: =IF($E$10=0,0,(YTotExp-(YTotExp+YTotRet-J10))/($E$10*YPER3)) -> 0
B94: 1.1 | C94: =E10*YPER4 -> 0 | E94: =IF($E$10=0,0,(YVarExp-(YTotExp+YTotRet-J10))/($E$10*YPER4)) -> 0 | H94: =IF($E$10=0,0,(YTotExp-(YTotExp+YTotRet-J10))/($E$10*YPER4)) -> 0
B95: 1.25 | C95: =E10*YPER5 -> 0 | E95: =IF($E$10=0,0,(YVarExp-(YTotExp+YTotRet-J10))/($E$10*YPER5)) -> 0 | H95: =IF($E$10=0,0,(YTotExp-(YTotExp+YTotRet-J10))/($E$10*YPER5)) -> 0
A97: Developed by Bill Thompson, Assistant Professor and Extension Economist, Texas A&M AgriLife Extension Service, 325-653-4576.
A99: Information presented is prepared solely as a general guide and not intended to recognize or predict the costs and returns from any one operation. Brand names are mentioned only as examples and imply no endorsement.

Sheet SwitchgrassGraze
A1: Projections for Planning Purposes Only -- Not to be Used without Updating
A2: 2021 Estimated Costs and Returns per Acre
A3: Alamo Switchgrass, Full Season, Pivot Irrigated, Grazed
A4: Enter your name for this budget in the cell above.
A5: Enter Your Values in the cells highlighed in MAROON.
E6: Your Acres | R6: Your
C7: Crop Acres | D7: 122 | L7: Your | Q7: Enterprise | R7: Enterprise
E8: Your | H8: Your | I8: Cash | J8: Your | K8: Landlord | L8: Landlord | N8: Your | P8: Your | Q8: Total | R8: Total
A9: REVENUE | D9: Quantity | E9: Quantity | F9: Units | G9: $/Unit | H9: $/Unit | I9: Total | J9: Total | K9: Share | L9: Share | M9: Landlord | N9: Landlord | O9: Tenant | P9: Tenant | Q9: (122 acres) | R9: ="(" & E7 & " acres)" -> ( acres)
B10: AUM Grazing Lease | D10: 6.3 | F10: AUM | G10: 15.5 | I10: 97.65 | J10: =E10*H10 -> 0 | K10: 0 | M10: 0 | N10: =J10*L10 -> 0 | O10: 97.65 | P10: =+J10-N10 -> 0 | Q10: 11913.3 | R10: =+J10*E$7 -> 0
D11: 0 | G11: 0 | I11: 0 | J11: 0 | K11: 0 | M11: 0 | N11: 0 | O11: 0 | P11: =+J11-N11 -> 0 | Q11: 0 | R11: 0
D12: 0 | G12: 0 | I12: 0 | J12: 0 | K12: 0 | M12: 0 | N12: 0 | O12: 0 | P12: 0 | Q12: 0 | R12: 0
A13: Total Revenue | I13: 97.65 | J13: =SUM(J10:J12) -> 0 | M13: 0 | N13: =SUM(N10:N12) -> 0 | O13: 97.65 | P13: =SUM(P10:P12) -> 0 | Q13: 11913.3 | R13: =SUM(R10:R12) -> 0
Q14: Enterprise | R14: Enterprise
A15: VARIABLE COSTS | D15: Quantity | E15: Quantity | F15: Units | G15: $/Unit | H15: $/Unit | I15: Total | J15: Total | K15: Share | L15: Share | M15: Landlord | N15: Landlord | O15: Tenant | P15: Tenant | Q15: Total | R15: Total
A16: Production Costs
B17: Fertilizer
C18: N-32 in Water | D18: 20 | F18: Pound | G18: 0.3828 | I18: 7.656 | J18: =E18*H18 -> 0 | K18: 0 | M18: 0 | N18: =J18*L18 -> 0 | O18: 7.656 | P18: =+J18-N18 -> 0 | Q18: 934.032 | R18: =+J18*E$7 -> 0
C19: Urea, Solid (46% N) | D19: 0.45 | F19: CWT | G19: 22.25 | I19: 10.0125 | J19: 0 | K19: 0 | M19: 0 | N19: 0 | O19: 10.0125 | P19: 0 | Q19: 1221.525 | R19: 0
B20: Herbicide
C21: 2,4-D Amine 4 | D21: 40 | F21: Ounce | G21: 0.10078125 | I21: 4.03125 | J21: 0 | K21: 0 | M21: 0 | N21: 0 | O21: 4.03125 | P21: 0 | Q21: 491.8125 | R21: 0
B22: Other Labor
C23: Hand Labor | D23: 0.14 | F23: Hour | G23: 8.5 | I23: 1.19 | J23: 0 | K23: 0 | M23: 0 | N23: 0 | O23: 1.19 | P23: 0 | Q23: 145.18 | R23: 0
D24: 0 | G24: 0 | I24: 0 | J24: 0 | K24: 0 | M24: 0 | N24: 0 | O24: 0 | P24: 0 | Q24: 0 | R24: 0
D25: 0 | G25: 0 | I25: 0 | J25: 0 | K25: 0 | M25: 0 | N25: 0 | O25: 0 | P25: 0 | Q25: 0 | R25: 0
D26: 0 | G26: 0 | I26: 0 | J26: =E26*H26 -> 0 | K26: 0 | M26: 0 | N26: =J26*L26 -> 0 | O26: 0 | P26: =+J26-N26 -> 0 | Q26: 0 | R26: =+J26*E$7 -> 0
B27: Irrigation
C28: Energy Cost | D28: 4.56 | F28: Mcf | G28: 5.61 | I28: 25.5816 | J28: =E28*H28 -> 0 | K28: 0 | M28: 0 | N28: =J28*L28 -> 0 | O28: 25.5816 | P28: =+J28-N28 -> 0 | Q28: 3120.9552 | R28: =+J28*E$7 -> 0
C29: Irrigation Labor | D29: 0.0264 | F29: Hour | G29: 15 | I29: 0.396 | J29: 0 | K29: 0 | M29: 0 | N29: 0 | O29: 0.396 | P29: 0 | Q29: 48.312 | R29: 0
B30: Machinery Labor
C31: Tractors/Self-Propelled | D31: 0.3 | F31: Hour | G31: 15 | I31: 4.5 | J31: =E31*H31 -> 0 | K31: 0 | M31: 0 | N31: =J31*L31 -> 0 | O31: 4.5 | P31: =+J31-N31 -> 0 | Q31: 549 | R31: =+J31*E$7 -> 0
C32: Other Labor | D32: 0 | F32: Hour | G32: 15 | I32: 0 | J32: =E32*H32 -> 0 | K32: 0 | M32: 0 | N32: =J32*L32 -> 0 | O32: 0 | P32: =+J32-N32 -> 0 | Q32: 0 | R32: =+J32*E$7 -> 0
B34: Diesel Fuel
C35: Pickup/General Use Equipment | D35: 1 | F35: Acre | G35: 0 | I35: 0 | J35: =E35*H35 -> 0 | K35: 0 | M35: 0 | N35: =J35*L35 -> 0 | O35: 0 | P35: =+J35-N35 -> 0 | Q35: 0 | R35: =+J35*E$7 -> 0
C36: Tractors/Self-Propelled | D36: 1.14 | F36: Gallon | G36: 1.5 | I36: 1.71 | J36: =E36*H36 -> 0 | K36: 0 | M36: 0 | N36: =J36*L36 -> 0 | O36: 1.71 | P36: =+J36-N36 -> 0 | Q36: 208.62 | R36: =+J36*E$7 -> 0
B38: Gasoline
C39: Pickup/General Use Equipment | D39: 1 | F39: Acre | G39: 0 | I39: 0 | J39: =E39*H39 -> 0 | K39: 0 | M39: 0 | N39: =J39*L39 -> 0 | O39: 0 | P39: =+J39-N39 -> 0 | Q39: 0 | R39: =+J39*E$7 -> 0
C40: Tractors/Self-Propelled | D40: 0 | F40: Gallon | G40: 1.8 | I40: 0 | J40: =E40*H40 -> 0 | K40: 0 | M40: 0 | N40: =J40*L40 -> 0 | O40: 0 | P40: =+J40-N40 -> 0 | Q40: 0 | R40: =+J40*E$7 -> 0
B42: Repairs & Maintenance
C43: Pickup/General Use Equipment | D43: 1 | F43: Acre | G43: 0 | I43: 0 | J43: =E43*H43 -> 0 | K43: 0 | M43: 0 | N43: =J43*L43 -> 0 | O43: 0 | P43: =+J43-N43 -> 0 | Q43: 0 | R43: =+J43*E$7 -> 0
C44: Irrigation Equipment | D44: 1 | F44: Acre | G44: 12.016968 | I44: 12.016968 | J44: 0 | K44: 0 | M44: 0 | N44: 0 | O44: 12.016968 | P44: 0 | Q44: 1466.070096 | R44: 0
C45: Tractors/Self-Propelled | D45: 1 | F45: Acre | G45: 1.762215403 | I45: 1.762215403 | J45: 0 | K45: 0 | M45: 0 | N45: 0 | O45: 1.762215403 | P45: 0 | Q45: 214.9902792 | R45: 0
C46: Implements | D46: 1 | F46: Acre | G46: 0.3395167963 | I46: 0.3395167963 | J46: 0 | K46: 0 | M46: 0 | N46: 0 | O46: 0.3395167963 | P46: 0 | Q46: 41.42104915 | R46: 0
I47: 0 | J47: 0 | K47: 0 | M47: 0 | N47: 0 | O47: 0 | P47: 0 | Q47: 0 | R47: 0
I48: 0 | J48: 0 | K48: 0 | M48: 0 | N48: 0 | O48: 0 | P48: 0 | Q48: 0 | R48: 0
B49: Interest on Credit Line | G49: 0.0455 | I49: 1.276313596 | J49: =+SUM(J17:J48)/2*H49 -> 0 | M49: 0 | N49: =+SUM(N17:N48)/2*L49 -> 0 | O49: 1.276313596 | P49: =+SUM(P17:P48)/2*L49 -> 0 | Q49: 155.7102587 | R49: =+J49*E$7 -> 0
A50: Total Variable Costs | I50: 70.4723638 | J50: =SUM(J18:J49) -> 0 | M50: 0 | N50: =SUM(N18:N49) -> 0 | O50: 70.4723638 | P50: =SUM(P18:P49) -> 0 | Q50: 8597.628383 | R50: =SUM(R18:R49) -> 0
A51: Planned Returns Above Variable Costs: | I51: 27.1776362 | J51: =+J13-J50 -> 0 | M51: 0 | N51: =+N13-N50 -> 0 | O51: 27.1776362 | P51: =+P13-P50 -> 0 | Q51: 3315.671617 | R51: =+R13-R50 -> 0
B52: Breakeven Price to Cover Variable Costs | G52: 11.18608949 | H52: =IF(E10=0,"n/a",(YVarExp-(YTotExp+YTotRet-J10))/E10) -> n/a | I52: AUM
Q53: Enterprise | R53: Enterprise
A54: FIXED COSTS | D54: Quantity | E54: Quantity | F54: Units | G54: $/Unit | H54: $/Unit | I54: Total | J54: Total | K54: Share | L54: Share | M54: Landlord | N54: Landlord | O54: Tenant | P54: Tenant | Q54: Total | R54: Total
B55: Machinery Depreciation
C56: Irrigation Equipment | D56: 1 | F56: Acre | G56: 48.63725833 | I56: 48.63725833 | J56: =E56*H56 -> 0 | K56: 0 | M56: 0 | N56: =J56*L56 -> 0 | O56: 48.63725833 | P56: =+J56-N56 -> 0 | Q56: 5933.745516 | R56: =+J56*E$7 -> 0
C57: Tractors/Self-Propelled | D57: 1 | F57: Acre | G57: 1.716714078 | I57: 1.716714078 | J57: 0 | K57: 0 | M57: 0 | N57: =J57*L57 -> 0 | O57: 1.716714078 | P57: 0 | Q57: 209.4391175 | R57: 0
C58: Implements | D58: 1 | F58: Acre | G58: 0.4039188949 | I58: 0.4039188949 | J58: 0 | K58: 0 | M58: 0 | N58: =J58*L58 -> 0 | O58: 0.4039188949 | P58: 0 | Q58: 49.27810518 | R58: 0
B59: Equipment Investment
C60: Irrigation Equipment | D60: 364.7794375 | F60: Dollars | G60: 0.055 | I60: 20.06286906 | J60: =E60*H60 -> 0 | K60: 0 | M60: 0 | N60: =J60*L60 -> 0 | O60: 20.06286906 | P60: =+J60-N60 -> 0 | Q60: 2447.670025 | R60: =+J60*E$7 -> 0
C61: Tractors/Self-Propelled | D61: 13.37375645 | F61: Dollars | G61: 0.055 | I61: 0.7355566046 | J61: 0 | K61: 0 | M61: 0 | N61: =J61*L61 -> 0 | O61: 0.7355566046 | P61: 0 | Q61: 89.73790576 | R61: 0
C62: Implements | D62: 4.820880477 | F62: Dollars | G62: 0.055 | I62: 0.2651484262 | J62: 0 | K62: 0 | M62: 0 | N62: =J62*L62 -> 0 | O62: 0.2651484262 | P62: 0 | Q62: 32.348108 | R62: 0
B63: Salaried Labor | D63: 1 | F63: Acre | G63: 0 | I63: 0 | J63: 0 | K63: 0 | M63: 0 | N63: =J63*L63 -> 0 | O63: 0 | P63: =+J63-N63 -> 0 | Q63: 0 | R63: =+J63*E$7 -> 0
B64: Management Fee, Owner/Operator Labor | D64: 1 | F64: Acre | G64: 0 | I64: 0 | J64: 0 | K64: 0 | M64: 0 | N64: 0 | O64: 0 | P64: 0 | Q64: 0 | R64: 0
B65: Allocated Establishment Cost | D65: 1 | F65: Acre | G65: 47.705 | I65: 47.705 | J65: 0 | K65: 0 | M65: 0 | N65: 0 | O65: 47.705 | P65: 0 | Q65: 5820.01 | R65: 0
B66: Trans Pecos Irrigated Land | D66: 1 | F66: Acre | G66: 50 | I66: 50 | J66: 0 | K66: 0 | M66: 0 | N66: 0 | O66: 50 | P66: 0 | Q66: 6100 | R66: 0
B67: Property Taxes | D67: 1 | F67: Acre | G67: 0 | I67: 0 | J67: 0 | K67: 0 | M67: 0 | N67: 0 | O67: 0 | P67: 0 | Q67: 0 | R67: 0
B68: Whole Farm Insurance | D68: 1 | F68: Acre | G68: 0 | I68: 0 | J68: 0 | K68: 0 | M68: 0 | N68: 0 | O68: 0 | P68: 0 | Q68: 0 | R68: 0
D69: 1 | G69: 0 | I69: 0 | J69: 0 | K69: 0 | M69: 0 | N69: 0 | O69: 0 | P69: 0 | Q69: 0 | R69: 0
D70: 1 | G70: 0 | I70: 0 | J70: =E70*H70 -> 0 | K70: 0 | M70: 0 | N70: 0 | O70: 0 | P70: 0 | Q70: 0 | R70: 0
A71: Total Fixed Costs | I71: 169.5264654 | J71: =+SUM(J56:J70) -> 0 | M71: 0 | N71: =+SUM(N56:N70) -> 0 | O71: 169.5264654 | P71: =+SUM(P56:P70) -> 0 | Q71: 20682.22878 | R71: =+SUM(R56:R70) -> 0
A72: Total Specified Costs | I72: 239.9988292 | J72: =+J50+J71 -> 0 | M72: 0 | N72: =+N50+N71 -> 0 | O72: 239.9988292 | P72: =+P50+P71 -> 0 | Q72: 29279.85716 | R72: =+R50+R71 -> 0
A74: Returns Above Specified Costs | I74: -142.3488292 | J74: =+J13-J72 -> 0 | M74: 0 | N74: =+N13-N72 -> 0 | O74: -142.3488292 | P74: =+P13-P72 -> 0 | Q74: -17366.55716 | R74: =+R13-R72 -> 0
A76: Breakeven Price to Cover Total Costs | G76: 38.09505225 | H76: =IF(E10=0,"n/a",(YTotExp-(YTotExp+YTotRet-J10))/E10) -> n/a | I76: AUM
D78: Example Breakeven Prices
B79: Example | C79: Example | D79: To Cover | G79: To Cover
B80: Yield | C80: Yield | D80: Variable | G80: Total
B81: Percent | C81: AUM | D81: Costs | G81: Costs
B82: 0.75 | C82: 4.725 | D82: 14.91478599 | G82: 50.793403
B83: 0.9 | C83: 5.67 | D83: 12.42898832 | G83: 42.32783584
B84: 1 | C84: 6.3 | D84: 11.18608949 | G84: 38.09505225
B85: 1.1 | C85: 6.93 | D85: 10.16917226 | G85: 34.63186568
B86: 1.25 | C86: 7.875 | D86: 8.948871593 | G86: 30.4760418
D88: Your Breakeven Prices
B89: Your | C89: Your | E89: To Cover | H89: To Cover
B90: Yield | C90: Yield | E90: Variable | H90: Total
B91: Percent | C91: AUM | E91: Costs | H91: Costs
B92: 0.75 | C92: =E10*YPER1 -> 0 | E92: =IF($E$10=0,0,(YVarExp-(YTotExp+YTotRet-J10))/($E$10*YPER1)) -> 0 | H92: =IF($E$10=0,0,(YTotExp-(YTotExp+YTotRet-J10))/($E$10*YPER1)) -> 0
B93: 0.9 | C93: =E10*YPER2 -> 0 | E93: =IF($E$10=0,0,(YVarExp-(YTotExp+YTotRet-J10))/($E$10*YPER2)) -> 0 | H93: =IF($E$10=0,0,(YTotExp-(YTotExp+YTotRet-J10))/($E$10*YPER2)) -> 0
B94: 1 | C94: =+E10 -> 0 | E94: =IF($E$10=0,0,(YVarExp-(YTotExp+YTotRet-J10))/($E$10*YPER3)) -> 0 | H94: =IF($E$10=0,0,(YTotExp-(YTotExp+YTotRet-J10))/($E$10*YPER3)) -> 0
B95: 1.1 | C95: =E10*YPER4 -> 0 | E95: =IF($E$10=0,0,(YVarExp-(YTotExp+YTotRet-J10))/($E$10*YPER4)) -> 0 | H95: =IF($E$10=0,0,(YTotExp-(YTotExp+YTotRet-J10))/($E$10*YPER4)) -> 0
B96: 1.25 | C96: =E10*YPER5 -> 0 | E96: =IF($E$10=0,0,(YVarExp-(YTotExp+YTotRet-J10))/($E$10*YPER5)) -> 0 | H96: =IF($E$10=0,0,(YTotExp-(YTotExp+YTotRet-J10))/($E$10*YPER5)) -> 0
A98: Developed by Bill Thompson, Assistant Professor and Extension Economist, Texas A&M AgriLife Extension Service, 325-653-4576.
A100: Information presented is prepared solely as a general guide and not intended to recognize or predict the costs and returns from any one operation. Brand names are mentioned only as examples and imply no endorsement.

Sheet SwitchgrassHay
A1: Projections for Planning Purposes Only -- Not to be Used without Updating
A2: 2021 Estimated Costs and Returns per Acre
A3: Alamo Switchgrass, Full Season, Pivot Irrigated, Baled
A4: Enter your name for this budget in the cell above.
A5: Enter Your Values in the cells highlighed in MAROON.
E6: Your Acres | R6: Your
C7: Crop Acres | D7: 122 | L7: Your | Q7: Enterprise | R7: Enterprise
E8: Your | H8: Your | I8: Cash | J8: Your | K8: Landlord | L8: Landlord | N8: Your | P8: Your | Q8: Total | R8: Total
A9: REVENUE | D9: Quantity | E9: Quantity | F9: Units | G9: $/Unit | H9: $/Unit | I9: Total | J9: Total | K9: Share | L9: Share | M9: Landlord | N9: Landlord | O9: Tenant | P9: Tenant | Q9: (122 acres) | R9: ="(" & E7 & " acres)" -> ( acres)
B10: Switchgrass | D10: 3.17 | F10: Ton | G10: 145 | I10: 459.65 | J10: =E10*H10 -> 0 | K10: 0 | M10: 0 | N10: =J10*L10 -> 0 | O10: 459.65 | P10: =+J10-N10 -> 0 | Q10: 56077.3 | R10: =+J10*E$7 -> 0
D11: 0 | G11: 0 | I11: 0 | J11: 0 | K11: 0 | M11: 0 | N11: 0 | O11: 0 | P11: =+J11-N11 -> 0 | Q11: 0 | R11: 0
D12: 0 | G12: 0 | I12: 0 | J12: 0 | K12: 0 | M12: 0 | N12: 0 | O12: 0 | P12: 0 | Q12: 0 | R12: 0
A13: Total Revenue | I13: 459.65 | J13: =SUM(J10:J12) -> 0 | M13: 0 | N13: =SUM(N10:N12) -> 0 | O13: 459.65 | P13: =SUM(P10:P12) -> 0 | Q13: 56077.3 | R13: =SUM(R10:R12) -> 0
Q14: Enterprise | R14: Enterprise
A15: VARIABLE COSTS | D15: Quantity | E15: Quantity | F15: Units | G15: $/Unit | H15: $/Unit | I15: Total | J15: Total | K15: Share | L15: Share | M15: Landlord | N15: Landlord | O15: Tenant | P15: Tenant | Q15: Total | R15: Total
A16: Production Costs
B17: Fertilizer
C18: N-32 in Water | D18: 20 | F18: Pound | G18: 0.3828 | I18: 7.656 | J18: =E18*H18 -> 0 | K18: 0 | M18: 0 | N18: =J18*L18 -> 0 | O18: 7.656 | P18: =+J18-N18 -> 0 | Q18: 934.032 | R18: =+J18*E$7 -> 0
C19: Urea, Solid (46% N) | D19: 0.45 | F19: CWT | G19: 22.25 | I19: 10.0125 | J19: 0 | K19: 0 | M19: 0 | N19: 0 | O19: 10.0125 | P19: 0 | Q19: 1221.525 | R19: 0
B20: Herbicide
C21: 2,4-D Amine 4 | D21: 40 | F21: Ounce | G21: 0.10078125 | I21: 4.03125 | J21: 0 | K21: 0 | M21: 0 | N21: 0 | O21: 4.03125 | P21: 0 | Q21: 491.8125 | R21: 0
B22: Other Labor
C23: Hand Labor | D23: 0.14 | F23: Hour | G23: 8.5 | I23: 1.19 | J23: 0 | K23: 0 | M23: 0 | N23: 0 | O23: 1.19 | P23: 0 | Q23: 145.18 | R23: 0
D24: 0 | G24: 0 | I24: 0 | J24: 0 | K24: 0 | M24: 0 | N24: 0 | O24: 0 | P24: 0 | Q24: 0 | R24: 0
D25: 0 | G25: 0 | I25: 0 | J25: 0 | K25: 0 | M25: 0 | N25: 0 | O25: 0 | P25: 0 | Q25: 0 | R25: 0
D26: 0 | G26: 0 | I26: 0 | J26: =E26*H26 -> 0 | K26: 0 | M26: 0 | N26: =J26*L26 -> 0 | O26: 0 | P26: =+J26-N26 -> 0 | Q26: 0 | R26: =+J26*E$7 -> 0
B27: Irrigation
C28: Energy Cost | D28: 4.56 | F28: Mcf | G28: 5.61 | I28: 25.5816 | J28: =E28*H28 -> 0 | K28: 0 | M28: 0 | N28: =J28*L28 -> 0 | O28: 25.5816 | P28: =+J28-N28 -> 0 | Q28: 3120.9552 | R28: =+J28*E$7 -> 0
C29: Irrigation Labor | D29: 0.0264 | F29: Hour | G29: 15 | I29: 0.396 | J29: 0 | K29: 0 | M29: 0 | N29: 0 | O29: 0.396 | P29: 0 | Q29: 48.312 | R29: 0
B30: Machinery Labor
C31: Tractors/Self-Propelled | D31: 2.89 | F31: Hour | G31: 15 | I31: 43.35 | J31: =E31*H31 -> 0 | K31: 0 | M31: 0 | N31: =J31*L31 -> 0 | O31: 43.35 | P31: =+J31-N31 -> 0 | Q31: 5288.7 | R31: =+J31*E$7 -> 0
C32: Other Labor | D32: 0 | F32: Hour | G32: 15 | I32: 0 | J32: =E32*H32 -> 0 | K32: 0 | M32: 0 | N32: =J32*L32 -> 0 | O32: 0 | P32: =+J32-N32 -> 0 | Q32: 0 | R32: =+J32*E$7 -> 0
B34: Diesel Fuel
C35: Pickup/General Use Equipment | D35: 1 | F35: Acre | G35: 0 | I35: 0 | J35: =E35*H35 -> 0 | K35: 0 | M35: 0 | N35: =J35*L35 -> 0 | O35: 0 | P35: =+J35-N35 -> 0 | Q35: 0 | R35: =+J35*E$7 -> 0
C36: Tractors/Self-Propelled | D36: 16.78 | F36: Gallon | G36: 1.5 | I36: 25.17 | J36: =E36*H36 -> 0 | K36: 0 | M36: 0 | N36: =J36*L36 -> 0 | O36: 25.17 | P36: =+J36-N36 -> 0 | Q36: 3070.74 | R36: =+J36*E$7 -> 0
B38: Gasoline
C39: Pickup/General Use Equipment | D39: 1 | F39: Acre | G39: 0 | I39: 0 | J39: =E39*H39 -> 0 | K39: 0 | M39: 0 | N39: =J39*L39 -> 0 | O39: 0 | P39: =+J39-N39 -> 0 | Q39: 0 | R39: =+J39*E$7 -> 0
C40: Tractors/Self-Propelled | D40: 0 | F40: Gallon | G40: 1.8 | I40: 0 | J40: =E40*H40 -> 0 | K40: 0 | M40: 0 | N40: =J40*L40 -> 0 | O40: 0 | P40: =+J40-N40 -> 0 | Q40: 0 | R40: =+J40*E$7 -> 0
B42: Repairs & Maintenance
C43: Pickup/General Use Equipment | D43: 1 | F43: Acre | G43: 0 | I43: 0 | J43: =E43*H43 -> 0 | K43: 0 | M43: 0 | N43: =J43*L43 -> 0 | O43: 0 | P43: =+J43-N43 -> 0 | Q43: 0 | R43: =+J43*E$7 -> 0
C44: Irrigation Equipment | D44: 1 | F44: Acre | G44: 12.016968 | I44: 12.016968 | J44: 0 | K44: 0 | M44: 0 | N44: 0 | O44: 12.016968 | P44: 0 | Q44: 1466.070096 | R44: 0
C45: Tractors/Self-Propelled | D45: 1 | F45: Acre | G45: 21.51230391 | I45: 21.51230391 | J45: 0 | K45: 0 | M45: 0 | N45: 0 | O45: 21.51230391 | P45: 0 | Q45: 2624.501077 | R45: 0
C46: Implements | D46: 1 | F46: Acre | G46: 1.967128024 | I46: 1.967128024 | J46: 0 | K46: 0 | M46: 0 | N46: 0 | O46: 1.967128024 | P46: 0 | Q46: 239.9896189 | R46: 0
I47: 0 | J47: 0 | K47: 0 | M47: 0 | N47: 0 | O47: 0 | P47: 0 | Q47: 0 | R47: 0
I48: 0 | J48: 0 | K48: 0 | M48: 0 | N48: 0 | O48: 0 | P48: 0 | Q48: 0 | R48: 0
B49: Interest on Credit Line | G49: 0.0455 | I49: 2.532707387 | J49: =+SUM(J17:J48)/2*H49 -> 0 | M49: 0 | N49: =+SUM(N17:N48)/2*L49 -> 0 | O49: 2.532707387 | P49: =+SUM(P17:P48)/2*L49 -> 0 | Q49: 308.9903012 | R49: =+J49*E$7 -> 0
A50: Total Variable Costs | I50: 155.4164573 | J50: =SUM(J18:J49) -> 0 | M50: 0 | N50: =SUM(N18:N49) -> 0 | O50: 155.4164573 | P50: =SUM(P18:P49) -> 0 | Q50: 18960.80779 | R50: =SUM(R18:R49) -> 0
A51: Planned Returns Above Variable Costs: | I51: 304.2335427 | J51: =+J13-J50 -> 0 | M51: 0 | N51: =+N13-N50 -> 0 | O51: 304.2335427 | P51: =+P13-P50 -> 0 | Q51: 37116.49221 | R51: =+R13-R50 -> 0
B52: Breakeven Price to Cover Variable Costs | G52: 49.0272736 | H52: =IF(E10=0,"n/a",(YVarExp-(YTotExp+YTotRet-J10))/E10) -> n/a | I52: Ton
Q53: Enterprise | R53: Enterprise
A54: FIXED COSTS | D54: Quantity | E54: Quantity | F54: Units | G54: $/Unit | H54: $/Unit | I54: Total | J54: Total | K54: Share | L54: Share | M54: Landlord | N54: Landlord | O54: Tenant | P54: Tenant | Q54: Total | R54: Total
B55: Machinery Depreciation
C56: Irrigation Equipment | D56: 1 | F56: Acre | G56: 48.63725833 | I56: 48.63725833 | J56: =E56*H56 -> 0 | K56: 0 | M56: 0 | N56: =J56*L56 -> 0 | O56: 48.63725833 | P56: =+J56-N56 -> 0 | Q56: 5933.745516 | R56: =+J56*E$7 -> 0
C57: Tractors/Self-Propelled | D57: 1 | F57: Acre | G57: 28.00626985 | I57: 28.00626985 | J57: 0 | K57: 0 | M57: 0 | N57: =J57*L57 -> 0 | O57: 28.00626985 | P57: 0 | Q57: 3416.764922 | R57: 0
C58: Implements | D58: 1 | F58: Acre | G58: 4.352149178 | I58: 4.352149178 | J58: 0 | K58: 0 | M58: 0 | N58: =J58*L58 -> 0 | O58: 4.352149178 | P58: 0 | Q58: 530.9621998 | R58: 0
B59: Equipment Investment
C60: Irrigation Equipment | D60: 364.7794375 | F60: Dollars | G60: 0.055 | I60: 20.06286906 | J60: =E60*H60 -> 0 | K60: 0 | M60: 0 | N60: =J60*L60 -> 0 | O60: 20.06286906 | P60: =+J60-N60 -> 0 | Q60: 2447.670025 | R60: =+J60*E$7 -> 0
C61: Tractors/Self-Propelled | D61: 204.2784627 | F61: Dollars | G61: 0.055 | I61: 11.23531545 | J61: 0 | K61: 0 | M61: 0 | N61: =J61*L61 -> 0 | O61: 11.23531545 | P61: 0 | Q61: 1370.708485 | R61: 0
C62: Implements | D62: 34.57570111 | F62: Dollars | G62: 0.055 | I62: 1.901663561 | J62: 0 | K62: 0 | M62: 0 | N62: =J62*L62 -> 0 | O62: 1.901663561 | P62: 0 | Q62: 232.0029544 | R62: 0
B63: Salaried Labor | D63: 1 | F63: Acre | G63: 0 | I63: 0 | J63: 0 | K63: 0 | M63: 0 | N63: =J63*L63 -> 0 | O63: 0 | P63: =+J63-N63 -> 0 | Q63: 0 | R63: =+J63*E$7 -> 0
B64: Management Fee, Owner/Operator Labor | D64: 1 | F64: Acre | G64: 0 | I64: 0 | J64: 0 | K64: 0 | M64: 0 | N64: 0 | O64: 0 | P64: 0 | Q64: 0 | R64: 0
B65: Allocated Establishment Cost | D65: 1 | F65: Acre | G65: 47.705 | I65: 47.705 | J65: 0 | K65: 0 | M65: 0 | N65: 0 | O65: 47.705 | P65: 0 | Q65: 5820.01 | R65: 0
B66: Trans Pecos Irrigated Land | D66: 1 | F66: Acre | G66: 50 | I66: 50 | J66: 0 | K66: 0 | M66: 0 | N66: 0 | O66: 50 | P66: 0 | Q66: 6100 | R66: 0
B67: Property Taxes | D67: 1 | F67: Acre | G67: 0 | I67: 0 | J67: 0 | K67: 0 | M67: 0 | N67: 0 | O67: 0 | P67: 0 | Q67: 0 | R67: 0
B68: Whole Farm Insurance | D68: 1 | F68: Acre | G68: 0 | I68: 0 | J68: 0 | K68: 0 | M68: 0 | N68: 0 | O68: 0 | P68: 0 | Q68: 0 | R68: 0
D69: 1 | G69: 0 | I69: 0 | J69: 0 | K69: 0 | M69: 0 | N69: 0 | O69: 0 | P69: 0 | Q69: 0 | R69: 0
D70: 1 | G70: 0 | I70: 0 | J70: =E70*H70 -> 0 | K70: 0 | M70: 0 | N70: 0 | O70: 0 | P70: 0 | Q70: 0 | R70: 0
A71: Total Fixed Costs | I71: 211.9005254 | J71: =+SUM(J56:J70) -> 0 | M71: 0 | N71: =+SUM(N56:N70) -> 0 | O71: 211.9005254 | P71: =+SUM(P56:P70) -> 0 | Q71: 25851.8641 | R71: =+SUM(R56:R70) -> 0
A72: Total Specified Costs | I72: 367.3169827 | J72: =+J50+J71 -> 0 | M72: 0 | N72: =+N50+N71 -> 0 | O72: 367.3169827 | P72: =+P50+P71 -> 0 | Q72: 44812.67189 | R72: =+R50+R71 -> 0
A74: Returns Above Specified Costs | I74: 92.33301726 | J74: =+J13-J72 -> 0 | M74: 0 | N74: =+N13-N72 -> 0 | O74: 92.33301726 | P74: =+P13-P72 -> 0 | Q74: 11264.62811 | R74: =+R13-R72 -> 0
A76: Breakeven Price to Cover Total Costs | G76: 115.8728652 | H76: =IF(E10=0,"n/a",(YTotExp-(YTotExp+YTotRet-J10))/E10) -> n/a | I76: Ton
D78: Example Breakeven Prices
B79: Example | C79: Example | D79: To Cover | G79: To Cover
B80: Yield | C80: Yield | D80: Variable | G80: Total
B81: Percent | C81: Ton | D81: Costs | G81: Costs
B82: 0.75 | C82: 2.3775 | D82: 65.36969814 | G82: 154.4971536
B83: 0.9 | C83: 2.853 | D83: 54.47474845 | G83: 128.747628
B84: 1 | C84: 3.17 | D84: 49.0272736 | G84: 115.8728652
B85: 1.1 | C85: 3.487 | D85: 44.57024873 | G85: 105.3389684
B86: 1.25 | C86: 3.9625 | D86: 39.22181888 | G86: 92.69829218
D88: Your Breakeven Prices
B89: Your | C89: Your | E89: To Cover | H89: To Cover
B90: Yield | C90: Yield | E90: Variable | H90: Total
B91: Percent | C91: Ton | E91: Costs | H91: Costs
B92: 0.75 | C92: =E10*YPER1 -> 0 | E92: =IF($E$10=0,0,(YVarExp-(YTotExp+YTotRet-J10))/($E$10*YPER1)) -> 0 | H92: =IF($E$10=0,0,(YTotExp-(YTotExp+YTotRet-J10))/($E$10*YPER1)) -> 0
B93: 0.9 | C93: =E10*YPER2 -> 0 | E93: =IF($E$10=0,0,(YVarExp-(YTotExp+YTotRet-J10))/($E$10*YPER2)) -> 0 | H93: =IF($E$10=0,0,(YTotExp-(YTotExp+YTotRet-J10))/($E$10*YPER2)) -> 0
B94: 1 | C94: =+E10 -> 0 | E94: =IF($E$10=0,0,(YVarExp-(YTotExp+YTotRet-J10))/($E$10*YPER3)) -> 0 | H94: =IF($E$10=0,0,(YTotExp-(YTotExp+YTotRet-J10))/($E$10*YPER3)) -> 0
B95: 1.1 | C95: =E10*YPER4 -> 0 | E95: =IF($E$10=0,0,(YVarExp-(YTotExp+YTotRet-J10))/($E$10*YPER4)) -> 0 | H95: =IF($E$10=0,0,(YTotExp-(YTotExp+YTotRet-J10))/($E$10*YPER4)) -> 0
B96: 1.25 | C96: =E10*YPER5 -> 0 | E96: =IF($E$10=0,0,(YVarExp-(YTotExp+YTotRet-J10))/($E$10*YPER5)) -> 0 | H96: =IF($E$10=0,0,(YTotExp-(YTotExp+YTotRet-J10))/($E$10*YPER5)) -> 0
A98: Developed by Bill Thompson, Assistant Professor and Extension Economist, Texas A&M AgriLife Extension Service, 325-653-4576.
A100: Information presented is prepared solely as a general guide and not intended to recognize or predict the costs and returns from any one operation. Brand names are mentioned only as examples and imply no endorsement.

Sheet AlfalfaEstablish
A1: Projections for Planning Purposes Only -- Not to be Used without Updating
A2: 2021 Estimated Costs and Returns per Acre
A3: Alfalfa Establishment, Center Pivot Irrigated
A4: Enter your name for this budget in the cell above.
A5: Enter Your Values in the cells highlighed in MAROON.
E6: Your Acres | R6: Your
C7: Crop Acres | D7: 122 | L7: Your | Q7: Enterprise | R7: Enterprise
E8: Your | H8: Your | I8: Cash | J8: Your | K8: Landlord | L8: Landlord | N8: Your | P8: Your | Q8: Total | R8: Total
A9: REVENUE | D9: Quantity | E9: Quantity | F9: Units | G9: $/Unit | H9: $/Unit | I9: Total | J9: Total | K9: Share | L9: Share | M9: Landlord | N9: Landlord | O9: Tenant | P9: Tenant | Q9: (122 acres) | R9: ="(" & E7 & " acres)" -> ( acres)
B10: 0 | D10: 0 | G10: 0 | I10: 0 | J10: =E10*H10 -> 0 | K10: 0 | M10: 0 | N10: =J10*L10 -> 0 | O10: 0 | P10: =+J10-N10 -> 0 | Q10: 0 | R10: =+J10*E$7 -> 0
D11: 0 | G11: 0 | I11: 0 | J11: 0 | K11: 0 | M11: 0 | N11: 0 | O11: 0 | P11: 0 | Q11: 0 | R11: 0
D12: 0 | G12: 0 | I12: 0 | J12: 0 | K12: 0 | M12: 0 | N12: 0 | O12: 0 | P12: 0 | Q12: 0 | R12: 0
A13: Total Revenue | I13: 0 | J13: =SUM(J10:J12) -> 0 | M13: 0 | N13: =SUM(N10:N12) -> 0 | O13: 0 | P13: =SUM(P10:P12) -> 0 | Q13: 0 | R13: =SUM(R10:R12) -> 0
Q14: Enterprise | R14: Enterprise
A15: VARIABLE COSTS | D15: Quantity | E15: Quantity | F15: Units | G15: $/Unit | H15: $/Unit | I15: Total | J15: Total | K15: Share | L15: Share | M15: Landlord | N15: Landlord | O15: Tenant | P15: Tenant | Q15: Total | R15: Total
A16: Production Costs
B17: Custom
C18: Custom Apply Fertilizer | D18: 1 | F18: Acre | G18: 6 | I18: 6 | J18: =E18*H18 -> 0 | K18: 0 | M18: 0 | N18: =J18*L18 -> 0 | O18: 6 | P18: =+J18-N18 -> 0 | Q18: 732 | R18: =+J18*E$7 -> 0
B19: Fertilizer
C20: Fertilizer 11-52-0 | D20: 38 | F20: Pound | G20: 0.4519 | I20: 17.1722 | J20: 0 | K20: 0 | M20: 0 | N20: 0 | O20: 17.1722 | P20: 0 | Q20: 2095.0084 | R20: 0
B21: Herbicide
C22: Glyphosate | D22: 2 | F22: Pint | G22: 2.125 | I22: 4.25 | J22: 0 | K22: 0 | M22: 0 | N22: 0 | O22: 4.25 | P22: 0 | Q22: 518.5 | R22: 0
B23: Seed
C24: Alfalfa Seed Innoculated RR | D24: 32 | F24: Pound | G24: 8.5 | I24: 272 | J24: 0 | K24: 0 | M24: 0 | N24: 0 | O24: 272 | P24: 0 | Q24: 33184 | R24: 0
D25: 0 | G25: 0 | I25: 0 | J25: 0 | K25: 0 | M25: 0 | N25: 0 | O25: 0 | P25: 0 | Q25: 0 | R25: 0
D26: 0 | G26: 0 | I26: 0 | J26: 0 | K26: 0 | M26: 0 | N26: 0 | O26: 0 | P26: 0 | Q26: 0 | R26: 0
D27: 0 | G27: 0 | I27: 0 | J27: =E27*H27 -> 0 | K27: 0 | M27: 0 | N27: =J27*L27 -> 0 | O27: 0 | P27: =+J27-N27 -> 0 | Q27: 0 | R27: =+J27*E$7 -> 0
B28: Irrigation
C29: Energy Cost | D29: 3.04 | F29: AcreInch | G29: 5.61 | I29: 17.0544 | J29: =E29*H29 -> 0 | K29: 0 | M29: 0 | N29: =J29*L29 -> 0 | O29: 17.0544 | P29: =+J29-N29 -> 0 | Q29: 2080.6368 | R29: =+J29*E$7 -> 0
C30: Irrigation Labor | D30: 0.0176 | F30: Hour | G30: 15 | I30: 0.264 | J30: 0 | K30: 0 | M30: 0 | N30: 0 | O30: 0.264 | P30: 0 | Q30: 32.208 | R30: 0
B31: Machinery Labor
C32: Tractors/Self-Propelled | D32: 0.4 | F32: Hour | G32: 15 | I32: 6 | J32: =E32*H32 -> 0 | K32: 0 | M32: 0 | N32: =J32*L32 -> 0 | O32: 6 | P32: =+J32-N32 -> 0 | Q32: 732 | R32: =+J32*E$7 -> 0
C33: Other Labor | D33: 0 | F33: Hour | G33: 15 | I33: 0 | J33: =E33*H33 -> 0 | K33: 0 | M33: 0 | N33: =J33*L33 -> 0 | O33: 0 | P33: =+J33-N33 -> 0 | Q33: 0 | R33: =+J33*E$7 -> 0
B35: Diesel Fuel
C36: Pickup/General Use Equipment | D36: 1 | F36: Acre | G36: 0 | I36: 0 | J36: =E36*H36 -> 0 | K36: 0 | M36: 0 | N36: =J36*L36 -> 0 | O36: 0 | P36: =+J36-N36 -> 0 | Q36: 0 | R36: =+J36*E$7 -> 0
C37: Tractors/Self-Propelled | D37: 3.91 | F37: Gallon | G37: 1.5 | I37: 5.865 | J37: =E37*H37 -> 0 | K37: 0 | M37: 0 | N37: =J37*L37 -> 0 | O37: 5.865 | P37: =+J37-N37 -> 0 | Q37: 715.53 | R37: =+J37*E$7 -> 0
B39: Gasoline
C40: Pickup/General Use Equipment | D40: 1 | F40: Acre | G40: 2.894754098 | I40: 2.894754098 | J40: =E40*H40 -> 0 | K40: 0 | M40: 0 | N40: =J40*L40 -> 0 | O40: 2.894754098 | P40: =+J40-N40 -> 0 | Q40: 353.16 | R40: =+J40*E$7 -> 0
C41: Tractors/Self-Propelled | D41: 0 | F41: Gallon | G41: 1.8 | I41: 0 | J41: =E41*H41 -> 0 | K41: 0 | M41: 0 | N41: =J41*L41 -> 0 | O41: 0 | P41: =+J41-N41 -> 0 | Q41: 0 | R41: =+J41*E$7 -> 0
B43: Repairs & Maintenance
C44: Pickup/General Use Equipment | D44: 1 | F44: Acre | G44: 0.8040983607 | I44: 0.8040983607 | J44: =E44*H44 -> 0 | K44: 0 | M44: 0 | N44: =J44*L44 -> 0 | O44: 0.8040983607 | P44: =+J44-N44 -> 0 | Q44: 98.1 | R44: =+J44*E$7 -> 0
C45: Irrigation Equipment | D45: 1 | F45: Acre | G45: 8.011312 | I45: 8.011312 | J45: 0 | K45: 0 | M45: 0 | N45: 0 | O45: 8.011312 | P45: 0 | Q45: 977.380064 | R45: 0
C46: Tractors/Self-Propelled | D46: 1 | F46: Acre | G46: 9.999495585 | I46: 9.999495585 | J46: 0 | K46: 0 | M46: 0 | N46: 0 | O46: 9.999495585 | P46: 0 | Q46: 1219.938461 | R46: 0
C47: Implements | D47: 1 | F47: Acre | G47: 12.49962479 | I47: 12.49962479 | J47: 0 | K47: 0 | M47: 0 | N47: 0 | O47: 12.49962479 | P47: 0 | Q47: 1524.954224 | R47: 0
I48: 0 | J48: 0 | K48: 0 | M48: 0 | N48: 0 | O48: 0 | P48: 0 | Q48: 0 | R48: =+J48*E$7 -> 0
I49: 0 | J49: 0 | K49: 0 | M49: 0 | N49: 0 | O49: 0 | P49: 0 | Q49: 0 | R49: 0
B50: Interest on Credit Line | G50: 0.0455 | I50: 5.629180007 | J50: =+SUM(J17:J49)/2*H50 -> 0 | M50: 0 | N50: =+SUM(N17:N49)/2*L50 -> 0 | O50: 5.629180007 | P50: =+SUM(P17:P49)/2*L50 -> 0 | Q50: 686.7599608 | R50: =+J50*E$7 -> 0
A51: Total Variable Costs | I51: 368.4440648 | J51: =SUM(J18:J50) -> 0 | M51: 0 | N51: =SUM(N18:N50) -> 0 | O51: 368.4440648 | P51: =SUM(P18:P50) -> 0 | Q51: 44950.17591 | R51: =SUM(R18:R50) -> 0
A52: Planned Returns Above Variable Costs: | I52: -368.4440648 | J52: =+J13-J51 -> 0 | M52: 0 | N52: =+N13-N51 -> 0 | O52: -368.4440648 | P52: =+P13-P51 -> 0 | Q52: -44950.17591 | R52: =+R13-R51 -> 0
B53: Breakeven Price to Cover Variable Costs | G53: n/a | H53: =IF(E10=0,"n/a",(YVarExp-(YTotExp+YTotRet-J10))/E10) -> n/a
Q54: Enterprise | R54: Enterprise
A55: FIXED COSTS | D55: Quantity | E55: Quantity | F55: Units | G55: $/Unit | H55: $/Unit | J55: Total | K55: Share | L55: Share | M55: Landlord | N55: Landlord | O55: Tenant | P55: Tenant | Q55: Total | R55: Total
B56: Machinery Depreciation
C57: Pickup/General Use Equipment | D57: 1 | F57: Acre | G57: 3.015368852 | I57: 3.015368852 | J57: =E57*H57 -> 0 | K57: 0 | M57: 0 | N57: =J57*L57 -> 0 | O57: 3.015368852 | P57: =+J57-N57 -> 0 | Q57: 367.875 | R57: =+J57*E$7 -> 0
C58: Irrigation Equipment | D58: 1 | F58: Acre | G58: 45.01442623 | I58: 45.01442623 | J58: 0 | K58: 0 | M58: 0 | N58: =J58*L58 -> 0 | O58: 45.01442623 | P58: 0 | Q58: 5491.76 | R58: 0
C59: Tractors/Self-Propelled | D59: 1 | F59: Acre | G59: 11.41851581 | I59: 11.41851581 | J59: 0 | K59: 0 | M59: 0 | N59: =J59*L59 -> 0 | O59: 11.41851581 | P59: 0 | Q59: 1393.058928 | R59: 0
C60: Implements | D60: 1 | F60: Acre | G60: 15.64492825 | I60: 15.64492825 | J60: 0 | K60: 0 | M60: 0 | N60: =J60*L60 -> 0 | O60: 15.64492825 | P60: 0 | Q60: 1908.681247 | R60: 0
B61: Equipment Investment
C62: Pickup/General Use Equipment | D62: 12.56403689 | F62: Dollars | G62: 0.055 | I62: 0.6910220287 | J62: =E62*H62 -> 0 | K62: 0 | M62: 0 | N62: =J62*L62 -> 0 | O62: 0.6910220287 | P62: =+J62-N62 -> 0 | Q62: 84.3046875 | R62: =+J62*E$7 -> 0
C63: Irrigation Equipment | D63: 337.6081967 | F63: Dollars | G63: 0.055 | I63: 18.56845082 | J63: 0 | K63: 0 | M63: 0 | N63: =J63*L63 -> 0 | O63: 18.56845082 | P63: 0 | Q63: 2265.351 | R63: 0
C64: Tractors/Self-Propelled | D64: 88.44946612 | F64: Dollars | G64: 0.055 | I64: 4.864720637 | J64: 0 | K64: 0 | M64: 0 | N64: =J64*L64 -> 0 | O64: 4.864720637 | P64: 0 | Q64: 593.4959177 | R64: 0
C65: Implements | D65: 66.92552642 | F65: Dollars | G65: 0.055 | I65: 3.680903953 | J65: 0 | K65: 0 | M65: 0 | N65: =J65*L65 -> 0 | O65: 3.680903953 | P65: 0 | Q65: 449.0702823 | R65: 0
B66: Salaried Labor | D66: 1 | F66: Acre | G66: 0 | I66: 0 | J66: 0 | K66: 0 | M66: 0 | N66: =J66*L66 -> 0 | O66: 0 | P66: =+J66-N66 -> 0 | Q66: 0 | R66: =+J66*E$7 -> 0
B67: Management Fee, Owner/Operator Labor | D67: 1 | F67: Acre | G67: 0 | I67: 0 | J67: 0 | K67: 0 | M67: 0 | N67: 0 | O67: 0 | P67: 0 | Q67: 0 | R67: 0
B68: Allocated Establishment Cost | D68: 1 | F68: Acre | G68: 0 | I68: 0 | J68: 0 | K68: 0 | M68: 0 | N68: 0 | O68: 0 | P68: 0 | Q68: 0 | R68: 0
B69: None | D69: 1 | F69: Acre | G69: 0 | I69: 0 | J69: 0 | K69: 0 | M69: 0 | N69: 0 | O69: 0 | P69: 0 | Q69: 0 | R69: 0
B70: Property Taxes | D70: 1 | F70: Acre | G70: 0 | I70: 0 | J70: =E70*H70 -> 0 | K70: 0 | M70: 0 | N70: 0 | O70: 0 | P70: 0 | Q70: 0 | R70: =+J70*E$7 -> 0
B71: Whole Farm Insurance | D71: 1 | F71: Acre | G71: 0 | I71: 0 | J71: 0 | K71: 0 | M71: 0 | N71: 0 | O71: 0 | P71: 0 | Q71: 0 | R71: 0
D72: 1 | G72: 0 | I72: 0 | J72: 0 | K72: 0 | M72: 0 | N72: 0 | O72: 0 | P72: 0 | Q72: 0 | R72: 0
D73: 1 | G73: 0 | I73: 0 | J73: 0 | K73: 0 | M73: 0 | N73: 0 | O73: 0 | P73: 0 | Q73: 0 | R73: 0
A74: Total Fixed Costs | I74: 102.8983366 | J74: =+SUM(J57:J73) -> 0 | M74: 0 | N74: =+SUM(N57:N73) -> 0 | O74: 102.8983366 | P74: =+SUM(P57:P73) -> 0 | Q74: 12553.59706 | R74: =+SUM(R57:R73) -> 0
A75: Total Specified Costs | I75: 471.3424014 | J75: =+J51+J74 -> 0 | M75: 0 | N75: =+N51+N74 -> 0 | O75: 471.3424014 | P75: =+P51+P74 -> 0 | Q75: 57503.77297 | R75: =+R51+R74 -> 0
A77: Returns Above Specified Costs | I77: -471.3424014 | J77: =+J13-J75 -> 0 | M77: 0 | N77: =+N13-N75 -> 0 | O77: -471.3424014 | P77: =+P13-P75 -> 0 | Q77: -57503.77297 | R77: =+R13-R75 -> 0
A79: Breakeven Price to Cover Total Costs | G79: n/a | H79: =IF(E10=0,"n/a",(YTotExp-(YTotExp+YTotRet-J10))/E10) -> n/a
D81: Example Breakeven Prices
B82: Example | C82: Example | D82: To Cover | G82: To Cover
B83: Yield | C83: Yield | D83: Variable | G83: Total
B84: Percent | D84: Costs | G84: Costs
B85: 0.75 | C85: 0 | D85: 0 | G85: 0
B86: 0.9 | C86: 0 | D86: 0 | G86: 0
B87: 1 | C87: 0 | D87: 0 | G87: 0
B88: 1.1 | C88: 0 | D88: 0 | G88: 0
B89: 1.25 | C89: 0 | D89: 0 | G89: 0
D91: Your Breakeven Prices
B92: Your | C92: Your | E92: To Cover | H92: To Cover
B93: Yield | C93: Yield | E93: Variable | H93: Total
B94: Percent | E94: Costs | H94: Costs
B95: 0.75 | C95: =E10*YPER1 -> 0 | E95: =IF($E$10=0,0,(YVarExp-(YTotExp+YTotRet-J10))/($E$10*YPER1)) -> 0 | H95: =IF($E$10=0,0,(YTotExp-(YTotExp+YTotRet-J10))/($E$10*YPER1)) -> 0
B96: 0.9 | C96: =E10*YPER2 -> 0 | E96: =IF($E$10=0,0,(YVarExp-(YTotExp+YTotRet-J10))/($E$10*YPER2)) -> 0 | H96: =IF($E$10=0,0,(YTotExp-(YTotExp+YTotRet-J10))/($E$10*YPER2)) -> 0
B97: 1 | C97: =+E10 -> 0 | E97: =IF($E$10=0,0,(YVarExp-(YTotExp+YTotRet-J10))/($E$10*YPER3)) -> 0 | H97: =IF($E$10=0,0,(YTotExp-(YTotExp+YTotRet-J10))/($E$10*YPER3)) -> 0
B98: 1.1 | C98: =E10*YPER4 -> 0 | E98: =IF($E$10=0,0,(YVarExp-(YTotExp+YTotRet-J10))/($E$10*YPER4)) -> 0 | H98: =IF($E$10=0,0,(YTotExp-(YTotExp+YTotRet-J10))/($E$10*YPER4)) -> 0
B99: 1.25 | C99: =E10*YPER5 -> 0 | E99: =IF($E$10=0,0,(YVarExp-(YTotExp+YTotRet-J10))/($E$10*YPER5)) -> 0 | H99: =IF($E$10=0,0,(YTotExp-(YTotExp+YTotRet-J10))/($E$10*YPER5)) -> 0
A101: Developed by Bill Thompson, Assistant Professor and Extension Economist, Texas A&M AgriLife Extension Service, 325-653-4576.
A103: Information presented is prepared solely as a general guide and not intended to recognize or predict the costs and returns from any one operation. Brand names are mentioned only as examples and imply no endorsement.

Sheet AlfalfaHayPivot
A1: Projections for Planning Purposes Only -- Not to be Used without Updating
A2: 2021 Estimated Costs and Returns per Acre
A3: Alfalfa, Full Season, Baled - 7.5 Ton Goal, Center Pivot Irrigated
A4: Enter your name for this budget in the cell above.
A5: Enter Your Values in the cells highlighed in MAROON.
E6: Your Acres | R6: Your
C7: Crop Acres | D7: 122 | L7: Your | Q7: Enterprise | R7: Enterprise
E8: Your | H8: Your | I8: Cash | J8: Your | K8: Landlord | L8: Landlord | N8: Your | P8: Your | Q8: Total | R8: Total
A9: REVENUE | D9: Quantity | E9: Quantity | F9: Units | G9: $/Unit | H9: $/Unit | I9: Total | J9: Total | K9: Share | L9: Share | M9: Landlord | N9: Landlord | O9: Tenant | P9: Tenant | Q9: (122 acres) | R9: ="(" & E7 & " acres)" -> ( acres)
B10: Alfalfa Hay - 3X4 | D10: 7.5 | F10: Ton | G10: 240 | I10: 1800 | J10: =E10*H10 -> 0 | K10: 0 | M10: 0 | N10: =J10*L10 -> 0 | O10: 1800 | P10: =+J10-N10 -> 0 | Q10: 219600 | R10: =+J10*E$7 -> 0
D11: 0 | G11: 0 | I11: 0 | J11: 0 | K11: 0 | M11: 0 | N11: 0 | O11: 0 | P11: =+J11-N11 -> 0 | Q11: 0 | R11: 0
D12: 0 | G12: 0 | I12: 0 | J12: 0 | K12: 0 | M12: 0 | N12: 0 | O12: 0 | P12: 0 | Q12: 0 | R12: 0
A13: Total Revenue | I13: 1800 | J13: =SUM(J10:J12) -> 0 | M13: 0 | N13: =SUM(N10:N12) -> 0 | O13: 1800 | P13: =SUM(P10:P12) -> 0 | Q13: 219600 | R13: =SUM(R10:R12) -> 0
Q14: Enterprise | R14: Enterprise
A15: VARIABLE COSTS | D15: Quantity | E15: Quantity | F15: Units | G15: $/Unit | H15: $/Unit | I15: Total | J15: Total | K15: Share | L15: Share | M15: Landlord | N15: Landlord | O15: Tenant | P15: Tenant | Q15: Total | R15: Total
A16: Production Costs
B17: Custom
C18: Soil Test | D18: 0.5 | F18: Each | G18: 5 | I18: 2.5 | J18: =E18*H18 -> 0 | K18: 0 | M18: 0 | N18: =J18*L18 -> 0 | O18: 2.5 | P18: =+J18-N18 -> 0 | Q18: 305 | R18: =+J18*E$7 -> 0
C19: Custom Apply Fertilizer | D19: 1 | F19: Acre | G19: 6 | I19: 6 | J19: 0 | K19: 0 | M19: 0 | N19: 0 | O19: 6 | P19: 0 | Q19: 732 | R19: 0
B20: Fertilizer
C21: Fertilizer 11-52-0 | D21: 73 | F21: Pound | G21: 0.4519 | I21: 32.9887 | J21: 0 | K21: 0 | M21: 0 | N21: 0 | O21: 32.9887 | P21: 0 | Q21: 4024.6214 | R21: 0
B22: Herbicide
C23: Trifluralin | D23: 2 | F23: Pint | G23: 2.75 | I23: 5.5 | J23: 0 | K23: 0 | M23: 0 | N23: 0 | O23: 5.5 | P23: 0 | Q23: 671 | R23: 0
C24: Pursuit | D24: 5 | F24: Ounce | G24: 3.3453125 | I24: 16.7265625 | J24: 0 | K24: 0 | M24: 0 | N24: 0 | O24: 16.7265625 | P24: 0 | Q24: 2040.640625 | R24: 0
C25: Crop Oil Concentrate | D25: 5 | F25: Pint | G25: 2.175 | I25: 10.875 | J25: 0 | K25: 0 | M25: 0 | N25: 0 | O25: 10.875 | P25: 0 | Q25: 1326.75 | R25: 0
B26: Insecticide
C27: Warrior Z | D27: 7.04 | F27: Ounce | G27: 1.25 | I27: 8.8 | J27: 0 | K27: 0 | M27: 0 | N27: 0 | O27: 8.8 | P27: 0 | Q27: 1073.6 | R27: 0
C28: Intrepid | D28: 2.31 | F28: Ounce | G28: 2.03906 | I28: 4.7102286 | J28: 0 | K28: 0 | M28: 0 | N28: 0 | O28: 4.7102286 | P28: 0 | Q28: 574.6478892 | R28: 0
D29: 0 | G29: 0 | I29: 0 | J29: 0 | K29: 0 | M29: 0 | N29: 0 | O29: 0 | P29: 0 | Q29: 0 | R29: 0
D30: 0 | G30: 0 | I30: 0 | J30: 0 | K30: 0 | M30: 0 | N30: 0 | O30: 0 | P30: 0 | Q30: 0 | R30: 0
D31: 0 | G31: 0 | I31: 0 | J31: =E31*H31 -> 0 | K31: 0 | M31: 0 | N31: =J31*L31 -> 0 | O31: 0 | P31: =+J31-N31 -> 0 | Q31: 0 | R31: =+J31*E$7 -> 0
B32: Irrigation
C33: Energy Cost | D33: 50.22 | F33: Mcf | G33: 5.61 | I33: 281.7342 | J33: =E33*H33 -> 0 | K33: 0 | M33: 0 | N33: =J33*L33 -> 0 | O33: 281.7342 | P33: =+J33-N33 -> 0 | Q33: 34371.5724 | R33: =+J33*E$7 -> 0
C34: Irrigation Labor | D34: 0.2888 | F34: Hour | G34: 15 | I34: 4.332 | J34: 0 | K34: 0 | M34: 0 | N34: 0 | O34: 4.332 | P34: 0 | Q34: 528.504 | R34: 0
B35: Machinery Labor
C36: Tractors/Self-Propelled | D36: 7.84 | F36: Hour | G36: 15 | I36: 117.6 | J36: =E36*H36 -> 0 | K36: 0 | M36: 0 | N36: =J36*L36 -> 0 | O36: 117.6 | P36: =+J36-N36 -> 0 | Q36: 14347.2 | R36: =+J36*E$7 -> 0
C37: Other Labor | D37: 0 | F37: Hour | G37: 15 | I37: 0 | J37: =E37*H37 -> 0 | K37: 0 | M37: 0 | N37: =J37*L37 -> 0 | O37: 0 | P37: =+J37-N37 -> 0 | Q37: 0 | R37: =+J37*E$7 -> 0
B39: Diesel Fuel
C40: Pickup/General Use Equipment | D40: 1 | F40: Acre | G40: 0 | I40: 0 | J40: =E40*H40 -> 0 | K40: 0 | M40: 0 | N40: =J40*L40 -> 0 | O40: 0 | P40: =+J40-N40 -> 0 | Q40: 0 | R40: =+J40*E$7 -> 0
C41: Tractors/Self-Propelled | D41: 37.51 | F41: Gallon | G41: 1.5 | I41: 56.265 | J41: =E41*H41 -> 0 | K41: 0 | M41: 0 | N41: =J41*L41 -> 0 | O41: 56.265 | P41: =+J41-N41 -> 0 | Q41: 6864.33 | R41: =+J41*E$7 -> 0
B43: Gasoline
C44: Pickup/General Use Equipment | D44: 1 | F44: Acre | G44: 5.789508197 | I44: 5.789508197 | J44: =E44*H44 -> 0 | K44: 0 | M44: 0 | N44: =J44*L44 -> 0 | O44: 5.789508197 | P44: =+J44-N44 -> 0 | Q44: 706.32 | R44: =+J44*E$7 -> 0
C45: Tractors/Self-Propelled | D45: 0 | F45: Gallon | G45: 1.8 | I45: 0 | J45: =E45*H45 -> 0 | K45: 0 | M45: 0 | N45: =J45*L45 -> 0 | O45: 0 | P45: =+J45-N45 -> 0 | Q45: 0 | R45: =+J45*E$7 -> 0
B47: Repairs & Maintenance
C48: Pickup/General Use Equipment | D48: 1 | F48: Acre | G48: 1.608196721 | I48: 1.608196721 | J48: =E48*H48 -> 0 | K48: 0 | M48: 0 | N48: =J48*L48 -> 0 | O48: 1.608196721 | P48: =+J48-N48 -> 0 | Q48: 196.2 | R48: =+J48*E$7 -> 0
C49: Irrigation Equipment | D49: 1 | F49: Acre | G49: 132.344766 | I49: 132.344766 | J49: 0 | K49: 0 | M49: 0 | N49: 0 | O49: 132.344766 | P49: 0 | Q49: 16146.06145 | R49: 0
C50: Tractors/Self-Propelled | D50: 1 | F50: Acre | G50: 67.9254652 | I50: 67.9254652 | J50: 0 | K50: 0 | M50: 0 | N50: 0 | O50: 67.9254652 | P50: 0 | Q50: 8286.906755 | R50: 0
C51: Implements | D51: 1 | F51: Acre | G51: 3.035796655 | I51: 3.035796655 | J51: 0 | K51: 0 | M51: 0 | N51: 0 | O51: 3.035796655 | P51: 0 | Q51: 370.3671919 | R51: 0
I52: 0 | J52: 0 | K52: 0 | M52: 0 | N52: 0 | O52: 0 | P52: 0 | Q52: 0 | R52: 0
I53: 0 | J53: 0 | K53: 0 | M53: 0 | N53: 0 | O53: 0 | P53: 0 | Q53: 0 | R53: 0
B54: Interest on Credit Line | G54: 0.0455 | I54: 11.6935286 | J54: =+SUM(J17:J53)/2*H54 -> 0 | M54: 0 | N54: =+SUM(N17:N53)/2*L54 -> 0 | O54: 11.6935286 | P54: =+SUM(P17:P53)/2*L54 -> 0 | Q54: 1426.61049 | R54: =+J54*E$7 -> 0
A55: Total Variable Costs | I55: 770.4289525 | J55: =SUM(J18:J54) -> 0 | M55: 0 | N55: =SUM(N18:N54) -> 0 | O55: 770.4289525 | P55: =SUM(P18:P54) -> 0 | Q55: 93992.3322 | R55: =SUM(R18:R54) -> 0
A56: Planned Returns Above Variable Costs: | I56: 1029.571048 | J56: =+J13-J55 -> 0 | M56: 0 | N56: =+N13-N55 -> 0 | O56: 1029.571048 | P56: =+P13-P55 -> 0 | Q56: 125607.6678 | R56: =+R13-R55 -> 0
B57: Breakeven Price to Cover Variable Costs | G57: 102.7238603 | H57: =IF(E10=0,"n/a",(YVarExp-(YTotExp+YTotRet-J10))/E10) -> n/a | I57: Ton
Q58: Enterprise | R58: Enterprise
A59: FIXED COSTS | D59: Quantity | E59: Quantity | F59: Units | G59: $/Unit | H59: $/Unit | I59: Total | J59: Total | K59: Share | L59: Share | M59: Landlord | N59: Landlord | O59: Tenant | P59: Tenant | Q59: Total | R59: Total
B60: Machinery Depreciation
C61: Pickup/General Use Equipment | D61: 1 | F61: Acre | G61: 6.030737705 | I61: 6.030737705 | J61: =E61*H61 -> 0 | K61: 0 | M61: 0 | N61: =J61*L61 -> 0 | O61: 6.030737705 | P61: =+J61-N61 -> 0 | Q61: 735.75 | R61: =+J61*E$7 -> 0
C62: Irrigation Equipment | D62: 1 | F62: Acre | G62: 45.01442623 | I62: 45.01442623 | J62: 0 | K62: 0 | M62: 0 | N62: =J62*L62 -> 0 | O62: 45.01442623 | P62: 0 | Q62: 5491.76 | R62: 0
C63: Tractors/Self-Propelled | D63: 1 | F63: Acre | G63: 91.23669573 | I63: 91.23669573 | J63: 0 | K63: 0 | M63: 0 | N63: =J63*L63 -> 0 | O63: 91.23669573 | P63: 0 | Q63: 11130.87688 | R63: 0
C64: Implements | D64: 1 | F64: Acre | G64: 7.369838647 | I64: 7.369838647 | J64: 0 | K64: 0 | M64: 0 | N64: =J64*L64 -> 0 | O64: 7.369838647 | P64: 0 | Q64: 899.1203149 | R64: 0
B65: Equipment Investment
C66: Pickup/General Use Equipment | D66: 25.12807377 | F66: Dollars | G66: 0.055 | I66: 1.382044057 | J66: =E66*H66 -> 0 | K66: 0 | M66: 0 | N66: =J66*L66 -> 0 | O66: 1.382044057 | P66: =+J66-N66 -> 0 | Q66: 168.609375 | R66: =+J66*E$7 -> 0
C67: Irrigation Equipment | D67: 337.6081967 | F67: Dollars | G67: 0.055 | I67: 18.56845082 | J67: 0 | K67: 0 | M67: 0 | N67: =J67*L67 -> 0 | O67: 18.56845082 | P67: 0 | Q67: 2265.351 | R67: 0
C68: Tractors/Self-Propelled | D68: 678.7623501 | F68: Dollars | G68: 0.055 | I68: 37.33192925 | J68: 0 | K68: 0 | M68: 0 | N68: =J68*L68 -> 0 | O68: 37.33192925 | P68: 0 | Q68: 4554.495369 | R68: 0
C69: Implements | D69: 53.36571886 | F69: Dollars | G69: 0.055 | I69: 2.935114537 | J69: 0 | K69: 0 | M69: 0 | N69: =J69*L69 -> 0 | O69: 2.935114537 | P69: 0 | Q69: 358.0839735 | R69: 0
B70: Salaried Labor | D70: 1 | F70: Acre | G70: 0 | I70: 0 | J70: 0 | K70: 0 | M70: 0 | N70: =J70*L70 -> 0 | O70: 0 | P70: =+J70-N70 -> 0 | Q70: 0 | R70: =+J70*E$7 -> 0
B71: Management Fee, Owner/Operator Labor | D71: 1 | F71: Acre | G71: 0 | I71: 0 | J71: 0 | K71: 0 | M71: 0 | N71: 0 | O71: 0 | P71: 0 | Q71: 0 | R71: 0
B72: Allocated Establishment Cost | D72: 1 | F72: Acre | G72: 117.8325 | I72: 117.8325 | J72: 0 | K72: 0 | M72: 0 | N72: 0 | O72: 117.8325 | P72: 0 | Q72: 14375.565 | R72: 0
B73: Trans Pecos Irrigated Land | D73: 1 | F73: Acre | G73: 50 | I73: 50 | J73: 0 | K73: 0 | M73: 0 | N73: 0 | O73: 50 | P73: 0 | Q73: 6100 | R73: 0
B74: Property Taxes | D74: 1 | F74: Acre | G74: 0 | I74: 0 | J74: 0 | K74: 0 | M74: 0 | N74: 0 | O74: 0 | P74: 0 | Q74: 0 | R74: 0
B75: Whole Farm Insurance | D75: 1 | F75: Acre | G75: 0 | I75: 0 | J75: 0 | K75: 0 | M75: 0 | N75: 0 | O75: 0 | P75: 0 | Q75: 0 | R75: 0
D76: 1 | G76: 0 | I76: 0 | J76: 0 | K76: 0 | M76: 0 | N76: 0 | O76: 0 | P76: 0 | Q76: 0 | R76: 0
D77: 1 | G77: 0 | I77: 0 | J77: =E77*H77 -> 0 | K77: 0 | M77: 0 | N77: 0 | O77: 0 | P77: 0 | Q77: 0 | R77: 0
A78: Total Fixed Costs | I78: 377.701737 | J78: =+SUM(J61:J77) -> 0 | M78: 0 | N78: =+SUM(N61:N77) -> 0 | O78: 377.701737 | P78: =+SUM(P61:P77) -> 0 | Q78: 46079.61191 | R78: =+SUM(R61:R77) -> 0
A79: Total Specified Costs | I79: 1148.130689 | J79: =+J55+J78 -> 0 | M79: 0 | N79: =+N55+N78 -> 0 | O79: 1148.130689 | P79: =+P55+P78 -> 0 | Q79: 140071.9441 | R79: =+R55+R78 -> 0
A81: Returns Above Specified Costs | I81: 651.8693105 | J81: =+J13-J79 -> 0 | M81: 0 | N81: =+N13-N79 -> 0 | O81: 651.8693105 | P81: =+P13-P79 -> 0 | Q81: 79528.05589 | R81: =+R13-R79 -> 0
A83: Breakeven Price to Cover Total Costs | G83: 153.0840919 | H83: =IF(E10=0,"n/a",(YTotExp-(YTotExp+YTotRet-J10))/E10) -> n/a | I83: Ton
D85: Example Breakeven Prices
B86: Example | C86: Example | D86: To Cover | G86: To Cover
B87: Yield | C87: Yield | D87: Variable | G87: Total
B88: Percent | C88: Ton | D88: Costs | G88: Costs
B89: 0.75 | C89: 5.625 | D89: 136.9651471 | G89: 204.1121226
B90: 0.9 | C90: 6.75 | D90: 114.1376226 | G90: 170.0934355
B91: 1 | C91: 7.5 | D91: 102.7238603 | G91: 153.0840919
B92: 1.1 | C92: 8.25 | D92: 93.38532757 | G92: 139.1673563
B93: 1.25 | C93: 9.375 | D93: 82.17908826 | G93: 122.4672735
D95: Your Breakeven Prices
B96: Your | C96: Your | E96: To Cover | H96: To Cover
B97: Yield | C97: Yield | E97: Variable | H97: Total
B98: Percent | C98: Ton | E98: Costs | H98: Costs
B99: 0.75 | C99: =E10*YPER1 -> 0 | E99: =IF($E$10=0,0,(YVarExp-(YTotExp+YTotRet-J10))/($E$10*YPER1)) -> 0 | H99: =IF($E$10=0,0,(YTotExp-(YTotExp+YTotRet-J10))/($E$10*YPER1)) -> 0
B100: 0.9 | C100: =E10*YPER2 -> 0 | E100: =IF($E$10=0,0,(YVarExp-(YTotExp+YTotRet-J10))/($E$10*YPER2)) -> 0 | H100: =IF($E$10=0,0,(YTotExp-(YTotExp+YTotRet-J10))/($E$10*YPER2)) -> 0
B101: 1 | C101: =+E10 -> 0 | E101: =IF($E$10=0,0,(YVarExp-(YTotExp+YTotRet-J10))/($E$10*YPER3)) -> 0 | H101: =IF($E$10=0,0,(YTotExp-(YTotExp+YTotRet-J10))/($E$10*YPER3)) -> 0
B102: 1.1 | C102: =E10*YPER4 -> 0 | E102: =IF($E$10=0,0,(YVarExp-(YTotExp+YTotRet-J10))/($E$10*YPER4)) -> 0 | H102: =IF($E$10=0,0,(YTotExp-(YTotExp+YTotRet-J10))/($E$10*YPER4)) -> 0
B103: 1.25 | C103: =E10*YPER5 -> 0 | E103: =IF($E$10=0,0,(YVarExp-(YTotExp+YTotRet-J10))/($E$10*YPER5)) -> 0 | H103: =IF($E$10=0,0,(YTotExp-(YTotExp+YTotRet-J10))/($E$10*YPER5)) -> 0
A105: Developed by Bill Thompson, Assistant Professor and Extension Economist, Texas A&M AgriLife Extension Service, 325-653-4576.
A107: Information presented is prepared solely as a general guide and not intended to recognize or predict the costs and returns from any one operation. Brand names are mentioned only as examples and imply no endorsement.

Sheet AlfalfaHayFlood
A1: Projections for Planning Purposes Only -- Not to be Used without Updating
A2: 2021 Estimated Costs and Returns per Acre
A3: Alfalfa, Full Season, Baled - 7.5 Ton Goal, Flood Irrigated
A4: Enter your name for this budget in the cell above.
A5: Enter Your Values in the cells highlighed in MAROON.
E6: Your Acres | R6: Your
C7: Crop Acres | D7: 122 | L7: Your | Q7: Enterprise | R7: Enterprise
E8: Your | H8: Your | I8: Cash | J8: Your | K8: Landlord | L8: Landlord | N8: Your | P8: Your | Q8: Total | R8: Total
A9: REVENUE | D9: Quantity | E9: Quantity | F9: Units | G9: $/Unit | H9: $/Unit | I9: Total | J9: Total | K9: Share | L9: Share | M9: Landlord | N9: Landlord | O9: Tenant | P9: Tenant | Q9: (122 acres) | R9: ="(" & E7 & " acres)" -> ( acres)
B10: Alfalfa Hay - 3X4 | D10: 7.5 | F10: Ton | G10: 240 | I10: 1800 | J10: =E10*H10 -> 0 | K10: 0 | M10: 0 | N10: =J10*L10 -> 0 | O10: 1800 | P10: =+J10-N10 -> 0 | Q10: 219600 | R10: =+J10*E$7 -> 0
D11: 0 | G11: 0 | I11: 0 | J11: 0 | K11: 0 | M11: 0 | N11: 0 | O11: 0 | P11: =+J11-N11 -> 0 | Q11: 0 | R11: 0
D12: 0 | G12: 0 | I12: 0 | J12: 0 | K12: 0 | M12: 0 | N12: 0 | O12: 0 | P12: 0 | Q12: 0 | R12: 0
A13: Total Revenue | I13: 1800 | J13: =SUM(J10:J12) -> 0 | M13: 0 | N13: =SUM(N10:N12) -> 0 | O13: 1800 | P13: =SUM(P10:P12) -> 0 | Q13: 219600 | R13: =SUM(R10:R12) -> 0
Q14: Enterprise | R14: Enterprise
A15: VARIABLE COSTS | D15: Quantity | E15: Quantity | F15: Units | G15: $/Unit | H15: $/Unit | I15: Total | J15: Total | K15: Share | L15: Share | M15: Landlord | N15: Landlord | O15: Tenant | P15: Tenant | Q15: Total | R15: Total
A16: Production Costs
B17: Custom
C18: Soil Test | D18: 0.5 | F18: Each | G18: 5 | I18: 2.5 | J18: =E18*H18 -> 0 | K18: 0 | M18: 0 | N18: =J18*L18 -> 0 | O18: 2.5 | P18: =+J18-N18 -> 0 | Q18: 305 | R18: =+J18*E$7 -> 0
C19: Custom Apply Fertilizer | D19: 1 | F19: Acre | G19: 6 | I19: 6 | J19: 0 | K19: 0 | M19: 0 | N19: 0 | O19: 6 | P19: 0 | Q19: 732 | R19: 0
B20: Fertilizer
C21: Fertilizer 11-52-0 | D21: 73 | F21: Pound | G21: 0.4519 | I21: 32.9887 | J21: 0 | K21: 0 | M21: 0 | N21: 0 | O21: 32.9887 | P21: 0 | Q21: 4024.6214 | R21: 0
B22: Herbicide
C23: Trifluralin | D23: 2 | F23: Pint | G23: 2.75 | I23: 5.5 | J23: 0 | K23: 0 | M23: 0 | N23: 0 | O23: 5.5 | P23: 0 | Q23: 671 | R23: 0
C24: Pursuit | D24: 5 | F24: Ounce | G24: 3.3453125 | I24: 16.7265625 | J24: 0 | K24: 0 | M24: 0 | N24: 0 | O24: 16.7265625 | P24: 0 | Q24: 2040.640625 | R24: 0
C25: Crop Oil Concentrate | D25: 5 | F25: Pint | G25: 2.175 | I25: 10.875 | J25: 0 | K25: 0 | M25: 0 | N25: 0 | O25: 10.875 | P25: 0 | Q25: 1326.75 | R25: 0
B26: Insecticide
C27: Warrior Z | D27: 7.04 | F27: Ounce | G27: 1.25 | I27: 8.8 | J27: 0 | K27: 0 | M27: 0 | N27: 0 | O27: 8.8 | P27: 0 | Q27: 1073.6 | R27: 0
C28: Intrepid | D28: 2.31 | F28: Ounce | G28: 2.03906 | I28: 4.7102286 | J28: 0 | K28: 0 | M28: 0 | N28: 0 | O28: 4.7102286 | P28: 0 | Q28: 574.6478892 | R28: 0
D29: 0 | G29: 0 | I29: 0 | J29: 0 | K29: 0 | M29: 0 | N29: 0 | O29: 0 | P29: 0 | Q29: 0 | R29: 0
D30: 0 | G30: 0 | I30: 0 | J30: 0 | K30: 0 | M30: 0 | N30: 0 | O30: 0 | P30: 0 | Q30: 0 | R30: 0
D31: 0 | G31: 0 | I31: 0 | J31: =E31*H31 -> 0 | K31: 0 | M31: 0 | N31: =J31*L31 -> 0 | O31: 0 | P31: =+J31-N31 -> 0 | Q31: 0 | R31: =+J31*E$7 -> 0
B32: Irrigation
C33: Energy Cost | D33: 40.76 | F33: Mcf | G33: 5.61 | I33: 228.6636 | J33: =E33*H33 -> 0 | K33: 0 | M33: 0 | N33: =J33*L33 -> 0 | O33: 228.6636 | P33: =+J33-N33 -> 0 | Q33: 27896.9592 | R33: =+J33*E$7 -> 0
C34: Irrigation Labor | D34: 0.905 | F34: Hour | G34: 15 | I34: 13.575 | J34: 0 | K34: 0 | M34: 0 | N34: 0 | O34: 13.575 | P34: 0 | Q34: 1656.15 | R34: 0
B35: Machinery Labor
C36: Tractors/Self-Propelled | D36: 7.82 | F36: Hour | G36: 15 | I36: 117.3 | J36: =E36*H36 -> 0 | K36: 0 | M36: 0 | N36: =J36*L36 -> 0 | O36: 117.3 | P36: =+J36-N36 -> 0 | Q36: 14310.6 | R36: =+J36*E$7 -> 0
C37: Other Labor | D37: 0 | F37: Hour | G37: 15 | I37: 0 | J37: =E37*H37 -> 0 | K37: 0 | M37: 0 | N37: =J37*L37 -> 0 | O37: 0 | P37: =+J37-N37 -> 0 | Q37: 0 | R37: =+J37*E$7 -> 0
B39: Diesel Fuel
C40: Pickup/General Use Equipment | D40: 1 | F40: Acre | G40: 0 | I40: 0 | J40: =E40*H40 -> 0 | K40: 0 | M40: 0 | N40: =J40*L40 -> 0 | O40: 0 | P40: =+J40-N40 -> 0 | Q40: 0 | R40: =+J40*E$7 -> 0
C41: Tractors/Self-Propelled | D41: 37.28 | F41: Gallon | G41: 1.5 | I41: 55.92 | J41: =E41*H41 -> 0 | K41: 0 | M41: 0 | N41: =J41*L41 -> 0 | O41: 55.92 | P41: =+J41-N41 -> 0 | Q41: 6822.24 | R41: =+J41*E$7 -> 0
B43: Gasoline
C44: Pickup/General Use Equipment | D44: 1 | F44: Acre | G44: 5.789508197 | I44: 5.789508197 | J44: =E44*H44 -> 0 | K44: 0 | M44: 0 | N44: =J44*L44 -> 0 | O44: 5.789508197 | P44: =+J44-N44 -> 0 | Q44: 706.32 | R44: =+J44*E$7 -> 0
C45: Tractors/Self-Propelled | D45: 0 | F45: Gallon | G45: 1.8 | I45: 0 | J45: =E45*H45 -> 0 | K45: 0 | M45: 0 | N45: =J45*L45 -> 0 | O45: 0 | P45: =+J45-N45 -> 0 | Q45: 0 | R45: =+J45*E$7 -> 0
B47: Repairs & Maintenance
C48: Pickup/General Use Equipment | D48: 1 | F48: Acre | G48: 1.608196721 | I48: 1.608196721 | J48: =E48*H48 -> 0 | K48: 0 | M48: 0 | N48: =J48*L48 -> 0 | O48: 1.608196721 | P48: =+J48-N48 -> 0 | Q48: 196.2 | R48: =+J48*E$7 -> 0
C49: Irrigation Equipment | D49: 1 | F49: Acre | G49: 18.977856 | I49: 18.977856 | J49: 0 | K49: 0 | M49: 0 | N49: 0 | O49: 18.977856 | P49: 0 | Q49: 2315.298432 | R49: 0
C50: Tractors/Self-Propelled | D50: 1 | F50: Acre | G50: 67.62664767 | I50: 67.62664767 | J50: 0 | K50: 0 | M50: 0 | N50: 0 | O50: 67.62664767 | P50: 0 | Q50: 8250.451016 | R50: 0
C51: Implements | D51: 1 | F51: Acre | G51: 3.035796655 | I51: 3.035796655 | J51: 0 | K51: 0 | M51: 0 | N51: 0 | O51: 3.035796655 | P51: 0 | Q51: 370.3671919 | R51: 0
I52: 0 | J52: 0 | K52: 0 | M52: 0 | N52: 0 | O52: 0 | P52: 0 | Q52: 0 | R52: 0
I53: 0 | J53: 0 | K53: 0 | M53: 0 | N53: 0 | O53: 0 | P53: 0 | Q53: 0 | R53: 0
B54: Interest on Credit Line | G54: 0.0455 | I54: 9.37311217 | J54: =+SUM(J17:J53)/2*H54 -> 0 | M54: 0 | N54: =+SUM(N17:N53)/2*L54 -> 0 | O54: 9.37311217 | P54: =+SUM(P17:P53)/2*L54 -> 0 | Q54: 1143.519685 | R54: =+J54*E$7 -> 0
A55: Total Variable Costs | I55: 609.9702085 | J55: =SUM(J18:J54) -> 0 | M55: 0 | N55: =SUM(N18:N54) -> 0 | O55: 609.9702085 | P55: =SUM(P18:P54) -> 0 | Q55: 74416.36544 | R55: =SUM(R18:R54) -> 0
A56: Planned Returns Above Variable Costs: | I56: 1190.029791 | J56: =+J13-J55 -> 0 | M56: 0 | N56: =+N13-N55 -> 0 | O56: 1190.029791 | P56: =+P13-P55 -> 0 | Q56: 145183.6346 | R56: =+R13-R55 -> 0
B57: Breakeven Price to Cover Variable Costs | G57: 81.32936114 | H57: =IF(E10=0,"n/a",(YVarExp-(YTotExp+YTotRet-J10))/E10) -> n/a | I57: Ton
Q58: Enterprise | R58: Enterprise
A59: FIXED COSTS | D59: Quantity | E59: Quantity | F59: Units | G59: $/Unit | H59: $/Unit | I59: Total | J59: Total | K59: Share | L59: Share | M59: Landlord | N59: Landlord | O59: Tenant | P59: Tenant | Q59: Total | R59: Total
B60: Machinery Depreciation
C61: Pickup/General Use Equipment | D61: 1 | F61: Acre | G61: 6.030737705 | I61: 6.030737705 | J61: =E61*H61 -> 0 | K61: 0 | M61: 0 | N61: =J61*L61 -> 0 | O61: 6.030737705 | P61: =+J61-N61 -> 0 | Q61: 735.75 | R61: =+J61*E$7 -> 0
C62: Irrigation Equipment | D62: 1 | F62: Acre | G62: 24.82240437 | I62: 24.82240437 | J62: 0 | K62: 0 | M62: 0 | N62: =J62*L62 -> 0 | O62: 24.82240437 | P62: 0 | Q62: 3028.333333 | R62: 0
C63: Tractors/Self-Propelled | D63: 1 | F63: Acre | G63: 89.84221391 | I63: 89.84221391 | J63: 0 | K63: 0 | M63: 0 | N63: =J63*L63 -> 0 | O63: 89.84221391 | P63: 0 | Q63: 10960.7501 | R63: 0
C64: Implements | D64: 1 | F64: Acre | G64: 7.369838647 | I64: 7.369838647 | J64: 0 | K64: 0 | M64: 0 | N64: =J64*L64 -> 0 | O64: 7.369838647 | P64: 0 | Q64: 899.1203149 | R64: 0
B65: Equipment Investment
C66: Pickup/General Use Equipment | D66: 25.12807377 | F66: Dollars | G66: 0.055 | I66: 1.382044057 | J66: =E66*H66 -> 0 | K66: 0 | M66: 0 | N66: =J66*L66 -> 0 | O66: 1.382044057 | P66: =+J66-N66 -> 0 | Q66: 168.609375 | R66: =+J66*E$7 -> 0
C67: Irrigation Equipment | D67: 186.1680328 | F67: Dollars | G67: 0.055 | I67: 10.2392418 | J67: 0 | K67: 0 | M67: 0 | N67: =J67*L67 -> 0 | O67: 10.2392418 | P67: 0 | Q67: 1249.1875 | R67: 0
C68: Tractors/Self-Propelled | D68: 668.4033423 | F68: Dollars | G68: 0.055 | I68: 36.76218383 | J68: 0 | K68: 0 | M68: 0 | N68: =J68*L68 -> 0 | O68: 36.76218383 | P68: 0 | Q68: 4484.986427 | R68: 0
C69: Implements | D69: 53.36571886 | F69: Dollars | G69: 0.055 | I69: 2.935114537 | J69: 0 | K69: 0 | M69: 0 | N69: =J69*L69 -> 0 | O69: 2.935114537 | P69: 0 | Q69: 358.0839735 | R69: 0
B70: Salaried Labor | D70: 1 | F70: Acre | G70: 0 | I70: 0 | J70: 0 | K70: 0 | M70: 0 | N70: =J70*L70 -> 0 | O70: 0 | P70: =+J70-N70 -> 0 | Q70: 0 | R70: =+J70*E$7 -> 0
B71: Management Fee, Owner/Operator Labor | D71: 1 | F71: Acre | G71: 0 | I71: 0 | J71: 0 | K71: 0 | M71: 0 | N71: 0 | O71: 0 | P71: 0 | Q71: 0 | R71: 0
B72: Allocated Establishment Cost | D72: 1 | F72: Acre | G72: 109.5 | I72: 109.5 | J72: 0 | K72: 0 | M72: 0 | N72: 0 | O72: 109.5 | P72: 0 | Q72: 13359 | R72: 0
B73: Trans Pecos Irrigated Land | D73: 1 | F73: Acre | G73: 50 | I73: 50 | J73: 0 | K73: 0 | M73: 0 | N73: 0 | O73: 50 | P73: 0 | Q73: 6100 | R73: 0
B74: Property Taxes | D74: 1 | F74: Acre | G74: 0 | I74: 0 | J74: 0 | K74: 0 | M74: 0 | N74: 0 | O74: 0 | P74: 0 | Q74: 0 | R74: 0
B75: Whole Farm Insurance | D75: 1 | F75: Acre | G75: 0 | I75: 0 | J75: 0 | K75: 0 | M75: 0 | N75: 0 | O75: 0 | P75: 0 | Q75: 0 | R75: 0
D76: 1 | G76: 0 | I76: 0 | J76: 0 | K76: 0 | M76: 0 | N76: 0 | O76: 0 | P76: 0 | Q76: 0 | R76: 0
D77: 1 | G77: 0 | I77: 0 | J77: =E77*H77 -> 0 | K77: 0 | M77: 0 | N77: 0 | O77: 0 | P77: 0 | Q77: 0 | R77: 0
A78: Total Fixed Costs | I78: 338.8837789 | J78: =+SUM(J61:J77) -> 0 | M78: 0 | N78: =+SUM(N61:N77) -> 0 | O78: 338.8837789 | P78: =+SUM(P61:P77) -> 0 | Q78: 41343.82102 | R78: =+SUM(R61:R77) -> 0
A79: Total Specified Costs | I79: 948.8539874 | J79: =+J55+J78 -> 0 | M79: 0 | N79: =+N55+N78 -> 0 | O79: 948.8539874 | P79: =+P55+P78 -> 0 | Q79: 115760.1865 | R79: =+R55+R78 -> 0
A81: Returns Above Specified Costs | I81: 851.1460126 | J81: =+J13-J79 -> 0 | M81: 0 | N81: =+N13-N79 -> 0 | O81: 851.1460126 | P81: =+P13-P79 -> 0 | Q81: 103839.8135 | R81: =+R13-R79 -> 0
A83: Breakeven Price to Cover Total Costs | G83: 126.513865 | H83: =IF(E10=0,"n/a",(YTotExp-(YTotExp+YTotRet-J10))/E10) -> n/a | I83: Ton
D85: Example Breakeven Prices
B86: Example | C86: Example | D86: To Cover | G86: To Cover
B87: Yield | C87: Yield | D87: Variable | G87: Total
B88: Percent | C88: Ton | D88: Costs | G88: Costs
B89: 0.75 | C89: 5.625 | D89: 108.4391482 | G89: 168.6851533
B90: 0.9 | C90: 6.75 | D90: 90.36595682 | G90: 140.5709611
B91: 1 | C91: 7.5 | D91: 81.32936114 | G91: 126.513865
B92: 1.1 | C92: 8.25 | D92: 73.93578285 | G92: 115.0126045
B93: 1.25 | C93: 9.375 | D93: 65.06348891 | G93: 101.211092
D95: Your Breakeven Prices
B96: Your | C96: Your | E96: To Cover | H96: To Cover
B97: Yield | C97: Yield | E97: Variable | H97: Total
B98: Percent | C98: Ton | E98: Costs | H98: Costs
B99: 0.75 | C99: =E10*YPER1 -> 0 | E99: =IF($E$10=0,0,(YVarExp-(YTotExp+YTotRet-J10))/($E$10*YPER1)) -> 0 | H99: =IF($E$10=0,0,(YTotExp-(YTotExp+YTotRet-J10))/($E$10*YPER1)) -> 0
B100: 0.9 | C100: =E10*YPER2 -> 0 | E100: =IF($E$10=0,0,(YVarExp-(YTotExp+YTotRet-J10))/($E$10*YPER2)) -> 0 | H100: =IF($E$10=0,0,(YTotExp-(YTotExp+YTotRet-J10))/($E$10*YPER2)) -> 0
B101: 1 | C101: =+E10 -> 0 | E101: =IF($E$10=0,0,(YVarExp-(YTotExp+YTotRet-J10))/($E$10*YPER3)) -> 0 | H101: =IF($E$10=0,0,(YTotExp-(YTotExp+YTotRet-J10))/($E$10*YPER3)) -> 0
B102: 1.1 | C102: =E10*YPER4 -> 0 | E102: =IF($E$10=0,0,(YVarExp-(YTotExp+YTotRet-J10))/($E$10*YPER4)) -> 0 | H102: =IF($E$10=0,0,(YTotExp-(YTotExp+YTotRet-J10))/($E$10*YPER4)) -> 0
B103: 1.25 | C103: =E10*YPER5 -> 0 | E103: =IF($E$10=0,0,(YVarExp-(YTotExp+YTotRet-J10))/($E$10*YPER5)) -> 0 | H103: =IF($E$10=0,0,(YTotExp-(YTotExp+YTotRet-J10))/($E$10*YPER5)) -> 0
A105: Developed by Bill Thompson, Assistant Professor and Extension Economist, Texas A&M AgriLife Extension Service, 325-653-4576.
A107: Information presented is prepared solely as a general guide and not intended to recognize or predict the costs and returns from any one operation. Brand names are mentioned only as examples and imply no endorsement.

Sheet AlfalfaPivotDell
A1: Projections for Planning Purposes Only -- Not to be Used without Updating
A2: 2021 Estimated Costs and Returns per Acre
A3: Alfalfa, Full Season, Baled - 7.5 Ton Goal, Center Pivot Irrigated, Dell City
A4: Enter your name for this budget in the cell above.
A5: Enter Your Values in the cells highlighed in MAROON.
E6: Your Acres | R6: Your
C7: Crop Acres | D7: 122 | L7: Your | Q7: Enterprise | R7: Enterprise
E8: Your | H8: Your | I8: Cash | J8: Your | K8: Landlord | L8: Landlord | N8: Your | P8: Your | Q8: Total | R8: Total
A9: REVENUE | D9: Quantity | E9: Quantity | F9: Units | G9: $/Unit | H9: $/Unit | I9: Total | J9: Total | K9: Share | L9: Share | M9: Landlord | N9: Landlord | O9: Tenant | P9: Tenant | Q9: (122 acres) | R9: ="(" & E7 & " acres)" -> ( acres)
B10: Alfalfa Hay - 3X4 | D10: 7.5 | F10: Ton | G10: 240 | I10: 1800 | J10: =E10*H10 -> 0 | K10: 0 | M10: 0 | N10: =J10*L10 -> 0 | O10: 1800 | P10: =+J10-N10 -> 0 | Q10: 219600 | R10: =+J10*E$7 -> 0
D11: 0 | G11: 0 | I11: 0 | J11: 0 | K11: 0 | M11: 0 | N11: 0 | O11: 0 | P11: =+J11-N11 -> 0 | Q11: 0 | R11: 0
D12: 0 | G12: 0 | I12: 0 | J12: 0 | K12: 0 | M12: 0 | N12: 0 | O12: 0 | P12: 0 | Q12: 0 | R12: 0
A13: Total Revenue | I13: 1800 | J13: =SUM(J10:J12) -> 0 | M13: 0 | N13: =SUM(N10:N12) -> 0 | O13: 1800 | P13: =SUM(P10:P12) -> 0 | Q13: 219600 | R13: =SUM(R10:R12) -> 0
Q14: Enterprise | R14: Enterprise
A15: VARIABLE COSTS | D15: Quantity | E15: Quantity | F15: Units | G15: $/Unit | H15: $/Unit | I15: Total | J15: Total | K15: Share | L15: Share | M15: Landlord | N15: Landlord | O15: Tenant | P15: Tenant | Q15: Total | R15: Total
A16: Production Costs
B17: Herbicide
C18: Trifluralin | D18: 2 | F18: Pint | G18: 2.75 | I18: 5.5 | J18: =E18*H18 -> 0 | K18: 0 | M18: 0 | N18: =J18*L18 -> 0 | O18: 5.5 | P18: =+J18-N18 -> 0 | Q18: 671 | R18: =+J18*E$7 -> 0
C19: Pursuit | D19: 5 | F19: Ounce | G19: 3.3453125 | I19: 16.7265625 | J19: 0 | K19: 0 | M19: 0 | N19: 0 | O19: 16.7265625 | P19: 0 | Q19: 2040.640625 | R19: 0
C20: Crop Oil Concentrate | D20: 5 | F20: Pint | G20: 2.175 | I20: 10.875 | J20: 0 | K20: 0 | M20: 0 | N20: 0 | O20: 10.875 | P20: 0 | Q20: 1326.75 | R20: 0
B21: Custom
C22: Soil Test | D22: 0.5 | F22: Each | G22: 5 | I22: 2.5 | J22: 0 | K22: 0 | M22: 0 | N22: 0 | O22: 2.5 | P22: 0 | Q22: 305 | R22: 0
C23: Custom Apply Fertilizer | D23: 1 | F23: Acre | G23: 6 | I23: 6 | J23: 0 | K23: 0 | M23: 0 | N23: 0 | O23: 6 | P23: 0 | Q23: 732 | R23: 0
B24: Fertilizer
C25: Fertilizer 11-52-0 | D25: 73 | F25: Pound | G25: 0.4519 | I25: 32.9887 | J25: 0 | K25: 0 | M25: 0 | N25: 0 | O25: 32.9887 | P25: 0 | Q25: 4024.6214 | R25: 0
B26: Insecticide
C27: Warrior Z | D27: 7.04 | F27: Ounce | G27: 1.25 | I27: 8.8 | J27: 0 | K27: 0 | M27: 0 | N27: 0 | O27: 8.8 | P27: 0 | Q27: 1073.6 | R27: 0
C28: Intrepid | D28: 2.31 | F28: Ounce | G28: 2.03906 | I28: 4.7102286 | J28: 0 | K28: 0 | M28: 0 | N28: 0 | O28: 4.7102286 | P28: 0 | Q28: 574.6478892 | R28: 0
D29: 0 | G29: 0 | I29: 0 | J29: 0 | K29: 0 | M29: 0 | N29: 0 | O29: 0 | P29: 0 | Q29: 0 | R29: 0
D30: 0 | G30: 0 | I30: 0 | J30: 0 | K30: 0 | M30: 0 | N30: 0 | O30: 0 | P30: 0 | Q30: 0 | R30: 0
D31: 0 | G31: 0 | I31: 0 | J31: =E31*H31 -> 0 | K31: 0 | M31: 0 | N31: =J31*L31 -> 0 | O31: 0 | P31: =+J31-N31 -> 0 | Q31: 0 | R31: =+J31*E$7 -> 0
B32: Irrigation
C33: Energy Cost | D33: 25.71 | F33: Mcf | G33: 5.61 | I33: 144.2331 | J33: =E33*H33 -> 0 | K33: 0 | M33: 0 | N33: =J33*L33 -> 0 | O33: 144.2331 | P33: =+J33-N33 -> 0 | Q33: 17596.4382 | R33: =+J33*E$7 -> 0
C34: Irrigation Labor | D34: 0.0955 | F34: Hour | G34: 15 | I34: 1.4325 | J34: 0 | K34: 0 | M34: 0 | N34: 0 | O34: 1.4325 | P34: 0 | Q34: 174.765 | R34: 0
B35: Machinery Labor
C36: Tractors/Self-Propelled | D36: 7.82 | F36: Hour | G36: 15 | I36: 117.3 | J36: =E36*H36 -> 0 | K36: 0 | M36: 0 | N36: =J36*L36 -> 0 | O36: 117.3 | P36: =+J36-N36 -> 0 | Q36: 14310.6 | R36: =+J36*E$7 -> 0
C37: Other Labor | D37: 0 | F37: Hour | G37: 15 | I37: 0 | J37: =E37*H37 -> 0 | K37: 0 | M37: 0 | N37: =J37*L37 -> 0 | O37: 0 | P37: =+J37-N37 -> 0 | Q37: 0 | R37: =+J37*E$7 -> 0
B39: Diesel Fuel
C40: Pickup/General Use Equipment | D40: 1 | F40: Acre | G40: 0 | I40: 0 | J40: =E40*H40 -> 0 | K40: 0 | M40: 0 | N40: =J40*L40 -> 0 | O40: 0 | P40: =+J40-N40 -> 0 | Q40: 0 | R40: =+J40*E$7 -> 0
C41: Tractors/Self-Propelled | D41: 37.28 | F41: Gallon | G41: 1.5 | I41: 55.92 | J41: =E41*H41 -> 0 | K41: 0 | M41: 0 | N41: =J41*L41 -> 0 | O41: 55.92 | P41: =+J41-N41 -> 0 | Q41: 6822.24 | R41: =+J41*E$7 -> 0
B43: Gasoline
C44: Pickup/General Use Equipment | D44: 1 | F44: Acre | G44: 5.789508197 | I44: 5.789508197 | J44: =E44*H44 -> 0 | K44: 0 | M44: 0 | N44: =J44*L44 -> 0 | O44: 5.789508197 | P44: =+J44-N44 -> 0 | Q44: 706.32 | R44: =+J44*E$7 -> 0
C45: Tractors/Self-Propelled | D45: 0 | F45: Gallon | G45: 1.8 | I45: 0 | J45: =E45*H45 -> 0 | K45: 0 | M45: 0 | N45: =J45*L45 -> 0 | O45: 0 | P45: =+J45-N45 -> 0 | Q45: 0 | R45: =+J45*E$7 -> 0
B47: Repairs & Maintenance
C48: Pickup/General Use Equipment | D48: 1 | F48: Acre | G48: 1.608196721 | I48: 1.608196721 | J48: =E48*H48 -> 0 | K48: 0 | M48: 0 | N48: =J48*L48 -> 0 | O48: 1.608196721 | P48: =+J48-N48 -> 0 | Q48: 196.2 | R48: =+J48*E$7 -> 0
C49: Irrigation Equipment | D49: 1 | F49: Acre | G49: 43.796985 | I49: 43.796985 | J49: 0 | K49: 0 | M49: 0 | N49: 0 | O49: 43.796985 | P49: 0 | Q49: 5343.23217 | R49: 0
C50: Tractors/Self-Propelled | D50: 1 | F50: Acre | G50: 67.62664767 | I50: 67.62664767 | J50: 0 | K50: 0 | M50: 0 | N50: 0 | O50: 67.62664767 | P50: 0 | Q50: 8250.451016 | R50: 0
C51: Implements | D51: 1 | F51: Acre | G51: 3.035796655 | I51: 3.035796655 | J51: 0 | K51: 0 | M51: 0 | N51: 0 | O51: 3.035796655 | P51: 0 | Q51: 370.3671919 | R51: 0
I52: 0 | J52: 0 | K52: 0 | M52: 0 | N52: 0 | O52: 0 | P52: 0 | Q52: 0 | R52: 0
I53: 0 | J53: 0 | K53: 0 | M53: 0 | N53: 0 | O53: 0 | P53: 0 | Q53: 0 | R53: 0
B54: Interest on Credit Line | G54: 0.0455 | I54: 8.396568697 | J54: =+SUM(J17:J53)/2*H54 -> 0 | M54: 0 | N54: =+SUM(N17:N53)/2*L54 -> 0 | O54: 8.396568697 | P54: =+SUM(P17:P53)/2*L54 -> 0 | Q54: 1024.381381 | R54: =+J54*E$7 -> 0
A55: Total Variable Costs | I55: 537.239794 | J55: =SUM(J18:J54) -> 0 | M55: 0 | N55: =SUM(N18:N54) -> 0 | O55: 537.239794 | P55: =SUM(P18:P54) -> 0 | Q55: 65543.25487 | R55: =SUM(R18:R54) -> 0
A56: Planned Returns Above Variable Costs: | I56: 1262.760206 | J56: =+J13-J55 -> 0 | M56: 0 | N56: =+N13-N55 -> 0 | O56: 1262.760206 | P56: =+P13-P55 -> 0 | Q56: 154056.7451 | R56: =+R13-R55 -> 0
B57: Breakeven Price to Cover Variable Costs | G57: 71.63197254 | H57: =IF(E10=0,"n/a",(YVarExp-(YTotExp+YTotRet-J10))/E10) -> n/a | I57: Ton
Q58: Enterprise | R58: Enterprise
A59: FIXED COSTS | D59: Quantity | E59: Quantity | F59: Units | G59: $/Unit | H59: $/Unit | I59: Total | J59: Total | K59: Share | L59: Share | M59: Landlord | N59: Landlord | O59: Tenant | P59: Tenant | Q59: Total | R59: Total
B60: Machinery Depreciation
C61: Pickup/General Use Equipment | D61: 1 | F61: Acre | G61: 6.030737705 | I61: 6.030737705 | J61: =E61*H61 -> 0 | K61: 0 | M61: 0 | N61: =J61*L61 -> 0 | O61: 6.030737705 | P61: =+J61-N61 -> 0 | Q61: 735.75 | R61: =+J61*E$7 -> 0
C62: Irrigation Equipment | D62: 1 | F62: Acre | G62: 57.3247679 | I62: 57.3247679 | J62: 0 | K62: 0 | M62: 0 | N62: =J62*L62 -> 0 | O62: 57.3247679 | P62: 0 | Q62: 6993.621684 | R62: 0
C63: Tractors/Self-Propelled | D63: 1 | F63: Acre | G63: 89.84221391 | I63: 89.84221391 | J63: 0 | K63: 0 | M63: 0 | N63: =J63*L63 -> 0 | O63: 89.84221391 | P63: 0 | Q63: 10960.7501 | R63: 0
C64: Implements | D64: 1 | F64: Acre | G64: 7.369838647 | I64: 7.369838647 | J64: 0 | K64: 0 | M64: 0 | N64: =J64*L64 -> 0 | O64: 7.369838647 | P64: 0 | Q64: 899.1203149 | R64: 0
B65: Equipment Investment
C66: Pickup/General Use Equipment | D66: 25.12807377 | F66: Dollars | G66: 0.055 | I66: 1.382044057 | J66: =E66*H66 -> 0 | K66: 0 | M66: 0 | N66: =J66*L66 -> 0 | O66: 1.382044057 | P66: =+J66-N66 -> 0 | Q66: 168.609375 | R66: =+J66*E$7 -> 0
C67: Irrigation Equipment | D67: 429.9357593 | F67: Dollars | G67: 0.055 | I67: 23.64646676 | J67: 0 | K67: 0 | M67: 0 | N67: =J67*L67 -> 0 | O67: 23.64646676 | P67: 0 | Q67: 2884.868945 | R67: 0
C68: Tractors/Self-Propelled | D68: 668.4033423 | F68: Dollars | G68: 0.055 | I68: 36.76218383 | J68: 0 | K68: 0 | M68: 0 | N68: =J68*L68 -> 0 | O68: 36.76218383 | P68: 0 | Q68: 4484.986427 | R68: 0
C69: Implements | D69: 53.36571886 | F69: Dollars | G69: 0.055 | I69: 2.935114537 | J69: 0 | K69: 0 | M69: 0 | N69: =J69*L69 -> 0 | O69: 2.935114537 | P69: 0 | Q69: 358.0839735 | R69: 0
B70: Salaried Labor | D70: 1 | F70: Acre | G70: 0 | I70: 0 | J70: 0 | K70: 0 | M70: 0 | N70: =J70*L70 -> 0 | O70: 0 | P70: =+J70-N70 -> 0 | Q70: 0 | R70: =+J70*E$7 -> 0
B71: Management Fee, Owner/Operator Labor | D71: 1 | F71: Acre | G71: 0 | I71: 0 | J71: 0 | K71: 0 | M71: 0 | N71: 0 | O71: 0 | P71: 0 | Q71: 0 | R71: 0
B72: Allocated Establishment Cost | D72: 1 | F72: Acre | G72: 117.8325 | I72: 117.8325 | J72: 0 | K72: 0 | M72: 0 | N72: 0 | O72: 117.8325 | P72: 0 | Q72: 14375.565 | R72: 0
B73: Trans Pecos Irrigated Land | D73: 1 | F73: Acre | G73: 50 | I73: 50 | J73: 0 | K73: 0 | M73: 0 | N73: 0 | O73: 50 | P73: 0 | Q73: 6100 | R73: 0
B74: Property Taxes | D74: 1 | F74: Acre | G74: 0 | I74: 0 | J74: 0 | K74: 0 | M74: 0 | N74: 0 | O74: 0 | P74: 0 | Q74: 0 | R74: 0
B75: Whole Farm Insurance | D75: 1 | F75: Acre | G75: 0 | I75: 0 | J75: 0 | K75: 0 | M75: 0 | N75: 0 | O75: 0 | P75: 0 | Q75: 0 | R75: 0
D76: 1 | G76: 0 | I76: 0 | J76: 0 | K76: 0 | M76: 0 | N76: 0 | O76: 0 | P76: 0 | Q76: 0 | R76: 0
D77: 1 | G77: 0 | I77: 0 | J77: =E77*H77 -> 0 | K77: 0 | M77: 0 | N77: 0 | O77: 0 | P77: 0 | Q77: 0 | R77: 0
A78: Total Fixed Costs | I78: 393.1258673 | J78: =+SUM(J61:J77) -> 0 | M78: 0 | N78: =+SUM(N61:N77) -> 0 | O78: 393.1258673 | P78: =+SUM(P61:P77) -> 0 | Q78: 47961.35582 | R78: =+SUM(R61:R77) -> 0
A79: Total Specified Costs | I79: 930.3656614 | J79: =+J55+J78 -> 0 | M79: 0 | N79: =+N55+N78 -> 0 | O79: 930.3656614 | P79: =+P55+P78 -> 0 | Q79: 113504.6107 | R79: =+R55+R78 -> 0
A81: Returns Above Specified Costs | I81: 869.6343386 | J81: =+J13-J79 -> 0 | M81: 0 | N81: =+N13-N79 -> 0 | O81: 869.6343386 | P81: =+P13-P79 -> 0 | Q81: 106095.3893 | R81: =+R13-R79 -> 0
A83: Breakeven Price to Cover Total Costs | G83: 124.0487549 | H83: =IF(E10=0,"n/a",(YTotExp-(YTotExp+YTotRet-J10))/E10) -> n/a | I83: Ton
D85: Example Breakeven Prices
B86: Example | C86: Example | D86: To Cover | G86: To Cover
B87: Yield | C87: Yield | D87: Variable | G87: Total
B88: Percent | C88: Ton | D88: Costs | G88: Costs
B89: 0.75 | C89: 5.625 | D89: 95.50929672 | G89: 165.3983398
B90: 0.9 | C90: 6.75 | D90: 79.5910806 | G90: 137.8319498
B91: 1 | C91: 7.5 | D91: 71.63197254 | G91: 124.0487549
B92: 1.1 | C92: 8.25 | D92: 65.11997504 | G92: 112.7715953
B93: 1.25 | C93: 9.375 | D93: 57.30557803 | G93: 99.23900388
D95: Your Breakeven Prices
B96: Your | C96: Your | E96: To Cover | H96: To Cover
B97: Yield | C97: Yield | E97: Variable | H97: Total
B98: Percent | C98: Ton | E98: Costs | H98: Costs
B99: 0.75 | C99: =E10*YPER1 -> 0 | E99: =IF($E$10=0,0,(YVarExp-(YTotExp+YTotRet-J10))/($E$10*YPER1)) -> 0 | H99: =IF($E$10=0,0,(YTotExp-(YTotExp+YTotRet-J10))/($E$10*YPER1)) -> 0
B100: 0.9 | C100: =E10*YPER2 -> 0 | E100: =IF($E$10=0,0,(YVarExp-(YTotExp+YTotRet-J10))/($E$10*YPER2)) -> 0 | H100: =IF($E$10=0,0,(YTotExp-(YTotExp+YTotRet-J10))/($E$10*YPER2)) -> 0
B101: 1 | C101: =+E10 -> 0 | E101: =IF($E$10=0,0,(YVarExp-(YTotExp+YTotRet-J10))/($E$10*YPER3)) -> 0 | H101: =IF($E$10=0,0,(YTotExp-(YTotExp+YTotRet-J10))/($E$10*YPER3)) -> 0
B102: 1.1 | C102: =E10*YPER4 -> 0 | E102: =IF($E$10=0,0,(YVarExp-(YTotExp+YTotRet-J10))/($E$10*YPER4)) -> 0 | H102: =IF($E$10=0,0,(YTotExp-(YTotExp+YTotRet-J10))/($E$10*YPER4)) -> 0
B103: 1.25 | C103: =E10*YPER5 -> 0 | E103: =IF($E$10=0,0,(YVarExp-(YTotExp+YTotRet-J10))/($E$10*YPER5)) -> 0 | H103: =IF($E$10=0,0,(YTotExp-(YTotExp+YTotRet-J10))/($E$10*YPER5)) -> 0
A105: Developed by Bill Thompson, Assistant Professor and Extension Economist, Texas A&M AgriLife Extension Service, 325-653-4576.
A107: Information presented is prepared solely as a general guide and not intended to recognize or predict the costs and returns from any one operation. Brand names are mentioned only as examples and imply no endorsement.

Sheet AlfalfaFloodDell
A1: Projections for Planning Purposes Only -- Not to be Used without Updating
A2: 2021 Estimated Costs and Returns per Acre
A3: Alfalfa, Full Season, Baled - 7.5 Ton Goal, Flood Irrigated, Dell City
A4: Enter your name for this budget in the cell above.
A5: Enter Your Values in the cells highlighed in MAROON.
E6: Your Acres | R6: Your
C7: Crop Acres | D7: 122 | L7: Your | Q7: Enterprise | R7: Enterprise
E8: Your | H8: Your | I8: Cash | J8: Your | K8: Landlord | L8: Landlord | N8: Your | P8: Your | Q8: Total | R8: Total
A9: REVENUE | D9: Quantity | E9: Quantity | F9: Units | G9: $/Unit | H9: $/Unit | I9: Total | J9: Total | K9: Share | L9: Share | M9: Landlord | N9: Landlord | O9: Tenant | P9: Tenant | Q9: (122 acres) | R9: ="(" & E7 & " acres)" -> ( acres)
B10: Alfalfa Hay - 3X4 | D10: 7.5 | F10: Ton | G10: 240 | I10: 1800 | J10: =E10*H10 -> 0 | K10: 0 | M10: 0 | N10: =J10*L10 -> 0 | O10: 1800 | P10: =+J10-N10 -> 0 | Q10: 219600 | R10: =+J10*E$7 -> 0
D11: 0 | G11: 0 | I11: 0 | J11: 0 | K11: 0 | M11: 0 | N11: 0 | O11: 0 | P11: =+J11-N11 -> 0 | Q11: 0 | R11: 0
D12: 0 | G12: 0 | I12: 0 | J12: 0 | K12: 0 | M12: 0 | N12: 0 | O12: 0 | P12: 0 | Q12: 0 | R12: 0
A13: Total Revenue | I13: 1800 | J13: =SUM(J10:J12) -> 0 | M13: 0 | N13: =SUM(N10:N12) -> 0 | O13: 1800 | P13: =SUM(P10:P12) -> 0 | Q13: 219600 | R13: =SUM(R10:R12) -> 0
Q14: Enterprise | R14: Enterprise
A15: VARIABLE COSTS | D15: Quantity | E15: Quantity | F15: Units | G15: $/Unit | H15: $/Unit | I15: Total | J15: Total | K15: Share | L15: Share | M15: Landlord | N15: Landlord | O15: Tenant | P15: Tenant | Q15: Total | R15: Total
A16: Production Costs
B17: Fertilizer
C18: Fertilizer 11-52-0 | D18: 73 | F18: Pound | G18: 0.4519 | I18: 32.9887 | J18: =E18*H18 -> 0 | K18: 0 | M18: 0 | N18: =J18*L18 -> 0 | O18: 32.9887 | P18: =+J18-N18 -> 0 | Q18: 4024.6214 | R18: =+J18*E$7 -> 0
B19: Custom
C20: Soil Test | D20: 0.5 | F20: Each | G20: 5 | I20: 2.5 | J20: 0 | K20: 0 | M20: 0 | N20: 0 | O20: 2.5 | P20: 0 | Q20: 305 | R20: 0
C21: Custom Apply Fertilizer | D21: 1 | F21: Acre | G21: 6 | I21: 6 | J21: 0 | K21: 0 | M21: 0 | N21: 0 | O21: 6 | P21: 0 | Q21: 732 | R21: 0
B22: Herbicide
C23: Trifluralin | D23: 2 | F23: Pint | G23: 2.75 | I23: 5.5 | J23: 0 | K23: 0 | M23: 0 | N23: 0 | O23: 5.5 | P23: 0 | Q23: 671 | R23: 0
C24: Pursuit | D24: 5 | F24: Ounce | G24: 3.3453125 | I24: 16.7265625 | J24: 0 | K24: 0 | M24: 0 | N24: 0 | O24: 16.7265625 | P24: 0 | Q24: 2040.640625 | R24: 0
C25: Crop Oil Concentrate | D25: 5 | F25: Pint | G25: 2.175 | I25: 10.875 | J25: 0 | K25: 0 | M25: 0 | N25: 0 | O25: 10.875 | P25: 0 | Q25: 1326.75 | R25: 0
B26: Insecticide
C27: Warrior Z | D27: 7.04 | F27: Ounce | G27: 1.25 | I27: 8.8 | J27: 0 | K27: 0 | M27: 0 | N27: 0 | O27: 8.8 | P27: 0 | Q27: 1073.6 | R27: 0
C28: Intrepid | D28: 2.31 | F28: Ounce | G28: 2.03906 | I28: 4.7102286 | J28: 0 | K28: 0 | M28: 0 | N28: 0 | O28: 4.7102286 | P28: 0 | Q28: 574.6478892 | R28: 0
D29: 0 | G29: 0 | I29: 0 | J29: 0 | K29: 0 | M29: 0 | N29: 0 | O29: 0 | P29: 0 | Q29: 0 | R29: 0
D30: 0 | G30: 0 | I30: 0 | J30: 0 | K30: 0 | M30: 0 | N30: 0 | O30: 0 | P30: 0 | Q30: 0 | R30: 0
D31: 0 | G31: 0 | I31: 0 | J31: =E31*H31 -> 0 | K31: 0 | M31: 0 | N31: =J31*L31 -> 0 | O31: 0 | P31: =+J31-N31 -> 0 | Q31: 0 | R31: =+J31*E$7 -> 0
B32: Irrigation
C33: Energy Cost | D33: 21.52 | F33: Mcf | G33: 5.61 | I33: 120.7272 | J33: =E33*H33 -> 0 | K33: 0 | M33: 0 | N33: =J33*L33 -> 0 | O33: 120.7272 | P33: =+J33-N33 -> 0 | Q33: 14728.7184 | R33: =+J33*E$7 -> 0
C34: Irrigation Labor | D34: 0.2988 | F34: Hour | G34: 15 | I34: 4.482 | J34: 0 | K34: 0 | M34: 0 | N34: 0 | O34: 4.482 | P34: 0 | Q34: 546.804 | R34: 0
B35: Machinery Labor
C36: Tractors/Self-Propelled | D36: 7.82 | F36: Hour | G36: 15 | I36: 117.3 | J36: =E36*H36 -> 0 | K36: 0 | M36: 0 | N36: =J36*L36 -> 0 | O36: 117.3 | P36: =+J36-N36 -> 0 | Q36: 14310.6 | R36: =+J36*E$7 -> 0
C37: Other Labor | D37: 0 | F37: Hour | G37: 15 | I37: 0 | J37: =E37*H37 -> 0 | K37: 0 | M37: 0 | N37: =J37*L37 -> 0 | O37: 0 | P37: =+J37-N37 -> 0 | Q37: 0 | R37: =+J37*E$7 -> 0
B39: Diesel Fuel
C40: Pickup/General Use Equipment | D40: 1 | F40: Acre | G40: 0 | I40: 0 | J40: =E40*H40 -> 0 | K40: 0 | M40: 0 | N40: =J40*L40 -> 0 | O40: 0 | P40: =+J40-N40 -> 0 | Q40: 0 | R40: =+J40*E$7 -> 0
C41: Tractors/Self-Propelled | D41: 37.28 | F41: Gallon | G41: 1.5 | I41: 55.92 | J41: =E41*H41 -> 0 | K41: 0 | M41: 0 | N41: =J41*L41 -> 0 | O41: 55.92 | P41: =+J41-N41 -> 0 | Q41: 6822.24 | R41: =+J41*E$7 -> 0
B43: Gasoline
C44: Pickup/General Use Equipment | D44: 1 | F44: Acre | G44: 5.789508197 | I44: 5.789508197 | J44: =E44*H44 -> 0 | K44: 0 | M44: 0 | N44: =J44*L44 -> 0 | O44: 5.789508197 | P44: =+J44-N44 -> 0 | Q44: 706.32 | R44: =+J44*E$7 -> 0
C45: Tractors/Self-Propelled | D45: 0 | F45: Gallon | G45: 1.8 | I45: 0 | J45: =E45*H45 -> 0 | K45: 0 | M45: 0 | N45: =J45*L45 -> 0 | O45: 0 | P45: =+J45-N45 -> 0 | Q45: 0 | R45: =+J45*E$7 -> 0
B47: Repairs & Maintenance
C48: Pickup/General Use Equipment | D48: 1 | F48: Acre | G48: 1.608196721 | I48: 1.608196721 | J48: =E48*H48 -> 0 | K48: 0 | M48: 0 | N48: =J48*L48 -> 0 | O48: 1.608196721 | P48: =+J48-N48 -> 0 | Q48: 196.2 | R48: =+J48*E$7 -> 0
C49: Irrigation Equipment | D49: 1 | F49: Acre | G49: 28.477416 | I49: 28.477416 | J49: 0 | K49: 0 | M49: 0 | N49: 0 | O49: 28.477416 | P49: 0 | Q49: 3474.244752 | R49: 0
C50: Tractors/Self-Propelled | D50: 1 | F50: Acre | G50: 67.62664767 | I50: 67.62664767 | J50: 0 | K50: 0 | M50: 0 | N50: 0 | O50: 67.62664767 | P50: 0 | Q50: 8250.451016 | R50: 0
C51: Implements | D51: 1 | F51: Acre | G51: 3.035796655 | I51: 3.035796655 | J51: 0 | K51: 0 | M51: 0 | N51: 0 | O51: 3.035796655 | P51: 0 | Q51: 370.3671919 | R51: 0
I52: 0 | J52: 0 | K52: 0 | M52: 0 | N52: 0 | O52: 0 | P52: 0 | Q52: 0 | R52: 0
I53: 0 | J53: 0 | K53: 0 | M53: 0 | N53: 0 | O53: 0 | P53: 0 | Q53: 0 | R53: 0
B54: Interest on Credit Line | G54: 0.0455 | I54: 7.955759477 | J54: =+SUM(J17:J53)/2*H54 -> 0 | M54: 0 | N54: =+SUM(N17:N53)/2*L54 -> 0 | O54: 7.955759477 | P54: =+SUM(P17:P53)/2*L54 -> 0 | Q54: 970.6026562 | R54: =+J54*E$7 -> 0
A55: Total Variable Costs | I55: 501.0230158 | J55: =SUM(J18:J54) -> 0 | M55: 0 | N55: =SUM(N18:N54) -> 0 | O55: 501.0230158 | P55: =SUM(P18:P54) -> 0 | Q55: 61124.80793 | R55: =SUM(R18:R54) -> 0
A56: Planned Returns Above Variable Costs: | I56: 1298.976984 | J56: =+J13-J55 -> 0 | M56: 0 | N56: =+N13-N55 -> 0 | O56: 1298.976984 | P56: =+P13-P55 -> 0 | Q56: 158475.1921 | R56: =+R13-R55 -> 0
B57: Breakeven Price to Cover Variable Costs | G57: 66.80306878 | H57: =IF(E10=0,"n/a",(YVarExp-(YTotExp+YTotRet-J10))/E10) -> n/a | I57: Ton
Q58: Enterprise | R58: Enterprise
A59: FIXED COSTS | D59: Quantity | E59: Quantity | F59: Units | G59: $/Unit | H59: $/Unit | I59: Total | J59: Total | K59: Share | L59: Share | M59: Landlord | N59: Landlord | O59: Tenant | P59: Tenant | Q59: Total | R59: Total
B60: Machinery Depreciation
C61: Pickup/General Use Equipment | D61: 1 | F61: Acre | G61: 6.030737705 | I61: 6.030737705 | J61: =E61*H61 -> 0 | K61: 0 | M61: 0 | N61: =J61*L61 -> 0 | O61: 6.030737705 | P61: =+J61-N61 -> 0 | Q61: 735.75 | R61: =+J61*E$7 -> 0
C62: Irrigation Equipment | D62: 1 | F62: Acre | G62: 37.28144262 | I62: 37.28144262 | J62: 0 | K62: 0 | M62: 0 | N62: =J62*L62 -> 0 | O62: 37.28144262 | P62: 0 | Q62: 4548.336 | R62: 0
C63: Tractors/Self-Propelled | D63: 1 | F63: Acre | G63: 89.84221391 | I63: 89.84221391 | J63: 0 | K63: 0 | M63: 0 | N63: =J63*L63 -> 0 | O63: 89.84221391 | P63: 0 | Q63: 10960.7501 | R63: 0
C64: Implements | D64: 1 | F64: Acre | G64: 7.369838647 | I64: 7.369838647 | J64: 0 | K64: 0 | M64: 0 | N64: =J64*L64 -> 0 | O64: 7.369838647 | P64: 0 | Q64: 899.1203149 | R64: 0
B65: Equipment Investment
C66: Pickup/General Use Equipment | D66: 25.12807377 | F66: Dollars | G66: 0.055 | I66: 1.382044057 | J66: =E66*H66 -> 0 | K66: 0 | M66: 0 | N66: =J66*L66 -> 0 | O66: 1.382044057 | P66: =+J66-N66 -> 0 | Q66: 168.609375 | R66: =+J66*E$7 -> 0
C67: Irrigation Equipment | D67: 279.6108197 | F67: Dollars | G67: 0.055 | I67: 15.37859508 | J67: 0 | K67: 0 | M67: 0 | N67: =J67*L67 -> 0 | O67: 15.37859508 | P67: 0 | Q67: 1876.1886 | R67: 0
C68: Tractors/Self-Propelled | D68: 668.4033423 | F68: Dollars | G68: 0.055 | I68: 36.76218383 | J68: 0 | K68: 0 | M68: 0 | N68: =J68*L68 -> 0 | O68: 36.76218383 | P68: 0 | Q68: 4484.986427 | R68: 0
C69: Implements | D69: 53.36571886 | F69: Dollars | G69: 0.055 | I69: 2.935114537 | J69: 0 | K69: 0 | M69: 0 | N69: =J69*L69 -> 0 | O69: 2.935114537 | P69: 0 | Q69: 358.0839735 | R69: 0
B70: Salaried Labor | D70: 1 | F70: Acre | G70: 0 | I70: 0 | J70: 0 | K70: 0 | M70: 0 | N70: =J70*L70 -> 0 | O70: 0 | P70: =+J70-N70 -> 0 | Q70: 0 | R70: =+J70*E$7 -> 0
B71: Management Fee, Owner/Operator Labor | D71: 1 | F71: Acre | G71: 0 | I71: 0 | J71: 0 | K71: 0 | M71: 0 | N71: 0 | O71: 0 | P71: 0 | Q71: 0 | R71: 0
B72: Allocated Establishment Cost | D72: 1 | F72: Acre | G72: 109.5 | I72: 109.5 | J72: 0 | K72: 0 | M72: 0 | N72: 0 | O72: 109.5 | P72: 0 | Q72: 13359 | R72: 0
B73: Trans Pecos Irrigated Land | D73: 1 | F73: Acre | G73: 50 | I73: 50 | J73: 0 | K73: 0 | M73: 0 | N73: 0 | O73: 50 | P73: 0 | Q73: 6100 | R73: 0
B74: Property Taxes | D74: 1 | F74: Acre | G74: 0 | I74: 0 | J74: 0 | K74: 0 | M74: 0 | N74: 0 | O74: 0 | P74: 0 | Q74: 0 | R74: 0
B75: Whole Farm Insurance | D75: 1 | F75: Acre | G75: 0 | I75: 0 | J75: 0 | K75: 0 | M75: 0 | N75: 0 | O75: 0 | P75: 0 | Q75: 0 | R75: 0
D76: 1 | G76: 0 | I76: 0 | J76: 0 | K76: 0 | M76: 0 | N76: 0 | O76: 0 | P76: 0 | Q76: 0 | R76: 0
D77: 1 | G77: 0 | I77: 0 | J77: =E77*H77 -> 0 | K77: 0 | M77: 0 | N77: 0 | O77: 0 | P77: 0 | Q77: 0 | R77: 0
A78: Total Fixed Costs | I78: 356.4821704 | J78: =+SUM(J61:J77) -> 0 | M78: 0 | N78: =+SUM(N61:N77) -> 0 | O78: 356.4821704 | P78: =+SUM(P61:P77) -> 0 | Q78: 43490.82479 | R78: =+SUM(R61:R77) -> 0
A79: Total Specified Costs | I79: 857.5051862 | J79: =+J55+J78 -> 0 | M79: 0 | N79: =+N55+N78 -> 0 | O79: 857.5051862 | P79: =+P55+P78 -> 0 | Q79: 104615.6327 | R79: =+R55+R78 -> 0
A81: Returns Above Specified Costs | I81: 942.4948138 | J81: =+J13-J79 -> 0 | M81: 0 | N81: =+N13-N79 -> 0 | O81: 942.4948138 | P81: =+P13-P79 -> 0 | Q81: 114984.3673 | R81: =+R13-R79 -> 0
A83: Breakeven Price to Cover Total Costs | G83: 114.3340248 | H83: =IF(E10=0,"n/a",(YTotExp-(YTotExp+YTotRet-J10))/E10) -> n/a | I83: Ton
D85: Example Breakeven Prices
B86: Example | C86: Example | D86: To Cover | G86: To Cover
B87: Yield | C87: Yield | D87: Variable | G87: Total
B88: Percent | C88: Ton | D88: Costs | G88: Costs
B89: 0.75 | C89: 5.625 | D89: 89.07075837 | G89: 152.4453664
B90: 0.9 | C90: 6.75 | D90: 74.22563197 | G90: 127.0378054
B91: 1 | C91: 7.5 | D91: 66.80306878 | G91: 114.3340248
B92: 1.1 | C92: 8.25 | D92: 60.73006252 | G92: 103.9400226
B93: 1.25 | C93: 9.375 | D93: 53.44245502 | G93: 91.46721986
D95: Your Breakeven Prices
B96: Your | C96: Your | E96: To Cover | H96: To Cover
B97: Yield | C97: Yield | E97: Variable | H97: Total
B98: Percent | C98: Ton | E98: Costs | H98: Costs
B99: 0.75 | C99: =E10*YPER1 -> 0 | E99: =IF($E$10=0,0,(YVarExp-(YTotExp+YTotRet-J10))/($E$10*YPER1)) -> 0 | H99: =IF($E$10=0,0,(YTotExp-(YTotExp+YTotRet-J10))/($E$10*YPER1)) -> 0
B100: 0.9 | C100: =E10*YPER2 -> 0 | E100: =IF($E$10=0,0,(YVarExp-(YTotExp+YTotRet-J10))/($E$10*YPER2)) -> 0 | H100: =IF($E$10=0,0,(YTotExp-(YTotExp+YTotRet-J10))/($E$10*YPER2)) -> 0
B101: 1 | C101: =+E10 -> 0 | E101: =IF($E$10=0,0,(YVarExp-(YTotExp+YTotRet-J10))/($E$10*YPER3)) -> 0 | H101: =IF($E$10=0,0,(YTotExp-(YTotExp+YTotRet-J10))/($E$10*YPER3)) -> 0
B102: 1.1 | C102: =E10*YPER4 -> 0 | E102: =IF($E$10=0,0,(YVarExp-(YTotExp+YTotRet-J10))/($E$10*YPER4)) -> 0 | H102: =IF($E$10=0,0,(YTotExp-(YTotExp+YTotRet-J10))/($E$10*YPER4)) -> 0
B103: 1.25 | C103: =E10*YPER5 -> 0 | E103: =IF($E$10=0,0,(YVarExp-(YTotExp+YTotRet-J10))/($E$10*YPER5)) -> 0 | H103: =IF($E$10=0,0,(YTotExp-(YTotExp+YTotRet-J10))/($E$10*YPER5)) -> 0
A105: Developed by Bill Thompson, Assistant Professor and Extension Economist, Texas A&M AgriLife Extension Service, 325-653-4576.
A107: Information presented is prepared solely as a general guide and not intended to recognize or predict the costs and returns from any one operation. Brand names are mentioned only as examples and imply no endorsement.

Sheet AlfalfaElPaso
A1: Projections for Planning Purposes Only -- Not to be Used without Updating
A2: 2021 Estimated Costs and Returns per Acre
A3: Alfalfa, Full Season, Baled - 7.5 Ton Goal, Flood Irrigated, El Paso Irrigation District
A4: Enter your name for this budget in the cell above.
A5: Enter Your Values in the cells highlighed in MAROON.
E6: Your Acres | R6: Your
C7: Crop Acres | D7: 122 | L7: Your | Q7: Enterprise | R7: Enterprise
E8: Your | H8: Your | I8: Cash | J8: Your | K8: Landlord | L8: Landlord | N8: Your | P8: Your | Q8: Total | R8: Total
A9: REVENUE | D9: Quantity | E9: Quantity | F9: Units | G9: $/Unit | H9: $/Unit | I9: Total | J9: Total | K9: Share | L9: Share | M9: Landlord | N9: Landlord | O9: Tenant | P9: Tenant | Q9: (122 acres) | R9: ="(" & E7 & " acres)" -> ( acres)
B10: Alfalfa Hay - 3X4 | D10: 7.5 | F10: Ton | G10: 240 | I10: 1800 | J10: =E10*H10 -> 0 | K10: 0 | M10: 0 | N10: =J10*L10 -> 0 | O10: 1800 | P10: =+J10-N10 -> 0 | Q10: 219600 | R10: =+J10*E$7 -> 0
D11: 0 | G11: 0 | I11: 0 | J11: 0 | K11: 0 | M11: 0 | N11: 0 | O11: 0 | P11: =+J11-N11 -> 0 | Q11: 0 | R11: 0
D12: 0 | G12: 0 | I12: 0 | J12: 0 | K12: 0 | M12: 0 | N12: 0 | O12: 0 | P12: 0 | Q12: 0 | R12: 0
A13: Total Revenue | I13: 1800 | J13: =SUM(J10:J12) -> 0 | M13: 0 | N13: =SUM(N10:N12) -> 0 | O13: 1800 | P13: =SUM(P10:P12) -> 0 | Q13: 219600 | R13: =SUM(R10:R12) -> 0
Q14: Enterprise | R14: Enterprise
A15: VARIABLE COSTS | D15: Quantity | E15: Quantity | F15: Units | G15: $/Unit | H15: $/Unit | I15: Total | J15: Total | K15: Share | L15: Share | M15: Landlord | N15: Landlord | O15: Tenant | P15: Tenant | Q15: Total | R15: Total
A16: Production Costs
B17: Herbicide
C18: Trifluralin | D18: 2 | F18: Pint | G18: 2.75 | I18: 5.5 | J18: =E18*H18 -> 0 | K18: 0 | M18: 0 | N18: =J18*L18 -> 0 | O18: 5.5 | P18: =+J18-N18 -> 0 | Q18: 671 | R18: =+J18*E$7 -> 0
C19: Pursuit | D19: 5 | F19: Ounce | G19: 3.3453125 | I19: 16.7265625 | J19: 0 | K19: 0 | M19: 0 | N19: 0 | O19: 16.7265625 | P19: 0 | Q19: 2040.640625 | R19: 0
C20: Crop Oil Concentrate | D20: 5 | F20: Pint | G20: 2.175 | I20: 10.875 | J20: 0 | K20: 0 | M20: 0 | N20: 0 | O20: 10.875 | P20: 0 | Q20: 1326.75 | R20: 0
B21: Fertilizer
C22: Fertilizer 11-52-0 | D22: 73 | F22: Pound | G22: 0.4519 | I22: 32.9887 | J22: 0 | K22: 0 | M22: 0 | N22: 0 | O22: 32.9887 | P22: 0 | Q22: 4024.6214 | R22: 0
B23: Custom
C24: Soil Test | D24: 0.5 | F24: Each | G24: 5 | I24: 2.5 | J24: 0 | K24: 0 | M24: 0 | N24: 0 | O24: 2.5 | P24: 0 | Q24: 305 | R24: 0
C25: Custom Apply Fertilizer | D25: 1 | F25: Acre | G25: 6 | I25: 6 | J25: 0 | K25: 0 | M25: 0 | N25: 0 | O25: 6 | P25: 0 | Q25: 732 | R25: 0
B26: Insecticide
C27: Warrior Z | D27: 7.04 | F27: Ounce | G27: 1.25 | I27: 8.8 | J27: 0 | K27: 0 | M27: 0 | N27: 0 | O27: 8.8 | P27: 0 | Q27: 1073.6 | R27: 0
C28: Intrepid | D28: 2.31 | F28: Ounce | G28: 2.03906 | I28: 4.7102286 | J28: 0 | K28: 0 | M28: 0 | N28: 0 | O28: 4.7102286 | P28: 0 | Q28: 574.6478892 | R28: 0
D29: 0 | G29: 0 | I29: 0 | J29: 0 | K29: 0 | M29: 0 | N29: 0 | O29: 0 | P29: 0 | Q29: 0 | R29: 0
D30: 0 | G30: 0 | I30: 0 | J30: 0 | K30: 0 | M30: 0 | N30: 0 | O30: 0 | P30: 0 | Q30: 0 | R30: 0
D31: 0 | G31: 0 | I31: 0 | J31: =E31*H31 -> 0 | K31: 0 | M31: 0 | N31: =J31*L31 -> 0 | O31: 0 | P31: =+J31-N31 -> 0 | Q31: 0 | R31: =+J31*E$7 -> 0
B32: Irrigation
C33: Water Cost | D33: 48 | F33: AcreInch | G33: 1.75 | I33: 84 | J33: =E33*H33 -> 0 | K33: 0 | M33: 0 | N33: =J33*L33 -> 0 | O33: 84 | P33: =+J33-N33 -> 0 | Q33: 10248 | R33: =+J33*E$7 -> 0
B34: Machinery Labor
C35: Tractors/Self-Propelled | D35: 7.82 | F35: Hour | G35: 15 | I35: 117.3 | J35: =E35*H35 -> 0 | K35: 0 | M35: 0 | N35: =J35*L35 -> 0 | O35: 117.3 | P35: =+J35-N35 -> 0 | Q35: 14310.6 | R35: =+J35*E$7 -> 0
C36: Other Labor | D36: 0 | F36: Hour | G36: 15 | I36: 0 | J36: =E36*H36 -> 0 | K36: 0 | M36: 0 | N36: =J36*L36 -> 0 | O36: 0 | P36: =+J36-N36 -> 0 | Q36: 0 | R36: =+J36*E$7 -> 0
B38: Diesel Fuel
C39: Pickup/General Use Equipment | D39: 1 | F39: Acre | G39: 0 | I39: 0 | J39: =E39*H39 -> 0 | K39: 0 | M39: 0 | N39: =J39*L39 -> 0 | O39: 0 | P39: =+J39-N39 -> 0 | Q39: 0 | R39: =+J39*E$7 -> 0
C40: Tractors/Self-Propelled | D40: 37.28 | F40: Gallon | G40: 1.5 | I40: 55.92 | J40: =E40*H40 -> 0 | K40: 0 | M40: 0 | N40: =J40*L40 -> 0 | O40: 55.92 | P40: =+J40-N40 -> 0 | Q40: 6822.24 | R40: =+J40*E$7 -> 0
B42: Gasoline
C43: Pickup/General Use Equipment | D43: 1 | F43: Acre | G43: 5.789508197 | I43: 5.789508197 | J43: =E43*H43 -> 0 | K43: 0 | M43: 0 | N43: =J43*L43 -> 0 | O43: 5.789508197 | P43: =+J43-N43 -> 0 | Q43: 706.32 | R43: =+J43*E$7 -> 0
C44: Tractors/Self-Propelled | D44: 0 | F44: Gallon | G44: 1.8 | I44: 0 | J44: =E44*H44 -> 0 | K44: 0 | M44: 0 | N44: =J44*L44 -> 0 | O44: 0 | P44: =+J44-N44 -> 0 | Q44: 0 | R44: =+J44*E$7 -> 0
B46: Repairs & Maintenance
C47: Pickup/General Use Equipment | D47: 1 | F47: Acre | G47: 1.608196721 | I47: 1.608196721 | J47: =E47*H47 -> 0 | K47: 0 | M47: 0 | N47: =J47*L47 -> 0 | O47: 1.608196721 | P47: =+J47-N47 -> 0 | Q47: 196.2 | R47: =+J47*E$7 -> 0
C48: Irrigation Equipment | D48: 1 | F48: Acre | G48: 0 | I48: 0 | J48: 0 | K48: 0 | M48: 0 | N48: 0 | O48: 0 | P48: 0 | Q48: 0 | R48: 0
C49: Tractors/Self-Propelled | D49: 1 | F49: Acre | G49: 67.62664767 | I49: 67.62664767 | J49: 0 | K49: 0 | M49: 0 | N49: 0 | O49: 67.62664767 | P49: 0 | Q49: 8250.451016 | R49: 0
C50: Implements | D50: 1 | F50: Acre | G50: 3.035796655 | I50: 3.035796655 | J50: 0 | K50: 0 | M50: 0 | N50: 0 | O50: 3.035796655 | P50: 0 | Q50: 370.3671919 | R50: 0
I51: 0 | J51: 0 | K51: 0 | M51: 0 | N51: 0 | O51: 0 | P51: 0 | Q51: 0 | R51: 0
I52: 0 | J52: 0 | K52: 0 | M52: 0 | N52: 0 | O52: 0 | P52: 0 | Q52: 0 | R52: 0
B53: Interest on Credit Line | G53: 0.0455 | I53: 7.070704188 | J53: =+SUM(J17:J52)/2*H53 -> 0 | M53: 0 | N53: =+SUM(N17:N52)/2*L53 -> 0 | O53: 7.070704188 | P53: =+SUM(P17:P52)/2*L53 -> 0 | Q53: 862.6259109 | R53: =+J53*E$7 -> 0
A54: Total Variable Costs | I54: 430.4513445 | J54: =SUM(J18:J53) -> 0 | M54: 0 | N54: =SUM(N18:N53) -> 0 | O54: 430.4513445 | P54: =SUM(P18:P53) -> 0 | Q54: 52515.06403 | R54: =SUM(R18:R53) -> 0
A55: Planned Returns Above Variable Costs: | I55: 1369.548655 | J55: =+J13-J54 -> 0 | M55: 0 | N55: =+N13-N54 -> 0 | O55: 1369.548655 | P55: =+P13-P54 -> 0 | Q55: 167084.936 | R55: =+R13-R54 -> 0
B56: Breakeven Price to Cover Variable Costs | G56: 57.3935126 | H56: =IF(E10=0,"n/a",(YVarExp-(YTotExp+YTotRet-J10))/E10) -> n/a | I56: Ton
Q57: Enterprise | R57: Enterprise
A58: FIXED COSTS | D58: Quantity | E58: Quantity | F58: Units | G58: $/Unit | H58: $/Unit | I58: Total | J58: Total | K58: Share | L58: Share | M58: Landlord | N58: Landlord | O58: Tenant | P58: Tenant | Q58: Total | R58: Total
B59: Machinery Depreciation
C60: Pickup/General Use Equipment | D60: 1 | F60: Acre | G60: 6.030737705 | I60: 6.030737705 | J60: =E60*H60 -> 0 | K60: 0 | M60: 0 | N60: =J60*L60 -> 0 | O60: 6.030737705 | P60: =+J60-N60 -> 0 | Q60: 735.75 | R60: =+J60*E$7 -> 0
C61: Tractors/Self-Propelled | D61: 1 | F61: Acre | G61: 89.84221391 | I61: 89.84221391 | J61: 0 | K61: 0 | M61: 0 | N61: =J61*L61 -> 0 | O61: 89.84221391 | P61: 0 | Q61: 10960.7501 | R61: 0
C62: Implements | D62: 1 | F62: Acre | G62: 7.369838647 | I62: 7.369838647 | J62: 0 | K62: 0 | M62: 0 | N62: =J62*L62 -> 0 | O62: 7.369838647 | P62: 0 | Q62: 899.1203149 | R62: 0
B63: Equipment Investment
C64: Pickup/General Use Equipment | D64: 25.12807377 | F64: Dollars | G64: 0.055 | I64: 1.382044057 | J64: =E64*H64 -> 0 | K64: 0 | M64: 0 | N64: =J64*L64 -> 0 | O64: 1.382044057 | P64: =+J64-N64 -> 0 | Q64: 168.609375 | R64: =+J64*E$7 -> 0
C65: Tractors/Self-Propelled | D65: 668.4033423 | F65: Dollars | G65: 0.055 | I65: 36.76218383 | J65: 0 | K65: 0 | M65: 0 | N65: =J65*L65 -> 0 | O65: 36.76218383 | P65: 0 | Q65: 4484.986427 | R65: 0
C66: Implements | D66: 53.36571886 | F66: Dollars | G66: 0.055 | I66: 2.935114537 | J66: 0 | K66: 0 | M66: 0 | N66: =J66*L66 -> 0 | O66: 2.935114537 | P66: 0 | Q66: 358.0839735 | R66: 0
B67: Salaried Labor | D67: 1 | F67: Acre | G67: 0 | I67: 0 | J67: 0 | K67: 0 | M67: 0 | N67: =J67*L67 -> 0 | O67: 0 | P67: =+J67-N67 -> 0 | Q67: 0 | R67: =+J67*E$7 -> 0
B68: Management Fee, Owner/Operator Labor | D68: 1 | F68: Acre | G68: 0 | I68: 0 | J68: 0 | K68: 0 | M68: 0 | N68: 0 | O68: 0 | P68: 0 | Q68: 0 | R68: 0
B69: Allocated Establishment Cost | D69: 1 | F69: Acre | G69: 109.5 | I69: 109.5 | J69: 0 | K69: 0 | M69: 0 | N69: 0 | O69: 109.5 | P69: 0 | Q69: 13359 | R69: 0
B70: Trans Pecos Irrigated Land | D70: 1 | F70: Acre | G70: 50 | I70: 50 | J70: 0 | K70: 0 | M70: 0 | N70: 0 | O70: 50 | P70: 0 | Q70: 6100 | R70: 0
B71: Property Taxes | D71: 1 | F71: Acre | G71: 0 | I71: 0 | J71: 0 | K71: 0 | M71: 0 | N71: 0 | O71: 0 | P71: 0 | Q71: 0 | R71: 0
B72: Whole Farm Insurance | D72: 1 | F72: Acre | G72: 0 | I72: 0 | J72: 0 | K72: 0 | M72: 0 | N72: 0 | O72: 0 | P72: 0 | Q72: 0 | R72: 0
D73: 1 | G73: 0 | I73: 0 | J73: 0 | K73: 0 | M73: 0 | N73: 0 | O73: 0 | P73: 0 | Q73: 0 | R73: 0
D74: 1 | G74: 0 | I74: 0 | J74: =E74*H74 -> 0 | K74: 0 | M74: 0 | N74: 0 | O74: 0 | P74: 0 | Q74: 0 | R74: 0
A75: Total Fixed Costs | I75: 303.8221327 | J75: =+SUM(J60:J74) -> 0 | M75: 0 | N75: =+SUM(N60:N74) -> 0 | O75: 303.8221327 | P75: =+SUM(P60:P74) -> 0 | Q75: 37066.30019 | R75: =+SUM(R60:R74) -> 0
A76: Total Specified Costs | I76: 734.2734772 | J76: =+J54+J75 -> 0 | M76: 0 | N76: =+N54+N75 -> 0 | O76: 734.2734772 | P76: =+P54+P75 -> 0 | Q76: 89581.36422 | R76: =+R54+R75 -> 0
A78: Returns Above Specified Costs | I78: 1065.726523 | J78: =+J13-J76 -> 0 | M78: 0 | N78: =+N13-N76 -> 0 | O78: 1065.726523 | P78: =+P13-P76 -> 0 | Q78: 130018.6358 | R78: =+R13-R76 -> 0
A80: Breakeven Price to Cover Total Costs | G80: 97.9031303 | H80: =IF(E10=0,"n/a",(YTotExp-(YTotExp+YTotRet-J10))/E10) -> n/a | I80: Ton
D82: Example Breakeven Prices
B83: Example | C83: Example | D83: To Cover | G83: To Cover
B84: Yield | C84: Yield | D84: Variable | G84: Total
B85: Percent | C85: Ton | D85: Costs | G85: Costs
B86: 0.75 | C86: 5.625 | D86: 76.52468347 | G86: 130.5375071
B87: 0.9 | C87: 6.75 | D87: 63.77056956 | G87: 108.7812559
B88: 1 | C88: 7.5 | D88: 57.3935126 | G88: 97.9031303
B89: 1.1 | C89: 8.25 | D89: 52.17592055 | G89: 89.00284572
B90: 1.25 | C90: 9.375 | D90: 45.91481008 | G90: 78.32250424
D92: Your Breakeven Prices
B93: Your | C93: Your | E93: To Cover | H93: To Cover
B94: Yield | C94: Yield | E94: Variable | H94: Total
B95: Percent | C95: Ton | E95: Costs | H95: Costs
B96: 0.75 | C96: =E10*YPER1 -> 0 | E96: =IF($E$10=0,0,(YVarExp-(YTotExp+YTotRet-J10))/($E$10*YPER1)) -> 0 | H96: =IF($E$10=0,0,(YTotExp-(YTotExp+YTotRet-J10))/($E$10*YPER1)) -> 0
B97: 0.9 | C97: =E10*YPER2 -> 0 | E97: =IF($E$10=0,0,(YVarExp-(YTotExp+YTotRet-J10))/($E$10*YPER2)) -> 0 | H97: =IF($E$10=0,0,(YTotExp-(YTotExp+YTotRet-J10))/($E$10*YPER2)) -> 0
B98: 1 | C98: =+E10 -> 0 | E98: =IF($E$10=0,0,(YVarExp-(YTotExp+YTotRet-J10))/($E$10*YPER3)) -> 0 | H98: =IF($E$10=0,0,(YTotExp-(YTotExp+YTotRet-J10))/($E$10*YPER3)) -> 0
B99: 1.1 | C99: =E10*YPER4 -> 0 | E99: =IF($E$10=0,0,(YVarExp-(YTotExp+YTotRet-J10))/($E$10*YPER4)) -> 0 | H99: =IF($E$10=0,0,(YTotExp-(YTotExp+YTotRet-J10))/($E$10*YPER4)) -> 0
B100: 1.25 | C100: =E10*YPER5 -> 0 | E100: =IF($E$10=0,0,(YVarExp-(YTotExp+YTotRet-J10))/($E$10*YPER5)) -> 0 | H100: =IF($E$10=0,0,(YTotExp-(YTotExp+YTotRet-J10))/($E$10*YPER5)) -> 0
A102: Developed by Bill Thompson, Assistant Professor and Extension Economist, Texas A&M AgriLife Extension Service, 325-653-4576.
A104: Information presented is prepared solely as a general guide and not intended to recognize or predict the costs and returns from any one operation. Brand names are mentioned only as examples and imply no endorsement.

Sheet SLCottonDrip
A1: Projections for Planning Purposes Only -- Not to be Used without Updating
A2: 2021 Estimated Costs and Returns per Acre
A3: St. Lawrence Reduced Tillage Cotton, Drip Irrigated, 40 Inch Rows
A4: Enter your name for this budget in the cell above.
A5: Enter Your Values in the cells highlighed in MAROON.
E6: Your Acres | R6: Your
C7: Crop Acres | D7: 122 | L7: Your | Q7: Enterprise | R7: Enterprise
E8: Your | H8: Your | I8: Cash | J8: Your | K8: Landlord | L8: Landlord | N8: Your | P8: Your | Q8: Total | R8: Total
A9: REVENUE | D9: Quantity | E9: Quantity | F9: Units | G9: $/Unit | H9: $/Unit | I9: Total | J9: Total | K9: Share | L9: Share | M9: Landlord | N9: Landlord | O9: Tenant | P9: Tenant | Q9: (122 acres) | R9: ="(" & E7 & " acres)" -> ( acres)
B10: Cotton Lint | D10: 1500 | F10: Pound | G10: 0.63 | I10: 945 | J10: =E10*H10 -> 0 | K10: 0 | M10: 0 | N10: =J10*L10 -> 0 | O10: 945 | P10: =+J10-N10 -> 0 | Q10: 115290 | R10: =+J10*E$7 -> 0
B11: Cotton Seed | D11: 1.2 | F11: Ton | G11: 225 | I11: 270 | J11: 0 | K11: 0 | M11: 0 | N11: 0 | O11: 270 | P11: =+J11-N11 -> 0 | Q11: 32940 | R11: 0
D12: 0 | G12: 0 | I12: 0 | J12: 0 | K12: 0 | M12: 0 | N12: 0 | O12: 0 | P12: 0 | Q12: 0 | R12: 0
D13: 0 | G13: 0 | I13: 0 | J13: 0 | K13: 0 | M13: 0 | N13: 0 | O13: 0 | P13: 0 | Q13: 0 | R13: 0
A14: Total Revenue | I14: 1215 | J14: =SUM(J10:J13) -> 0 | M14: 0 | N14: =SUM(N10:N13) -> 0 | O14: 1215 | P14: =SUM(P10:P13) -> 0 | Q14: 148230 | R14: =SUM(R10:R13) -> 0
Q15: Enterprise | R15: Enterprise
A16: VARIABLE COSTS | D16: Quantity | E16: Quantity | F16: Units | G16: $/Unit | H16: $/Unit | I16: Total | J16: Total | K16: Share | L16: Share | M16: Landlord | N16: Landlord | O16: Tenant | P16: Tenant | Q16: Total | R16: Total
A17: Production Costs
B18: Herbicide
C19: Trifluralin Pint | D19: 1.5 | F19: Pint | G19: 2.75 | I19: 4.125 | J19: =E19*H19 -> 0 | K19: 0 | M19: 0 | N19: =J19*L19 -> 0 | O19: 4.125 | P19: =+J19-N19 -> 0 | Q19: 503.25 | R19: =+J19*E$7 -> 0
C20: Glyphosate Ounce Generic 4lb | D20: 32 | F20: Ounce | G20: 0.1328125 | I20: 4.25 | J20: 0 | K20: 0 | M20: 0 | N20: 0 | O20: 4.25 | P20: 0 | Q20: 518.5 | R20: 0
C21: 0-60-0 | D21: 32 | F21: Pound | G21: 0.27 | I21: 8.64 | J21: 0 | K21: 0 | M21: 0 | N21: 0 | O21: 8.64 | P21: 0 | Q21: 1054.08 | R21: 0
B22: Seed
C23: Cotton Seed BIIRRF - Irrigated | D23: 40 | F23: Thousand | G23: 1.6521739 | I23: 66.086956 | J23: 0 | K23: 0 | M23: 0 | N23: 0 | O23: 66.086956 | P23: 0 | Q23: 8062.608632 | R23: 0
B24: Fertilizer
C25: Nitrogen - Dry (Urea 45-0-0) | D25: 11 | F25: Pound | G25: 0.4022 | I25: 4.4242 | J25: 0 | K25: 0 | M25: 0 | N25: 0 | O25: 4.4242 | P25: 0 | Q25: 539.7524 | R25: 0
C26: Potash 0-0-60 | D26: 90 | F26: Pound | G26: 0.3 | I26: 27 | J26: 0 | K26: 0 | M26: 0 | N26: 0 | O26: 27 | P26: 0 | Q26: 3294 | R26: 0
C27: N-32 | D27: 140 | F27: Pound | G27: 0.3828 | I27: 53.592 | J27: 0 | K27: 0 | M27: 0 | N27: 0 | O27: 53.592 | P27: 0 | Q27: 6538.224 | R27: 0
B28: Custom
C29: Soil Test-Irrigated | D29: 1 | F29: Acre | G29: 0.5 | I29: 0.5 | J29: 0 | K29: 0 | M29: 0 | N29: 0 | O29: 0.5 | P29: 0 | Q29: 61 | R29: 0
C30: Custom Spray | D30: 2 | F30: Acre | G30: 6 | I30: 12 | J30: 0 | K30: 0 | M30: 0 | N30: 0 | O30: 12 | P30: 0 | Q30: 1464 | R30: 0
C31: Bag, Tie | D31: 3 | F31: Bale | G31: 15 | I31: 45 | J31: 0 | K31: 0 | M31: 0 | N31: 0 | O31: 45 | P31: 0 | Q31: 5490 | R31: 0
C32: Gin and Haul | D32: 53.57 | F32: CWT | G32: 2.5 | I32: 133.925 | J32: 0 | K32: 0 | M32: 0 | N32: 0 | O32: 133.925 | P32: 0 | Q32: 16338.85 | R32: 0
B33: Miscellaneous
C34: IRR Cotton RP 70% ent, SE, Glasscock Co, | D34: 1 | F34: Acre | G34: 25.98 | I34: 25.98 | J34: 0 | K34: 0 | M34: 0 | N34: 0 | O34: 25.98 | P34: 0 | Q34: 3169.56 | R34: 0
B35: Other Chemicals
C36: Mepiquat Chloride-PGR | D36: 16 | F36: Ounce | G36: 0.0625 | I36: 1 | J36: 0 | K36: 0 | M36: 0 | N36: 0 | O36: 1 | P36: 0 | Q36: 122 | R36: 0
B37: Cotton Harvest
C38: Ethephon 6 Pint | D38: 1.5 | F38: Pint | G38: 3.8125 | I38: 5.71875 | J38: 0 | K38: 0 | M38: 0 | N38: 0 | O38: 5.71875 | P38: 0 | Q38: 697.6875 | R38: 0
C39: Firestorm (3lb Paraquat) | D39: 28 | F39: Ounce | G39: 0.1796875 | I39: 5.03125 | J39: 0 | K39: 0 | M39: 0 | N39: 0 | O39: 5.03125 | P39: 0 | Q39: 613.8125 | R39: 0
C40: Cutout | D40: 5 | F40: Ounce | G40: 0.921875 | I40: 4.609375 | J40: 0 | K40: 0 | M40: 0 | N40: 0 | O40: 4.609375 | P40: 0 | Q40: 562.34375 | R40: 0
D41: 0 | G41: 0 | I41: 0 | J41: 0 | K41: 0 | M41: 0 | N41: 0 | O41: 0 | P41: 0 | Q41: 0 | R41: 0
D42: 0 | G42: 0 | I42: 0 | J42: 0 | K42: 0 | M42: 0 | N42: 0 | O42: 0 | P42: 0 | Q42: 0 | R42: 0
D43: 0 | G43: 0 | I43: 0 | J43: =E43*H43 -> 0 | K43: 0 | M43: 0 | N43: =J43*L43 -> 0 | O43: 0 | P43: =+J43-N43 -> 0 | Q43: 0 | R43: =+J43*E$7 -> 0
B44: Irrigation
C45: Energy Cost | D45: 17.99 | F45: AcreInch | G45: 12.57653911 | I45: 226.2519387 | J45: =E45*H45 -> 0 | K45: 0 | M45: 0 | N45: =J45*L45 -> 0 | O45: 226.2519387 | P45: =+J45-N45 -> 0 | Q45: 27602.73652 | R45: =+J45*E$7 -> 0
C46: Irrigation Labor | D46: 3.0394 | F46: Hour | G46: 15 | I46: 45.591 | J46: 0 | K46: 0 | M46: 0 | N46: 0 | O46: 45.591 | P46: 0 | Q46: 5562.102 | R46: 0
B47: Machinery Labor
C48: Tractors/Self-Propelled | D48: 1.42 | F48: Hour | G48: 15 | I48: 21.3 | J48: =E48*H48 -> 0 | K48: 0 | M48: 0 | N48: =J48*L48 -> 0 | O48: 21.3 | P48: =+J48-N48 -> 0 | Q48: 2598.6 | R48: =+J48*E$7 -> 0
C49: Other Labor | D49: 0.22 | F49: Hour | G49: 15 | I49: 3.3 | J49: =E49*H49 -> 0 | K49: 0 | M49: 0 | N49: =J49*L49 -> 0 | O49: 3.3 | P49: =+J49-N49 -> 0 | Q49: 402.6 | R49: =+J49*E$7 -> 0
B51: Diesel Fuel
C52: Pickup/General Use Equipment | D52: 1 | F52: Acre | G52: 0 | I52: 0 | J52: =E52*H52 -> 0 | K52: 0 | M52: 0 | N52: =J52*L52 -> 0 | O52: 0 | P52: =+J52-N52 -> 0 | Q52: 0 | R52: =+J52*E$7 -> 0
C53: Tractors/Self-Propelled | D53: 13.33 | F53: Gallon | G53: 1.5 | I53: 19.995 | J53: =E53*H53 -> 0 | K53: 0 | M53: 0 | N53: =J53*L53 -> 0 | O53: 19.995 | P53: =+J53-N53 -> 0 | Q53: 2439.39 | R53: =+J53*E$7 -> 0
B55: Gasoline
C56: Pickup/General Use Equipment | D56: 1 | F56: Acre | G56: 4.824590164 | I56: 4.824590164 | J56: =E56*H56 -> 0 | K56: 0 | M56: 0 | N56: =J56*L56 -> 0 | O56: 4.824590164 | P56: =+J56-N56 -> 0 | Q56: 588.6 | R56: =+J56*E$7 -> 0
C57: Tractors/Self-Propelled | D57: 0 | F57: Gallon | G57: 1.8 | I57: 0 | J57: =E57*H57 -> 0 | K57: 0 | M57: 0 | N57: =J57*L57 -> 0 | O57: 0 | P57: =+J57-N57 -> 0 | Q57: 0 | R57: =+J57*E$7 -> 0
B59: Repairs & Maintenance
C60: Pickup/General Use Equipment | D60: 1 | F60: Acre | G60: 1.728811475 | I60: 1.728811475 | J60: =E60*H60 -> 0 | K60: 0 | M60: 0 | N60: =J60*L60 -> 0 | O60: 1.728811475 | P60: =+J60-N60 -> 0 | Q60: 210.915 | R60: =+J60*E$7 -> 0
C61: Irrigation Equipment | D61: 1 | F61: Acre | G61: 9.684017 | I61: 9.684017 | J61: 0 | K61: 0 | M61: 0 | N61: 0 | O61: 9.684017 | P61: 0 | Q61: 1181.450074 | R61: 0
C62: Tractors/Self-Propelled | D62: 1 | F62: Acre | G62: 33.48350084 | I62: 33.48350084 | J62: 0 | K62: 0 | M62: 0 | N62: 0 | O62: 33.48350084 | P62: 0 | Q62: 4084.987103 | R62: 0
C63: Implements | D63: 1 | F63: Acre | G63: 14.30448946 | I63: 14.30448946 | J63: 0 | K63: 0 | M63: 0 | N63: 0 | O63: 14.30448946 | P63: 0 | Q63: 1745.147714 | R63: 0
I64: 0 | J64: 0 | K64: 0 | M64: 0 | N64: 0 | O64: 0 | P64: 0 | Q64: 0 | R64: 0
I65: 0 | J65: 0 | K65: 0 | M65: 0 | N65: 0 | O65: 0 | P65: 0 | Q65: 0 | R65: 0
B66: Interest on Credit Line | G66: 0.0455 | I66: 10.30522626 | J66: =+SUM(J18:J65)/2*H66 -> 0 | M66: 0 | N66: =+SUM(N18:N65)/2*L66 -> 0 | O66: 10.30522626 | P66: =+SUM(P18:P65)/2*L66 -> 0 | Q66: 1257.237603 | R66: =+J66*E$7 -> 0
A67: Total Variable Costs | I67: 792.6511049 | J67: =SUM(J19:J66) -> 0 | M67: 0 | N67: =SUM(N19:N66) -> 0 | O67: 792.6511049 | P67: =SUM(P19:P66) -> 0 | Q67: 96703.4348 | R67: =SUM(R19:R66) -> 0
A68: Planned Returns Above Variable Costs: | I68: 422.3488951 | J68: =+J14-J67 -> 0 | M68: 0 | N68: =+N14-N67 -> 0 | O68: 422.3488951 | P68: =+P14-P67 -> 0 | Q68: 51526.5652 | R68: =+R14-R67 -> 0
B69: Breakeven Price to Cover Variable Costs | G69: 0.3484340699 | H69: =IF(E10=0,"n/a",(YVarExp-(YTotExp+YTotRet-J10))/E10) -> n/a | I69: Pound
Q70: Enterprise | R70: Enterprise
A71: FIXED COSTS | D71: Quantity | E71: Quantity | F71: Units | G71: $/Unit | H71: $/Unit | I71: Total | J71: Total | K71: Share | L71: Share | M71: Landlord | N71: Landlord | O71: Tenant | P71: Tenant | Q71: Total | R71: Total
B72: Machinery Depreciation
C73: Pickup/General Use Equipment | D73: 1 | F73: Acre | G73: 3.618442623 | I73: 3.618442623 | J73: =E73*H73 -> 0 | K73: 0 | M73: 0 | N73: =J73*L73 -> 0 | O73: 3.618442623 | P73: =+J73-N73 -> 0 | Q73: 441.45 | R73: =+J73*E$7 -> 0
C74: Irrigation Equipment | D74: 1 | F74: Acre | G74: 95.91963934 | I74: 95.91963934 | J74: 0 | K74: 0 | M74: 0 | N74: =J74*L74 -> 0 | O74: 95.91963934 | P74: 0 | Q74: 11702.196 | R74: 0
C75: Tractors/Self-Propelled | D75: 1 | F75: Acre | G75: 39.45147357 | I75: 39.45147357 | J75: 0 | K75: 0 | M75: 0 | N75: =J75*L75 -> 0 | O75: 39.45147357 | P75: 0 | Q75: 4813.079776 | R75: 0
C76: Implements | D76: 1 | F76: Acre | G76: 17.98766276 | I76: 17.98766276 | J76: 0 | K76: 0 | M76: 0 | N76: =J76*L76 -> 0 | O76: 17.98766276 | P76: 0 | Q76: 2194.494857 | R76: 0
B77: Equipment Investment
C78: Pickup/General Use Equipment | D78: 22.11270492 | F78: Dollars | G78: 0.055 | I78: 1.21619877 | J78: =E78*H78 -> 0 | K78: 0 | M78: 0 | N78: =J78*L78 -> 0 | O78: 1.21619877 | P78: =+J78-N78 -> 0 | Q78: 148.37625 | R78: =+J78*E$7 -> 0
C79: Irrigation Equipment | D79: 978.5740984 | F79: Dollars | G79: 0.055 | I79: 53.82157541 | J79: 0 | K79: 0 | M79: 0 | N79: =J79*L79 -> 0 | O79: 53.82157541 | P79: 0 | Q79: 6566.2322 | R79: 0
C80: Tractors/Self-Propelled | D80: 339.8638763 | F80: Dollars | G80: 0.055 | I80: 18.6925132 | J80: 0 | K80: 0 | M80: 0 | N80: =J80*L80 -> 0 | O80: 18.6925132 | P80: 0 | Q80: 2280.48661 | R80: 0
C81: Implements | D81: 101.8741771 | F81: Dollars | G81: 0.055 | I81: 5.603079743 | J81: 0 | K81: 0 | M81: 0 | N81: =J81*L81 -> 0 | O81: 5.603079743 | P81: 0 | Q81: 683.5757286 | R81: 0
B82: Salaried Labor | D82: 1 | F82: Acre | G82: 0 | I82: 0 | J82: 0 | K82: 0 | M82: 0 | N82: =J82*L82 -> 0 | O82: 0 | P82: =+J82-N82 -> 0 | Q82: 0 | R82: =+J82*E$7 -> 0
B83: Management Fee, Owner/Operator Labor | D83: 1 | F83: Acre | G83: 0 | I83: 0 | J83: 0 | K83: 0 | M83: 0 | N83: 0 | O83: 0 | P83: 0 | Q83: 0 | R83: 0
B84: Allocated Establishment Cost | D84: 1 | F84: Acre | G84: 0 | I84: 0 | J84: 0 | K84: 0 | M84: 0 | N84: 0 | O84: 0 | P84: 0 | Q84: 0 | R84: 0
B85: Lease value - Drip | D85: 1 | F85: Acre | G85: 50 | I85: 50 | J85: 0 | K85: 0 | M85: 0 | N85: 0 | O85: 50 | P85: 0 | Q85: 6100 | R85: 0
B86: Property Taxes | D86: 1 | F86: Acre | G86: 0 | I86: 0 | J86: 0 | K86: 0 | M86: 0 | N86: 0 | O86: 0 | P86: 0 | Q86: 0 | R86: 0
B87: Whole Farm Insurance | D87: 1 | F87: Acre | G87: 0 | I87: 0 | J87: 0 | K87: 0 | M87: 0 | N87: 0 | O87: 0 | P87: 0 | Q87: 0 | R87: 0
D88: 1 | G88: 0 | I88: 0 | J88: 0 | K88: 0 | M88: 0 | N88: 0 | O88: 0 | P88: 0 | Q88: 0 | R88: 0
D89: 1 | G89: 0 | I89: 0 | J89: =E89*H89 -> 0 | K89: 0 | M89: 0 | N89: 0 | O89: 0 | P89: 0 | Q89: 0 | R89: 0
A90: Total Fixed Costs | I90: 286.3105854 | J90: =+SUM(J73:J89) -> 0 | M90: 0 | N90: =+SUM(N73:N89) -> 0 | O90: 286.3105854 | P90: =+SUM(P73:P89) -> 0 | Q90: 34929.89142 | R90: =+SUM(R73:R89) -> 0
A91: Total Specified Costs | I91: 1078.96169 | J91: =+J67+J90 -> 0 | M91: 0 | N91: =+N67+N90 -> 0 | O91: 1078.96169 | P91: =+P67+P90 -> 0 | Q91: 131633.3262 | R91: =+R67+R90 -> 0
A93: Returns Above Specified Costs | I93: 136.0383097 | J93: =+J14-J91 -> 0 | M93: 0 | N93: =+N14-N91 -> 0 | O93: 136.0383097 | P93: =+P14-P91 -> 0 | Q93: 16596.67378 | R93: =+R14-R91 -> 0
A95: Breakeven Price to Cover Total Costs | G95: 0.5393077935 | H95: =IF(E10=0,"n/a",(YTotExp-(YTotExp+YTotRet-J10))/E10) -> n/a | I95: Pound
D97: Example Breakeven Prices
B98: Example | C98: Example | D98: To Cover | G98: To Cover
B99: Yield | C99: Yield | D99: Variable | G99: Total
B100: Percent | C100: Pound | D100: Costs | G100: Costs
B101: 0.75 | C101: 1125 | D101: 0.4645787599 | G101: 0.719077058
B102: 0.9 | C102: 1350 | D102: 0.3871489666 | G102: 0.5992308817
B103: 1 | C103: 1500 | D103: 0.3484340699 | G103: 0.5393077935
B104: 1.1 | C104: 1650 | D104: 0.3167582454 | G104: 0.4902798123
B105: 1.25 | C105: 1875 | D105: 0.2787472559 | G105: 0.4314462348
D107: Your Breakeven Prices
B108: Your | C108: Your | E108: To Cover | H108: To Cover
B109: Yield | C109: Yield | E109: Variable | H109: Total
B110: Percent | C110: Pound | E110: Costs | H110: Costs
B111: 0.75 | C111: =E10*YPER1 -> 0 | E111: =IF($E$10=0,0,(YVarExp-(YTotExp+YTotRet-J10))/($E$10*YPER1)) -> 0 | H111: =IF($E$10=0,0,(YTotExp-(YTotExp+YTotRet-J10))/($E$10*YPER1)) -> 0
B112: 0.9 | C112: =E10*YPER2 -> 0 | E112: =IF($E$10=0,0,(YVarExp-(YTotExp+YTotRet-J10))/($E$10*YPER2)) -> 0 | H112: =IF($E$10=0,0,(YTotExp-(YTotExp+YTotRet-J10))/($E$10*YPER2)) -> 0
B113: 1 | C113: =+E10 -> 0 | E113: =IF($E$10=0,0,(YVarExp-(YTotExp+YTotRet-J10))/($E$10*YPER3)) -> 0 | H113: =IF($E$10=0,0,(YTotExp-(YTotExp+YTotRet-J10))/($E$10*YPER3)) -> 0
B114: 1.1 | C114: =E10*YPER4 -> 0 | E114: =IF($E$10=0,0,(YVarExp-(YTotExp+YTotRet-J10))/($E$10*YPER4)) -> 0 | H114: =IF($E$10=0,0,(YTotExp-(YTotExp+YTotRet-J10))/($E$10*YPER4)) -> 0
B115: 1.25 | C115: =E10*YPER5 -> 0 | E115: =IF($E$10=0,0,(YVarExp-(YTotExp+YTotRet-J10))/($E$10*YPER5)) -> 0 | H115: =IF($E$10=0,0,(YTotExp-(YTotExp+YTotRet-J10))/($E$10*YPER5)) -> 0
A117: Developed by Bill Thompson, Assistant Professor and Extension Economist, Texas A&M AgriLife Extension Service, 325-653-4576.
A119: Information presented is prepared solely as a general guide and not intended to recognize or predict the costs and returns from any one operation. Brand names are mentioned only as examples and imply no endorsement.

Sheet SLXFCottonDrip
A1: Projections for Planning Purposes Only -- Not to be Used without Updating
A2: 2021 Estimated Costs and Returns per Acre
A3: St. Lawrence Auxin Technology Cotton, Drip Irrigated, 40 Inch Rows
A4: Enter your name for this budget in the cell above.
A5: Enter Your Values in the cells highlighed in MAROON.
E6: Your Acres | R6: Your
C7: Crop Acres | D7: 122 | L7: Your | Q7: Enterprise | R7: Enterprise
E8: Your | H8: Your | I8: Cash | J8: Your | K8: Landlord | L8: Landlord | N8: Your | P8: Your | Q8: Total | R8: Total
A9: REVENUE | D9: Quantity | E9: Quantity | F9: Units | G9: $/Unit | H9: $/Unit | I9: Total | J9: Total | K9: Share | L9: Share | M9: Landlord | N9: Landlord | O9: Tenant | P9: Tenant | Q9: (122 acres) | R9: ="(" & E7 & " acres)" -> ( acres)
B10: Cotton Lint | D10: 1500 | F10: Pound | G10: 0.63 | I10: 945 | J10: =E10*H10 -> 0 | K10: 0 | M10: 0 | N10: =J10*L10 -> 0 | O10: 945 | P10: =+J10-N10 -> 0 | Q10: 115290 | R10: =+J10*E$7 -> 0
B11: Cotton Seed | D11: 1.2 | F11: Ton | G11: 225 | I11: 270 | J11: 0 | K11: 0 | M11: 0 | N11: 0 | O11: 270 | P11: =+J11-N11 -> 0 | Q11: 32940 | R11: 0
D12: 0 | G12: 0 | I12: 0 | J12: 0 | K12: 0 | M12: 0 | N12: 0 | O12: 0 | P12: 0 | Q12: 0 | R12: 0
D13: 0 | G13: 0 | I13: 0 | J13: 0 | K13: 0 | M13: 0 | N13: 0 | O13: 0 | P13: 0 | Q13: 0 | R13: 0
A14: Total Revenue | I14: 1215 | J14: =SUM(J10:J13) -> 0 | M14: 0 | N14: =SUM(N10:N13) -> 0 | O14: 1215 | P14: =SUM(P10:P13) -> 0 | Q14: 148230 | R14: =SUM(R10:R13) -> 0
Q15: Enterprise | R15: Enterprise
A16: VARIABLE COSTS | D16: Quantity | E16: Quantity | F16: Units | G16: $/Unit | H16: $/Unit | I16: Total | J16: Total | K16: Share | L16: Share | M16: Landlord | N16: Landlord | O16: Tenant | P16: Tenant | Q16: Total | R16: Total
A17: Production Costs
B18: Herbicide
C19: Trifluralin Pint | D19: 1.5 | F19: Pint | G19: 2.75 | I19: 4.125 | J19: =E19*H19 -> 0 | K19: 0 | M19: 0 | N19: =J19*L19 -> 0 | O19: 4.125 | P19: =+J19-N19 -> 0 | Q19: 503.25 | R19: =+J19*E$7 -> 0
C20: Glyphosate Ounce Generic | D20: 64 | F20: Ounce | G20: 0.1328125 | I20: 8.5 | J20: 0 | K20: 0 | M20: 0 | N20: 0 | O20: 8.5 | P20: 0 | Q20: 1037 | R20: 0
C21: Auxin based herbicide | D21: 44 | F21: Ounce | G21: 0.5 | I21: 22 | J21: 0 | K21: 0 | M21: 0 | N21: 0 | O21: 22 | P21: 0 | Q21: 2684 | R21: 0
B22: Seed
C23: Seed Cotton - B2XF | D23: 40 | F23: Thousand | G23: 1.786956522 | I23: 71.47826087 | J23: 0 | K23: 0 | M23: 0 | N23: 0 | O23: 71.47826087 | P23: 0 | Q23: 8720.347826 | R23: 0
B24: Fertilizer
C25: Nitrogen - Dry (Urea 46-0-0) | D25: 11 | F25: Pound | G25: 0.4022 | I25: 4.4242 | J25: 0 | K25: 0 | M25: 0 | N25: 0 | O25: 4.4242 | P25: 0 | Q25: 539.7524 | R25: 0
C26: 0-60-0 | D26: 90 | F26: Pound | G26: 0.27 | I26: 24.3 | J26: 0 | K26: 0 | M26: 0 | N26: 0 | O26: 24.3 | P26: 0 | Q26: 2964.6 | R26: 0
C27: N-32 | D27: 140 | F27: Pound | G27: 0.3828 | I27: 53.592 | J27: 0 | K27: 0 | M27: 0 | N27: 0 | O27: 53.592 | P27: 0 | Q27: 6538.224 | R27: 0
B28: Custom
C29: Soil Test-Irrigated | D29: 1 | F29: Acre | G29: 0.5 | I29: 0.5 | J29: 0 | K29: 0 | M29: 0 | N29: 0 | O29: 0.5 | P29: 0 | Q29: 61 | R29: 0
C30: Custom Spray | D30: 2 | F30: Acre | G30: 6 | I30: 12 | J30: 0 | K30: 0 | M30: 0 | N30: 0 | O30: 12 | P30: 0 | Q30: 1464 | R30: 0
C31: Bag, Tie | D31: 3 | F31: Bale | G31: 15 | I31: 45 | J31: 0 | K31: 0 | M31: 0 | N31: 0 | O31: 45 | P31: 0 | Q31: 5490 | R31: 0
C32: Gin and Haul | D32: 53.57 | F32: CWT | G32: 2.5 | I32: 133.925 | J32: 0 | K32: 0 | M32: 0 | N32: 0 | O32: 133.925 | P32: 0 | Q32: 16338.85 | R32: 0
B33: Miscellaneous
C34: IRR Cotton RP 70% ent, SE, Glasscock Co, | D34: 1 | F34: Acre | G34: 25.98 | I34: 25.98 | J34: 0 | K34: 0 | M34: 0 | N34: 0 | O34: 25.98 | P34: 0 | Q34: 3169.56 | R34: 0
C35: Boll Weevil Eradication Program | D35: 3 | F35: Bale | G35: 1 | I35: 3 | J35: 0 | K35: 0 | M35: 0 | N35: 0 | O35: 3 | P35: 0 | Q35: 366 | R35: 0
B36: Other Chemicals
C37: Mepiquat Chloride-PGR | D37: 16 | F37: Ounce | G37: 0.0625 | I37: 1 | J37: 0 | K37: 0 | M37: 0 | N37: 0 | O37: 1 | P37: 0 | Q37: 122 | R37: 0
B38: Cotton Harvest
C39: Ethephon 6 Pint | D39: 1.5 | F39: Pint | G39: 3.8125 | I39: 5.71875 | J39: 0 | K39: 0 | M39: 0 | N39: 0 | O39: 5.71875 | P39: 0 | Q39: 697.6875 | R39: 0
C40: Firestorm (3lb Paraquat) | D40: 28 | F40: Ounce | G40: 0.1796875 | I40: 5.03125 | J40: 0 | K40: 0 | M40: 0 | N40: 0 | O40: 5.03125 | P40: 0 | Q40: 613.8125 | R40: 0
C41: Cutout | D41: 5 | F41: Ounce | G41: 0.921875 | I41: 4.609375 | J41: 0 | K41: 0 | M41: 0 | N41: 0 | O41: 4.609375 | P41: 0 | Q41: 562.34375 | R41: 0
D42: 0 | G42: 0 | I42: 0 | J42: 0 | K42: 0 | M42: 0 | N42: 0 | O42: 0 | P42: 0 | Q42: 0 | R42: 0
D43: 0 | G43: 0 | I43: 0 | J43: 0 | K43: 0 | M43: 0 | N43: 0 | O43: 0 | P43: 0 | Q43: 0 | R43: 0
D44: 0 | G44: 0 | I44: 0 | J44: =E44*H44 -> 0 | K44: 0 | M44: 0 | N44: =J44*L44 -> 0 | O44: 0 | P44: =+J44-N44 -> 0 | Q44: 0 | R44: =+J44*E$7 -> 0
B45: Irrigation
C46: Energy Cost | D46: 17.99 | F46: AcreInch | G46: 12.57653911 | I46: 226.2519387 | J46: =E46*H46 -> 0 | K46: 0 | M46: 0 | N46: =J46*L46 -> 0 | O46: 226.2519387 | P46: =+J46-N46 -> 0 | Q46: 27602.73652 | R46: =+J46*E$7 -> 0
C47: Irrigation Labor | D47: 3.0394 | F47: Hour | G47: 15 | I47: 45.591 | J47: 0 | K47: 0 | M47: 0 | N47: 0 | O47: 45.591 | P47: 0 | Q47: 5562.102 | R47: 0
B48: Machinery Labor
C49: Tractors/Self-Propelled | D49: 1.42 | F49: Hour | G49: 15 | I49: 21.3 | J49: =E49*H49 -> 0 | K49: 0 | M49: 0 | N49: =J49*L49 -> 0 | O49: 21.3 | P49: =+J49-N49 -> 0 | Q49: 2598.6 | R49: =+J49*E$7 -> 0
C50: Other Labor | D50: 0.22 | F50: Hour | G50: 15 | I50: 3.3 | J50: =E50*H50 -> 0 | K50: 0 | M50: 0 | N50: =J50*L50 -> 0 | O50: 3.3 | P50: =+J50-N50 -> 0 | Q50: 402.6 | R50: =+J50*E$7 -> 0
B52: Diesel Fuel
C53: Pickup/General Use Equipment | D53: 1 | F53: Acre | G53: 0 | I53: 0 | J53: =E53*H53 -> 0 | K53: 0 | M53: 0 | N53: =J53*L53 -> 0 | O53: 0 | P53: =+J53-N53 -> 0 | Q53: 0 | R53: =+J53*E$7 -> 0
C54: Tractors/Self-Propelled | D54: 13.33 | F54: Gallon | G54: 1.5 | I54: 19.995 | J54: =E54*H54 -> 0 | K54: 0 | M54: 0 | N54: =J54*L54 -> 0 | O54: 19.995 | P54: =+J54-N54 -> 0 | Q54: 2439.39 | R54: =+J54*E$7 -> 0
B56: Gasoline
C57: Pickup/General Use Equipment | D57: 1 | F57: Acre | G57: 4.824590164 | I57: 4.824590164 | J57: =E57*H57 -> 0 | K57: 0 | M57: 0 | N57: =J57*L57 -> 0 | O57: 4.824590164 | P57: =+J57-N57 -> 0 | Q57: 588.6 | R57: =+J57*E$7 -> 0
C58: Tractors/Self-Propelled | D58: 0 | F58: Gallon | G58: 1.8 | I58: 0 | J58: =E58*H58 -> 0 | K58: 0 | M58: 0 | N58: =J58*L58 -> 0 | O58: 0 | P58: =+J58-N58 -> 0 | Q58: 0 | R58: =+J58*E$7 -> 0
B60: Repairs & Maintenance
C61: Pickup/General Use Equipment | D61: 1 | F61: Acre | G61: 1.728811475 | I61: 1.728811475 | J61: =E61*H61 -> 0 | K61: 0 | M61: 0 | N61: =J61*L61 -> 0 | O61: 1.728811475 | P61: =+J61-N61 -> 0 | Q61: 210.915 | R61: =+J61*E$7 -> 0
C62: Irrigation Equipment | D62: 1 | F62: Acre | G62: 9.684017 | I62: 9.684017 | J62: 0 | K62: 0 | M62: 0 | N62: 0 | O62: 9.684017 | P62: 0 | Q62: 1181.450074 | R62: 0
C63: Tractors/Self-Propelled | D63: 1 | F63: Acre | G63: 33.48350084 | I63: 33.48350084 | J63: 0 | K63: 0 | M63: 0 | N63: 0 | O63: 33.48350084 | P63: 0 | Q63: 4084.987103 | R63: 0
C64: Implements | D64: 1 | F64: Acre | G64: 14.30448946 | I64: 14.30448946 | J64: 0 | K64: 0 | M64: 0 | N64: 0 | O64: 14.30448946 | P64: 0 | Q64: 1745.147714 | R64: 0
I65: 0 | J65: 0 | K65: 0 | M65: 0 | N65: 0 | O65: 0 | P65: 0 | Q65: 0 | R65: 0
I66: 0 | J66: 0 | K66: 0 | M66: 0 | N66: 0 | O66: 0 | P66: 0 | Q66: 0 | R66: 0
B67: Interest on Credit Line | G67: 0.0455 | I67: 10.66235081 | J67: =+SUM(J18:J66)/2*H67 -> 0 | M67: 0 | N67: =+SUM(N18:N66)/2*L67 -> 0 | O67: 10.66235081 | P67: =+SUM(P18:P66)/2*L67 -> 0 | Q67: 1300.806799 | R67: =+J67*E$7 -> 0
A68: Total Variable Costs | I68: 816.3095343 | J68: =SUM(J19:J67) -> 0 | M68: 0 | N68: =SUM(N19:N67) -> 0 | O68: 816.3095343 | P68: =SUM(P19:P67) -> 0 | Q68: 99589.76318 | R68: =SUM(R19:R67) -> 0
A69: Planned Returns Above Variable Costs: | I69: 398.6904657 | J69: =+J14-J68 -> 0 | M69: 0 | N69: =+N14-N68 -> 0 | O69: 398.6904657 | P69: =+P14-P68 -> 0 | Q69: 48640.23682 | R69: =+R14-R68 -> 0
B70: Breakeven Price to Cover Variable Costs | G70: 0.3642063562 | H70: =IF(E10=0,"n/a",(YVarExp-(YTotExp+YTotRet-J10))/E10) -> n/a | I70: Pound
Q71: Enterprise | R71: Enterprise
A72: FIXED COSTS | D72: Quantity | E72: Quantity | F72: Units | G72: $/Unit | H72: $/Unit | I72: Total | J72: Total | K72: Share | L72: Share | M72: Landlord | N72: Landlord | O72: Tenant | P72: Tenant | Q72: Total | R72: Total
B73: Machinery Depreciation
C74: Pickup/General Use Equipment | D74: 1 | F74: Acre | G74: 3.618442623 | I74: 3.618442623 | J74: =E74*H74 -> 0 | K74: 0 | M74: 0 | N74: =J74*L74 -> 0 | O74: 3.618442623 | P74: =+J74-N74 -> 0 | Q74: 441.45 | R74: =+J74*E$7 -> 0
C75: Irrigation Equipment | D75: 1 | F75: Acre | G75: 95.91963934 | I75: 95.91963934 | J75: 0 | K75: 0 | M75: 0 | N75: =J75*L75 -> 0 | O75: 95.91963934 | P75: 0 | Q75: 11702.196 | R75: 0
C76: Tractors/Self-Propelled | D76: 1 | F76: Acre | G76: 39.45147357 | I76: 39.45147357 | J76: 0 | K76: 0 | M76: 0 | N76: =J76*L76 -> 0 | O76: 39.45147357 | P76: 0 | Q76: 4813.079776 | R76: 0
C77: Implements | D77: 1 | F77: Acre | G77: 17.98766276 | I77: 17.98766276 | J77: 0 | K77: 0 | M77: 0 | N77: =J77*L77 -> 0 | O77: 17.98766276 | P77: 0 | Q77: 2194.494857 | R77: 0
B78: Equipment Investment
C79: Pickup/General Use Equipment | D79: 22.11270492 | F79: Dollars | G79: 0.055 | I79: 1.21619877 | J79: =E79*H79 -> 0 | K79: 0 | M79: 0 | N79: =J79*L79 -> 0 | O79: 1.21619877 | P79: =+J79-N79 -> 0 | Q79: 148.37625 | R79: =+J79*E$7 -> 0
C80: Irrigation Equipment | D80: 978.5740984 | F80: Dollars | G80: 0.055 | I80: 53.82157541 | J80: 0 | K80: 0 | M80: 0 | N80: =J80*L80 -> 0 | O80: 53.82157541 | P80: 0 | Q80: 6566.2322 | R80: 0
C81: Tractors/Self-Propelled | D81: 339.8638763 | F81: Dollars | G81: 0.055 | I81: 18.6925132 | J81: 0 | K81: 0 | M81: 0 | N81: =J81*L81 -> 0 | O81: 18.6925132 | P81: 0 | Q81: 2280.48661 | R81: 0
C82: Implements | D82: 101.8741771 | F82: Dollars | G82: 0.055 | I82: 5.603079743 | J82: 0 | K82: 0 | M82: 0 | N82: =J82*L82 -> 0 | O82: 5.603079743 | P82: 0 | Q82: 683.5757286 | R82: 0
B83: Salaried Labor | D83: 1 | F83: Acre | G83: 0 | I83: 0 | J83: 0 | K83: 0 | M83: 0 | N83: =J83*L83 -> 0 | O83: 0 | P83: =+J83-N83 -> 0 | Q83: 0 | R83: =+J83*E$7 -> 0
B84: Management Fee, Owner/Operator Labor | D84: 1 | F84: Acre | G84: 0 | I84: 0 | J84: 0 | K84: 0 | M84: 0 | N84: 0 | O84: 0 | P84: 0 | Q84: 0 | R84: 0
B85: Allocated Establishment Cost | D85: 1 | F85: Acre | G85: 0 | I85: 0 | J85: 0 | K85: 0 | M85: 0 | N85: 0 | O85: 0 | P85: 0 | Q85: 0 | R85: 0
B86: Lease value - Drip | D86: 1 | F86: Acre | G86: 50 | I86: 50 | J86: 0 | K86: 0 | M86: 0 | N86: 0 | O86: 50 | P86: 0 | Q86: 6100 | R86: 0
B87: Property Taxes | D87: 1 | F87: Acre | G87: 0 | I87: 0 | J87: 0 | K87: 0 | M87: 0 | N87: 0 | O87: 0 | P87: 0 | Q87: 0 | R87: 0
B88: Whole Farm Insurance | D88: 1 | F88: Acre | G88: 0 | I88: 0 | J88: 0 | K88: 0 | M88: 0 | N88: 0 | O88: 0 | P88: 0 | Q88: 0 | R88: 0
D89: 1 | G89: 0 | I89: 0 | J89: 0 | K89: 0 | M89: 0 | N89: 0 | O89: 0 | P89: 0 | Q89: 0 | R89: 0
D90: 1 | G90: 0 | I90: 0 | J90: =E90*H90 -> 0 | K90: 0 | M90: 0 | N90: 0 | O90: 0 | P90: 0 | Q90: 0 | R90: 0
A91: Total Fixed Costs | I91: 286.3105854 | J91: =+SUM(J74:J90) -> 0 | M91: 0 | N91: =+SUM(N74:N90) -> 0 | O91: 286.3105854 | P91: =+SUM(P74:P90) -> 0 | Q91: 34929.89142 | R91: =+SUM(R74:R90) -> 0
A92: Total Specified Costs | I92: 1102.62012 | J92: =+J68+J91 -> 0 | M92: 0 | N92: =+N68+N91 -> 0 | O92: 1102.62012 | P92: =+P68+P91 -> 0 | Q92: 134519.6546 | R92: =+R68+R91 -> 0
A94: Returns Above Specified Costs | I94: 112.3798803 | J94: =+J14-J92 -> 0 | M94: 0 | N94: =+N14-N92 -> 0 | O94: 112.3798803 | P94: =+P14-P92 -> 0 | Q94: 13710.34539 | R94: =+R14-R92 -> 0
A96: Breakeven Price to Cover Total Costs | G96: 0.5550800798 | H96: =IF(E10=0,"n/a",(YTotExp-(YTotExp+YTotRet-J10))/E10) -> n/a | I96: Pound
D98: Example Breakeven Prices
B99: Example | C99: Example | D99: To Cover | G99: To Cover
B100: Yield | C100: Yield | D100: Variable | G100: Total
B101: Percent | C101: Pound | D101: Costs | G101: Costs
B102: 0.75 | C102: 1125 | D102: 0.4856084749 | G102: 0.7401067731
B103: 0.9 | C103: 1350 | D103: 0.4046737291 | G103: 0.6167556442
B104: 1 | C104: 1500 | D104: 0.3642063562 | G104: 0.5550800798
B105: 1.1 | C105: 1650 | D105: 0.3310966875 | G105: 0.5046182544
B106: 1.25 | C106: 1875 | D106: 0.291365085 | G106: 0.4440640639
D108: Your Breakeven Prices
B109: Your | C109: Your | E109: To Cover | H109: To Cover
B110: Yield | C110: Yield | E110: Variable | H110: Total
B111: Percent | C111: Pound | E111: Costs | H111: Costs
B112: 0.75 | C112: =E10*YPER1 -> 0 | E112: =IF($E$10=0,0,(YVarExp-(YTotExp+YTotRet-J10))/($E$10*YPER1)) -> 0 | H112: =IF($E$10=0,0,(YTotExp-(YTotExp+YTotRet-J10))/($E$10*YPER1)) -> 0
B113: 0.9 | C113: =E10*YPER2 -> 0 | E113: =IF($E$10=0,0,(YVarExp-(YTotExp+YTotRet-J10))/($E$10*YPER2)) -> 0 | H113: =IF($E$10=0,0,(YTotExp-(YTotExp+YTotRet-J10))/($E$10*YPER2)) -> 0
B114: 1 | C114: =+E10 -> 0 | E114: =IF($E$10=0,0,(YVarExp-(YTotExp+YTotRet-J10))/($E$10*YPER3)) -> 0 | H114: =IF($E$10=0,0,(YTotExp-(YTotExp+YTotRet-J10))/($E$10*YPER3)) -> 0
B115: 1.1 | C115: =E10*YPER4 -> 0 | E115: =IF($E$10=0,0,(YVarExp-(YTotExp+YTotRet-J10))/($E$10*YPER4)) -> 0 | H115: =IF($E$10=0,0,(YTotExp-(YTotExp+YTotRet-J10))/($E$10*YPER4)) -> 0
B116: 1.25 | C116: =E10*YPER5 -> 0 | E116: =IF($E$10=0,0,(YVarExp-(YTotExp+YTotRet-J10))/($E$10*YPER5)) -> 0 | H116: =IF($E$10=0,0,(YTotExp-(YTotExp+YTotRet-J10))/($E$10*YPER5)) -> 0
A118: Developed by Bill Thompson, Assistant Professor and Extension Economist, Texas A&M AgriLife Extension Service, 325-653-4576.
A120: Information presented is prepared solely as a general guide and not intended to recognize or predict the costs and returns from any one operation. Brand names are mentioned only as examples and imply no endorsement.

Sheet SLCottonDrylandGM
A1: Projections for Planning Purposes Only -- Not to be Used without Updating
A2: 2021 Estimated Costs and Returns per Acre
A3: St. Lawrence Dryland Cotton, BIIFlex, 40 Inch Rows
A4: Enter your name for this budget in the cell above.
A5: Enter Your Values in the cells highlighed in MAROON.
E6: Your Acres | R6: Your
C7: Crop Acres | D7: 122 | L7: Your | Q7: Enterprise | R7: Enterprise
E8: Your | H8: Your | I8: Cash | J8: Your | K8: Landlord | L8: Landlord | N8: Your | P8: Your | Q8: Total | R8: Total
A9: REVENUE | D9: Quantity | E9: Quantity | F9: Units | G9: $/Unit | H9: $/Unit | I9: Total | J9: Total | K9: Share | L9: Share | M9: Landlord | N9: Landlord | O9: Tenant | P9: Tenant | Q9: (122 acres) | R9: ="(" & E7 & " acres)" -> ( acres)
B10: Cotton Lint | D10: 350 | F10: Pound | G10: 0.63 | I10: 220.5 | J10: =E10*H10 -> 0 | K10: 0 | M10: 0 | N10: =J10*L10 -> 0 | O10: 220.5 | P10: =+J10-N10 -> 0 | Q10: 26901 | R10: =+J10*E$7 -> 0
B11: Cotton Seed | D11: 0.2555 | F11: Ton | G11: 225 | I11: 57.4875 | J11: 0 | K11: 0 | M11: 0 | N11: 0 | O11: 57.4875 | P11: =+J11-N11 -> 0 | Q11: 7013.475 | R11: 0
D12: 0 | G12: 0 | I12: 0 | J12: 0 | K12: 0 | M12: 0 | N12: 0 | O12: 0 | P12: 0 | Q12: 0 | R12: 0
D13: 0 | G13: 0 | I13: 0 | J13: 0 | K13: 0 | M13: 0 | N13: 0 | O13: 0 | P13: 0 | Q13: 0 | R13: 0
A14: Total Revenue | I14: 277.9875 | J14: =SUM(J10:J13) -> 0 | M14: 0 | N14: =SUM(N10:N13) -> 0 | O14: 277.9875 | P14: =SUM(P10:P13) -> 0 | Q14: 33914.475 | R14: =SUM(R10:R13) -> 0
Q15: Enterprise | R15: Enterprise
A16: VARIABLE COSTS | D16: Quantity | E16: Quantity | F16: Units | G16: $/Unit | H16: $/Unit | I16: Total | J16: Total | K16: Share | L16: Share | M16: Landlord | N16: Landlord | O16: Tenant | P16: Tenant | Q16: Total | R16: Total
A17: Production Costs
B18: Seed
C19: Cotton Seed BIIRRF - Dryland | D19: 34 | F19: Thousand | G19: 1.297826087 | I19: 44.12608696 | J19: =E19*H19 -> 0 | K19: 0 | M19: 0 | N19: =J19*L19 -> 0 | O19: 44.12608696 | P19: =+J19-N19 -> 0 | Q19: 5383.382609 | R19: =+J19*E$7 -> 0
B20: Fertilizer
C21: Nitrogen - Dry (Urea 45-0-0) | D21: 45 | F21: Pound | G21: 0.4022 | I21: 18.099 | J21: 0 | K21: 0 | M21: 0 | N21: 0 | O21: 18.099 | P21: 0 | Q21: 2208.078 | R21: 0
C22: Potash 0-0-60 | D22: 27 | F22: Pound | G22: 0.3 | I22: 8.1 | J22: 0 | K22: 0 | M22: 0 | N22: 0 | O22: 8.1 | P22: 0 | Q22: 988.2 | R22: 0
B23: Custom
C24: Soil Test-Dryland | D24: 1 | F24: Acre | G24: 0.25 | I24: 0.25 | J24: 0 | K24: 0 | M24: 0 | N24: 0 | O24: 0.25 | P24: 0 | Q24: 30.5 | R24: 0
C25: Custom Spray | D25: 1 | F25: Acre | G25: 6 | I25: 6 | J25: 0 | K25: 0 | M25: 0 | N25: 0 | O25: 6 | P25: 0 | Q25: 732 | R25: 0
C26: Bag, Tie | D26: 0.9 | F26: Bale | G26: 15 | I26: 13.5 | J26: 0 | K26: 0 | M26: 0 | N26: 0 | O26: 13.5 | P26: 0 | Q26: 1647 | R26: 0
C27: Gin and Haul | D27: 14.28 | F27: CWT | G27: 2.5 | I27: 35.7 | J27: 0 | K27: 0 | M27: 0 | N27: 0 | O27: 35.7 | P27: 0 | Q27: 4355.4 | R27: 0
B28: Herbicide
C29: Trifluralin Pint | D29: 2 | F29: Pint | G29: 2.75 | I29: 5.5 | J29: 0 | K29: 0 | M29: 0 | N29: 0 | O29: 5.5 | P29: 0 | Q29: 671 | R29: 0
C30: Glyphosate Ounce Generic 4lb | D30: 64 | F30: Ounce | G30: 0.1328125 | I30: 8.5 | J30: 0 | K30: 0 | M30: 0 | N30: 0 | O30: 8.5 | P30: 0 | Q30: 1037 | R30: 0
B31: Miscellaneous
C32: NI Cotton 70%, ent, SE Classcock co | D32: 1 | F32: Acre | G32: 10.37 | I32: 10.37 | J32: 0 | K32: 0 | M32: 0 | N32: 0 | O32: 10.37 | P32: 0 | Q32: 1265.14 | R32: 0
C33: Boll Weevil Eradication Program | D33: 0.7 | F33: Bale | G33: 1 | I33: 0.7 | J33: 0 | K33: 0 | M33: 0 | N33: 0 | O33: 0.7 | P33: 0 | Q33: 85.4 | R33: 0
B34: Cotton Harvest
C35: Firestorm (3lb Paraquat) | D35: 28 | F35: Ounce | G35: 0.1796875 | I35: 5.03125 | J35: 0 | K35: 0 | M35: 0 | N35: 0 | O35: 5.03125 | P35: 0 | Q35: 613.8125 | R35: 0
D36: 0 | G36: 0 | I36: 0 | J36: 0 | K36: 0 | M36: 0 | N36: 0 | O36: 0 | P36: 0 | Q36: 0 | R36: 0
D37: 0 | G37: 0 | I37: 0 | J37: 0 | K37: 0 | M37: 0 | N37: 0 | O37: 0 | P37: 0 | Q37: 0 | R37: 0
D38: 0 | G38: 0 | I38: 0 | J38: =E38*H38 -> 0 | K38: 0 | M38: 0 | N38: =J38*L38 -> 0 | O38: 0 | P38: =+J38-N38 -> 0 | Q38: 0 | R38: =+J38*E$7 -> 0
B39: Machinery Labor
C40: Tractors/Self-Propelled | D40: 1.21 | F40: Hour | G40: 15 | I40: 18.15 | J40: =E40*H40 -> 0 | K40: 0 | M40: 0 | N40: =J40*L40 -> 0 | O40: 18.15 | P40: =+J40-N40 -> 0 | Q40: 2214.3 | R40: =+J40*E$7 -> 0
C41: Other Labor | D41: 0 | F41: Hour | G41: 15 | I41: 0 | J41: =E41*H41 -> 0 | K41: 0 | M41: 0 | N41: =J41*L41 -> 0 | O41: 0 | P41: =+J41-N41 -> 0 | Q41: 0 | R41: =+J41*E$7 -> 0
B43: Diesel Fuel
C44: Pickup/General Use Equipment | D44: 1 | F44: Acre | G44: 0 | I44: 0 | J44: =E44*H44 -> 0 | K44: 0 | M44: 0 | N44: =J44*L44 -> 0 | O44: 0 | P44: =+J44-N44 -> 0 | Q44: 0 | R44: =+J44*E$7 -> 0
C45: Tractors/Self-Propelled | D45: 11.63 | F45: Gallon | G45: 1.5 | I45: 17.445 | J45: =E45*H45 -> 0 | K45: 0 | M45: 0 | N45: =J45*L45 -> 0 | O45: 17.445 | P45: =+J45-N45 -> 0 | Q45: 2128.29 | R45: =+J45*E$7 -> 0
B47: Gasoline
C48: Pickup/General Use Equipment | D48: 1 | F48: Acre | G48: 4.824590164 | I48: 4.824590164 | J48: =E48*H48 -> 0 | K48: 0 | M48: 0 | N48: =J48*L48 -> 0 | O48: 4.824590164 | P48: =+J48-N48 -> 0 | Q48: 588.6 | R48: =+J48*E$7 -> 0
C49: Tractors/Self-Propelled | D49: 0 | F49: Gallon | G49: 1.8 | I49: 0 | J49: =E49*H49 -> 0 | K49: 0 | M49: 0 | N49: =J49*L49 -> 0 | O49: 0 | P49: =+J49-N49 -> 0 | Q49: 0 | R49: =+J49*E$7 -> 0
B51: Repairs & Maintenance
C52: Pickup/General Use Equipment | D52: 1 | F52: Acre | G52: 1.728811475 | I52: 1.728811475 | J52: =E52*H52 -> 0 | K52: 0 | M52: 0 | N52: =J52*L52 -> 0 | O52: 1.728811475 | P52: =+J52-N52 -> 0 | Q52: 210.915 | R52: =+J52*E$7 -> 0
C53: Irrigation Equipment | D53: 1 | F53: Acre | G53: 0 | I53: 0 | J53: 0 | K53: 0 | M53: 0 | N53: 0 | O53: 0 | P53: 0 | Q53: 0 | R53: 0
C54: Tractors/Self-Propelled | D54: 1 | F54: Acre | G54: 28.87399335 | I54: 28.87399335 | J54: 0 | K54: 0 | M54: 0 | N54: 0 | O54: 28.87399335 | P54: 0 | Q54: 3522.627189 | R54: 0
C55: Implements | D55: 1 | F55: Acre | G55: 12.04151276 | I55: 12.04151276 | J55: 0 | K55: 0 | M55: 0 | N55: 0 | O55: 12.04151276 | P55: 0 | Q55: 1469.064556 | R55: 0
I56: 0 | J56: 0 | K56: 0 | M56: 0 | N56: 0 | O56: 0 | P56: 0 | Q56: 0 | R56: 0
I57: 0 | J57: 0 | K57: 0 | M57: 0 | N57: 0 | O57: 0 | P57: 0 | Q57: 0 | R57: 0
B58: Interest on Credit Line | G58: 0.0455 | I58: 3.603866337 | J58: =+SUM(J18:J57)/2*H58 -> 0 | M58: 0 | N58: =+SUM(N18:N57)/2*L58 -> 0 | O58: 3.603866337 | P58: =+SUM(P18:P57)/2*L58 -> 0 | Q58: 439.6716931 | R58: =+J58*E$7 -> 0
A59: Total Variable Costs | I59: 242.544111 | J59: =SUM(J19:J58) -> 0 | M59: 0 | N59: =SUM(N19:N58) -> 0 | O59: 242.544111 | P59: =SUM(P19:P58) -> 0 | Q59: 29590.38155 | R59: =SUM(R19:R58) -> 0
A60: Planned Returns Above Variable Costs: | I60: 35.44338896 | J60: =+J14-J59 -> 0 | M60: 0 | N60: =+N14-N59 -> 0 | O60: 35.44338896 | P60: =+P14-P59 -> 0 | Q60: 4324.093453 | R60: =+R14-R59 -> 0
B61: Breakeven Price to Cover Variable Costs | G61: 0.5287331744 | H61: =IF(E10=0,"n/a",(YVarExp-(YTotExp+YTotRet-J10))/E10) -> n/a | I61: Pound
Q62: Enterprise | R62: Enterprise
A63: FIXED COSTS | D63: Quantity | E63: Quantity | F63: Units | G63: $/Unit | H63: $/Unit | I63: Total | J63: Total | K63: Share | L63: Share | M63: Landlord | N63: Landlord | O63: Tenant | P63: Tenant | Q63: Total | R63: Total
B64: Machinery Depreciation
C65: Pickup/General Use Equipment | D65: 1 | F65: Acre | G65: 3.618442623 | I65: 3.618442623 | J65: =E65*H65 -> 0 | K65: 0 | M65: 0 | N65: =J65*L65 -> 0 | O65: 3.618442623 | P65: =+J65-N65 -> 0 | Q65: 441.45 | R65: =+J65*E$7 -> 0
C66: Tractors/Self-Propelled | D66: 1 | F66: Acre | G66: 35.78489914 | I66: 35.78489914 | J66: 0 | K66: 0 | M66: 0 | N66: =J66*L66 -> 0 | O66: 35.78489914 | P66: 0 | Q66: 4365.757695 | R66: 0
C67: Implements | D67: 1 | F67: Acre | G67: 15.67894657 | I67: 15.67894657 | J67: 0 | K67: 0 | M67: 0 | N67: =J67*L67 -> 0 | O67: 15.67894657 | P67: 0 | Q67: 1912.831482 | R67: 0
B68: Equipment Investment
C69: Pickup/General Use Equipment | D69: 22.11270492 | F69: Dollars | G69: 0.055 | I69: 1.21619877 | J69: =E69*H69 -> 0 | K69: 0 | M69: 0 | N69: =J69*L69 -> 0 | O69: 1.21619877 | P69: =+J69-N69 -> 0 | Q69: 148.37625 | R69: =+J69*E$7 -> 0
C70: Tractors/Self-Propelled | D70: 310.7956233 | F70: Dollars | G70: 0.055 | I70: 17.09375928 | J70: 0 | K70: 0 | M70: 0 | N70: =J70*L70 -> 0 | O70: 17.09375928 | P70: 0 | Q70: 2085.438632 | R70: 0
C71: Implements | D71: 91.99800233 | F71: Dollars | G71: 0.055 | I71: 5.059890128 | J71: 0 | K71: 0 | M71: 0 | N71: =J71*L71 -> 0 | O71: 5.059890128 | P71: 0 | Q71: 617.3065957 | R71: 0
B72: Salaried Labor | D72: 1 | F72: Acre | G72: 0 | I72: 0 | J72: 0 | K72: 0 | M72: 0 | N72: =J72*L72 -> 0 | O72: 0 | P72: =+J72-N72 -> 0 | Q72: 0 | R72: =+J72*E$7 -> 0
B73: Management Fee, Owner/Operator Labor | D73: 1 | F73: Acre | G73: 0 | I73: 0 | J73: 0 | K73: 0 | M73: 0 | N73: 0 | O73: 0 | P73: 0 | Q73: 0 | R73: 0
B74: Allocated Establishment Cost | D74: 1 | F74: Acre | G74: 0 | I74: 0 | J74: 0 | K74: 0 | M74: 0 | N74: 0 | O74: 0 | P74: 0 | Q74: 0 | R74: 0
B75: West Texas Dryland | D75: 1 | F75: Acre | G75: 15 | I75: 15 | J75: 0 | K75: 0 | M75: 0 | N75: 0 | O75: 15 | P75: 0 | Q75: 1830 | R75: 0
B76: Property Taxes | D76: 1 | F76: Acre | G76: 0 | I76: 0 | J76: 0 | K76: 0 | M76: 0 | N76: 0 | O76: 0 | P76: 0 | Q76: 0 | R76: 0
B77: Whole Farm Insurance | D77: 1 | F77: Acre | G77: 0 | I77: 0 | J77: 0 | K77: 0 | M77: 0 | N77: 0 | O77: 0 | P77: 0 | Q77: 0 | R77: 0
D78: 1 | G78: 0 | I78: 0 | J78: 0 | K78: 0 | M78: 0 | N78: 0 | O78: 0 | P78: 0 | Q78: 0 | R78: 0
D79: 1 | G79: 0 | I79: 0 | J79: =E79*H79 -> 0 | K79: 0 | M79: 0 | N79: 0 | O79: 0 | P79: 0 | Q79: 0 | R79: 0
A80: Total Fixed Costs | I80: 93.45213652 | J80: =+SUM(J65:J79) -> 0 | M80: 0 | N80: =+SUM(N65:N79) -> 0 | O80: 93.45213652 | P80: =+SUM(P65:P79) -> 0 | Q80: 11401.16066 | R80: =+SUM(R65:R79) -> 0
A81: Total Specified Costs | I81: 335.9962476 | J81: =+J59+J80 -> 0 | M81: 0 | N81: =+N59+N80 -> 0 | O81: 335.9962476 | P81: =+P59+P80 -> 0 | Q81: 40991.5422 | R81: =+R59+R80 -> 0
A83: Returns Above Specified Costs | I83: -58.00874756 | J83: =+J14-J81 -> 0 | M83: 0 | N83: =+N14-N81 -> 0 | O83: -58.00874756 | P83: =+P14-P81 -> 0 | Q83: -7077.067202 | R83: =+R14-R81 -> 0
A85: Breakeven Price to Cover Total Costs | G85: 0.7957392787 | H85: =IF(E10=0,"n/a",(YTotExp-(YTotExp+YTotRet-J10))/E10) -> n/a | I85: Pound
D87: Example Breakeven Prices
B88: Example | C88: Example | D88: To Cover | G88: To Cover
B89: Yield | C89: Yield | D89: Variable | G89: Total
B90: Percent | C90: Pound | D90: Costs | G90: Costs
B91: 0.75 | C91: 262.5 | D91: 0.7049775659 | G91: 1.060985705
B92: 0.9 | C92: 315 | D92: 0.5874813049 | G92: 0.8841547542
B93: 1 | C93: 350 | D93: 0.5287331744 | G93: 0.7957392787
B94: 1.1 | C94: 385 | D94: 0.4806665222 | G94: 0.7233993443
B95: 1.25 | C95: 437.5 | D95: 0.4229865395 | G95: 0.636591423
D97: Your Breakeven Prices
B98: Your | C98: Your | E98: To Cover | H98: To Cover
B99: Yield | C99: Yield | E99: Variable | H99: Total
B100: Percent | C100: Pound | E100: Costs | H100: Costs
B101: 0.75 | C101: =E10*YPER1 -> 0 | E101: =IF($E$10=0,0,(YVarExp-(YTotExp+YTotRet-J10))/($E$10*YPER1)) -> 0 | H101: =IF($E$10=0,0,(YTotExp-(YTotExp+YTotRet-J10))/($E$10*YPER1)) -> 0
B102: 0.9 | C102: =E10*YPER2 -> 0 | E102: =IF($E$10=0,0,(YVarExp-(YTotExp+YTotRet-J10))/($E$10*YPER2)) -> 0 | H102: =IF($E$10=0,0,(YTotExp-(YTotExp+YTotRet-J10))/($E$10*YPER2)) -> 0
B103: 1 | C103: =+E10 -> 0 | E103: =IF($E$10=0,0,(YVarExp-(YTotExp+YTotRet-J10))/($E$10*YPER3)) -> 0 | H103: =IF($E$10=0,0,(YTotExp-(YTotExp+YTotRet-J10))/($E$10*YPER3)) -> 0
B104: 1.1 | C104: =E10*YPER4 -> 0 | E104: =IF($E$10=0,0,(YVarExp-(YTotExp+YTotRet-J10))/($E$10*YPER4)) -> 0 | H104: =IF($E$10=0,0,(YTotExp-(YTotExp+YTotRet-J10))/($E$10*YPER4)) -> 0
B105: 1.25 | C105: =E10*YPER5 -> 0 | E105: =IF($E$10=0,0,(YVarExp-(YTotExp+YTotRet-J10))/($E$10*YPER5)) -> 0 | H105: =IF($E$10=0,0,(YTotExp-(YTotExp+YTotRet-J10))/($E$10*YPER5)) -> 0
A107: Developed by Bill Thompson, Assistant Professor and Extension Economist, Texas A&M AgriLife Extension Service, 325-653-4576.
A109: Information presented is prepared solely as a general guide and not intended to recognize or predict the costs and returns from any one operation. Brand names are mentioned only as examples and imply no endorsement.

Sheet SLXFCottonDryland
A1: Projections for Planning Purposes Only -- Not to be Used without Updating
A2: 2021 Estimated Costs and Returns per Acre
A3: St. Lawrence Dryland Auxin Technology Cotton, 40 Inch Rows
A4: Enter your name for this budget in the cell above.
A5: Enter Your Values in the cells highlighed in MAROON.
E6: Your Acres | R6: Your
C7: Crop Acres | D7: 122 | L7: Your | Q7: Enterprise | R7: Enterprise
E8: Your | H8: Your | I8: Cash | J8: Your | K8: Landlord | L8: Landlord | N8: Your | P8: Your | Q8: Total | R8: Total
A9: REVENUE | D9: Quantity | E9: Quantity | F9: Units | G9: $/Unit | H9: $/Unit | I9: Total | J9: Total | K9: Share | L9: Share | M9: Landlord | N9: Landlord | O9: Tenant | P9: Tenant | Q9: (122 acres) | R9: ="(" & E7 & " acres)" -> ( acres)
B10: Cotton Lint | D10: 350 | F10: Pound | G10: 0.63 | I10: 220.5 | J10: =E10*H10 -> 0 | K10: 0 | M10: 0 | N10: =J10*L10 -> 0 | O10: 220.5 | P10: =+J10-N10 -> 0 | Q10: 26901 | R10: =+J10*E$7 -> 0
B11: Cotton Seed | D11: 0.2555 | F11: Ton | G11: 225 | I11: 57.4875 | J11: 0 | K11: 0 | M11: 0 | N11: 0 | O11: 57.4875 | P11: =+J11-N11 -> 0 | Q11: 7013.475 | R11: 0
D12: 0 | G12: 0 | I12: 0 | J12: 0 | K12: 0 | M12: 0 | N12: 0 | O12: 0 | P12: 0 | Q12: 0 | R12: 0
D13: 0 | G13: 0 | I13: 0 | J13: 0 | K13: 0 | M13: 0 | N13: 0 | O13: 0 | P13: 0 | Q13: 0 | R13: 0
A14: Total Revenue | I14: 277.9875 | J14: =SUM(J10:J13) -> 0 | M14: 0 | N14: =SUM(N10:N13) -> 0 | O14: 277.9875 | P14: =SUM(P10:P13) -> 0 | Q14: 33914.475 | R14: =SUM(R10:R13) -> 0
Q15: Enterprise | R15: Enterprise
A16: VARIABLE COSTS | D16: Quantity | E16: Quantity | F16: Units | G16: $/Unit | H16: $/Unit | I16: Total | J16: Total | K16: Share | L16: Share | M16: Landlord | N16: Landlord | O16: Tenant | P16: Tenant | Q16: Total | R16: Total
A17: Production Costs
B18: Herbicide
C19: Trifluralin Pint | D19: 2 | F19: Pint | G19: 2.75 | I19: 5.5 | J19: =E19*H19 -> 0 | K19: 0 | M19: 0 | N19: =J19*L19 -> 0 | O19: 5.5 | P19: =+J19-N19 -> 0 | Q19: 671 | R19: =+J19*E$7 -> 0
C20: Glyphosate Ounce Generic 4lb | D20: 64 | F20: Ounce | G20: 0.1328125 | I20: 8.5 | J20: 0 | K20: 0 | M20: 0 | N20: 0 | O20: 8.5 | P20: 0 | Q20: 1037 | R20: 0
C21: Auxin based herbicide | D21: 44 | F21: Ounce | G21: 0.5 | I21: 22 | J21: 0 | K21: 0 | M21: 0 | N21: 0 | O21: 22 | P21: 0 | Q21: 2684 | R21: 0
B22: Seed
C23: Seed Cotton - B2 Auxin Tech, Dryland | D23: 34 | F23: Thousand | G23: 1.434782609 | I23: 48.7826087 | J23: 0 | K23: 0 | M23: 0 | N23: 0 | O23: 48.7826087 | P23: 0 | Q23: 5951.478261 | R23: 0
B24: Fertilizer
C25: Nitrogen - Dry (Urea 46-0-0) | D25: 45 | F25: Pound | G25: 0.4022 | I25: 18.099 | J25: 0 | K25: 0 | M25: 0 | N25: 0 | O25: 18.099 | P25: 0 | Q25: 2208.078 | R25: 0
C26: Potash 0-0-60 | D26: 27 | F26: Pound | G26: 0.3 | I26: 8.1 | J26: 0 | K26: 0 | M26: 0 | N26: 0 | O26: 8.1 | P26: 0 | Q26: 988.2 | R26: 0
B27: Custom
C28: Soil Test-Dryland | D28: 1 | F28: Acre | G28: 0.25 | I28: 0.25 | J28: 0 | K28: 0 | M28: 0 | N28: 0 | O28: 0.25 | P28: 0 | Q28: 30.5 | R28: 0
C29: Custom Spray | D29: 1 | F29: Acre | G29: 6 | I29: 6 | J29: 0 | K29: 0 | M29: 0 | N29: 0 | O29: 6 | P29: 0 | Q29: 732 | R29: 0
C30: Bag, Tie | D30: 0.9 | F30: Bale | G30: 15 | I30: 13.5 | J30: 0 | K30: 0 | M30: 0 | N30: 0 | O30: 13.5 | P30: 0 | Q30: 1647 | R30: 0
C31: Gin and Haul | D31: 14.28 | F31: CWT | G31: 2.5 | I31: 35.7 | J31: 0 | K31: 0 | M31: 0 | N31: 0 | O31: 35.7 | P31: 0 | Q31: 4355.4 | R31: 0
B32: Miscellaneous
C33: NI Cotton 70%, ent, SE Classcock co | D33: 1 | F33: Acre | G33: 10.37 | I33: 10.37 | J33: 0 | K33: 0 | M33: 0 | N33: 0 | O33: 10.37 | P33: 0 | Q33: 1265.14 | R33: 0
C34: Boll Weevil Eradication Program | D34: 0.7 | F34: Bale | G34: 1 | I34: 0.7 | J34: 0 | K34: 0 | M34: 0 | N34: 0 | O34: 0.7 | P34: 0 | Q34: 85.4 | R34: 0
B35: Cotton Harvest
C36: Firestorm (3lb Paraquat) | D36: 28 | F36: Ounce | G36: 0.1796875 | I36: 5.03125 | J36: 0 | K36: 0 | M36: 0 | N36: 0 | O36: 5.03125 | P36: 0 | Q36: 613.8125 | R36: 0
D37: 0 | G37: 0 | I37: 0 | J37: 0 | K37: 0 | M37: 0 | N37: 0 | O37: 0 | P37: 0 | Q37: 0 | R37: 0
D38: 0 | G38: 0 | I38: 0 | J38: 0 | K38: 0 | M38: 0 | N38: 0 | O38: 0 | P38: 0 | Q38: 0 | R38: 0
D39: 0 | G39: 0 | I39: 0 | J39: =E39*H39 -> 0 | K39: 0 | M39: 0 | N39: =J39*L39 -> 0 | O39: 0 | P39: =+J39-N39 -> 0 | Q39: 0 | R39: =+J39*E$7 -> 0
B40: Machinery Labor
C41: Tractors/Self-Propelled | D41: 1.18 | F41: Hour | G41: 15 | I41: 17.7 | J41: =E41*H41 -> 0 | K41: 0 | M41: 0 | N41: =J41*L41 -> 0 | O41: 17.7 | P41: =+J41-N41 -> 0 | Q41: 2159.4 | R41: =+J41*E$7 -> 0
C42: Other Labor | D42: 0.03 | F42: Hour | G42: 15 | I42: 0.45 | J42: =E42*H42 -> 0 | K42: 0 | M42: 0 | N42: =J42*L42 -> 0 | O42: 0.45 | P42: =+J42-N42 -> 0 | Q42: 54.9 | R42: =+J42*E$7 -> 0
B44: Diesel Fuel
C45: Pickup/General Use Equipment | D45: 1 | F45: Acre | G45: 0 | I45: 0 | J45: =E45*H45 -> 0 | K45: 0 | M45: 0 | N45: =J45*L45 -> 0 | O45: 0 | P45: =+J45-N45 -> 0 | Q45: 0 | R45: =+J45*E$7 -> 0
C46: Tractors/Self-Propelled | D46: 11.63 | F46: Gallon | G46: 1.5 | I46: 17.445 | J46: =E46*H46 -> 0 | K46: 0 | M46: 0 | N46: =J46*L46 -> 0 | O46: 17.445 | P46: =+J46-N46 -> 0 | Q46: 2128.29 | R46: =+J46*E$7 -> 0
B48: Gasoline
C49: Pickup/General Use Equipment | D49: 1 | F49: Acre | G49: 4.824590164 | I49: 4.824590164 | J49: =E49*H49 -> 0 | K49: 0 | M49: 0 | N49: =J49*L49 -> 0 | O49: 4.824590164 | P49: =+J49-N49 -> 0 | Q49: 588.6 | R49: =+J49*E$7 -> 0
C50: Tractors/Self-Propelled | D50: 0 | F50: Gallon | G50: 1.8 | I50: 0 | J50: =E50*H50 -> 0 | K50: 0 | M50: 0 | N50: =J50*L50 -> 0 | O50: 0 | P50: =+J50-N50 -> 0 | Q50: 0 | R50: =+J50*E$7 -> 0
B52: Repairs & Maintenance
C53: Pickup/General Use Equipment | D53: 1 | F53: Acre | G53: 1.728811475 | I53: 1.728811475 | J53: =E53*H53 -> 0 | K53: 0 | M53: 0 | N53: =J53*L53 -> 0 | O53: 1.728811475 | P53: =+J53-N53 -> 0 | Q53: 210.915 | R53: =+J53*E$7 -> 0
C54: Irrigation Equipment | D54: 1 | F54: Acre | G54: 0 | I54: 0 | J54: 0 | K54: 0 | M54: 0 | N54: 0 | O54: 0 | P54: 0 | Q54: 0 | R54: 0
C55: Tractors/Self-Propelled | D55: 1 | F55: Acre | G55: 28.87399335 | I55: 28.87399335 | J55: 0 | K55: 0 | M55: 0 | N55: 0 | O55: 28.87399335 | P55: 0 | Q55: 3522.627189 | R55: 0
C56: Implements | D56: 1 | F56: Acre | G56: 12.04151276 | I56: 12.04151276 | J56: 0 | K56: 0 | M56: 0 | N56: 0 | O56: 12.04151276 | P56: 0 | Q56: 1469.064556 | R56: 0
I57: 0 | J57: 0 | K57: 0 | M57: 0 | N57: 0 | O57: 0 | P57: 0 | Q57: 0 | R57: 0
I58: 0 | J58: 0 | K58: 0 | M58: 0 | N58: 0 | O58: 0 | P58: 0 | Q58: 0 | R58: 0
B59: Interest on Credit Line | G59: 0.0455 | I59: 3.975261781 | J59: =+SUM(J18:J58)/2*H59 -> 0 | M59: 0 | N59: =+SUM(N18:N58)/2*L59 -> 0 | O59: 3.975261781 | P59: =+SUM(P18:P58)/2*L59 -> 0 | Q59: 484.9819372 | R59: =+J59*E$7 -> 0
A60: Total Variable Costs | I60: 269.5720282 | J60: =SUM(J19:J59) -> 0 | M60: 0 | N60: =SUM(N19:N59) -> 0 | O60: 269.5720282 | P60: =SUM(P19:P59) -> 0 | Q60: 32887.78744 | R60: =SUM(R19:R59) -> 0
A61: Planned Returns Above Variable Costs: | I61: 8.415471778 | J61: =+J14-J60 -> 0 | M61: 0 | N61: =+N14-N60 -> 0 | O61: 8.415471778 | P61: =+P14-P60 -> 0 | Q61: 1026.687557 | R61: =+R14-R60 -> 0
B62: Breakeven Price to Cover Variable Costs | G62: 0.6059557949 | H62: =IF(E10=0,"n/a",(YVarExp-(YTotExp+YTotRet-J10))/E10) -> n/a | I62: Pound
Q63: Enterprise | R63: Enterprise
A64: FIXED COSTS | D64: Quantity | E64: Quantity | F64: Units | G64: $/Unit | H64: $/Unit | I64: Total | J64: Total | K64: Share | L64: Share | M64: Landlord | N64: Landlord | O64: Tenant | P64: Tenant | Q64: Total | R64: Total
B65: Machinery Depreciation
C66: Pickup/General Use Equipment | D66: 1 | F66: Acre | G66: 3.618442623 | I66: 3.618442623 | J66: =E66*H66 -> 0 | K66: 0 | M66: 0 | N66: =J66*L66 -> 0 | O66: 3.618442623 | P66: =+J66-N66 -> 0 | Q66: 441.45 | R66: =+J66*E$7 -> 0
C67: Tractors/Self-Propelled | D67: 1 | F67: Acre | G67: 35.78489914 | I67: 35.78489914 | J67: 0 | K67: 0 | M67: 0 | N67: =J67*L67 -> 0 | O67: 35.78489914 | P67: 0 | Q67: 4365.757695 | R67: 0
C68: Implements | D68: 1 | F68: Acre | G68: 15.67894657 | I68: 15.67894657 | J68: 0 | K68: 0 | M68: 0 | N68: =J68*L68 -> 0 | O68: 15.67894657 | P68: 0 | Q68: 1912.831482 | R68: 0
B69: Equipment Investment
C70: Pickup/General Use Equipment | D70: 22.11270492 | F70: Dollars | G70: 0.055 | I70: 1.21619877 | J70: =E70*H70 -> 0 | K70: 0 | M70: 0 | N70: =J70*L70 -> 0 | O70: 1.21619877 | P70: =+J70-N70 -> 0 | Q70: 148.37625 | R70: =+J70*E$7 -> 0
C71: Tractors/Self-Propelled | D71: 310.7956233 | F71: Dollars | G71: 0.055 | I71: 17.09375928 | J71: 0 | K71: 0 | M71: 0 | N71: =J71*L71 -> 0 | O71: 17.09375928 | P71: 0 | Q71: 2085.438632 | R71: 0
C72: Implements | D72: 91.99800233 | F72: Dollars | G72: 0.055 | I72: 5.059890128 | J72: 0 | K72: 0 | M72: 0 | N72: =J72*L72 -> 0 | O72: 5.059890128 | P72: 0 | Q72: 617.3065957 | R72: 0
B73: Salaried Labor | D73: 1 | F73: Acre | G73: 0 | I73: 0 | J73: 0 | K73: 0 | M73: 0 | N73: =J73*L73 -> 0 | O73: 0 | P73: =+J73-N73 -> 0 | Q73: 0 | R73: =+J73*E$7 -> 0
B74: Management Fee, Owner/Operator Labor | D74: 1 | F74: Acre | G74: 0 | I74: 0 | J74: 0 | K74: 0 | M74: 0 | N74: 0 | O74: 0 | P74: 0 | Q74: 0 | R74: 0
B75: Allocated Establishment Cost | D75: 1 | F75: Acre | G75: 0 | I75: 0 | J75: 0 | K75: 0 | M75: 0 | N75: 0 | O75: 0 | P75: 0 | Q75: 0 | R75: 0
B76: West Texas Dryland | D76: 1 | F76: Acre | G76: 15 | I76: 15 | J76: 0 | K76: 0 | M76: 0 | N76: 0 | O76: 15 | P76: 0 | Q76: 1830 | R76: 0
B77: Property Taxes | D77: 1 | F77: Acre | G77: 0 | I77: 0 | J77: 0 | K77: 0 | M77: 0 | N77: 0 | O77: 0 | P77: 0 | Q77: 0 | R77: 0
B78: Whole Farm Insurance | D78: 1 | F78: Acre | G78: 0 | I78: 0 | J78: 0 | K78: 0 | M78: 0 | N78: 0 | O78: 0 | P78: 0 | Q78: 0 | R78: 0
D79: 1 | G79: 0 | I79: 0 | J79: 0 | K79: 0 | M79: 0 | N79: 0 | O79: 0 | P79: 0 | Q79: 0 | R79: 0
D80: 1 | G80: 0 | I80: 0 | J80: =E80*H80 -> 0 | K80: 0 | M80: 0 | N80: 0 | O80: 0 | P80: 0 | Q80: 0 | R80: 0
A81: Total Fixed Costs | I81: 93.45213652 | J81: =+SUM(J66:J80) -> 0 | M81: 0 | N81: =+SUM(N66:N80) -> 0 | O81: 93.45213652 | P81: =+SUM(P66:P80) -> 0 | Q81: 11401.16066 | R81: =+SUM(R66:R80) -> 0
A82: Total Specified Costs | I82: 363.0241647 | J82: =+J60+J81 -> 0 | M82: 0 | N82: =+N60+N81 -> 0 | O82: 363.0241647 | P82: =+P60+P81 -> 0 | Q82: 44288.9481 | R82: =+R60+R81 -> 0
A84: Returns Above Specified Costs | I84: -85.03666474 | J84: =+J14-J82 -> 0 | M84: 0 | N84: =+N14-N82 -> 0 | O84: -85.03666474 | P84: =+P14-P82 -> 0 | Q84: -10374.4731 | R84: =+R14-R82 -> 0
A86: Breakeven Price to Cover Total Costs | G86: 0.8729618993 | H86: =IF(E10=0,"n/a",(YTotExp-(YTotExp+YTotRet-J10))/E10) -> n/a | I86: Pound
D88: Example Breakeven Prices
B89: Example | C89: Example | D89: To Cover | G89: To Cover
B90: Yield | C90: Yield | D90: Variable | G90: Total
B91: Percent | C91: Pound | D91: Costs | G91: Costs
B92: 0.75 | C92: 262.5 | D92: 0.8079410599 | G92: 1.163949199
B93: 0.9 | C93: 315 | D93: 0.6732842166 | G93: 0.9699576658
B94: 1 | C94: 350 | D94: 0.6059557949 | G94: 0.8729618993
B95: 1.1 | C95: 385 | D95: 0.5508689045 | G95: 0.7936017266
B96: 1.25 | C96: 437.5 | D96: 0.4847646359 | G96: 0.6983695194
D98: Your Breakeven Prices
B99: Your | C99: Your | E99: To Cover | H99: To Cover
B100: Yield | C100: Yield | E100: Variable | H100: Total
B101: Percent | C101: Pound | E101: Costs | H101: Costs
B102: 0.75 | C102: =E10*YPER1 -> 0 | E102: =IF($E$10=0,0,(YVarExp-(YTotExp+YTotRet-J10))/($E$10*YPER1)) -> 0 | H102: =IF($E$10=0,0,(YTotExp-(YTotExp+YTotRet-J10))/($E$10*YPER1)) -> 0
B103: 0.9 | C103: =E10*YPER2 -> 0 | E103: =IF($E$10=0,0,(YVarExp-(YTotExp+YTotRet-J10))/($E$10*YPER2)) -> 0 | H103: =IF($E$10=0,0,(YTotExp-(YTotExp+YTotRet-J10))/($E$10*YPER2)) -> 0
B104: 1 | C104: =+E10 -> 0 | E104: =IF($E$10=0,0,(YVarExp-(YTotExp+YTotRet-J10))/($E$10*YPER3)) -> 0 | H104: =IF($E$10=0,0,(YTotExp-(YTotExp+YTotRet-J10))/($E$10*YPER3)) -> 0
B105: 1.1 | C105: =E10*YPER4 -> 0 | E105: =IF($E$10=0,0,(YVarExp-(YTotExp+YTotRet-J10))/($E$10*YPER4)) -> 0 | H105: =IF($E$10=0,0,(YTotExp-(YTotExp+YTotRet-J10))/($E$10*YPER4)) -> 0
B106: 1.25 | C106: =E10*YPER5 -> 0 | E106: =IF($E$10=0,0,(YVarExp-(YTotExp+YTotRet-J10))/($E$10*YPER5)) -> 0 | H106: =IF($E$10=0,0,(YTotExp-(YTotExp+YTotRet-J10))/($E$10*YPER5)) -> 0
A108: Developed by Bill Thompson, Assistant Professor and Extension Economist, Texas A&M AgriLife Extension Service, 325-653-4576.
A110: Information presented is prepared solely as a general guide and not intended to recognize or predict the costs and returns from any one operation. Brand names are mentioned only as examples and imply no endorsement.

Sheet SLGSDrip
A1: Projections for Planning Purposes Only -- Not to be Used without Updating
A2: 2021 Estimated Costs and Returns per Acre
A3: St. Lawrence Early Planted Grain Sorghum, Drip Irrigated, 40 Inch Rows
A4: Enter your name for this budget in the cell above.
A5: Enter Your Values in the cells highlighed in MAROON.
E6: Your Acres | R6: Your
C7: Crop Acres | D7: 40.6 | L7: Your | Q7: Enterprise | R7: Enterprise
E8: Your | H8: Your | I8: Cash | J8: Your | K8: Landlord | L8: Landlord | N8: Your | P8: Your | Q8: Total | R8: Total
A9: REVENUE | D9: Quantity | E9: Quantity | F9: Units | G9: $/Unit | H9: $/Unit | I9: Total | J9: Total | K9: Share | L9: Share | M9: Landlord | N9: Landlord | O9: Tenant | P9: Tenant | Q9: (40.6 acres) | R9: ="(" & E7 & " acres)" -> ( acres)
B10: Grain Sorghum | D10: 47.6 | F10: CWT | G10: 4.85 | I10: 230.86 | J10: =E10*H10 -> 0 | K10: 0 | M10: 0 | N10: =J10*L10 -> 0 | O10: 230.86 | P10: =+J10-N10 -> 0 | Q10: 9372.916 | R10: =+J10*E$7 -> 0
D11: 0 | G11: 0 | I11: 0 | J11: 0 | K11: 0 | M11: 0 | N11: 0 | O11: 0 | P11: =+J11-N11 -> 0 | Q11: 0 | R11: 0
D12: 0 | G12: 0 | I12: 0 | J12: 0 | K12: 0 | M12: 0 | N12: 0 | O12: 0 | P12: 0 | Q12: 0 | R12: 0
A13: Total Revenue | I13: 230.86 | J13: =SUM(J10:J12) -> 0 | M13: 0 | N13: =SUM(N10:N12) -> 0 | O13: 230.86 | P13: =SUM(P10:P12) -> 0 | Q13: 9372.916 | R13: =SUM(R10:R12) -> 0
Q14: Enterprise | R14: Enterprise
A15: VARIABLE COSTS | D15: Quantity | E15: Quantity | F15: Units | G15: $/Unit | H15: $/Unit | I15: Total | J15: Total | K15: Share | L15: Share | M15: Landlord | N15: Landlord | O15: Tenant | P15: Tenant | Q15: Total | R15: Total
A16: Production Costs
B17: Herbicide
C18: Atrazine | D18: 0.5 | F18: Quart | G18: 3.43 | I18: 1.715 | J18: =E18*H18 -> 0 | K18: 0 | M18: 0 | N18: =J18*L18 -> 0 | O18: 1.715 | P18: =+J18-N18 -> 0 | Q18: 69.629 | R18: =+J18*E$7 -> 0
C19: Husky | D19: 16 | F19: Ounce | G19: 0.8828 | I19: 14.1248 | J19: 0 | K19: 0 | M19: 0 | N19: 0 | O19: 14.1248 | P19: 0 | Q19: 573.46688 | R19: 0
B20: Seed
C21: Grain Sorghum Seed - Treated | D21: 8 | F21: pound | G21: 3.98 | I21: 31.84 | J21: 0 | K21: 0 | M21: 0 | N21: 0 | O21: 31.84 | P21: 0 | Q21: 1292.704 | R21: 0
B22: Fertilizer
C23: Potash 0-0-60 | D23: 60 | F23: Pound | G23: 0.3 | I23: 18 | J23: 0 | K23: 0 | M23: 0 | N23: 0 | O23: 18 | P23: 0 | Q23: 730.8 | R23: 0
C24: N-32 | D24: 83.2 | F24: Pound | G24: 0.3828 | I24: 31.84896 | J24: 0 | K24: 0 | M24: 0 | N24: 0 | O24: 31.84896 | P24: 0 | Q24: 1293.067776 | R24: 0
B25: Custom
C26: Soil Test-Irrigated | D26: 1 | F26: Acre | G26: 0.5 | I26: 0.5 | J26: 0 | K26: 0 | M26: 0 | N26: 0 | O26: 0.5 | P26: 0 | Q26: 20.3 | R26: 0
C27: Haul Grain | D27: 85 | F27: Bushel | G27: 0.27 | I27: 22.95 | J27: 0 | K27: 0 | M27: 0 | N27: 0 | O27: 22.95 | P27: 0 | Q27: 931.77 | R27: 0
B28: Miscellaneous
C29: IRR. G.S. RP 65%, ent, Glasscock co. | D29: 1 | F29: Acre | G29: 10.38 | I29: 10.38 | J29: 0 | K29: 0 | M29: 0 | N29: 0 | O29: 10.38 | P29: 0 | Q29: 421.428 | R29: 0
D30: 0 | G30: 0 | I30: 0 | J30: 0 | K30: 0 | M30: 0 | N30: 0 | O30: 0 | P30: 0 | Q30: 0 | R30: 0
D31: 0 | G31: 0 | I31: 0 | J31: 0 | K31: 0 | M31: 0 | N31: 0 | O31: 0 | P31: 0 | Q31: 0 | R31: 0
D32: 0 | G32: 0 | I32: 0 | J32: =E32*H32 -> 0 | K32: 0 | M32: 0 | N32: =J32*L32 -> 0 | O32: 0 | P32: =+J32-N32 -> 0 | Q32: 0 | R32: =+J32*E$7 -> 0
B33: Irrigation
C34: Energy Cost | D34: 8 | F34: AcreInch | G34: 12.57653911 | I34: 100.6123129 | J34: =E34*H34 -> 0 | K34: 0 | M34: 0 | N34: =J34*L34 -> 0 | O34: 100.6123129 | P34: =+J34-N34 -> 0 | Q34: 4084.859904 | R34: =+J34*E$7 -> 0
C35: Irrigation Labor | D35: 3.0394 | F35: Hour | G35: 15 | I35: 45.591 | J35: 0 | K35: 0 | M35: 0 | N35: 0 | O35: 45.591 | P35: 0 | Q35: 1850.9946 | R35: 0
B36: Machinery Labor
C37: Tractors/Self-Propelled | D37: 0.69 | F37: Hour | G37: 15 | I37: 10.35 | J37: =E37*H37 -> 0 | K37: 0 | M37: 0 | N37: =J37*L37 -> 0 | O37: 10.35 | P37: =+J37-N37 -> 0 | Q37: 420.21 | R37: =+J37*E$7 -> 0
C38: Other Labor | D38: 0.02 | F38: Hour | G38: 15 | I38: 0.3 | J38: =E38*H38 -> 0 | K38: 0 | M38: 0 | N38: =J38*L38 -> 0 | O38: 0.3 | P38: =+J38-N38 -> 0 | Q38: 12.18 | R38: =+J38*E$7 -> 0
B40: Diesel Fuel
C41: Pickup/General Use Equipment | D41: 1 | F41: Acre | G41: 0 | I41: 0 | J41: =E41*H41 -> 0 | K41: 0 | M41: 0 | N41: =J41*L41 -> 0 | O41: 0 | P41: =+J41-N41 -> 0 | Q41: 0 | R41: =+J41*E$7 -> 0
C42: Tractors/Self-Propelled | D42: 6.76 | F42: Gallon | G42: 1.5 | I42: 10.14 | J42: =E42*H42 -> 0 | K42: 0 | M42: 0 | N42: =J42*L42 -> 0 | O42: 10.14 | P42: =+J42-N42 -> 0 | Q42: 411.684 | R42: =+J42*E$7 -> 0
B44: Gasoline
C45: Pickup/General Use Equipment | D45: 1 | F45: Acre | G45: 4.655172414 | I45: 4.655172414 | J45: =E45*H45 -> 0 | K45: 0 | M45: 0 | N45: =J45*L45 -> 0 | O45: 4.655172414 | P45: =+J45-N45 -> 0 | Q45: 189 | R45: =+J45*E$7 -> 0
C46: Tractors/Self-Propelled | D46: 0 | F46: Gallon | G46: 1.8 | I46: 0 | J46: =E46*H46 -> 0 | K46: 0 | M46: 0 | N46: =J46*L46 -> 0 | O46: 0 | P46: =+J46-N46 -> 0 | Q46: 0 | R46: =+J46*E$7 -> 0
B48: Repairs & Maintenance
C49: Pickup/General Use Equipment | D49: 1 | F49: Acre | G49: 1.668103448 | I49: 1.668103448 | J49: =E49*H49 -> 0 | K49: 0 | M49: 0 | N49: =J49*L49 -> 0 | O49: 1.668103448 | P49: =+J49-N49 -> 0 | Q49: 67.725 | R49: =+J49*E$7 -> 0
C50: Irrigation Equipment | D50: 1 | F50: Acre | G50: 3.52 | I50: 3.52 | J50: 0 | K50: 0 | M50: 0 | N50: 0 | O50: 3.52 | P50: 0 | Q50: 142.912 | R50: 0
C51: Tractors/Self-Propelled | D51: 1 | F51: Acre | G51: 26.73621856 | I51: 26.73621856 | J51: 0 | K51: 0 | M51: 0 | N51: 0 | O51: 26.73621856 | P51: 0 | Q51: 1085.490473 | R51: 0
C52: Implements | D52: 1 | F52: Acre | G52: 12.56704782 | I52: 12.56704782 | J52: 0 | K52: 0 | M52: 0 | N52: 0 | O52: 12.56704782 | P52: 0 | Q52: 510.2221414 | R52: 0
I53: 0 | J53: 0 | K53: 0 | M53: 0 | N53: 0 | O53: 0 | P53: 0 | Q53: 0 | R53: 0
I54: 0 | J54: 0 | K54: 0 | M54: 0 | N54: 0 | O54: 0 | P54: 0 | Q54: 0 | R54: 0
B55: Interest on Credit Line | G55: 0.0455 | I55: 8.286631754 | J55: =+SUM(J17:J54)/2*H55 -> 0 | M55: 0 | N55: =+SUM(N17:N54)/2*L55 -> 0 | O55: 8.286631754 | P55: =+SUM(P17:P54)/2*L55 -> 0 | Q55: 336.4372492 | R55: =+J55*E$7 -> 0
A56: Total Variable Costs | I56: 355.7852469 | J56: =SUM(J18:J55) -> 0 | M56: 0 | N56: =SUM(N18:N55) -> 0 | O56: 355.7852469 | P56: =SUM(P18:P55) -> 0 | Q56: 14444.88102 | R56: =SUM(R18:R55) -> 0
A57: Planned Returns Above Variable Costs: | I57: -124.9252469 | J57: =+J13-J56 -> 0 | M57: 0 | N57: =+N13-N56 -> 0 | O57: -124.9252469 | P57: =+P13-P56 -> 0 | Q57: -5071.965024 | R57: =+R13-R56 -> 0
B58: Breakeven Price to Cover Variable Costs | G58: 7.474479977 | H58: =IF(E10=0,"n/a",(YVarExp-(YTotExp+YTotRet-J10))/E10) -> n/a | I58: CWT
Q59: Enterprise | R59: Enterprise
A60: FIXED COSTS | D60: Quantity | E60: Quantity | F60: Units | G60: $/Unit | H60: $/Unit | I60: Total | J60: Total | K60: Share | L60: Share | M60: Landlord | N60: Landlord | O60: Tenant | P60: Tenant | Q60: Total | R60: Total
B61: Machinery Depreciation
C62: Pickup/General Use Equipment | D62: 1 | F62: Acre | G62: 3.49137931 | I62: 3.49137931 | J62: =E62*H62 -> 0 | K62: 0 | M62: 0 | N62: =J62*L62 -> 0 | O62: 3.49137931 | P62: =+J62-N62 -> 0 | Q62: 141.75 | R62: =+J62*E$7 -> 0
C63: Irrigation Equipment | D63: 1 | F63: Acre | G63: 95.11637143 | I63: 95.11637143 | J63: 0 | K63: 0 | M63: 0 | N63: =J63*L63 -> 0 | O63: 95.11637143 | P63: 0 | Q63: 3861.72468 | R63: 0
C64: Tractors/Self-Propelled | D64: 1 | F64: Acre | G64: 26.5461155 | I64: 26.5461155 | J64: 0 | K64: 0 | M64: 0 | N64: =J64*L64 -> 0 | O64: 26.5461155 | P64: 0 | Q64: 1077.772289 | R64: 0
C65: Implements | D65: 1 | F65: Acre | G65: 16.04323892 | I65: 16.04323892 | J65: 0 | K65: 0 | M65: 0 | N65: =J65*L65 -> 0 | O65: 16.04323892 | P65: 0 | Q65: 651.3555 | R65: 0
B66: Equipment Investment
C67: Pickup/General Use Equipment | D67: 21.3362069 | F67: Dollars | G67: 0.055 | I67: 1.173491379 | J67: =E67*H67 -> 0 | K67: 0 | M67: 0 | N67: =J67*L67 -> 0 | O67: 1.173491379 | P67: =+J67-N67 -> 0 | Q67: 47.64375 | R67: =+J67*E$7 -> 0
C68: Irrigation Equipment | D68: 970.3791429 | F68: Dollars | G68: 0.055 | I68: 53.37085286 | J68: 0 | K68: 0 | M68: 0 | N68: =J68*L68 -> 0 | O68: 53.37085286 | P68: 0 | Q68: 2166.856626 | R68: 0
C69: Tractors/Self-Propelled | D69: 202.0010828 | F69: Dollars | G69: 0.055 | I69: 11.11005955 | J69: 0 | K69: 0 | M69: 0 | N69: =J69*L69 -> 0 | O69: 11.11005955 | P69: 0 | Q69: 451.0684179 | R69: 0
C70: Implements | D70: 77.76393379 | F70: Dollars | G70: 0.055 | I70: 4.277016359 | J70: 0 | K70: 0 | M70: 0 | N70: =J70*L70 -> 0 | O70: 4.277016359 | P70: 0 | Q70: 173.6468642 | R70: 0
B71: Salaried Labor | D71: 1 | F71: Acre | G71: 0 | I71: 0 | J71: 0 | K71: 0 | M71: 0 | N71: =J71*L71 -> 0 | O71: 0 | P71: =+J71-N71 -> 0 | Q71: 0 | R71: =+J71*E$7 -> 0
B72: Management Fee, Owner/Operator Labor | D72: 1 | F72: Acre | G72: 0 | I72: 0 | J72: 0 | K72: 0 | M72: 0 | N72: 0 | O72: 0 | P72: 0 | Q72: 0 | R72: 0
B73: Allocated Establishment Cost | D73: 1 | F73: Acre | G73: 0 | I73: 0 | J73: 0 | K73: 0 | M73: 0 | N73: 0 | O73: 0 | P73: 0 | Q73: 0 | R73: 0
B74: Lease value - Drip | D74: 1 | F74: Acre | G74: 50 | I74: 50 | J74: 0 | K74: 0 | M74: 0 | N74: 0 | O74: 50 | P74: 0 | Q74: 2030 | R74: 0
B75: Property Taxes | D75: 1 | F75: Acre | G75: 0 | I75: 0 | J75: 0 | K75: 0 | M75: 0 | N75: 0 | O75: 0 | P75: 0 | Q75: 0 | R75: 0
B76: Whole Farm Insurance | D76: 1 | F76: Acre | G76: 0 | I76: 0 | J76: 0 | K76: 0 | M76: 0 | N76: 0 | O76: 0 | P76: 0 | Q76: 0 | R76: 0
D77: 1 | G77: 0 | I77: 0 | J77: 0 | K77: 0 | M77: 0 | N77: 0 | O77: 0 | P77: 0 | Q77: 0 | R77: 0
D78: 1 | G78: 0 | I78: 0 | J78: =E78*H78 -> 0 | K78: 0 | M78: 0 | N78: 0 | O78: 0 | P78: 0 | Q78: 0 | R78: 0
A79: Total Fixed Costs | I79: 261.1285253 | J79: =+SUM(J62:J78) -> 0 | M79: 0 | N79: =+SUM(N62:N78) -> 0 | O79: 261.1285253 | P79: =+SUM(P62:P78) -> 0 | Q79: 10601.81813 | R79: =+SUM(R62:R78) -> 0
A80: Total Specified Costs | I80: 616.9137722 | J80: =+J56+J79 -> 0 | M80: 0 | N80: =+N56+N79 -> 0 | O80: 616.9137722 | P80: =+P56+P79 -> 0 | Q80: 25046.69915 | R80: =+R56+R79 -> 0
A82: Returns Above Specified Costs | I82: -386.0537722 | J82: =+J13-J80 -> 0 | M82: 0 | N82: =+N13-N80 -> 0 | O82: -386.0537722 | P82: =+P13-P80 -> 0 | Q82: -15673.78315 | R82: =+R13-R80 -> 0
A84: Breakeven Price to Cover Total Costs | G84: 12.96037337 | H84: =IF(E10=0,"n/a",(YTotExp-(YTotExp+YTotRet-J10))/E10) -> n/a | I84: CWT
D86: Example Breakeven Prices
B87: Example | C87: Example | D87: To Cover | G87: To Cover
B88: Yield | C88: Yield | D88: Variable | G88: Total
B89: Percent | C89: CWT | D89: Costs | G89: Costs
B90: 0.75 | C90: 35.7 | D90: 9.965973303 | G90: 17.28049782
B91: 0.9 | C91: 42.84 | D91: 8.304977752 | G91: 14.40041485
B92: 1 | C92: 47.6 | D92: 7.474479977 | G92: 12.96037337
B93: 1.1 | C93: 52.36 | D93: 6.794981797 | G93: 11.78215761
B94: 1.25 | C94: 59.5 | D94: 5.979583982 | G94: 10.36829869
D96: Your Breakeven Prices
B97: Your | C97: Your | E97: To Cover | H97: To Cover
B98: Yield | C98: Yield | E98: Variable | H98: Total
B99: Percent | C99: CWT | E99: Costs | H99: Costs
B100: 0.75 | C100: =E10*YPER1 -> 0 | E100: =IF($E$10=0,0,(YVarExp-(YTotExp+YTotRet-J10))/($E$10*YPER1)) -> 0 | H100: =IF($E$10=0,0,(YTotExp-(YTotExp+YTotRet-J10))/($E$10*YPER1)) -> 0
B101: 0.9 | C101: =E10*YPER2 -> 0 | E101: =IF($E$10=0,0,(YVarExp-(YTotExp+YTotRet-J10))/($E$10*YPER2)) -> 0 | H101: =IF($E$10=0,0,(YTotExp-(YTotExp+YTotRet-J10))/($E$10*YPER2)) -> 0
B102: 1 | C102: =+E10 -> 0 | E102: =IF($E$10=0,0,(YVarExp-(YTotExp+YTotRet-J10))/($E$10*YPER3)) -> 0 | H102: =IF($E$10=0,0,(YTotExp-(YTotExp+YTotRet-J10))/($E$10*YPER3)) -> 0
B103: 1.1 | C103: =E10*YPER4 -> 0 | E103: =IF($E$10=0,0,(YVarExp-(YTotExp+YTotRet-J10))/($E$10*YPER4)) -> 0 | H103: =IF($E$10=0,0,(YTotExp-(YTotExp+YTotRet-J10))/($E$10*YPER4)) -> 0
B104: 1.25 | C104: =E10*YPER5 -> 0 | E104: =IF($E$10=0,0,(YVarExp-(YTotExp+YTotRet-J10))/($E$10*YPER5)) -> 0 | H104: =IF($E$10=0,0,(YTotExp-(YTotExp+YTotRet-J10))/($E$10*YPER5)) -> 0
A106: Developed by Bill Thompson, Assistant Professor and Extension Economist, Texas A&M AgriLife Extension Service, 325-653-4576.
A108: Information presented is prepared solely as a general guide and not intended to recognize or predict the costs and returns from any one operation. Brand names are mentioned only as examples and imply no endorsement.

Sheet TPCottonFurrow
A1: Projections for Planning Purposes Only -- Not to be Used without Updating
A2: 2021 Estimated Costs and Returns per Acre
A3: Trans Pecos Cotton, Furrow Irrigated, 40 Inch Rows
A4: Enter your name for this budget in the cell above.
A5: Enter Your Values in the cells highlighed in MAROON.
E6: Your Acres | R6: Your
C7: Crop Acres | D7: 122 | L7: Your | Q7: Enterprise | R7: Enterprise
E8: Your | H8: Your | I8: Cash | J8: Your | K8: Landlord | L8: Landlord | N8: Your | P8: Your | Q8: Total | R8: Total
A9: REVENUE | D9: Quantity | E9: Quantity | F9: Units | G9: $/Unit | H9: $/Unit | I9: Total | J9: Total | K9: Share | L9: Share | M9: Landlord | N9: Landlord | O9: Tenant | P9: Tenant | Q9: (122 acres) | R9: ="(" & E7 & " acres)" -> ( acres)
B10: Cotton Lint | D10: 1400 | F10: Pound | G10: 0.63 | I10: 882 | J10: =E10*H10 -> 0 | K10: 0 | M10: 0 | N10: =J10*L10 -> 0 | O10: 882 | P10: =+J10-N10 -> 0 | Q10: 107604 | R10: =+J10*E$7 -> 0
B11: Cotton Seed | D11: 1.0129 | F11: Ton | G11: 225 | I11: 227.9025 | J11: 0 | K11: 0 | M11: 0 | N11: 0 | O11: 227.9025 | P11: =+J11-N11 -> 0 | Q11: 27804.105 | R11: 0
D12: 0 | G12: 0 | I12: 0 | J12: 0 | K12: 0 | M12: 0 | N12: 0 | O12: 0 | P12: 0 | Q12: 0 | R12: 0
D13: 0 | G13: 0 | I13: 0 | J13: 0 | K13: 0 | M13: 0 | N13: 0 | O13: 0 | P13: 0 | Q13: 0 | R13: 0
A14: Total Revenue | I14: 1109.9025 | J14: =SUM(J10:J13) -> 0 | M14: 0 | N14: =SUM(N10:N13) -> 0 | O14: 1109.9025 | P14: =SUM(P10:P13) -> 0 | Q14: 135408.105 | R14: =SUM(R10:R13) -> 0
Q15: Enterprise | R15: Enterprise
A16: VARIABLE COSTS | D16: Quantity | E16: Quantity | F16: Units | G16: $/Unit | H16: $/Unit | I16: Total | J16: Total | K16: Share | L16: Share | M16: Landlord | N16: Landlord | O16: Tenant | P16: Tenant | Q16: Total | R16: Total
A17: Production Costs
B18: Herbicide
C19: Trifluralin Pint | D19: 2 | F19: Pint | G19: 2.75 | I19: 5.5 | J19: =E19*H19 -> 0 | K19: 0 | M19: 0 | N19: =J19*L19 -> 0 | O19: 5.5 | P19: =+J19-N19 -> 0 | Q19: 671 | R19: =+J19*E$7 -> 0
C20: Mepiquat Chloride-PGR | D20: 22 | F20: Ounce | G20: 0.0625 | I20: 1.375 | J20: 0 | K20: 0 | M20: 0 | N20: 0 | O20: 1.375 | P20: 0 | Q20: 167.75 | R20: 0
C21: Glyphosate Ounce Generic | D21: 64 | F21: Ounce | G21: 0.1328125 | I21: 8.5 | J21: 0 | K21: 0 | M21: 0 | N21: 0 | O21: 8.5 | P21: 0 | Q21: 1037 | R21: 0
B22: Seed
C23: Cotton Seed BIIRRF - Irrigated | D23: 40 | F23: Thousand | G23: 1.6521739 | I23: 66.086956 | J23: 0 | K23: 0 | M23: 0 | N23: 0 | O23: 66.086956 | P23: 0 | Q23: 8062.608632 | R23: 0
B24: Fertilizer
C25: Potash 0-0-60 | D25: 75 | F25: Pound | G25: 0.3 | I25: 22.5 | J25: 0 | K25: 0 | M25: 0 | N25: 0 | O25: 22.5 | P25: 0 | Q25: 2745 | R25: 0
C26: N-32 | D26: 140 | F26: Pound | G26: 0.3828 | I26: 53.592 | J26: 0 | K26: 0 | M26: 0 | N26: 0 | O26: 53.592 | P26: 0 | Q26: 6538.224 | R26: 0
C27: Phosphoric Acid | D27: 32 | F27: Pound | G27: 0.29 | I27: 9.28 | J27: 0 | K27: 0 | M27: 0 | N27: 0 | O27: 9.28 | P27: 0 | Q27: 1132.16 | R27: 0
B28: Custom
C29: Custom Spray | D29: 2 | F29: Acre | G29: 6 | I29: 12 | J29: 0 | K29: 0 | M29: 0 | N29: 0 | O29: 12 | P29: 0 | Q29: 1464 | R29: 0
C30: Bag, Tie | D30: 3 | F30: Bale | G30: 15 | I30: 45 | J30: 0 | K30: 0 | M30: 0 | N30: 0 | O30: 45 | P30: 0 | Q30: 5490 | R30: 0
C31: Soil Test-Irrigated | D31: 1 | F31: Acre | G31: 0.5 | I31: 0.5 | J31: 0 | K31: 0 | M31: 0 | N31: 0 | O31: 0.5 | P31: 0 | Q31: 61 | R31: 0
B32: Miscellaneous
C33: Boll Weevil Eradication Program | D33: 2.8 | F33: Bale | G33: 1 | I33: 2.8 | J33: 0 | K33: 0 | M33: 0 | N33: 0 | O33: 2.8 | P33: 0 | Q33: 341.6 | R33: 0
C34: IRR Cotton RP, 70% Ent, SE, Pecos Co. | D34: 1 | F34: Acre | G34: 18.98 | I34: 18.98 | J34: 0 | K34: 0 | M34: 0 | N34: 0 | O34: 18.98 | P34: 0 | Q34: 2315.56 | R34: 0
B35: Other Labor
C36: Hand Labor TP | D36: 0.7764 | F36: Hour | G36: 10 | I36: 7.764 | J36: 0 | K36: 0 | M36: 0 | N36: 0 | O36: 7.764 | P36: 0 | Q36: 947.208 | R36: 0
B37: Other Chemicals
C38: Ethephon 6 Pint | D38: 1.5 | F38: Pint | G38: 3.8125 | I38: 5.71875 | J38: 0 | K38: 0 | M38: 0 | N38: 0 | O38: 5.71875 | P38: 0 | Q38: 697.6875 | R38: 0
C39: Firestorm (3lb Paraquat) | D39: 28 | F39: Ounce | G39: 0.1796875 | I39: 5.03125 | J39: 0 | K39: 0 | M39: 0 | N39: 0 | O39: 5.03125 | P39: 0 | Q39: 613.8125 | R39: 0
C40: Cutout | D40: 5 | F40: Ounce | G40: 0.921875 | I40: 4.609375 | J40: 0 | K40: 0 | M40: 0 | N40: 0 | O40: 4.609375 | P40: 0 | Q40: 562.34375 | R40: 0
D41: 0 | G41: 0 | I41: 0 | J41: 0 | K41: 0 | M41: 0 | N41: 0 | O41: 0 | P41: 0 | Q41: 0 | R41: 0
D42: 0 | G42: 0 | I42: 0 | J42: 0 | K42: 0 | M42: 0 | N42: 0 | O42: 0 | P42: 0 | Q42: 0 | R42: 0
D43: 0 | G43: 0 | I43: 0 | J43: =E43*H43 -> 0 | K43: 0 | M43: 0 | N43: =J43*L43 -> 0 | O43: 0 | P43: =+J43-N43 -> 0 | Q43: 0 | R43: =+J43*E$7 -> 0
B44: Irrigation
C45: Energy Cost | D45: 28 | F45: AcreInch | G45: 5.089669172 | I45: 142.5107368 | J45: =E45*H45 -> 0 | K45: 0 | M45: 0 | N45: =J45*L45 -> 0 | O45: 142.5107368 | P45: =+J45-N45 -> 0 | Q45: 17386.30989 | R45: =+J45*E$7 -> 0
C46: Irrigation Labor | D46: 1 | F46: Hour | G46: 15 | I46: 15 | J46: 0 | K46: 0 | M46: 0 | N46: 0 | O46: 15 | P46: 0 | Q46: 1830 | R46: 0
B47: Machinery Labor
C48: Tractors/Self-Propelled | D48: 1.62 | F48: Hour | G48: 15 | I48: 24.3 | J48: =E48*H48 -> 0 | K48: 0 | M48: 0 | N48: =J48*L48 -> 0 | O48: 24.3 | P48: =+J48-N48 -> 0 | Q48: 2964.6 | R48: =+J48*E$7 -> 0
C49: Other Labor | D49: 0 | F49: Hour | G49: 15 | I49: 0 | J49: =E49*H49 -> 0 | K49: 0 | M49: 0 | N49: =J49*L49 -> 0 | O49: 0 | P49: =+J49-N49 -> 0 | Q49: 0 | R49: =+J49*E$7 -> 0
B51: Diesel Fuel
C52: Pickup/General Use Equipment | D52: 1 | F52: Acre | G52: 0 | I52: 0 | J52: =E52*H52 -> 0 | K52: 0 | M52: 0 | N52: =J52*L52 -> 0 | O52: 0 | P52: =+J52-N52 -> 0 | Q52: 0 | R52: =+J52*E$7 -> 0
C53: Tractors/Self-Propelled | D53: 12.72 | F53: Gallon | G53: 1.5 | I53: 19.08 | J53: =E53*H53 -> 0 | K53: 0 | M53: 0 | N53: =J53*L53 -> 0 | O53: 19.08 | P53: =+J53-N53 -> 0 | Q53: 2327.76 | R53: =+J53*E$7 -> 0
B55: Gasoline
C56: Pickup/General Use Equipment | D56: 1 | F56: Acre | G56: 10.13606557 | I56: 10.13606557 | J56: =E56*H56 -> 0 | K56: 0 | M56: 0 | N56: =J56*L56 -> 0 | O56: 10.13606557 | P56: =+J56-N56 -> 0 | Q56: 1236.6 | R56: =+J56*E$7 -> 0
C57: Tractors/Self-Propelled | D57: 0 | F57: Gallon | G57: 1.8 | I57: 0 | J57: =E57*H57 -> 0 | K57: 0 | M57: 0 | N57: =J57*L57 -> 0 | O57: 0 | P57: =+J57-N57 -> 0 | Q57: 0 | R57: =+J57*E$7 -> 0
B59: Repairs & Maintenance
C60: Pickup/General Use Equipment | D60: 1 | F60: Acre | G60: 3.204221311 | I60: 3.204221311 | J60: =E60*H60 -> 0 | K60: 0 | M60: 0 | N60: =J60*L60 -> 0 | O60: 3.204221311 | P60: =+J60-N60 -> 0 | Q60: 390.915 | R60: =+J60*E$7 -> 0
C61: Irrigation Equipment | D61: 1 | F61: Acre | G61: 13.0452 | I61: 13.0452 | J61: 0 | K61: 0 | M61: 0 | N61: 0 | O61: 13.0452 | P61: 0 | Q61: 1591.5144 | R61: 0
C62: Tractors/Self-Propelled | D62: 1 | F62: Acre | G62: 32.76155252 | I62: 32.76155252 | J62: 0 | K62: 0 | M62: 0 | N62: 0 | O62: 32.76155252 | P62: 0 | Q62: 3996.909407 | R62: 0
C63: Implements | D63: 1 | F63: Acre | G63: 14.91843773 | I63: 14.91843773 | J63: 0 | K63: 0 | M63: 0 | N63: 0 | O63: 14.91843773 | P63: 0 | Q63: 1820.049403 | R63: 0
I64: 0 | J64: 0 | K64: 0 | M64: 0 | N64: 0 | O64: 0 | P64: 0 | Q64: 0 | R64: 0
I65: 0 | J65: 0 | K65: 0 | M65: 0 | N65: 0 | O65: 0 | P65: 0 | Q65: 0 | R65: 0
B66: Interest on Credit Line | G66: 0.0455 | I66: 7.781066737 | J66: =+SUM(J18:J65)/2*H66 -> 0 | M66: 0 | N66: =+SUM(N18:N65)/2*L66 -> 0 | O66: 7.781066737 | P66: =+SUM(P18:P65)/2*L66 -> 0 | Q66: 949.2901419 | R66: =+J66*E$7 -> 0
A67: Total Variable Costs | I67: 551.9746117 | J67: =SUM(J19:J66) -> 0 | M67: 0 | N67: =SUM(N19:N66) -> 0 | O67: 551.9746117 | P67: =SUM(P19:P66) -> 0 | Q67: 67340.90262 | R67: =SUM(R19:R66) -> 0
A68: Planned Returns Above Variable Costs: | I68: 557.9278883 | J68: =+J14-J67 -> 0 | M68: 0 | N68: =+N14-N67 -> 0 | O68: 557.9278883 | P68: =+P14-P67 -> 0 | Q68: 68067.20238 | R68: =+R14-R67 -> 0
B69: Breakeven Price to Cover Variable Costs | G69: 0.2314800798 | H69: =IF(E10=0,"n/a",(YVarExp-(YTotExp+YTotRet-J10))/E10) -> n/a | I69: Pound
Q70: Enterprise | R70: Enterprise
A71: FIXED COSTS | D71: Quantity | E71: Quantity | F71: Units | G71: $/Unit | H71: $/Unit | I71: Total | J71: Total | K71: Share | L71: Share | M71: Landlord | N71: Landlord | O71: Tenant | P71: Tenant | Q71: Total | R71: Total
B72: Machinery Depreciation
C73: Pickup/General Use Equipment | D73: 1 | F73: Acre | G73: 9.151229508 | I73: 9.151229508 | J73: =E73*H73 -> 0 | K73: 0 | M73: 0 | N73: =J73*L73 -> 0 | O73: 9.151229508 | P73: =+J73-N73 -> 0 | Q73: 1116.45 | R73: =+J73*E$7 -> 0
C74: Irrigation Equipment | D74: 1 | F74: Acre | G74: 54.3715847 | I74: 54.3715847 | J74: 0 | K74: 0 | M74: 0 | N74: =J74*L74 -> 0 | O74: 54.3715847 | P74: 0 | Q74: 6633.333333 | R74: 0
C75: Tractors/Self-Propelled | D75: 1 | F75: Acre | G75: 36.5340529 | I75: 36.5340529 | J75: 0 | K75: 0 | M75: 0 | N75: =J75*L75 -> 0 | O75: 36.5340529 | P75: 0 | Q75: 4457.154454 | R75: 0
C76: Implements | D76: 1 | F76: Acre | G76: 18.55978826 | I76: 18.55978826 | J76: 0 | K76: 0 | M76: 0 | N76: =J76*L76 -> 0 | O76: 18.55978826 | P76: 0 | Q76: 2264.294168 | R76: 0
B77: Equipment Investment
C78: Pickup/General Use Equipment | D78: 45.16598361 | F78: Dollars | G78: 0.055 | I78: 2.484129098 | J78: =E78*H78 -> 0 | K78: 0 | M78: 0 | N78: =J78*L78 -> 0 | O78: 2.484129098 | P78: =+J78-N78 -> 0 | Q78: 303.06375 | R78: =+J78*E$7 -> 0
C79: Irrigation Equipment | D79: 407.7868852 | F79: Dollars | G79: 0.055 | I79: 22.42827869 | J79: 0 | K79: 0 | M79: 0 | N79: =J79*L79 -> 0 | O79: 22.42827869 | P79: 0 | Q79: 2736.25 | R79: 0
C80: Tractors/Self-Propelled | D80: 318.145139 | F80: Dollars | G80: 0.055 | I80: 17.49798264 | J80: 0 | K80: 0 | M80: 0 | N80: =J80*L80 -> 0 | O80: 17.49798264 | P80: 0 | Q80: 2134.753883 | R80: 0
C81: Implements | D81: 104.3216029 | F81: Dollars | G81: 0.055 | I81: 5.73768816 | J81: 0 | K81: 0 | M81: 0 | N81: =J81*L81 -> 0 | O81: 5.73768816 | P81: 0 | Q81: 699.9979555 | R81: 0
B82: Salaried Labor | D82: 1 | F82: Acre | G82: 0 | I82: 0 | J82: 0 | K82: 0 | M82: 0 | N82: =J82*L82 -> 0 | O82: 0 | P82: =+J82-N82 -> 0 | Q82: 0 | R82: =+J82*E$7 -> 0
B83: Management Fee, Owner/Operator Labor | D83: 1 | F83: Acre | G83: 0 | I83: 0 | J83: 0 | K83: 0 | M83: 0 | N83: 0 | O83: 0 | P83: 0 | Q83: 0 | R83: 0
B84: Allocated Establishment Cost | D84: 1 | F84: Acre | G84: 0 | I84: 0 | J84: 0 | K84: 0 | M84: 0 | N84: 0 | O84: 0 | P84: 0 | Q84: 0 | R84: 0
B85: Trans Pecos Irrigated Land | D85: 1 | F85: Acre | G85: 50 | I85: 50 | J85: 0 | K85: 0 | M85: 0 | N85: 0 | O85: 50 | P85: 0 | Q85: 6100 | R85: 0
B86: Property Taxes | D86: 1 | F86: Acre | G86: 0 | I86: 0 | J86: 0 | K86: 0 | M86: 0 | N86: 0 | O86: 0 | P86: 0 | Q86: 0 | R86: 0
B87: Whole Farm Insurance | D87: 1 | F87: Acre | G87: 0 | I87: 0 | J87: 0 | K87: 0 | M87: 0 | N87: 0 | O87: 0 | P87: 0 | Q87: 0 | R87: 0
D88: 1 | G88: 0 | I88: 0 | J88: 0 | K88: 0 | M88: 0 | N88: 0 | O88: 0 | P88: 0 | Q88: 0 | R88: 0
D89: 1 | G89: 0 | I89: 0 | J89: =E89*H89 -> 0 | K89: 0 | M89: 0 | N89: 0 | O89: 0 | P89: 0 | Q89: 0 | R89: 0
A90: Total Fixed Costs | I90: 216.764734 | J90: =+SUM(J73:J89) -> 0 | M90: 0 | N90: =+SUM(N73:N89) -> 0 | O90: 216.764734 | P90: =+SUM(P73:P89) -> 0 | Q90: 26445.29754 | R90: =+SUM(R73:R89) -> 0
A91: Total Specified Costs | I91: 768.7393456 | J91: =+J67+J90 -> 0 | M91: 0 | N91: =+N67+N90 -> 0 | O91: 768.7393456 | P91: =+P67+P90 -> 0 | Q91: 93786.20017 | R91: =+R67+R90 -> 0
A93: Returns Above Specified Costs | I93: 341.1631544 | J93: =+J14-J91 -> 0 | M93: 0 | N93: =+N14-N91 -> 0 | O93: 341.1631544 | P93: =+P14-P91 -> 0 | Q93: 41621.90483 | R93: =+R14-R91 -> 0
A95: Breakeven Price to Cover Total Costs | G95: 0.3863120326 | H95: =IF(E10=0,"n/a",(YTotExp-(YTotExp+YTotRet-J10))/E10) -> n/a | I95: Pound
D97: Example Breakeven Prices
B98: Example | C98: Example | D98: To Cover | G98: To Cover
B99: Yield | C99: Yield | D99: Variable | G99: Total
B100: Percent | C100: Pound | D100: Costs | G100: Costs
B101: 0.75 | C101: 1050 | D101: 0.3086401064 | G101: 0.5150827101
B102: 0.9 | C102: 1260 | D102: 0.2572000886 | G102: 0.4292355918
B103: 1 | C103: 1400 | D103: 0.2314800798 | G103: 0.3863120326
B104: 1.1 | C104: 1540 | D104: 0.2104364362 | G104: 0.3511927569
B105: 1.25 | C105: 1750 | D105: 0.1851840638 | G105: 0.3090496261
D107: Your Breakeven Prices
B108: Your | C108: Your | E108: To Cover | H108: To Cover
B109: Yield | C109: Yield | E109: Variable | H109: Total
B110: Percent | C110: Pound | E110: Costs | H110: Costs
B111: 0.75 | C111: =E10*YPER1 -> 0 | E111: =IF($E$10=0,0,(YVarExp-(YTotExp+YTotRet-J10))/($E$10*YPER1)) -> 0 | H111: =IF($E$10=0,0,(YTotExp-(YTotExp+YTotRet-J10))/($E$10*YPER1)) -> 0
B112: 0.9 | C112: =E10*YPER2 -> 0 | E112: =IF($E$10=0,0,(YVarExp-(YTotExp+YTotRet-J10))/($E$10*YPER2)) -> 0 | H112: =IF($E$10=0,0,(YTotExp-(YTotExp+YTotRet-J10))/($E$10*YPER2)) -> 0
B113: 1 | C113: =+E10 -> 0 | E113: =IF($E$10=0,0,(YVarExp-(YTotExp+YTotRet-J10))/($E$10*YPER3)) -> 0 | H113: =IF($E$10=0,0,(YTotExp-(YTotExp+YTotRet-J10))/($E$10*YPER3)) -> 0
B114: 1.1 | C114: =E10*YPER4 -> 0 | E114: =IF($E$10=0,0,(YVarExp-(YTotExp+YTotRet-J10))/($E$10*YPER4)) -> 0 | H114: =IF($E$10=0,0,(YTotExp-(YTotExp+YTotRet-J10))/($E$10*YPER4)) -> 0
B115: 1.25 | C115: =E10*YPER5 -> 0 | E115: =IF($E$10=0,0,(YVarExp-(YTotExp+YTotRet-J10))/($E$10*YPER5)) -> 0 | H115: =IF($E$10=0,0,(YTotExp-(YTotExp+YTotRet-J10))/($E$10*YPER5)) -> 0
A117: Developed by Bill Thompson, Assistant Professor and Extension Economist, Texas A&M AgriLife Extension Service, 325-653-4576.
A119: Information presented is prepared solely as a general guide and not intended to recognize or predict the costs and returns from any one operation. Brand names are mentioned only as examples and imply no endorsement.

Sheet TPCottonPivot
A1: Projections for Planning Purposes Only -- Not to be Used without Updating
A2: 2021 Estimated Costs and Returns per Acre
A3: Trans Pecos Cotton, Center Pivot Irrigated, 40 Inch Rows
A4: Enter your name for this budget in the cell above.
A5: Enter Your Values in the cells highlighed in MAROON.
E6: Your Acres | R6: Your
C7: Crop Acres | D7: 122 | L7: Your | Q7: Enterprise | R7: Enterprise
E8: Your | H8: Your | I8: Cash | J8: Your | K8: Landlord | L8: Landlord | N8: Your | P8: Your | Q8: Total | R8: Total
A9: REVENUE | D9: Quantity | E9: Quantity | F9: Units | G9: $/Unit | H9: $/Unit | I9: Total | J9: Total | K9: Share | L9: Share | M9: Landlord | N9: Landlord | O9: Tenant | P9: Tenant | Q9: (122 acres) | R9: ="(" & E7 & " acres)" -> ( acres)
B10: Cotton Lint | D10: 1500 | F10: Pound | G10: 0.63 | I10: 945 | J10: =E10*H10 -> 0 | K10: 0 | M10: 0 | N10: =J10*L10 -> 0 | O10: 945 | P10: =+J10-N10 -> 0 | Q10: 115290 | R10: =+J10*E$7 -> 0
B11: Cotton Seed | D11: 1.4 | F11: Ton | G11: 225 | I11: 315 | J11: 0 | K11: 0 | M11: 0 | N11: 0 | O11: 315 | P11: =+J11-N11 -> 0 | Q11: 38430 | R11: 0
D12: 0 | G12: 0 | I12: 0 | J12: 0 | K12: 0 | M12: 0 | N12: 0 | O12: 0 | P12: 0 | Q12: 0 | R12: 0
D13: 0 | G13: 0 | I13: 0 | J13: 0 | K13: 0 | M13: 0 | N13: 0 | O13: 0 | P13: 0 | Q13: 0 | R13: 0
A14: Total Revenue | I14: 1260 | J14: =SUM(J10:J13) -> 0 | M14: 0 | N14: =SUM(N10:N13) -> 0 | O14: 1260 | P14: =SUM(P10:P13) -> 0 | Q14: 153720 | R14: =SUM(R10:R13) -> 0
Q15: Enterprise | R15: Enterprise
A16: VARIABLE COSTS | D16: Quantity | E16: Quantity | F16: Units | G16: $/Unit | H16: $/Unit | I16: Total | J16: Total | K16: Share | L16: Share | M16: Landlord | N16: Landlord | O16: Tenant | P16: Tenant | Q16: Total | R16: Total
A17: Production Costs
B18: Seed
C19: Cotton Seed BIIRRF - Irrigated | D19: 40 | F19: Thousand | G19: 1.6521739 | I19: 66.086956 | J19: =E19*H19 -> 0 | K19: 0 | M19: 0 | N19: =J19*L19 -> 0 | O19: 66.086956 | P19: =+J19-N19 -> 0 | Q19: 8062.608632 | R19: =+J19*E$7 -> 0
B20: Fertilizer
C21: Potash 0-0-60 | D21: 75 | F21: Pound | G21: 0.3 | I21: 22.5 | J21: 0 | K21: 0 | M21: 0 | N21: 0 | O21: 22.5 | P21: 0 | Q21: 2745 | R21: 0
C22: N-32 | D22: 140 | F22: Pound | G22: 0.3828 | I22: 53.592 | J22: 0 | K22: 0 | M22: 0 | N22: 0 | O22: 53.592 | P22: 0 | Q22: 6538.224 | R22: 0
C23: Phosphoric Acid | D23: 32 | F23: Pound | G23: 0.29 | I23: 9.28 | J23: 0 | K23: 0 | M23: 0 | N23: 0 | O23: 9.28 | P23: 0 | Q23: 1132.16 | R23: 0
B24: Custom
C25: Soil Test-Irrigated | D25: 1 | F25: Acre | G25: 0.5 | I25: 0.5 | J25: 0 | K25: 0 | M25: 0 | N25: 0 | O25: 0.5 | P25: 0 | Q25: 61 | R25: 0
C26: Custom Spray | D26: 2 | F26: Acre | G26: 6 | I26: 12 | J26: 0 | K26: 0 | M26: 0 | N26: 0 | O26: 12 | P26: 0 | Q26: 1464 | R26: 0
C27: Bag, Tie | D27: 2.5 | F27: Bale | G27: 15 | I27: 37.5 | J27: 0 | K27: 0 | M27: 0 | N27: 0 | O27: 37.5 | P27: 0 | Q27: 4575 | R27: 0
C28: Gin and Haul | D28: 53.57 | F28: CWT | G28: 2.5 | I28: 133.925 | J28: 0 | K28: 0 | M28: 0 | N28: 0 | O28: 133.925 | P28: 0 | Q28: 16338.85 | R28: 0
B29: Herbicide
C30: Trifluralin Pint | D30: 2 | F30: Pint | G30: 2.75 | I30: 5.5 | J30: 0 | K30: 0 | M30: 0 | N30: 0 | O30: 5.5 | P30: 0 | Q30: 671 | R30: 0
C31: Caparol 4L Ounce | D31: 24 | F31: Ounce | G31: 0.2539 | I31: 6.0936 | J31: 0 | K31: 0 | M31: 0 | N31: 0 | O31: 6.0936 | P31: 0 | Q31: 743.4192 | R31: 0
C32: Glyphosate Ounce Generic | D32: 64 | F32: Ounce | G32: 0.1328125 | I32: 8.5 | J32: 0 | K32: 0 | M32: 0 | N32: 0 | O32: 8.5 | P32: 0 | Q32: 1037 | R32: 0
C33: Direx 4L | D33: 2 | F33: Pint | G33: 2.74 | I33: 5.48 | J33: 0 | K33: 0 | M33: 0 | N33: 0 | O33: 5.48 | P33: 0 | Q33: 668.56 | R33: 0
C34: Mepiquat Chloride-PGR | D34: 22 | F34: Ounce | G34: 0.0625 | I34: 1.375 | J34: 0 | K34: 0 | M34: 0 | N34: 0 | O34: 1.375 | P34: 0 | Q34: 167.75 | R34: 0
B35: Other Chemicals
C36: Ethephon 6 Pint | D36: 1.5 | F36: Pint | G36: 3.8125 | I36: 5.71875 | J36: 0 | K36: 0 | M36: 0 | N36: 0 | O36: 5.71875 | P36: 0 | Q36: 697.6875 | R36: 0
C37: Firestorm (3lb Paraquat) | D37: 28 | F37: Ounce | G37: 0.1796875 | I37: 5.03125 | J37: 0 | K37: 0 | M37: 0 | N37: 0 | O37: 5.03125 | P37: 0 | Q37: 613.8125 | R37: 0
C38: Cutout | D38: 5 | F38: Ounce | G38: 0.921875 | I38: 4.609375 | J38: 0 | K38: 0 | M38: 0 | N38: 0 | O38: 4.609375 | P38: 0 | Q38: 562.34375 | R38: 0
B39: Miscellaneous
C40: Boll Weevil Eradication Program | D40: 3 | F40: Bale | G40: 1 | I40: 3 | J40: 0 | K40: 0 | M40: 0 | N40: 0 | O40: 3 | P40: 0 | Q40: 366 | R40: 0
C41: IRR Cotton RP, 70% Ent, SE, Pecos Co. | D41: 1 | F41: Acre | G41: 18.98 | I41: 18.98 | J41: 0 | K41: 0 | M41: 0 | N41: 0 | O41: 18.98 | P41: 0 | Q41: 2315.56 | R41: 0
D42: 0 | G42: 0 | I42: 0 | J42: 0 | K42: 0 | M42: 0 | N42: 0 | O42: 0 | P42: 0 | Q42: 0 | R42: 0
D43: 0 | G43: 0 | I43: 0 | J43: 0 | K43: 0 | M43: 0 | N43: 0 | O43: 0 | P43: 0 | Q43: 0 | R43: 0
D44: 0 | G44: 0 | I44: 0 | J44: =E44*H44 -> 0 | K44: 0 | M44: 0 | N44: =J44*L44 -> 0 | O44: 0 | P44: =+J44-N44 -> 0 | Q44: 0 | R44: =+J44*E$7 -> 0
B45: Irrigation
C46: Energy Cost | D46: 27 | F46: AcreInch | G46: 6.713893249 | I46: 181.2751177 | J46: =E46*H46 -> 0 | K46: 0 | M46: 0 | N46: =J46*L46 -> 0 | O46: 181.2751177 | P46: =+J46-N46 -> 0 | Q46: 22115.56436 | R46: =+J46*E$7 -> 0
C47: Irrigation Labor | D47: 0.1182 | F47: Hour | G47: 15 | I47: 1.773 | J47: 0 | K47: 0 | M47: 0 | N47: 0 | O47: 1.773 | P47: 0 | Q47: 216.306 | R47: 0
B48: Machinery Labor
C49: Tractors/Self-Propelled | D49: 1.54 | F49: Hour | G49: 15 | I49: 23.1 | J49: =E49*H49 -> 0 | K49: 0 | M49: 0 | N49: =J49*L49 -> 0 | O49: 23.1 | P49: =+J49-N49 -> 0 | Q49: 2818.2 | R49: =+J49*E$7 -> 0
C50: Other Labor | D50: 0 | F50: Hour | G50: 15 | I50: 0 | J50: =E50*H50 -> 0 | K50: 0 | M50: 0 | N50: =J50*L50 -> 0 | O50: 0 | P50: =+J50-N50 -> 0 | Q50: 0 | R50: =+J50*E$7 -> 0
B52: Diesel Fuel
C53: Pickup/General Use Equipment | D53: 1 | F53: Acre | G53: 0 | I53: 0 | J53: =E53*H53 -> 0 | K53: 0 | M53: 0 | N53: =J53*L53 -> 0 | O53: 0 | P53: =+J53-N53 -> 0 | Q53: 0 | R53: =+J53*E$7 -> 0
C54: Tractors/Self-Propelled | D54: 12.14 | F54: Gallon | G54: 1.5 | I54: 18.21 | J54: =E54*H54 -> 0 | K54: 0 | M54: 0 | N54: =J54*L54 -> 0 | O54: 18.21 | P54: =+J54-N54 -> 0 | Q54: 2221.62 | R54: =+J54*E$7 -> 0
B56: Gasoline
C57: Pickup/General Use Equipment | D57: 1 | F57: Acre | G57: 10.13606557 | I57: 10.13606557 | J57: =E57*H57 -> 0 | K57: 0 | M57: 0 | N57: =J57*L57 -> 0 | O57: 10.13606557 | P57: =+J57-N57 -> 0 | Q57: 1236.6 | R57: =+J57*E$7 -> 0
C58: Tractors/Self-Propelled | D58: 0 | F58: Gallon | G58: 1.8 | I58: 0 | J58: =E58*H58 -> 0 | K58: 0 | M58: 0 | N58: =J58*L58 -> 0 | O58: 0 | P58: =+J58-N58 -> 0 | Q58: 0 | R58: =+J58*E$7 -> 0
B60: Repairs & Maintenance
C61: Pickup/General Use Equipment | D61: 1 | F61: Acre | G61: 3.204221311 | I61: 3.204221311 | J61: =E61*H61 -> 0 | K61: 0 | M61: 0 | N61: =J61*L61 -> 0 | O61: 3.204221311 | P61: =+J61-N61 -> 0 | Q61: 390.915 | R61: =+J61*E$7 -> 0
C62: Irrigation Equipment | D62: 1 | F62: Acre | G62: 71.2098 | I62: 71.2098 | J62: 0 | K62: 0 | M62: 0 | N62: 0 | O62: 71.2098 | P62: 0 | Q62: 8687.5956 | R62: 0
C63: Tractors/Self-Propelled | D63: 1 | F63: Acre | G63: 35.46213338 | I63: 35.46213338 | J63: 0 | K63: 0 | M63: 0 | N63: 0 | O63: 35.46213338 | P63: 0 | Q63: 4326.380272 | R63: 0
C64: Implements | D64: 1 | F64: Acre | G64: 13.65068757 | I64: 13.65068757 | J64: 0 | K64: 0 | M64: 0 | N64: 0 | O64: 13.65068757 | P64: 0 | Q64: 1665.383883 | R64: 0
I65: 0 | J65: 0 | K65: 0 | M65: 0 | N65: 0 | O65: 0 | P65: 0 | Q65: 0 | R65: 0
I66: 0 | J66: 0 | K66: 0 | M66: 0 | N66: 0 | O66: 0 | P66: 0 | Q66: 0 | R66: 0
B67: Interest on Credit Line | G67: 0.0455 | I67: 9.385914007 | J67: =+SUM(J18:J66)/2*H67 -> 0 | M67: 0 | N67: =+SUM(N18:N66)/2*L67 -> 0 | O67: 9.385914007 | P67: =+SUM(P18:P66)/2*L67 -> 0 | Q67: 1145.081509 | R67: =+J67*E$7 -> 0
A68: Total Variable Costs | I68: 767.0788706 | J68: =SUM(J19:J67) -> 0 | M68: 0 | N68: =SUM(N19:N67) -> 0 | O68: 767.0788706 | P68: =SUM(P19:P67) -> 0 | Q68: 93583.62221 | R68: =SUM(R19:R67) -> 0
A69: Planned Returns Above Variable Costs: | I69: 492.9211294 | J69: =+J14-J68 -> 0 | M69: 0 | N69: =+N14-N68 -> 0 | O69: 492.9211294 | P69: =+P14-P68 -> 0 | Q69: 60136.37779 | R69: =+R14-R68 -> 0
B70: Breakeven Price to Cover Variable Costs | G70: 0.3013859137 | H70: =IF(E10=0,"n/a",(YVarExp-(YTotExp+YTotRet-J10))/E10) -> n/a | I70: Pound
Q71: Enterprise | R71: Enterprise
A72: FIXED COSTS | D72: Quantity | E72: Quantity | F72: Units | G72: $/Unit | H72: $/Unit | I72: Total | J72: Total | K72: Share | L72: Share | M72: Landlord | N72: Landlord | O72: Tenant | P72: Tenant | Q72: Total | R72: Total
B73: Machinery Depreciation
C74: Pickup/General Use Equipment | D74: 1 | F74: Acre | G74: 9.151229508 | I74: 9.151229508 | J74: =E74*H74 -> 0 | K74: 0 | M74: 0 | N74: =J74*L74 -> 0 | O74: 9.151229508 | P74: =+J74-N74 -> 0 | Q74: 1116.45 | R74: =+J74*E$7 -> 0
C75: Irrigation Equipment | D75: 1 | F75: Acre | G75: 59.2295082 | I75: 59.2295082 | J75: 0 | K75: 0 | M75: 0 | N75: =J75*L75 -> 0 | O75: 59.2295082 | P75: 0 | Q75: 7226 | R75: 0
C76: Tractors/Self-Propelled | D76: 1 | F76: Acre | G76: 39.23240193 | I76: 39.23240193 | J76: 0 | K76: 0 | M76: 0 | N76: =J76*L76 -> 0 | O76: 39.23240193 | P76: 0 | Q76: 4786.353035 | R76: 0
C77: Implements | D77: 1 | F77: Acre | G77: 17.13356933 | I77: 17.13356933 | J77: 0 | K77: 0 | M77: 0 | N77: =J77*L77 -> 0 | O77: 17.13356933 | P77: 0 | Q77: 2090.295458 | R77: 0
B78: Equipment Investment
C79: Pickup/General Use Equipment | D79: 45.16598361 | F79: Dollars | G79: 0.055 | I79: 2.484129098 | J79: =E79*H79 -> 0 | K79: 0 | M79: 0 | N79: =J79*L79 -> 0 | O79: 2.484129098 | P79: =+J79-N79 -> 0 | Q79: 303.06375 | R79: =+J79*E$7 -> 0
C80: Irrigation Equipment | D80: 444.2213115 | F80: Dollars | G80: 0.055 | I80: 24.43217213 | J80: 0 | K80: 0 | M80: 0 | N80: =J80*L80 -> 0 | O80: 24.43217213 | P80: 0 | Q80: 2980.725 | R80: 0
C81: Tractors/Self-Propelled | D81: 338.0167283 | F81: Dollars | G81: 0.055 | I81: 18.59092005 | J81: 0 | K81: 0 | M81: 0 | N81: =J81*L81 -> 0 | O81: 18.59092005 | P81: 0 | Q81: 2268.092247 | R81: 0
C82: Implements | D82: 98.22055522 | F82: Dollars | G82: 0.055 | I82: 5.402130537 | J82: 0 | K82: 0 | M82: 0 | N82: =J82*L82 -> 0 | O82: 5.402130537 | P82: 0 | Q82: 659.0599255 | R82: 0
B83: Salaried Labor | D83: 1 | F83: Acre | G83: 0 | I83: 0 | J83: 0 | K83: 0 | M83: 0 | N83: =J83*L83 -> 0 | O83: 0 | P83: =+J83-N83 -> 0 | Q83: 0 | R83: =+J83*E$7 -> 0
B84: Management Fee, Owner/Operator Labor | D84: 1 | F84: Acre | G84: 0 | I84: 0 | J84: 0 | K84: 0 | M84: 0 | N84: 0 | O84: 0 | P84: 0 | Q84: 0 | R84: 0
B85: Allocated Establishment Cost | D85: 1 | F85: Acre | G85: 0 | I85: 0 | J85: 0 | K85: 0 | M85: 0 | N85: 0 | O85: 0 | P85: 0 | Q85: 0 | R85: 0
B86: Trans Pecos Irrigated Land | D86: 1 | F86: Acre | G86: 50 | I86: 50 | J86: 0 | K86: 0 | M86: 0 | N86: 0 | O86: 50 | P86: 0 | Q86: 6100 | R86: 0
B87: Property Taxes | D87: 1 | F87: Acre | G87: 0 | I87: 0 | J87: 0 | K87: 0 | M87: 0 | N87: 0 | O87: 0 | P87: 0 | Q87: 0 | R87: 0
B88: Whole Farm Insurance | D88: 1 | F88: Acre | G88: 0 | I88: 0 | J88: 0 | K88: 0 | M88: 0 | N88: 0 | O88: 0 | P88: 0 | Q88: 0 | R88: 0
D89: 1 | G89: 0 | I89: 0 | J89: 0 | K89: 0 | M89: 0 | N89: 0 | O89: 0 | P89: 0 | Q89: 0 | R89: 0
D90: 1 | G90: 0 | I90: 0 | J90: =E90*H90 -> 0 | K90: 0 | M90: 0 | N90: 0 | O90: 0 | P90: 0 | Q90: 0 | R90: 0
A91: Total Fixed Costs | I91: 225.6560608 | J91: =+SUM(J74:J90) -> 0 | M91: 0 | N91: =+SUM(N74:N90) -> 0 | O91: 225.6560608 | P91: =+SUM(P74:P90) -> 0 | Q91: 27530.03942 | R91: =+SUM(R74:R90) -> 0
A92: Total Specified Costs | I92: 992.7349313 | J92: =+J68+J91 -> 0 | M92: 0 | N92: =+N68+N91 -> 0 | O92: 992.7349313 | P92: =+P68+P91 -> 0 | Q92: 121113.6616 | R92: =+R68+R91 -> 0
A94: Returns Above Specified Costs | I94: 267.2650687 | J94: =+J14-J92 -> 0 | M94: 0 | N94: =+N14-N92 -> 0 | O94: 267.2650687 | P94: =+P14-P92 -> 0 | Q94: 32606.33838 | R94: =+R14-R92 -> 0
A96: Breakeven Price to Cover Total Costs | G96: 0.4518232876 | H96: =IF(E10=0,"n/a",(YTotExp-(YTotExp+YTotRet-J10))/E10) -> n/a | I96: Pound
D98: Example Breakeven Prices
B99: Example | C99: Example | D99: To Cover | G99: To Cover
B100: Yield | C100: Yield | D100: Variable | G100: Total
B101: Percent | C101: Pound | D101: Costs | G101: Costs
B102: 0.75 | C102: 1125 | D102: 0.4018478849 | G102: 0.6024310501
B103: 0.9 | C103: 1350 | D103: 0.3348732375 | G103: 0.5020258751
B104: 1 | C104: 1500 | D104: 0.3013859137 | G104: 0.4518232876
B105: 1.1 | C105: 1650 | D105: 0.2739871943 | G105: 0.4107484432
B106: 1.25 | C106: 1875 | D106: 0.241108731 | G106: 0.36145863
D108: Your Breakeven Prices
B109: Your | C109: Your | E109: To Cover | H109: To Cover
B110: Yield | C110: Yield | E110: Variable | H110: Total
B111: Percent | C111: Pound | E111: Costs | H111: Costs
B112: 0.75 | C112: =E10*YPER1 -> 0 | E112: =IF($E$10=0,0,(YVarExp-(YTotExp+YTotRet-J10))/($E$10*YPER1)) -> 0 | H112: =IF($E$10=0,0,(YTotExp-(YTotExp+YTotRet-J10))/($E$10*YPER1)) -> 0
B113: 0.9 | C113: =E10*YPER2 -> 0 | E113: =IF($E$10=0,0,(YVarExp-(YTotExp+YTotRet-J10))/($E$10*YPER2)) -> 0 | H113: =IF($E$10=0,0,(YTotExp-(YTotExp+YTotRet-J10))/($E$10*YPER2)) -> 0
B114: 1 | C114: =+E10 -> 0 | E114: =IF($E$10=0,0,(YVarExp-(YTotExp+YTotRet-J10))/($E$10*YPER3)) -> 0 | H114: =IF($E$10=0,0,(YTotExp-(YTotExp+YTotRet-J10))/($E$10*YPER3)) -> 0
B115: 1.1 | C115: =E10*YPER4 -> 0 | E115: =IF($E$10=0,0,(YVarExp-(YTotExp+YTotRet-J10))/($E$10*YPER4)) -> 0 | H115: =IF($E$10=0,0,(YTotExp-(YTotExp+YTotRet-J10))/($E$10*YPER4)) -> 0
B116: 1.25 | C116: =E10*YPER5 -> 0 | E116: =IF($E$10=0,0,(YVarExp-(YTotExp+YTotRet-J10))/($E$10*YPER5)) -> 0 | H116: =IF($E$10=0,0,(YTotExp-(YTotExp+YTotRet-J10))/($E$10*YPER5)) -> 0
A118: Developed by Bill Thompson, Assistant Professor and Extension Economist, Texas A&M AgriLife Extension Service, 325-653-4576.
A120: Information presented is prepared solely as a general guide and not intended to recognize or predict the costs and returns from any one operation. Brand names are mentioned only as examples and imply no endorsement.

Sheet ElPasoCotton
A1: Projections for Planning Purposes Only -- Not to be Used without Updating
A2: 2021 Estimated Costs and Returns per Acre
A3: El Paso County Cotton, Canal Delivered Furrow Irrigated, 40 Inch Rows
A4: Enter your name for this budget in the cell above.
A5: Enter Your Values in the cells highlighed in MAROON.
E6: Your Acres | R6: Your
C7: Crop Acres | D7: 122 | L7: Your | Q7: Enterprise | R7: Enterprise
E8: Your | H8: Your | I8: Cash | J8: Your | K8: Landlord | L8: Landlord | N8: Your | P8: Your | Q8: Total | R8: Total
A9: REVENUE | D9: Quantity | E9: Quantity | F9: Units | G9: $/Unit | H9: $/Unit | I9: Total | J9: Total | K9: Share | L9: Share | M9: Landlord | N9: Landlord | O9: Tenant | P9: Tenant | Q9: (122 acres) | R9: ="(" & E7 & " acres)" -> ( acres)
B10: Cotton Lint | D10: 1326 | F10: Pound | G10: 0.63 | I10: 835.38 | J10: =E10*H10 -> 0 | K10: 0 | M10: 0 | N10: =J10*L10 -> 0 | O10: 835.38 | P10: =+J10-N10 -> 0 | Q10: 101916.36 | R10: =+J10*E$7 -> 0
B11: Cotton Seed | D11: 1.061 | F11: Ton | G11: 225 | I11: 238.725 | J11: 0 | K11: 0 | M11: 0 | N11: 0 | O11: 238.725 | P11: =+J11-N11 -> 0 | Q11: 29124.45 | R11: 0
D12: 0 | G12: 0 | I12: 0 | J12: 0 | K12: 0 | M12: 0 | N12: 0 | O12: 0 | P12: 0 | Q12: 0 | R12: 0
D13: 0 | G13: 0 | I13: 0 | J13: 0 | K13: 0 | M13: 0 | N13: 0 | O13: 0 | P13: 0 | Q13: 0 | R13: 0
A14: Total Revenue | I14: 1074.105 | J14: =SUM(J10:J13) -> 0 | M14: 0 | N14: =SUM(N10:N13) -> 0 | O14: 1074.105 | P14: =SUM(P10:P13) -> 0 | Q14: 131040.81 | R14: =SUM(R10:R13) -> 0
Q15: Enterprise | R15: Enterprise
A16: VARIABLE COSTS | D16: Quantity | E16: Quantity | F16: Units | G16: $/Unit | H16: $/Unit | I16: Total | J16: Total | K16: Share | L16: Share | M16: Landlord | N16: Landlord | O16: Tenant | P16: Tenant | Q16: Total | R16: Total
A17: Production Costs
B18: Seed
C19: Tech Fee Erad Zn El Paso | D19: 1 | F19: Acre | G19: 20 | I19: 20 | J19: =E19*H19 -> 0 | K19: 0 | M19: 0 | N19: =J19*L19 -> 0 | O19: 20 | P19: =+J19-N19 -> 0 | Q19: 2440 | R19: =+J19*E$7 -> 0
C20: Cotton Seed BIIRRF - Irrigated | D20: 40 | F20: Thousand | G20: 1.6521739 | I20: 66.086956 | J20: 0 | K20: 0 | M20: 0 | N20: 0 | O20: 66.086956 | P20: 0 | Q20: 8062.608632 | R20: 0
B21: Fertilizer
C22: Fertilizer 10-34-0 | D22: 1.5 | F22: CWT | G22: 20.75 | I22: 31.125 | J22: 0 | K22: 0 | M22: 0 | N22: 0 | O22: 31.125 | P22: 0 | Q22: 3797.25 | R22: 0
C23: N-32 in Water | D23: 280 | F23: Pound | G23: 0.3828 | I23: 107.184 | J23: 0 | K23: 0 | M23: 0 | N23: 0 | O23: 107.184 | P23: 0 | Q23: 13076.448 | R23: 0
B24: Custom
C25: Custom Spray | D25: 2 | F25: Acre | G25: 6 | I25: 12 | J25: 0 | K25: 0 | M25: 0 | N25: 0 | O25: 12 | P25: 0 | Q25: 1464 | R25: 0
C26: Gin, Bag, Tie | D26: 21.22 | F26: CWT | G26: 5 | I26: 106.1 | J26: 0 | K26: 0 | M26: 0 | N26: 0 | O26: 106.1 | P26: 0 | Q26: 12944.2 | R26: 0
B27: Herbicide
C28: Trifluralin | D28: 2 | F28: Pint | G28: 2.75 | I28: 5.5 | J28: 0 | K28: 0 | M28: 0 | N28: 0 | O28: 5.5 | P28: 0 | Q28: 671 | R28: 0
C29: Glyphosate | D29: 2 | F29: Pint | G29: 2.125 | I29: 4.25 | J29: 0 | K29: 0 | M29: 0 | N29: 0 | O29: 4.25 | P29: 0 | Q29: 518.5 | R29: 0
B30: Other Labor
C31: Hand Labor | D31: 0.7764 | F31: Hour | G31: 8.5 | I31: 6.5994 | J31: 0 | K31: 0 | M31: 0 | N31: 0 | O31: 6.5994 | P31: 0 | Q31: 805.1268 | R31: 0
B32: Other Chemicals
C33: Prep | D33: 16 | F33: Ounce | G33: 0.16 | I33: 2.56 | J33: 0 | K33: 0 | M33: 0 | N33: 0 | O33: 2.56 | P33: 0 | Q33: 312.32 | R33: 0
C34: Def 6 (Tribufos) | D34: 1 | F34: Pint | G34: 8.75 | I34: 8.75 | J34: 0 | K34: 0 | M34: 0 | N34: 0 | O34: 8.75 | P34: 0 | Q34: 1067.5 | R34: 0
C35: Gramoxone Inteon (2 lb paraquat) | D35: 20 | F35: Ounce | G35: 0.15625 | I35: 3.125 | J35: 0 | K35: 0 | M35: 0 | N35: 0 | O35: 3.125 | P35: 0 | Q35: 381.25 | R35: 0
C36: Aim | D36: 0.25 | F36: Ounce | G36: 4.84 | I36: 1.21 | J36: 0 | K36: 0 | M36: 0 | N36: 0 | O36: 1.21 | P36: 0 | Q36: 147.62 | R36: 0
D37: 0 | G37: 0 | I37: 0 | J37: 0 | K37: 0 | M37: 0 | N37: 0 | O37: 0 | P37: 0 | Q37: 0 | R37: 0
D38: 0 | G38: 0 | I38: 0 | J38: 0 | K38: 0 | M38: 0 | N38: 0 | O38: 0 | P38: 0 | Q38: 0 | R38: 0
D39: 0 | G39: 0 | I39: 0 | J39: =E39*H39 -> 0 | K39: 0 | M39: 0 | N39: =J39*L39 -> 0 | O39: 0 | P39: =+J39-N39 -> 0 | Q39: 0 | R39: =+J39*E$7 -> 0
B40: Irrigation
C41: Water Cost | D41: 24 | F41: AcreInch | G41: 1.75 | I41: 42 | J41: =E41*H41 -> 0 | K41: 0 | M41: 0 | N41: =J41*L41 -> 0 | O41: 42 | P41: =+J41-N41 -> 0 | Q41: 5124 | R41: =+J41*E$7 -> 0
B42: Machinery Labor
C43: Tractors/Self-Propelled | D43: 2.38 | F43: Hour | G43: 15 | I43: 35.7 | J43: =E43*H43 -> 0 | K43: 0 | M43: 0 | N43: =J43*L43 -> 0 | O43: 35.7 | P43: =+J43-N43 -> 0 | Q43: 4355.4 | R43: =+J43*E$7 -> 0
C44: Other Labor | D44: 0 | F44: Hour | G44: 15 | I44: 0 | J44: =E44*H44 -> 0 | K44: 0 | M44: 0 | N44: =J44*L44 -> 0 | O44: 0 | P44: =+J44-N44 -> 0 | Q44: 0 | R44: =+J44*E$7 -> 0
B46: Diesel Fuel
C47: Pickup/General Use Equipment | D47: 1 | F47: Acre | G47: 0 | I47: 0 | J47: =E47*H47 -> 0 | K47: 0 | M47: 0 | N47: =J47*L47 -> 0 | O47: 0 | P47: =+J47-N47 -> 0 | Q47: 0 | R47: =+J47*E$7 -> 0
C48: Tractors/Self-Propelled | D48: 15.27 | F48: Gallon | G48: 1.5 | I48: 22.905 | J48: =E48*H48 -> 0 | K48: 0 | M48: 0 | N48: =J48*L48 -> 0 | O48: 22.905 | P48: =+J48-N48 -> 0 | Q48: 2794.41 | R48: =+J48*E$7 -> 0
B50: Gasoline
C51: Pickup/General Use Equipment | D51: 1 | F51: Acre | G51: 5.789508197 | I51: 5.789508197 | J51: =E51*H51 -> 0 | K51: 0 | M51: 0 | N51: =J51*L51 -> 0 | O51: 5.789508197 | P51: =+J51-N51 -> 0 | Q51: 706.32 | R51: =+J51*E$7 -> 0
C52: Tractors/Self-Propelled | D52: 0 | F52: Gallon | G52: 1.8 | I52: 0 | J52: =E52*H52 -> 0 | K52: 0 | M52: 0 | N52: =J52*L52 -> 0 | O52: 0 | P52: =+J52-N52 -> 0 | Q52: 0 | R52: =+J52*E$7 -> 0
B54: Repairs & Maintenance
C55: Pickup/General Use Equipment | D55: 1 | F55: Acre | G55: 1.608196721 | I55: 1.608196721 | J55: =E55*H55 -> 0 | K55: 0 | M55: 0 | N55: =J55*L55 -> 0 | O55: 1.608196721 | P55: =+J55-N55 -> 0 | Q55: 196.2 | R55: =+J55*E$7 -> 0
C56: Irrigation Equipment | D56: 1 | F56: Acre | G56: 0 | I56: 0 | J56: 0 | K56: 0 | M56: 0 | N56: 0 | O56: 0 | P56: 0 | Q56: 0 | R56: 0
C57: Tractors/Self-Propelled | D57: 1 | F57: Acre | G57: 31.99601266 | I57: 31.99601266 | J57: 0 | K57: 0 | M57: 0 | N57: 0 | O57: 31.99601266 | P57: 0 | Q57: 3903.513545 | R57: 0
C58: Implements | D58: 1 | F58: Acre | G58: 21.90283364 | I58: 21.90283364 | J58: 0 | K58: 0 | M58: 0 | N58: 0 | O58: 21.90283364 | P58: 0 | Q58: 2672.145703 | R58: 0
I59: 0 | J59: 0 | K59: 0 | M59: 0 | N59: 0 | O59: 0 | P59: 0 | Q59: 0 | R59: 0
I60: 0 | J60: 0 | K60: 0 | M60: 0 | N60: 0 | O60: 0 | P60: 0 | Q60: 0 | R60: 0
B61: Interest on Credit Line | G61: 0.0455 | I61: 7.227524437 | J61: =+SUM(J18:J60)/2*H61 -> 0 | M61: 0 | N61: =+SUM(N18:N60)/2*L61 -> 0 | O61: 7.227524437 | P61: =+SUM(P18:P60)/2*L61 -> 0 | Q61: 881.7579813 | R61: =+J61*E$7 -> 0
A62: Total Variable Costs | I62: 543.6194317 | J62: =SUM(J19:J61) -> 0 | M62: 0 | N62: =SUM(N19:N61) -> 0 | O62: 543.6194317 | P62: =SUM(P19:P61) -> 0 | Q62: 66321.57066 | R62: =SUM(R19:R61) -> 0
A63: Planned Returns Above Variable Costs: | I63: 530.4855683 | J63: =+J14-J62 -> 0 | M63: 0 | N63: =+N14-N62 -> 0 | O63: 530.4855683 | P63: =+P14-P62 -> 0 | Q63: 64719.23934 | R63: =+R14-R62 -> 0
B64: Breakeven Price to Cover Variable Costs | G64: 0.2299354688 | H64: =IF(E10=0,"n/a",(YVarExp-(YTotExp+YTotRet-J10))/E10) -> n/a | I64: Pound
Q65: Enterprise | R65: Enterprise
A66: FIXED COSTS | D66: Quantity | E66: Quantity | F66: Units | G66: $/Unit | H66: $/Unit | I66: Total | J66: Total | K66: Share | L66: Share | M66: Landlord | N66: Landlord | O66: Tenant | P66: Tenant | Q66: Total | R66: Total
B67: Machinery Depreciation
C68: Pickup/General Use Equipment | D68: 1 | F68: Acre | G68: 6.030737705 | I68: 6.030737705 | J68: =E68*H68 -> 0 | K68: 0 | M68: 0 | N68: =J68*L68 -> 0 | O68: 6.030737705 | P68: =+J68-N68 -> 0 | Q68: 735.75 | R68: =+J68*E$7 -> 0
C69: Tractors/Self-Propelled | D69: 1 | F69: Acre | G69: 35.74299505 | I69: 35.74299505 | J69: 0 | K69: 0 | M69: 0 | N69: =J69*L69 -> 0 | O69: 35.74299505 | P69: 0 | Q69: 4360.645396 | R69: 0
C70: Implements | D70: 1 | F70: Acre | G70: 27.80063934 | I70: 27.80063934 | J70: 0 | K70: 0 | M70: 0 | N70: =J70*L70 -> 0 | O70: 27.80063934 | P70: 0 | Q70: 3391.678 | R70: 0
B71: Equipment Investment
C72: Pickup/General Use Equipment | D72: 25.12807377 | F72: Dollars | G72: 0.055 | I72: 1.382044057 | J72: =E72*H72 -> 0 | K72: 0 | M72: 0 | N72: =J72*L72 -> 0 | O72: 1.382044057 | P72: =+J72-N72 -> 0 | Q72: 168.609375 | R72: =+J72*E$7 -> 0
C73: Tractors/Self-Propelled | D73: 311.9825431 | F73: Dollars | G73: 0.055 | I73: 17.15903987 | J73: 0 | K73: 0 | M73: 0 | N73: =J73*L73 -> 0 | O73: 17.15903987 | P73: 0 | Q73: 2093.402864 | R73: 0
C74: Implements | D74: 182.5300483 | F74: Dollars | G74: 0.055 | I74: 10.03915266 | J74: 0 | K74: 0 | M74: 0 | N74: =J74*L74 -> 0 | O74: 10.03915266 | P74: 0 | Q74: 1224.776624 | R74: 0
B75: Salaried Labor | D75: 1 | F75: Acre | G75: 0 | I75: 0 | J75: 0 | K75: 0 | M75: 0 | N75: =J75*L75 -> 0 | O75: 0 | P75: =+J75-N75 -> 0 | Q75: 0 | R75: =+J75*E$7 -> 0
B76: Management Fee, Owner/Operator Labor | D76: 1 | F76: Acre | G76: 0 | I76: 0 | J76: 0 | K76: 0 | M76: 0 | N76: 0 | O76: 0 | P76: 0 | Q76: 0 | R76: 0
B77: Allocated Establishment Cost | D77: 1 | F77: Acre | G77: 0 | I77: 0 | J77: 0 | K77: 0 | M77: 0 | N77: 0 | O77: 0 | P77: 0 | Q77: 0 | R77: 0
B78: Trans Pecos Irrigated Land | D78: 1 | F78: Acre | G78: 50 | I78: 50 | J78: 0 | K78: 0 | M78: 0 | N78: 0 | O78: 50 | P78: 0 | Q78: 6100 | R78: 0
B79: Property Taxes | D79: 1 | F79: Acre | G79: 0 | I79: 0 | J79: 0 | K79: 0 | M79: 0 | N79: 0 | O79: 0 | P79: 0 | Q79: 0 | R79: 0
B80: Whole Farm Insurance | D80: 1 | F80: Acre | G80: 0 | I80: 0 | J80: 0 | K80: 0 | M80: 0 | N80: 0 | O80: 0 | P80: 0 | Q80: 0 | R80: 0
D81: 1 | G81: 0 | I81: 0 | J81: 0 | K81: 0 | M81: 0 | N81: 0 | O81: 0 | P81: 0 | Q81: 0 | R81: 0
D82: 1 | G82: 0 | I82: 0 | J82: =E82*H82 -> 0 | K82: 0 | M82: 0 | N82: 0 | O82: 0 | P82: 0 | Q82: 0 | R82: 0
A83: Total Fixed Costs | I83: 148.1546087 | J83: =+SUM(J68:J82) -> 0 | M83: 0 | N83: =+SUM(N68:N82) -> 0 | O83: 148.1546087 | P83: =+SUM(P68:P82) -> 0 | Q83: 18074.86226 | R83: =+SUM(R68:R82) -> 0
A84: Total Specified Costs | I84: 691.7740403 | J84: =+J62+J83 -> 0 | M84: 0 | N84: =+N62+N83 -> 0 | O84: 691.7740403 | P84: =+P62+P83 -> 0 | Q84: 84396.43292 | R84: =+R62+R83 -> 0
A86: Returns Above Specified Costs | I86: 382.3309597 | J86: =+J14-J84 -> 0 | M86: 0 | N86: =+N14-N84 -> 0 | O86: 382.3309597 | P86: =+P14-P84 -> 0 | Q86: 46644.37708 | R86: =+R14-R84 -> 0
A88: Breakeven Price to Cover Total Costs | G88: 0.3416659429 | H88: =IF(E10=0,"n/a",(YTotExp-(YTotExp+YTotRet-J10))/E10) -> n/a | I88: Pound
D90: Example Breakeven Prices
B91: Example | C91: Example | D91: To Cover | G91: To Cover
B92: Yield | C92: Yield | D92: Variable | G92: Total
B93: Percent | C93: Pound | D93: Costs | G93: Costs
B94: 0.75 | C94: 994.5 | D94: 0.3065806251 | G94: 0.4555545906
B95: 0.9 | C95: 1193.4 | D95: 0.2554838542 | G95: 0.3796288255
B96: 1 | C96: 1326 | D96: 0.2299354688 | G96: 0.3416659429
B97: 1.1 | C97: 1458.6 | D97: 0.2090322444 | G97: 0.3106054027
B98: 1.25 | C98: 1657.5 | D98: 0.1839483751 | G98: 0.2733327544
D100: Your Breakeven Prices
B101: Your | C101: Your | E101: To Cover | H101: To Cover
B102: Yield | C102: Yield | E102: Variable | H102: Total
B103: Percent | C103: Pound | E103: Costs | H103: Costs
B104: 0.75 | C104: =E10*YPER1 -> 0 | E104: =IF($E$10=0,0,(YVarExp-(YTotExp+YTotRet-J10))/($E$10*YPER1)) -> 0 | H104: =IF($E$10=0,0,(YTotExp-(YTotExp+YTotRet-J10))/($E$10*YPER1)) -> 0
B105: 0.9 | C105: =E10*YPER2 -> 0 | E105: =IF($E$10=0,0,(YVarExp-(YTotExp+YTotRet-J10))/($E$10*YPER2)) -> 0 | H105: =IF($E$10=0,0,(YTotExp-(YTotExp+YTotRet-J10))/($E$10*YPER2)) -> 0
B106: 1 | C106: =+E10 -> 0 | E106: =IF($E$10=0,0,(YVarExp-(YTotExp+YTotRet-J10))/($E$10*YPER3)) -> 0 | H106: =IF($E$10=0,0,(YTotExp-(YTotExp+YTotRet-J10))/($E$10*YPER3)) -> 0
B107: 1.1 | C107: =E10*YPER4 -> 0 | E107: =IF($E$10=0,0,(YVarExp-(YTotExp+YTotRet-J10))/($E$10*YPER4)) -> 0 | H107: =IF($E$10=0,0,(YTotExp-(YTotExp+YTotRet-J10))/($E$10*YPER4)) -> 0
B108: 1.25 | C108: =E10*YPER5 -> 0 | E108: =IF($E$10=0,0,(YVarExp-(YTotExp+YTotRet-J10))/($E$10*YPER5)) -> 0 | H108: =IF($E$10=0,0,(YTotExp-(YTotExp+YTotRet-J10))/($E$10*YPER5)) -> 0
A110: Developed by Bill Thompson, Assistant Professor and Extension Economist, Texas A&M AgriLife Extension Service, 325-653-4576.
A112: Information presented is prepared solely as a general guide and not intended to recognize or predict the costs and returns from any one operation. Brand names are mentioned only as examples and imply no endorsement.

Sheet WheatDryland
A1: Projections for Planning Purposes Only -- Not to be Used without Updating
A2: 2021 Estimated Costs and Returns per Acre
A3: Wheat, Dryland
A4: Enter your name for this budget in the cell above.
A5: Enter Your Values in the cells highlighed in MAROON.
E6: Your Acres | R6: Your
C7: Crop Acres | D7: 122 | L7: Your | Q7: Enterprise | R7: Enterprise
E8: Your | H8: Your | I8: Cash | J8: Your | K8: Landlord | L8: Landlord | N8: Your | P8: Your | Q8: Total | R8: Total
A9: REVENUE | D9: Quantity | E9: Quantity | F9: Units | G9: $/Unit | H9: $/Unit | I9: Total | J9: Total | K9: Share | L9: Share | M9: Landlord | N9: Landlord | O9: Tenant | P9: Tenant | Q9: (122 acres) | R9: ="(" & E7 & " acres)" -> ( acres)
B10: Wheat | D10: 22 | F10: Bushel | G10: 4.6 | I10: 101.2 | J10: =E10*H10 -> 0 | K10: 0 | M10: 0 | N10: =J10*L10 -> 0 | O10: 101.2 | P10: =+J10-N10 -> 0 | Q10: 12346.4 | R10: =+J10*E$7 -> 0
D11: 0 | G11: 0 | I11: 0 | J11: 0 | K11: 0 | M11: 0 | N11: 0 | O11: 0 | P11: =+J11-N11 -> 0 | Q11: 0 | R11: 0
D12: 0 | G12: 0 | I12: 0 | J12: 0 | K12: 0 | M12: 0 | N12: 0 | O12: 0 | P12: 0 | Q12: 0 | R12: 0
A13: Total Revenue | I13: 101.2 | J13: =SUM(J10:J12) -> 0 | M13: 0 | N13: =SUM(N10:N12) -> 0 | O13: 101.2 | P13: =SUM(P10:P12) -> 0 | Q13: 12346.4 | R13: =SUM(R10:R12) -> 0
Q14: Enterprise | R14: Enterprise
A15: VARIABLE COSTS | D15: Quantity | E15: Quantity | F15: Units | G15: $/Unit | H15: $/Unit | I15: Total | J15: Total | K15: Share | L15: Share | M15: Landlord | N15: Landlord | O15: Tenant | P15: Tenant | Q15: Total | R15: Total
A16: Production Costs
B17: Fertilizer
C18: Nitrogen - Dry (Urea 45-0-0) | D18: 9 | F18: Pound | G18: 0.4022 | I18: 3.6198 | J18: =E18*H18 -> 0 | K18: 0 | M18: 0 | N18: =J18*L18 -> 0 | O18: 3.6198 | P18: =+J18-N18 -> 0 | Q18: 441.6156 | R18: =+J18*E$7 -> 0
C19: 0-60-0 | D19: 18 | F19: Pound | G19: 0.27 | I19: 4.86 | J19: 0 | K19: 0 | M19: 0 | N19: 0 | O19: 4.86 | P19: 0 | Q19: 592.92 | R19: 0
C20: N-32 | D20: 17 | F20: Pound | G20: 0.3828 | I20: 6.5076 | J20: 0 | K20: 0 | M20: 0 | N20: 0 | O20: 6.5076 | P20: 0 | Q20: 793.9272 | R20: 0
B21: Custom
C22: Soil Test-Dryland | D22: 1 | F22: Acre | G22: 0.25 | I22: 0.25 | J22: 0 | K22: 0 | M22: 0 | N22: 0 | O22: 0.25 | P22: 0 | Q22: 30.5 | R22: 0
C23: Haul Wheat | D23: 22 | F23: Bushel | G23: 0.25 | I23: 5.5 | J23: 0 | K23: 0 | M23: 0 | N23: 0 | O23: 5.5 | P23: 0 | Q23: 671 | R23: 0
B24: Insecticide
C25: Pilot (Lorsban 4E) | D25: 1 | F25: Pint | G25: 3.6875 | I25: 3.6875 | J25: 0 | K25: 0 | M25: 0 | N25: 0 | O25: 3.6875 | P25: 0 | Q25: 449.875 | R25: 0
B26: Seed
C27: Wheat Seed | D27: 50 | F27: Pound | G27: 0.27 | I27: 13.5 | J27: 0 | K27: 0 | M27: 0 | N27: 0 | O27: 13.5 | P27: 0 | Q27: 1647 | R27: 0
B28: Herbicide
C29: MCPA | D29: 1 | F29: Pint | G29: 3.06 | I29: 3.06 | J29: 0 | K29: 0 | M29: 0 | N29: 0 | O29: 3.06 | P29: 0 | Q29: 373.32 | R29: 0
C30: MSM (Ally) | D30: 0.14 | F30: Ounce | G30: 4.5 | I30: 0.63 | J30: 0 | K30: 0 | M30: 0 | N30: 0 | O30: 0.63 | P30: 0 | Q30: 76.86 | R30: 0
B31: Miscellaneous
C32: NI Wheat RP 65% ent, Glasscock co | D32: 1 | F32: Acre | G32: 4.53 | I32: 4.53 | J32: 0 | K32: 0 | M32: 0 | N32: 0 | O32: 4.53 | P32: 0 | Q32: 552.66 | R32: 0
B33: Fungicides
C34: Wheat Fungicide | D34: 8 | F34: Ounce | G34: 0.48 | I34: 3.84 | J34: 0 | K34: 0 | M34: 0 | N34: 0 | O34: 3.84 | P34: 0 | Q34: 468.48 | R34: 0
D35: 0 | G35: 0 | I35: 0 | J35: 0 | K35: 0 | M35: 0 | N35: 0 | O35: 0 | P35: 0 | Q35: 0 | R35: 0
D36: 0 | G36: 0 | I36: 0 | J36: 0 | K36: 0 | M36: 0 | N36: 0 | O36: 0 | P36: 0 | Q36: 0 | R36: 0
D37: 0 | G37: 0 | I37: 0 | J37: =E37*H37 -> 0 | K37: 0 | M37: 0 | N37: =J37*L37 -> 0 | O37: 0 | P37: =+J37-N37 -> 0 | Q37: 0 | R37: =+J37*E$7 -> 0
B38: Machinery Labor
C39: Tractors/Self-Propelled | D39: 0.64 | F39: Hour | G39: 15 | I39: 9.6 | J39: =E39*H39 -> 0 | K39: 0 | M39: 0 | N39: =J39*L39 -> 0 | O39: 9.6 | P39: =+J39-N39 -> 0 | Q39: 1171.2 | R39: =+J39*E$7 -> 0
C40: Other Labor | D40: 0.2 | F40: Hour | G40: 15 | I40: 3 | J40: =E40*H40 -> 0 | K40: 0 | M40: 0 | N40: =J40*L40 -> 0 | O40: 3 | P40: =+J40-N40 -> 0 | Q40: 366 | R40: =+J40*E$7 -> 0
B42: Diesel Fuel
C43: Pickup/General Use Equipment | D43: 1 | F43: Acre | G43: 0 | I43: 0 | J43: =E43*H43 -> 0 | K43: 0 | M43: 0 | N43: =J43*L43 -> 0 | O43: 0 | P43: =+J43-N43 -> 0 | Q43: 0 | R43: =+J43*E$7 -> 0
C44: Tractors/Self-Propelled | D44: 6.84 | F44: Gallon | G44: 1.5 | I44: 10.26 | J44: =E44*H44 -> 0 | K44: 0 | M44: 0 | N44: =J44*L44 -> 0 | O44: 10.26 | P44: =+J44-N44 -> 0 | Q44: 1251.72 | R44: =+J44*E$7 -> 0
B46: Gasoline
C47: Pickup/General Use Equipment | D47: 1 | F47: Acre | G47: 2.412295082 | I47: 2.412295082 | J47: =E47*H47 -> 0 | K47: 0 | M47: 0 | N47: =J47*L47 -> 0 | O47: 2.412295082 | P47: =+J47-N47 -> 0 | Q47: 294.3 | R47: =+J47*E$7 -> 0
C48: Tractors/Self-Propelled | D48: 0 | F48: Gallon | G48: 1.8 | I48: 0 | J48: =E48*H48 -> 0 | K48: 0 | M48: 0 | N48: =J48*L48 -> 0 | O48: 0 | P48: =+J48-N48 -> 0 | Q48: 0 | R48: =+J48*E$7 -> 0
B50: Repairs & Maintenance
C51: Pickup/General Use Equipment | D51: 1 | F51: Acre | G51: 0.8644057377 | I51: 0.8644057377 | J51: =E51*H51 -> 0 | K51: 0 | M51: 0 | N51: =J51*L51 -> 0 | O51: 0.8644057377 | P51: =+J51-N51 -> 0 | Q51: 105.4575 | R51: =+J51*E$7 -> 0
C52: Irrigation Equipment | D52: 1 | F52: Acre | G52: 0 | I52: 0 | J52: 0 | K52: 0 | M52: 0 | N52: 0 | O52: 0 | P52: 0 | Q52: 0 | R52: 0
C53: Tractors/Self-Propelled | D53: 1 | F53: Acre | G53: 26.34932069 | I53: 26.34932069 | J53: 0 | K53: 0 | M53: 0 | N53: 0 | O53: 26.34932069 | P53: 0 | Q53: 3214.617124 | R53: 0
C54: Implements | D54: 1 | F54: Acre | G54: 15.70827861 | I54: 15.70827861 | J54: 0 | K54: 0 | M54: 0 | N54: 0 | O54: 15.70827861 | P54: 0 | Q54: 1916.40999 | R54: 0
I55: 0 | J55: 0 | K55: 0 | M55: 0 | N55: 0 | O55: 0 | P55: 0 | Q55: 0 | R55: 0
I56: 0 | J56: 0 | K56: 0 | M56: 0 | N56: 0 | O56: 0 | P56: 0 | Q56: 0 | R56: 0
B57: Interest on Credit Line | G57: 0.0455 | I57: 2.900460639 | J57: =+SUM(J17:J56)/2*H57 -> 0 | M57: 0 | N57: =+SUM(N17:N56)/2*L57 -> 0 | O57: 2.900460639 | P57: =+SUM(P17:P56)/2*L57 -> 0 | Q57: 353.856198 | R57: =+J57*E$7 -> 0
A58: Total Variable Costs | I58: 121.0796608 | J58: =SUM(J18:J57) -> 0 | M58: 0 | N58: =SUM(N18:N57) -> 0 | O58: 121.0796608 | P58: =SUM(P18:P57) -> 0 | Q58: 14771.71861 | R58: =SUM(R18:R57) -> 0
A59: Planned Returns Above Variable Costs: | I59: -19.87966076 | J59: =+J13-J58 -> 0 | M59: 0 | N59: =+N13-N58 -> 0 | O59: -19.87966076 | P59: =+P13-P58 -> 0 | Q59: -2425.318612 | R59: =+R13-R58 -> 0
B60: Breakeven Price to Cover Variable Costs | G60: 5.503620944 | H60: =IF(E10=0,"n/a",(YVarExp-(YTotExp+YTotRet-J10))/E10) -> n/a | I60: Bushel
Q61: Enterprise | R61: Enterprise
A62: FIXED COSTS | D62: Quantity | E62: Quantity | F62: Units | G62: $/Unit | H62: $/Unit | I62: Total | J62: Total | K62: Share | L62: Share | M62: Landlord | N62: Landlord | O62: Tenant | P62: Tenant | Q62: Total | R62: Total
B63: Machinery Depreciation
C64: Pickup/General Use Equipment | D64: 1 | F64: Acre | G64: 1.809221311 | I64: 1.809221311 | J64: =E64*H64 -> 0 | K64: 0 | M64: 0 | N64: =J64*L64 -> 0 | O64: 1.809221311 | P64: =+J64-N64 -> 0 | Q64: 220.725 | R64: =+J64*E$7 -> 0
C65: Tractors/Self-Propelled | D65: 1 | F65: Acre | G65: 28.32431812 | I65: 28.32431812 | J65: 0 | K65: 0 | M65: 0 | N65: =J65*L65 -> 0 | O65: 28.32431812 | P65: 0 | Q65: 3455.566811 | R65: 0
C66: Implements | D66: 1 | F66: Acre | G66: 19.35774855 | I66: 19.35774855 | J66: 0 | K66: 0 | M66: 0 | N66: =J66*L66 -> 0 | O66: 19.35774855 | P66: 0 | Q66: 2361.645323 | R66: 0
B67: Equipment Investment
C68: Pickup/General Use Equipment | D68: 11.05635246 | F68: Dollars | G68: 0.055 | I68: 0.6080993852 | J68: =E68*H68 -> 0 | K68: 0 | M68: 0 | N68: =J68*L68 -> 0 | O68: 0.6080993852 | P68: =+J68-N68 -> 0 | Q68: 74.188125 | R68: =+J68*E$7 -> 0
C69: Tractors/Self-Propelled | D69: 214.844944 | F69: Dollars | G69: 0.055 | I69: 11.81647192 | J69: 0 | K69: 0 | M69: 0 | N69: =J69*L69 -> 0 | O69: 11.81647192 | P69: 0 | Q69: 1441.609575 | R69: 0
C70: Implements | D70: 91.94266944 | F70: Dollars | G70: 0.055 | I70: 5.056846819 | J70: 0 | K70: 0 | M70: 0 | N70: =J70*L70 -> 0 | O70: 5.056846819 | P70: 0 | Q70: 616.935312 | R70: 0
B71: Salaried Labor | D71: 1 | F71: Acre | G71: 0 | I71: 0 | J71: 0 | K71: 0 | M71: 0 | N71: =J71*L71 -> 0 | O71: 0 | P71: =+J71-N71 -> 0 | Q71: 0 | R71: =+J71*E$7 -> 0
B72: Management Fee, Owner/Operator Labor | D72: 1 | F72: Acre | G72: 0 | I72: 0 | J72: 0 | K72: 0 | M72: 0 | N72: 0 | O72: 0 | P72: 0 | Q72: 0 | R72: 0
B73: Allocated Establishment Cost | D73: 1 | F73: Acre | G73: 0 | I73: 0 | J73: 0 | K73: 0 | M73: 0 | N73: 0 | O73: 0 | P73: 0 | Q73: 0 | R73: 0
B74: West Texas Dryland | D74: 1 | F74: Acre | G74: 15 | I74: 15 | J74: 0 | K74: 0 | M74: 0 | N74: 0 | O74: 15 | P74: 0 | Q74: 1830 | R74: 0
B75: Property Taxes | D75: 1 | F75: Acre | G75: 0 | I75: 0 | J75: 0 | K75: 0 | M75: 0 | N75: 0 | O75: 0 | P75: 0 | Q75: 0 | R75: 0
B76: Whole Farm Insurance | D76: 1 | F76: Acre | G76: 0 | I76: 0 | J76: 0 | K76: 0 | M76: 0 | N76: 0 | O76: 0 | P76: 0 | Q76: 0 | R76: 0
D77: 1 | G77: 0 | I77: 0 | J77: 0 | K77: 0 | M77: 0 | N77: 0 | O77: 0 | P77: 0 | Q77: 0 | R77: 0
D78: 1 | G78: 0 | I78: 0 | J78: =E78*H78 -> 0 | K78: 0 | M78: 0 | N78: 0 | O78: 0 | P78: 0 | Q78: 0 | R78: 0
A79: Total Fixed Costs | I79: 81.97270611 | J79: =+SUM(J64:J78) -> 0 | M79: 0 | N79: =+SUM(N64:N78) -> 0 | O79: 81.97270611 | P79: =+SUM(P64:P78) -> 0 | Q79: 10000.67015 | R79: =+SUM(R64:R78) -> 0
A80: Total Specified Costs | I80: 203.0523669 | J80: =+J58+J79 -> 0 | M80: 0 | N80: =+N58+N79 -> 0 | O80: 203.0523669 | P80: =+P58+P79 -> 0 | Q80: 24772.38876 | R80: =+R58+R79 -> 0
A82: Returns Above Specified Costs | I82: -101.8523669 | J82: =+J13-J80 -> 0 | M82: 0 | N82: =+N13-N80 -> 0 | O82: -101.8523669 | P82: =+P13-P80 -> 0 | Q82: -12425.98876 | R82: =+R13-R80 -> 0
A84: Breakeven Price to Cover Total Costs | G84: 9.229653039 | H84: =IF(E10=0,"n/a",(YTotExp-(YTotExp+YTotRet-J10))/E10) -> n/a | I84: Bushel
D86: Example Breakeven Prices
B87: Example | C87: Example | D87: To Cover | G87: To Cover
B88: Yield | C88: Yield | D88: Variable | G88: Total
B89: Percent | C89: Bushel | D89: Costs | G89: Costs
B90: 0.75 | C90: 16.5 | D90: 7.338161258 | G90: 12.30620405
B91: 0.9 | C91: 19.8 | D91: 6.115134382 | G91: 10.25517004
B92: 1 | C92: 22 | D92: 5.503620944 | G92: 9.229653039
B93: 1.1 | C93: 24.2 | D93: 5.003291767 | G93: 8.390593672
B94: 1.25 | C94: 27.5 | D94: 4.402896755 | G94: 7.383722431
D96: Your Breakeven Prices
B97: Your | C97: Your | E97: To Cover | H97: To Cover
B98: Yield | C98: Yield | E98: Variable | H98: Total
B99: Percent | C99: Bushel | E99: Costs | H99: Costs
B100: 0.75 | C100: =E10*YPER1 -> 0 | E100: =IF($E$10=0,0,(YVarExp-(YTotExp+YTotRet-J10))/($E$10*YPER1)) -> 0 | H100: =IF($E$10=0,0,(YTotExp-(YTotExp+YTotRet-J10))/($E$10*YPER1)) -> 0
B101: 0.9 | C101: =E10*YPER2 -> 0 | E101: =IF($E$10=0,0,(YVarExp-(YTotExp+YTotRet-J10))/($E$10*YPER2)) -> 0 | H101: =IF($E$10=0,0,(YTotExp-(YTotExp+YTotRet-J10))/($E$10*YPER2)) -> 0
B102: 1 | C102: =+E10 -> 0 | E102: =IF($E$10=0,0,(YVarExp-(YTotExp+YTotRet-J10))/($E$10*YPER3)) -> 0 | H102: =IF($E$10=0,0,(YTotExp-(YTotExp+YTotRet-J10))/($E$10*YPER3)) -> 0
B103: 1.1 | C103: =E10*YPER4 -> 0 | E103: =IF($E$10=0,0,(YVarExp-(YTotExp+YTotRet-J10))/($E$10*YPER4)) -> 0 | H103: =IF($E$10=0,0,(YTotExp-(YTotExp+YTotRet-J10))/($E$10*YPER4)) -> 0
B104: 1.25 | C104: =E10*YPER5 -> 0 | E104: =IF($E$10=0,0,(YVarExp-(YTotExp+YTotRet-J10))/($E$10*YPER5)) -> 0 | H104: =IF($E$10=0,0,(YTotExp-(YTotExp+YTotRet-J10))/($E$10*YPER5)) -> 0
A106: Developed by Bill Thompson, Assistant Professor and Extension Economist, Texas A&M AgriLife Extension Service, 325-653-4576.
A108: Information presented is prepared solely as a general guide and not intended to recognize or predict the costs and returns from any one operation. Brand names are mentioned only as examples and imply no endorsement.

Sheet WheatIrrigated
A1: Projections for Planning Purposes Only -- Not to be Used without Updating
A2: 2021 Estimated Costs and Returns per Acre
A3: Wheat, Center Pivot Irrigated, Trans Pecos
A4: Enter your name for this budget in the cell above.
A5: Enter Your Values in the cells highlighed in MAROON.
E6: Your Acres | R6: Your
C7: Crop Acres | D7: 122 | L7: Your | Q7: Enterprise | R7: Enterprise
E8: Your | H8: Your | I8: Cash | J8: Your | K8: Landlord | L8: Landlord | N8: Your | P8: Your | Q8: Total | R8: Total
A9: REVENUE | D9: Quantity | E9: Quantity | F9: Units | G9: $/Unit | H9: $/Unit | I9: Total | J9: Total | K9: Share | L9: Share | M9: Landlord | N9: Landlord | O9: Tenant | P9: Tenant | Q9: (122 acres) | R9: ="(" & E7 & " acres)" -> ( acres)
B10: Wheat | D10: 50 | F10: Bushel | G10: 4.6 | I10: 230 | J10: =E10*H10 -> 0 | K10: 0 | M10: 0 | N10: =J10*L10 -> 0 | O10: 230 | P10: =+J10-N10 -> 0 | Q10: 28060 | R10: =+J10*E$7 -> 0
D11: 0 | G11: 0 | I11: 0 | J11: 0 | K11: 0 | M11: 0 | N11: 0 | O11: 0 | P11: =+J11-N11 -> 0 | Q11: 0 | R11: 0
D12: 0 | G12: 0 | I12: 0 | J12: 0 | K12: 0 | M12: 0 | N12: 0 | O12: 0 | P12: 0 | Q12: 0 | R12: 0
A13: Total Revenue | I13: 230 | J13: =SUM(J10:J12) -> 0 | M13: 0 | N13: =SUM(N10:N12) -> 0 | O13: 230 | P13: =SUM(P10:P12) -> 0 | Q13: 28060 | R13: =SUM(R10:R12) -> 0
Q14: Enterprise | R14: Enterprise
A15: VARIABLE COSTS | D15: Quantity | E15: Quantity | F15: Units | G15: $/Unit | H15: $/Unit | I15: Total | J15: Total | K15: Share | L15: Share | M15: Landlord | N15: Landlord | O15: Tenant | P15: Tenant | Q15: Total | R15: Total
A16: Production Costs
B17: Fertilizer
C18: Nitrogen - Dry (Urea 45-0-0) | D18: 80 | F18: Pound | G18: 0.4022 | I18: 32.176 | J18: =E18*H18 -> 0 | K18: 0 | M18: 0 | N18: =J18*L18 -> 0 | O18: 32.176 | P18: =+J18-N18 -> 0 | Q18: 3925.472 | R18: =+J18*E$7 -> 0
B19: Custom
C20: Soil Test-Irrigated | D20: 1 | F20: Acre | G20: 0.5 | I20: 0.5 | J20: 0 | K20: 0 | M20: 0 | N20: 0 | O20: 0.5 | P20: 0 | Q20: 61 | R20: 0
C21: Haul Wheat | D21: 50 | F21: Bushel | G21: 0.25 | I21: 12.5 | J21: 0 | K21: 0 | M21: 0 | N21: 0 | O21: 12.5 | P21: 0 | Q21: 1525 | R21: 0
B22: Seed
C23: Wheat Seed | D23: 75 | F23: Pound | G23: 0.27 | I23: 20.25 | J23: 0 | K23: 0 | M23: 0 | N23: 0 | O23: 20.25 | P23: 0 | Q23: 2470.5 | R23: 0
B24: Miscellaneous
C25: IRR Wheat RP, 65%, Ent, Pecos Co. | D25: 1 | F25: Acre | G25: 4.61 | I25: 4.61 | J25: 0 | K25: 0 | M25: 0 | N25: 0 | O25: 4.61 | P25: 0 | Q25: 562.42 | R25: 0
B26: Insecticide
C27: Lannate LV | D27: 1 | F27: Pint | G27: 10.375 | I27: 10.375 | J27: 0 | K27: 0 | M27: 0 | N27: 0 | O27: 10.375 | P27: 0 | Q27: 1265.75 | R27: 0
B28: Fungicides
C29: Wheat Fungicide | D29: 4 | F29: Ounce | G29: 0.48 | I29: 1.92 | J29: 0 | K29: 0 | M29: 0 | N29: 0 | O29: 1.92 | P29: 0 | Q29: 234.24 | R29: 0
D30: 0 | G30: 0 | I30: 0 | J30: 0 | K30: 0 | M30: 0 | N30: 0 | O30: 0 | P30: 0 | Q30: 0 | R30: 0
D31: 0 | G31: 0 | I31: 0 | J31: 0 | K31: 0 | M31: 0 | N31: 0 | O31: 0 | P31: 0 | Q31: 0 | R31: 0
D32: 0 | G32: 0 | I32: 0 | J32: =E32*H32 -> 0 | K32: 0 | M32: 0 | N32: =J32*L32 -> 0 | O32: 0 | P32: =+J32-N32 -> 0 | Q32: 0 | R32: =+J32*E$7 -> 0
B33: Irrigation
C34: Energy Cost | D34: 16 | F34: AcreInch | G34: 5.324811887 | I34: 85.1969902 | J34: =E34*H34 -> 0 | K34: 0 | M34: 0 | N34: =J34*L34 -> 0 | O34: 85.1969902 | P34: =+J34-N34 -> 0 | Q34: 10394.0328 | R34: =+J34*E$7 -> 0
C35: Irrigation Labor | D35: 0.0462 | F35: Hour | G35: 15 | I35: 0.693 | J35: 0 | K35: 0 | M35: 0 | N35: 0 | O35: 0.693 | P35: 0 | Q35: 84.546 | R35: 0
B36: Machinery Labor
C37: Tractors/Self-Propelled | D37: 0.65 | F37: Hour | G37: 15 | I37: 9.75 | J37: =E37*H37 -> 0 | K37: 0 | M37: 0 | N37: =J37*L37 -> 0 | O37: 9.75 | P37: =+J37-N37 -> 0 | Q37: 1189.5 | R37: =+J37*E$7 -> 0
C38: Other Labor | D38: 0.26 | F38: Hour | G38: 15 | I38: 3.9 | J38: =E38*H38 -> 0 | K38: 0 | M38: 0 | N38: =J38*L38 -> 0 | O38: 3.9 | P38: =+J38-N38 -> 0 | Q38: 475.8 | R38: =+J38*E$7 -> 0
B40: Diesel Fuel
C41: Pickup/General Use Equipment | D41: 1 | F41: Acre | G41: 0 | I41: 0 | J41: =E41*H41 -> 0 | K41: 0 | M41: 0 | N41: =J41*L41 -> 0 | O41: 0 | P41: =+J41-N41 -> 0 | Q41: 0 | R41: =+J41*E$7 -> 0
C42: Tractors/Self-Propelled | D42: 6.63 | F42: Gallon | G42: 1.5 | I42: 9.945 | J42: =E42*H42 -> 0 | K42: 0 | M42: 0 | N42: =J42*L42 -> 0 | O42: 9.945 | P42: =+J42-N42 -> 0 | Q42: 1213.29 | R42: =+J42*E$7 -> 0
B44: Gasoline
C45: Pickup/General Use Equipment | D45: 1 | F45: Acre | G45: 2.412295082 | I45: 2.412295082 | J45: =E45*H45 -> 0 | K45: 0 | M45: 0 | N45: =J45*L45 -> 0 | O45: 2.412295082 | P45: =+J45-N45 -> 0 | Q45: 294.3 | R45: =+J45*E$7 -> 0
C46: Tractors/Self-Propelled | D46: 0 | F46: Gallon | G46: 1.8 | I46: 0 | J46: =E46*H46 -> 0 | K46: 0 | M46: 0 | N46: =J46*L46 -> 0 | O46: 0 | P46: =+J46-N46 -> 0 | Q46: 0 | R46: =+J46*E$7 -> 0
B48: Repairs & Maintenance
C49: Pickup/General Use Equipment | D49: 1 | F49: Acre | G49: 0.8644057377 | I49: 0.8644057377 | J49: =E49*H49 -> 0 | K49: 0 | M49: 0 | N49: =J49*L49 -> 0 | O49: 0.8644057377 | P49: =+J49-N49 -> 0 | Q49: 105.4575 | R49: =+J49*E$7 -> 0
C50: Irrigation Equipment | D50: 1 | F50: Acre | G50: 42.3392 | I50: 42.3392 | J50: 0 | K50: 0 | M50: 0 | N50: 0 | O50: 42.3392 | P50: 0 | Q50: 5165.3824 | R50: 0
C51: Tractors/Self-Propelled | D51: 1 | F51: Acre | G51: 26.74645921 | I51: 26.74645921 | J51: 0 | K51: 0 | M51: 0 | N51: 0 | O51: 26.74645921 | P51: 0 | Q51: 3263.068023 | R51: 0
C52: Implements | D52: 1 | F52: Acre | G52: 15.84248794 | I52: 15.84248794 | J52: 0 | K52: 0 | M52: 0 | N52: 0 | O52: 15.84248794 | P52: 0 | Q52: 1932.783529 | R52: 0
I53: 0 | J53: 0 | K53: 0 | M53: 0 | N53: 0 | O53: 0 | P53: 0 | Q53: 0 | R53: 0
I54: 0 | J54: 0 | K54: 0 | M54: 0 | N54: 0 | O54: 0 | P54: 0 | Q54: 0 | R54: 0
B55: Interest on Credit Line | G55: 0.0455 | I55: 6.8822246 | J55: =+SUM(J17:J54)/2*H55 -> 0 | M55: 0 | N55: =+SUM(N17:N54)/2*L55 -> 0 | O55: 6.8822246 | P55: =+SUM(P17:P54)/2*L55 -> 0 | Q55: 839.6314012 | R55: =+J55*E$7 -> 0
A56: Total Variable Costs | I56: 286.9030628 | J56: =SUM(J18:J55) -> 0 | M56: 0 | N56: =SUM(N18:N55) -> 0 | O56: 286.9030628 | P56: =SUM(P18:P55) -> 0 | Q56: 35002.17366 | R56: =SUM(R18:R55) -> 0
A57: Planned Returns Above Variable Costs: | I57: -56.90306276 | J57: =+J13-J56 -> 0 | M57: 0 | N57: =+N13-N56 -> 0 | O57: -56.90306276 | P57: =+P13-P56 -> 0 | Q57: -6942.173657 | R57: =+R13-R56 -> 0
B58: Breakeven Price to Cover Variable Costs | G58: 5.738061255 | H58: =IF(E10=0,"n/a",(YVarExp-(YTotExp+YTotRet-J10))/E10) -> n/a | I58: Bushel
Q59: Enterprise | R59: Enterprise
A60: FIXED COSTS | D60: Quantity | E60: Quantity | F60: Units | G60: $/Unit | H60: $/Unit | I60: Total | J60: Total | K60: Share | L60: Share | M60: Landlord | N60: Landlord | O60: Tenant | P60: Tenant | Q60: Total | R60: Total
B61: Machinery Depreciation
C62: Pickup/General Use Equipment | D62: 1 | F62: Acre | G62: 1.809221311 | I62: 1.809221311 | J62: =E62*H62 -> 0 | K62: 0 | M62: 0 | N62: =J62*L62 -> 0 | O62: 1.809221311 | P62: =+J62-N62 -> 0 | Q62: 220.725 | R62: =+J62*E$7 -> 0
C63: Irrigation Equipment | D63: 1 | F63: Acre | G63: 44.89555261 | I63: 44.89555261 | J63: 0 | K63: 0 | M63: 0 | N63: =J63*L63 -> 0 | O63: 44.89555261 | P63: 0 | Q63: 5477.257418 | R63: 0
C64: Tractors/Self-Propelled | D64: 1 | F64: Acre | G64: 25.47758348 | I64: 25.47758348 | J64: 0 | K64: 0 | M64: 0 | N64: =J64*L64 -> 0 | O64: 25.47758348 | P64: 0 | Q64: 3108.265185 | R64: 0
C65: Implements | D65: 1 | F65: Acre | G65: 19.47853695 | I65: 19.47853695 | J65: 0 | K65: 0 | M65: 0 | N65: =J65*L65 -> 0 | O65: 19.47853695 | P65: 0 | Q65: 2376.381508 | R65: 0
B66: Equipment Investment
C67: Pickup/General Use Equipment | D67: 11.05635246 | F67: Dollars | G67: 0.055 | I67: 0.6080993852 | J67: =E67*H67 -> 0 | K67: 0 | M67: 0 | N67: =J67*L67 -> 0 | O67: 0.6080993852 | P67: =+J67-N67 -> 0 | Q67: 74.188125 | R67: =+J67*E$7 -> 0
C68: Irrigation Equipment | D68: 336.7166445 | F68: Dollars | G68: 0.055 | I68: 18.51941545 | J68: 0 | K68: 0 | M68: 0 | N68: =J68*L68 -> 0 | O68: 18.51941545 | P68: 0 | Q68: 2259.368685 | R68: 0
C69: Tractors/Self-Propelled | D69: 194.1813291 | F69: Dollars | G69: 0.055 | I69: 10.6799731 | J69: 0 | K69: 0 | M69: 0 | N69: =J69*L69 -> 0 | O69: 10.6799731 | P69: 0 | Q69: 1302.956719 | R69: 0
C70: Implements | D70: 92.45937537 | F70: Dollars | G70: 0.055 | I70: 5.085265645 | J70: 0 | K70: 0 | M70: 0 | N70: =J70*L70 -> 0 | O70: 5.085265645 | P70: 0 | Q70: 620.4024087 | R70: 0
B71: Salaried Labor | D71: 1 | F71: Acre | G71: 0 | I71: 0 | J71: 0 | K71: 0 | M71: 0 | N71: =J71*L71 -> 0 | O71: 0 | P71: =+J71-N71 -> 0 | Q71: 0 | R71: =+J71*E$7 -> 0
B72: Management Fee, Owner/Operator Labor | D72: 1 | F72: Acre | G72: 0 | I72: 0 | J72: 0 | K72: 0 | M72: 0 | N72: 0 | O72: 0 | P72: 0 | Q72: 0 | R72: 0
B73: Allocated Establishment Cost | D73: 1 | F73: Acre | G73: 0 | I73: 0 | J73: 0 | K73: 0 | M73: 0 | N73: 0 | O73: 0 | P73: 0 | Q73: 0 | R73: 0
B74: Trans Pecos Irrigated Land | D74: 1 | F74: Acre | G74: 50 | I74: 50 | J74: 0 | K74: 0 | M74: 0 | N74: 0 | O74: 50 | P74: 0 | Q74: 6100 | R74: 0
B75: Property Taxes | D75: 1 | F75: Acre | G75: 0 | I75: 0 | J75: 0 | K75: 0 | M75: 0 | N75: 0 | O75: 0 | P75: 0 | Q75: 0 | R75: 0
B76: Whole Farm Insurance | D76: 1 | F76: Acre | G76: 0 | I76: 0 | J76: 0 | K76: 0 | M76: 0 | N76: 0 | O76: 0 | P76: 0 | Q76: 0 | R76: 0
D77: 1 | G77: 0 | I77: 0 | J77: 0 | K77: 0 | M77: 0 | N77: 0 | O77: 0 | P77: 0 | Q77: 0 | R77: 0
D78: 1 | G78: 0 | I78: 0 | J78: =E78*H78 -> 0 | K78: 0 | M78: 0 | N78: 0 | O78: 0 | P78: 0 | Q78: 0 | R78: 0
A79: Total Fixed Costs | I79: 176.5536479 | J79: =+SUM(J62:J78) -> 0 | M79: 0 | N79: =+SUM(N62:N78) -> 0 | O79: 176.5536479 | P79: =+SUM(P62:P78) -> 0 | Q79: 21539.54505 | R79: =+SUM(R62:R78) -> 0
A80: Total Specified Costs | I80: 463.4567107 | J80: =+J56+J79 -> 0 | M80: 0 | N80: =+N56+N79 -> 0 | O80: 463.4567107 | P80: =+P56+P79 -> 0 | Q80: 56541.7187 | R80: =+R56+R79 -> 0
A82: Returns Above Specified Costs | I82: -233.4567107 | J82: =+J13-J80 -> 0 | M82: 0 | N82: =+N13-N80 -> 0 | O82: -233.4567107 | P82: =+P13-P80 -> 0 | Q82: -28481.7187 | R82: =+R13-R80 -> 0
A84: Breakeven Price to Cover Total Costs | G84: 9.269134214 | H84: =IF(E10=0,"n/a",(YTotExp-(YTotExp+YTotRet-J10))/E10) -> n/a | I84: Bushel
D86: Example Breakeven Prices
B87: Example | C87: Example | D87: To Cover | G87: To Cover
B88: Yield | C88: Yield | D88: Variable | G88: Total
B89: Percent | C89: Bushel | D89: Costs | G89: Costs
B90: 0.75 | C90: 37.5 | D90: 7.65074834 | G90: 12.35884562
B91: 0.9 | C91: 45 | D91: 6.375623617 | G91: 10.29903802
B92: 1 | C92: 50 | D92: 5.738061255 | G92: 9.269134214
B93: 1.1 | C93: 55 | D93: 5.216419323 | G93: 8.426485649
B94: 1.25 | C94: 62.5 | D94: 4.590449004 | G94: 7.415307371
D96: Your Breakeven Prices
B97: Your | C97: Your | E97: To Cover | H97: To Cover
B98: Yield | C98: Yield | E98: Variable | H98: Total
B99: Percent | C99: Bushel | E99: Costs | H99: Costs
B100: 0.75 | C100: =E10*YPER1 -> 0 | E100: =IF($E$10=0,0,(YVarExp-(YTotExp+YTotRet-J10))/($E$10*YPER1)) -> 0 | H100: =IF($E$10=0,0,(YTotExp-(YTotExp+YTotRet-J10))/($E$10*YPER1)) -> 0
B101: 0.9 | C101: =E10*YPER2 -> 0 | E101: =IF($E$10=0,0,(YVarExp-(YTotExp+YTotRet-J10))/($E$10*YPER2)) -> 0 | H101: =IF($E$10=0,0,(YTotExp-(YTotExp+YTotRet-J10))/($E$10*YPER2)) -> 0
B102: 1 | C102: =+E10 -> 0 | E102: =IF($E$10=0,0,(YVarExp-(YTotExp+YTotRet-J10))/($E$10*YPER3)) -> 0 | H102: =IF($E$10=0,0,(YTotExp-(YTotExp+YTotRet-J10))/($E$10*YPER3)) -> 0
B103: 1.1 | C103: =E10*YPER4 -> 0 | E103: =IF($E$10=0,0,(YVarExp-(YTotExp+YTotRet-J10))/($E$10*YPER4)) -> 0 | H103: =IF($E$10=0,0,(YTotExp-(YTotExp+YTotRet-J10))/($E$10*YPER4)) -> 0
B104: 1.25 | C104: =E10*YPER5 -> 0 | E104: =IF($E$10=0,0,(YVarExp-(YTotExp+YTotRet-J10))/($E$10*YPER5)) -> 0 | H104: =IF($E$10=0,0,(YTotExp-(YTotExp+YTotRet-J10))/($E$10*YPER5)) -> 0
A106: Developed by Bill Thompson, Assistant Professor and Extension Economist, Texas A&M AgriLife Extension Service, 325-653-4576.
A108: Information presented is prepared solely as a general guide and not intended to recognize or predict the costs and returns from any one operation. Brand names are mentioned only as examples and imply no endorsement.

Sheet SorghumHayDryland
A1: Projections for Planning Purposes Only -- Not to be Used without Updating
A2: 2021 Estimated Costs and Returns per Acre
A3: Sorghum-Sudangrass for Hay, Dryland, 3 Ton Yield
A4: Enter your name for this budget in the cell above.
A5: Enter Your Values in the cells highlighed in MAROON.
E6: Your Acres | R6: Your
C7: Crop Acres | D7: 122 | L7: Your | Q7: Enterprise | R7: Enterprise
E8: Your | H8: Your | I8: Cash | J8: Your | K8: Landlord | L8: Landlord | N8: Your | P8: Your | Q8: Total | R8: Total
A9: REVENUE | D9: Quantity | E9: Quantity | F9: Units | G9: $/Unit | H9: $/Unit | I9: Total | J9: Total | K9: Share | L9: Share | M9: Landlord | N9: Landlord | O9: Tenant | P9: Tenant | Q9: (122 acres) | R9: ="(" & E7 & " acres)" -> ( acres)
B10: Sorghum Hay | D10: 3 | F10: Ton | G10: 145 | I10: 435 | J10: =E10*H10 -> 0 | K10: 0 | M10: 0 | N10: =J10*L10 -> 0 | O10: 435 | P10: =+J10-N10 -> 0 | Q10: 53070 | R10: =+J10*E$7 -> 0
D11: 0 | G11: 0 | I11: 0 | J11: 0 | K11: 0 | M11: 0 | N11: 0 | O11: 0 | P11: =+J11-N11 -> 0 | Q11: 0 | R11: 0
D12: 0 | G12: 0 | I12: 0 | J12: 0 | K12: 0 | M12: 0 | N12: 0 | O12: 0 | P12: 0 | Q12: 0 | R12: 0
A13: Total Revenue | I13: 435 | J13: =SUM(J10:J12) -> 0 | M13: 0 | N13: =SUM(N10:N12) -> 0 | O13: 435 | P13: =SUM(P10:P12) -> 0 | Q13: 53070 | R13: =SUM(R10:R12) -> 0
Q14: Enterprise | R14: Enterprise
A15: VARIABLE COSTS | D15: Quantity | E15: Quantity | F15: Units | G15: $/Unit | H15: $/Unit | I15: Total | J15: Total | K15: Share | L15: Share | M15: Landlord | N15: Landlord | O15: Tenant | P15: Tenant | Q15: Total | R15: Total
A16: Production Costs
B17: Fertilizer
C18: Urea, Solid (46% N) | D18: 0.89 | F18: CWT | G18: 22.25 | I18: 19.8025 | J18: =E18*H18 -> 0 | K18: 0 | M18: 0 | N18: =J18*L18 -> 0 | O18: 19.8025 | P18: =+J18-N18 -> 0 | Q18: 2415.905 | R18: =+J18*E$7 -> 0
B19: Seed
C20: Haygrazer Seed | D20: 15 | F20: Pound | G20: 1.79 | I20: 26.85 | J20: 0 | K20: 0 | M20: 0 | N20: 0 | O20: 26.85 | P20: 0 | Q20: 3275.7 | R20: 0
D21: 0 | G21: 0 | I21: 0 | J21: 0 | K21: 0 | M21: 0 | N21: 0 | O21: 0 | P21: 0 | Q21: 0 | R21: 0
D22: 0 | G22: 0 | I22: 0 | J22: 0 | K22: 0 | M22: 0 | N22: 0 | O22: 0 | P22: 0 | Q22: 0 | R22: 0
D23: 0 | G23: 0 | I23: 0 | J23: =E23*H23 -> 0 | K23: 0 | M23: 0 | N23: =J23*L23 -> 0 | O23: 0 | P23: =+J23-N23 -> 0 | Q23: 0 | R23: =+J23*E$7 -> 0
B24: Machinery Labor
C25: Tractors/Self-Propelled | D25: 1.9 | F25: Hour | G25: 15 | I25: 28.5 | J25: =E25*H25 -> 0 | K25: 0 | M25: 0 | N25: =J25*L25 -> 0 | O25: 28.5 | P25: =+J25-N25 -> 0 | Q25: 3477 | R25: =+J25*E$7 -> 0
C26: Other Labor | D26: 0 | F26: Hour | G26: 15 | I26: 0 | J26: =E26*H26 -> 0 | K26: 0 | M26: 0 | N26: =J26*L26 -> 0 | O26: 0 | P26: =+J26-N26 -> 0 | Q26: 0 | R26: =+J26*E$7 -> 0
B28: Diesel Fuel
C29: Pickup/General Use Equipment | D29: 1 | F29: Acre | G29: 0 | I29: 0 | J29: =E29*H29 -> 0 | K29: 0 | M29: 0 | N29: =J29*L29 -> 0 | O29: 0 | P29: =+J29-N29 -> 0 | Q29: 0 | R29: =+J29*E$7 -> 0
C30: Tractors/Self-Propelled | D30: 8.79 | F30: Gallon | G30: 1.5 | I30: 13.185 | J30: =E30*H30 -> 0 | K30: 0 | M30: 0 | N30: =J30*L30 -> 0 | O30: 13.185 | P30: =+J30-N30 -> 0 | Q30: 1608.57 | R30: =+J30*E$7 -> 0
B32: Gasoline
C33: Pickup/General Use Equipment | D33: 1 | F33: Acre | G33: 2.894754098 | I33: 2.894754098 | J33: =E33*H33 -> 0 | K33: 0 | M33: 0 | N33: =J33*L33 -> 0 | O33: 2.894754098 | P33: =+J33-N33 -> 0 | Q33: 353.16 | R33: =+J33*E$7 -> 0
C34: Tractors/Self-Propelled | D34: 0 | F34: Gallon | G34: 1.8 | I34: 0 | J34: =E34*H34 -> 0 | K34: 0 | M34: 0 | N34: =J34*L34 -> 0 | O34: 0 | P34: =+J34-N34 -> 0 | Q34: 0 | R34: =+J34*E$7 -> 0
B36: Repairs & Maintenance
C37: Pickup/General Use Equipment | D37: 1 | F37: Acre | G37: 0.8040983607 | I37: 0.8040983607 | J37: =E37*H37 -> 0 | K37: 0 | M37: 0 | N37: =J37*L37 -> 0 | O37: 0.8040983607 | P37: =+J37-N37 -> 0 | Q37: 98.1 | R37: =+J37*E$7 -> 0
C38: Irrigation Equipment | D38: 1 | F38: Acre | G38: 0 | I38: 0 | J38: 0 | K38: 0 | M38: 0 | N38: 0 | O38: 0 | P38: 0 | Q38: 0 | R38: 0
C39: Tractors/Self-Propelled | D39: 1 | F39: Acre | G39: 16.14243049 | I39: 16.14243049 | J39: 0 | K39: 0 | M39: 0 | N39: 0 | O39: 16.14243049 | P39: 0 | Q39: 1969.37652 | R39: 0
C40: Implements | D40: 1 | F40: Acre | G40: 13.14488164 | I40: 13.14488164 | J40: 0 | K40: 0 | M40: 0 | N40: 0 | O40: 13.14488164 | P40: 0 | Q40: 1603.67556 | R40: 0
I41: 0 | J41: 0 | K41: 0 | M41: 0 | N41: 0 | O41: 0 | P41: 0 | Q41: 0 | R41: 0
I42: 0 | J42: 0 | K42: 0 | M42: 0 | N42: 0 | O42: 0 | P42: 0 | Q42: 0 | R42: 0
B43: Interest on Credit Line | G43: 0.0455 | I43: 1.671648649 | J43: =+SUM(J17:J42)/2*H43 -> 0 | M43: 0 | N43: =+SUM(N17:N42)/2*L43 -> 0 | O43: 1.671648649 | P43: =+SUM(P17:P42)/2*L43 -> 0 | Q43: 203.9411351 | R43: =+J43*E$7 -> 0
A44: Total Variable Costs | I44: 122.9953132 | J44: =SUM(J18:J43) -> 0 | M44: 0 | N44: =SUM(N18:N43) -> 0 | O44: 122.9953132 | P44: =SUM(P18:P43) -> 0 | Q44: 15005.42821 | R44: =SUM(R18:R43) -> 0
A45: Planned Returns Above Variable Costs: | I45: 312.0046868 | J45: =+J13-J44 -> 0 | M45: 0 | N45: =+N13-N44 -> 0 | O45: 312.0046868 | P45: =+P13-P44 -> 0 | Q45: 38064.57179 | R45: =+R13-R44 -> 0
B46: Breakeven Price to Cover Variable Costs | G46: 40.99843775 | H46: =IF(E10=0,"n/a",(YVarExp-(YTotExp+YTotRet-J10))/E10) -> n/a | I46: Ton
Q47: Enterprise | R47: Enterprise
A48: FIXED COSTS | D48: Quantity | E48: Quantity | F48: Units | G48: $/Unit | H48: $/Unit | I48: Total | J48: Total | K48: Share | L48: Share | M48: Landlord | N48: Landlord | O48: Tenant | P48: Tenant | Q48: Total | R48: Total
B49: Machinery Depreciation
C50: Pickup/General Use Equipment | D50: 1 | F50: Acre | G50: 3.015368852 | I50: 3.015368852 | J50: =E50*H50 -> 0 | K50: 0 | M50: 0 | N50: =J50*L50 -> 0 | O50: 3.015368852 | P50: =+J50-N50 -> 0 | Q50: 367.875 | R50: =+J50*E$7 -> 0
C51: Tractors/Self-Propelled | D51: 1 | F51: Acre | G51: 18.67015465 | I51: 18.67015465 | J51: 0 | K51: 0 | M51: 0 | N51: =J51*L51 -> 0 | O51: 18.67015465 | P51: 0 | Q51: 2277.758867 | R51: 0
C52: Implements | D52: 1 | F52: Acre | G52: 16.98038142 | I52: 16.98038142 | J52: 0 | K52: 0 | M52: 0 | N52: =J52*L52 -> 0 | O52: 16.98038142 | P52: 0 | Q52: 2071.606534 | R52: 0
B53: Equipment Investment
C54: Pickup/General Use Equipment | D54: 12.56403689 | F54: Dollars | G54: 0.055 | I54: 0.6910220287 | J54: =E54*H54 -> 0 | K54: 0 | M54: 0 | N54: =J54*L54 -> 0 | O54: 0.6910220287 | P54: =+J54-N54 -> 0 | Q54: 84.3046875 | R54: =+J54*E$7 -> 0
C55: Tractors/Self-Propelled | D55: 140.8133894 | F55: Dollars | G55: 0.055 | I55: 7.74473642 | J55: 0 | K55: 0 | M55: 0 | N55: =J55*L55 -> 0 | O55: 7.74473642 | P55: 0 | Q55: 944.8578432 | R55: 0
C56: Implements | D56: 76.94485355 | F56: Dollars | G56: 0.055 | I56: 4.231966945 | J56: 0 | K56: 0 | M56: 0 | N56: =J56*L56 -> 0 | O56: 4.231966945 | P56: 0 | Q56: 516.2999673 | R56: 0
B57: Salaried Labor | D57: 1 | F57: Acre | G57: 0 | I57: 0 | J57: 0 | K57: 0 | M57: 0 | N57: =J57*L57 -> 0 | O57: 0 | P57: =+J57-N57 -> 0 | Q57: 0 | R57: =+J57*E$7 -> 0
B58: Management Fee, Owner/Operator Labor | D58: 1 | F58: Acre | G58: 0 | I58: 0 | J58: 0 | K58: 0 | M58: 0 | N58: 0 | O58: 0 | P58: 0 | Q58: 0 | R58: 0
B59: Allocated Establishment Cost | D59: 1 | F59: Acre | G59: 0 | I59: 0 | J59: 0 | K59: 0 | M59: 0 | N59: 0 | O59: 0 | P59: 0 | Q59: 0 | R59: 0
B60: West Texas Dryland | D60: 1 | F60: Acre | G60: 15 | I60: 15 | J60: 0 | K60: 0 | M60: 0 | N60: 0 | O60: 15 | P60: 0 | Q60: 1830 | R60: 0
B61: Property Taxes | D61: 1 | F61: Acre | G61: 0 | I61: 0 | J61: 0 | K61: 0 | M61: 0 | N61: 0 | O61: 0 | P61: 0 | Q61: 0 | R61: 0
B62: Whole Farm Insurance | D62: 1 | F62: Acre | G62: 0 | I62: 0 | J62: 0 | K62: 0 | M62: 0 | N62: 0 | O62: 0 | P62: 0 | Q62: 0 | R62: 0
D63: 1 | G63: 0 | I63: 0 | J63: 0 | K63: 0 | M63: 0 | N63: 0 | O63: 0 | P63: 0 | Q63: 0 | R63: 0
D64: 1 | G64: 0 | I64: 0 | J64: =E64*H64 -> 0 | K64: 0 | M64: 0 | N64: 0 | O64: 0 | P64: 0 | Q64: 0 | R64: 0
A65: Total Fixed Costs | I65: 66.33363032 | J65: =+SUM(J50:J64) -> 0 | M65: 0 | N65: =+SUM(N50:N64) -> 0 | O65: 66.33363032 | P65: =+SUM(P50:P64) -> 0 | Q65: 8092.702899 | R65: =+SUM(R50:R64) -> 0
A66: Total Specified Costs | I66: 189.3289436 | J66: =+J44+J65 -> 0 | M66: 0 | N66: =+N44+N65 -> 0 | O66: 189.3289436 | P66: =+P44+P65 -> 0 | Q66: 23098.13111 | R66: =+R44+R65 -> 0
A68: Returns Above Specified Costs | I68: 245.6710564 | J68: =+J13-J66 -> 0 | M68: 0 | N68: =+N13-N66 -> 0 | O68: 245.6710564 | P68: =+P13-P66 -> 0 | Q68: 29971.86889 | R68: =+R13-R66 -> 0
A70: Breakeven Price to Cover Total Costs | G70: 63.10964785 | H70: =IF(E10=0,"n/a",(YTotExp-(YTotExp+YTotRet-J10))/E10) -> n/a | I70: Ton
D72: Example Breakeven Prices
B73: Example | C73: Example | D73: To Cover | G73: To Cover
B74: Yield | C74: Yield | D74: Variable | G74: Total
B75: Percent | C75: Ton | D75: Costs | G75: Costs
B76: 0.75 | C76: 2.25 | D76: 54.66458366 | G76: 84.14619714
B77: 0.9 | C77: 2.7 | D77: 45.55381972 | G77: 70.12183095
B78: 1 | C78: 3 | D78: 40.99843775 | G78: 63.10964785
B79: 1.1 | C79: 3.3 | D79: 37.27130704 | G79: 57.37240714
B80: 1.25 | C80: 3.75 | D80: 32.7987502 | G80: 50.48771828
D82: Your Breakeven Prices
B83: Your | C83: Your | E83: To Cover | H83: To Cover
B84: Yield | C84: Yield | E84: Variable | H84: Total
B85: Percent | C85: Ton | E85: Costs | H85: Costs
B86: 0.75 | C86: =E10*YPER1 -> 0 | E86: =IF($E$10=0,0,(YVarExp-(YTotExp+YTotRet-J10))/($E$10*YPER1)) -> 0 | H86: =IF($E$10=0,0,(YTotExp-(YTotExp+YTotRet-J10))/($E$10*YPER1)) -> 0
B87: 0.9 | C87: =E10*YPER2 -> 0 | E87: =IF($E$10=0,0,(YVarExp-(YTotExp+YTotRet-J10))/($E$10*YPER2)) -> 0 | H87: =IF($E$10=0,0,(YTotExp-(YTotExp+YTotRet-J10))/($E$10*YPER2)) -> 0
B88: 1 | C88: =+E10 -> 0 | E88: =IF($E$10=0,0,(YVarExp-(YTotExp+YTotRet-J10))/($E$10*YPER3)) -> 0 | H88: =IF($E$10=0,0,(YTotExp-(YTotExp+YTotRet-J10))/($E$10*YPER3)) -> 0
B89: 1.1 | C89: =E10*YPER4 -> 0 | E89: =IF($E$10=0,0,(YVarExp-(YTotExp+YTotRet-J10))/($E$10*YPER4)) -> 0 | H89: =IF($E$10=0,0,(YTotExp-(YTotExp+YTotRet-J10))/($E$10*YPER4)) -> 0
B90: 1.25 | C90: =E10*YPER5 -> 0 | E90: =IF($E$10=0,0,(YVarExp-(YTotExp+YTotRet-J10))/($E$10*YPER5)) -> 0 | H90: =IF($E$10=0,0,(YTotExp-(YTotExp+YTotRet-J10))/($E$10*YPER5)) -> 0
A92: Developed by Bill Thompson, Assistant Professor and Extension Economist, Texas A&M AgriLife Extension Service, 325-653-4576.
A94: Information presented is prepared solely as a general guide and not intended to recognize or predict the costs and returns from any one operation. Brand names are mentioned only as examples and imply no endorsement.

Sheet SorghumHayIrrigated
A1: Projections for Planning Purposes Only -- Not to be Used without Updating
A2: 2021 Estimated Costs and Returns per Acre
A3: Sorghum-Sudangrass for Hay, Center Pivot Irrigated, 5 Ton Yield
A4: Enter your name for this budget in the cell above.
A5: Enter Your Values in the cells highlighed in MAROON.
E6: Your Acres | R6: Your
C7: Crop Acres | D7: 122 | L7: Your | Q7: Enterprise | R7: Enterprise
E8: Your | H8: Your | I8: Cash | J8: Your | K8: Landlord | L8: Landlord | N8: Your | P8: Your | Q8: Total | R8: Total
A9: REVENUE | D9: Quantity | E9: Quantity | F9: Units | G9: $/Unit | H9: $/Unit | I9: Total | J9: Total | K9: Share | L9: Share | M9: Landlord | N9: Landlord | O9: Tenant | P9: Tenant | Q9: (122 acres) | R9: ="(" & E7 & " acres)" -> ( acres)
B10: Sorghum Hay | D10: 5 | F10: Ton | G10: 145 | I10: 725 | J10: =E10*H10 -> 0 | K10: 0 | M10: 0 | N10: =J10*L10 -> 0 | O10: 725 | P10: =+J10-N10 -> 0 | Q10: 88450 | R10: =+J10*E$7 -> 0
D11: 0 | G11: 0 | I11: 0 | J11: 0 | K11: 0 | M11: 0 | N11: 0 | O11: 0 | P11: =+J11-N11 -> 0 | Q11: 0 | R11: 0
D12: 0 | G12: 0 | I12: 0 | J12: 0 | K12: 0 | M12: 0 | N12: 0 | O12: 0 | P12: 0 | Q12: 0 | R12: 0
A13: Total Revenue | I13: 725 | J13: =SUM(J10:J12) -> 0 | M13: 0 | N13: =SUM(N10:N12) -> 0 | O13: 725 | P13: =SUM(P10:P12) -> 0 | Q13: 88450 | R13: =SUM(R10:R12) -> 0
Q14: Enterprise | R14: Enterprise
A15: VARIABLE COSTS | D15: Quantity | E15: Quantity | F15: Units | G15: $/Unit | H15: $/Unit | I15: Total | J15: Total | K15: Share | L15: Share | M15: Landlord | N15: Landlord | O15: Tenant | P15: Tenant | Q15: Total | R15: Total
A16: Production Costs
B17: Fertilizer
C18: Urea, Solid (46% N) | D18: 0.89 | F18: CWT | G18: 22.25 | I18: 19.8025 | J18: =E18*H18 -> 0 | K18: 0 | M18: 0 | N18: =J18*L18 -> 0 | O18: 19.8025 | P18: =+J18-N18 -> 0 | Q18: 2415.905 | R18: =+J18*E$7 -> 0
B19: Seed
C20: Haygrazer Seed | D20: 15 | F20: Pound | G20: 1.79 | I20: 26.85 | J20: 0 | K20: 0 | M20: 0 | N20: 0 | O20: 26.85 | P20: 0 | Q20: 3275.7 | R20: 0
D21: 0 | G21: 0 | I21: 0 | J21: 0 | K21: 0 | M21: 0 | N21: 0 | O21: 0 | P21: 0 | Q21: 0 | R21: 0
D22: 0 | G22: 0 | I22: 0 | J22: 0 | K22: 0 | M22: 0 | N22: 0 | O22: 0 | P22: 0 | Q22: 0 | R22: 0
D23: 0 | G23: 0 | I23: 0 | J23: =E23*H23 -> 0 | K23: 0 | M23: 0 | N23: =J23*L23 -> 0 | O23: 0 | P23: =+J23-N23 -> 0 | Q23: 0 | R23: =+J23*E$7 -> 0
B24: Irrigation
C25: Energy Cost | D25: 3.42 | F25: AcreInch | G25: 5.61 | I25: 19.1862 | J25: =E25*H25 -> 0 | K25: 0 | M25: 0 | N25: =J25*L25 -> 0 | O25: 19.1862 | P25: =+J25-N25 -> 0 | Q25: 2340.7164 | R25: =+J25*E$7 -> 0
C26: Irrigation Labor | D26: 0.0198 | F26: Hour | G26: 15 | I26: 0.297 | J26: 0 | K26: 0 | M26: 0 | N26: 0 | O26: 0.297 | P26: 0 | Q26: 36.234 | R26: 0
B27: Machinery Labor
C28: Tractors/Self-Propelled | D28: 3.17 | F28: Hour | G28: 15 | I28: 47.55 | J28: =E28*H28 -> 0 | K28: 0 | M28: 0 | N28: =J28*L28 -> 0 | O28: 47.55 | P28: =+J28-N28 -> 0 | Q28: 5801.1 | R28: =+J28*E$7 -> 0
C29: Other Labor | D29: 0 | F29: Hour | G29: 15 | I29: 0 | J29: =E29*H29 -> 0 | K29: 0 | M29: 0 | N29: =J29*L29 -> 0 | O29: 0 | P29: =+J29-N29 -> 0 | Q29: 0 | R29: =+J29*E$7 -> 0
B31: Diesel Fuel
C32: Pickup/General Use Equipment | D32: 1 | F32: Acre | G32: 0 | I32: 0 | J32: =E32*H32 -> 0 | K32: 0 | M32: 0 | N32: =J32*L32 -> 0 | O32: 0 | P32: =+J32-N32 -> 0 | Q32: 0 | R32: =+J32*E$7 -> 0
C33: Tractors/Self-Propelled | D33: 13.85 | F33: Gallon | G33: 1.5 | I33: 20.775 | J33: =E33*H33 -> 0 | K33: 0 | M33: 0 | N33: =J33*L33 -> 0 | O33: 20.775 | P33: =+J33-N33 -> 0 | Q33: 2534.55 | R33: =+J33*E$7 -> 0
B35: Gasoline
C36: Pickup/General Use Equipment | D36: 1 | F36: Acre | G36: 5.789508197 | I36: 5.789508197 | J36: =E36*H36 -> 0 | K36: 0 | M36: 0 | N36: =J36*L36 -> 0 | O36: 5.789508197 | P36: =+J36-N36 -> 0 | Q36: 706.32 | R36: =+J36*E$7 -> 0
C37: Tractors/Self-Propelled | D37: 0 | F37: Gallon | G37: 1.8 | I37: 0 | J37: =E37*H37 -> 0 | K37: 0 | M37: 0 | N37: =J37*L37 -> 0 | O37: 0 | P37: =+J37-N37 -> 0 | Q37: 0 | R37: =+J37*E$7 -> 0
B39: Repairs & Maintenance
C40: Pickup/General Use Equipment | D40: 1 | F40: Acre | G40: 1.608196721 | I40: 1.608196721 | J40: =E40*H40 -> 0 | K40: 0 | M40: 0 | N40: =J40*L40 -> 0 | O40: 1.608196721 | P40: =+J40-N40 -> 0 | Q40: 196.2 | R40: =+J40*E$7 -> 0
C41: Irrigation Equipment | D41: 1 | F41: Acre | G41: 9.050346 | I41: 9.050346 | J41: 0 | K41: 0 | M41: 0 | N41: 0 | O41: 9.050346 | P41: 0 | Q41: 1104.142212 | R41: 0
C42: Tractors/Self-Propelled | D42: 1 | F42: Acre | G42: 22.53153965 | I42: 22.53153965 | J42: 0 | K42: 0 | M42: 0 | N42: 0 | O42: 22.53153965 | P42: 0 | Q42: 2748.847838 | R42: 0
C43: Implements | D43: 1 | F43: Acre | G43: 13.65084775 | I43: 13.65084775 | J43: 0 | K43: 0 | M43: 0 | N43: 0 | O43: 13.65084775 | P43: 0 | Q43: 1665.403426 | R43: 0
I44: 0 | J44: 0 | K44: 0 | M44: 0 | N44: 0 | O44: 0 | P44: 0 | Q44: 0 | R44: 0
I45: 0 | J45: 0 | K45: 0 | M45: 0 | N45: 0 | O45: 0 | P45: 0 | Q45: 0 | R45: 0
B46: Interest on Credit Line | G46: 0.0455 | I46: 2.522702691 | J46: =+SUM(J17:J45)/2*H46 -> 0 | M46: 0 | N46: =+SUM(N17:N45)/2*L46 -> 0 | O46: 2.522702691 | P46: =+SUM(P17:P45)/2*L46 -> 0 | Q46: 307.7697283 | R46: =+J46*E$7 -> 0
A47: Total Variable Costs | I47: 189.613841 | J47: =SUM(J18:J46) -> 0 | M47: 0 | N47: =SUM(N18:N46) -> 0 | O47: 189.613841 | P47: =SUM(P18:P46) -> 0 | Q47: 23132.8886 | R47: =SUM(R18:R46) -> 0
A48: Planned Returns Above Variable Costs: | I48: 535.386159 | J48: =+J13-J47 -> 0 | M48: 0 | N48: =+N13-N47 -> 0 | O48: 535.386159 | P48: =+P13-P47 -> 0 | Q48: 65317.1114 | R48: =+R13-R47 -> 0
B49: Breakeven Price to Cover Variable Costs | G49: 37.9227682 | H49: =IF(E10=0,"n/a",(YVarExp-(YTotExp+YTotRet-J10))/E10) -> n/a | I49: Ton
Q50: Enterprise | R50: Enterprise
A51: FIXED COSTS | D51: Quantity | E51: Quantity | F51: Units | G51: $/Unit | H51: $/Unit | I51: Total | J51: Total | K51: Share | L51: Share | M51: Landlord | N51: Landlord | O51: Tenant | P51: Tenant | Q51: Total | R51: Total
B52: Machinery Depreciation
C53: Pickup/General Use Equipment | D53: 1 | F53: Acre | G53: 6.030737705 | I53: 6.030737705 | J53: =E53*H53 -> 0 | K53: 0 | M53: 0 | N53: =J53*L53 -> 0 | O53: 6.030737705 | P53: =+J53-N53 -> 0 | Q53: 735.75 | R53: =+J53*E$7 -> 0
C54: Irrigation Equipment | D54: 1 | F54: Acre | G54: 24.31862916 | I54: 24.31862916 | J54: 0 | K54: 0 | M54: 0 | N54: =J54*L54 -> 0 | O54: 24.31862916 | P54: 0 | Q54: 2966.872758 | R54: 0
C55: Tractors/Self-Propelled | D55: 1 | F55: Acre | G55: 27.27275687 | I55: 27.27275687 | J55: 0 | K55: 0 | M55: 0 | N55: =J55*L55 -> 0 | O55: 27.27275687 | P55: 0 | Q55: 3327.276338 | R55: 0
C56: Implements | D56: 1 | F56: Acre | G56: 18.20868787 | I56: 18.20868787 | J56: 0 | K56: 0 | M56: 0 | N56: =J56*L56 -> 0 | O56: 18.20868787 | P56: 0 | Q56: 2221.45992 | R56: 0
B57: Equipment Investment
C58: Pickup/General Use Equipment | D58: 25.12807377 | F58: Dollars | G58: 0.055 | I58: 1.382044057 | J58: =E58*H58 -> 0 | K58: 0 | M58: 0 | N58: =J58*L58 -> 0 | O58: 1.382044057 | P58: =+J58-N58 -> 0 | Q58: 168.609375 | R58: =+J58*E$7 -> 0
C59: Irrigation Equipment | D59: 182.3897187 | F59: Dollars | G59: 0.055 | I59: 10.03143453 | J59: 0 | K59: 0 | M59: 0 | N59: =J59*L59 -> 0 | O59: 10.03143453 | P59: 0 | Q59: 1223.835013 | R59: 0
C60: Tractors/Self-Propelled | D60: 203.1972979 | F60: Dollars | G60: 0.055 | I60: 11.17585138 | J60: 0 | K60: 0 | M60: 0 | N60: =J60*L60 -> 0 | O60: 11.17585138 | P60: 0 | Q60: 1363.453869 | R60: 0
C61: Implements | D61: 85.83914003 | F61: Dollars | G61: 0.055 | I61: 4.721152701 | J61: 0 | K61: 0 | M61: 0 | N61: =J61*L61 -> 0 | O61: 4.721152701 | P61: 0 | Q61: 575.9806296 | R61: 0
B62: Salaried Labor | D62: 1 | F62: Acre | G62: 0 | I62: 0 | J62: 0 | K62: 0 | M62: 0 | N62: =J62*L62 -> 0 | O62: 0 | P62: =+J62-N62 -> 0 | Q62: 0 | R62: =+J62*E$7 -> 0
B63: Management Fee, Owner/Operator Labor | D63: 1 | F63: Acre | G63: 0 | I63: 0 | J63: 0 | K63: 0 | M63: 0 | N63: 0 | O63: 0 | P63: 0 | Q63: 0 | R63: 0
B64: Allocated Establishment Cost | D64: 1 | F64: Acre | G64: 0 | I64: 0 | J64: 0 | K64: 0 | M64: 0 | N64: 0 | O64: 0 | P64: 0 | Q64: 0 | R64: 0
B65: Trans Pecos Irrigated Land | D65: 1 | F65: Acre | G65: 50 | I65: 50 | J65: 0 | K65: 0 | M65: 0 | N65: 0 | O65: 50 | P65: 0 | Q65: 6100 | R65: 0
B66: Property Taxes | D66: 1 | F66: Acre | G66: 0 | I66: 0 | J66: 0 | K66: 0 | M66: 0 | N66: 0 | O66: 0 | P66: 0 | Q66: 0 | R66: 0
B67: Whole Farm Insurance | D67: 1 | F67: Acre | G67: 0 | I67: 0 | J67: 0 | K67: 0 | M67: 0 | N67: 0 | O67: 0 | P67: 0 | Q67: 0 | R67: 0
D68: 1 | G68: 0 | I68: 0 | J68: 0 | K68: 0 | M68: 0 | N68: 0 | O68: 0 | P68: 0 | Q68: 0 | R68: 0
D69: 1 | G69: 0 | I69: 0 | J69: =E69*H69 -> 0 | K69: 0 | M69: 0 | N69: 0 | O69: 0 | P69: 0 | Q69: 0 | R69: 0
A70: Total Fixed Costs | I70: 153.1412943 | J70: =+SUM(J53:J69) -> 0 | M70: 0 | N70: =+SUM(N53:N69) -> 0 | O70: 153.1412943 | P70: =+SUM(P53:P69) -> 0 | Q70: 18683.2379 | R70: =+SUM(R53:R69) -> 0
A71: Total Specified Costs | I71: 342.7551353 | J71: =+J47+J70 -> 0 | M71: 0 | N71: =+N47+N70 -> 0 | O71: 342.7551353 | P71: =+P47+P70 -> 0 | Q71: 41816.12651 | R71: =+R47+R70 -> 0
A73: Returns Above Specified Costs | I73: 382.2448647 | J73: =+J13-J71 -> 0 | M73: 0 | N73: =+N13-N71 -> 0 | O73: 382.2448647 | P73: =+P13-P71 -> 0 | Q73: 46633.87349 | R73: =+R13-R71 -> 0
A75: Breakeven Price to Cover Total Costs | G75: 68.55102706 | H75: =IF(E10=0,"n/a",(YTotExp-(YTotExp+YTotRet-J10))/E10) -> n/a | I75: Ton
D77: Example Breakeven Prices
B78: Example | C78: Example | D78: To Cover | G78: To Cover
B79: Yield | C79: Yield | D79: Variable | G79: Total
B80: Percent | C80: Ton | D80: Costs | G80: Costs
B81: 0.75 | C81: 3.75 | D81: 50.56369094 | G81: 91.40136941
B82: 0.9 | C82: 4.5 | D82: 42.13640911 | G82: 76.16780784
B83: 1 | C83: 5 | D83: 37.9227682 | G83: 68.55102706
B84: 1.1 | C84: 5.5 | D84: 34.47524382 | G84: 62.31911551
B85: 1.25 | C85: 6.25 | D85: 30.33821456 | G85: 54.84082165
D87: Your Breakeven Prices
B88: Your | C88: Your | E88: To Cover | H88: To Cover
B89: Yield | C89: Yield | E89: Variable | H89: Total
B90: Percent | C90: Ton | E90: Costs | H90: Costs
B91: 0.75 | C91: =E10*YPER1 -> 0 | E91: =IF($E$10=0,0,(YVarExp-(YTotExp+YTotRet-J10))/($E$10*YPER1)) -> 0 | H91: =IF($E$10=0,0,(YTotExp-(YTotExp+YTotRet-J10))/($E$10*YPER1)) -> 0
B92: 0.9 | C92: =E10*YPER2 -> 0 | E92: =IF($E$10=0,0,(YVarExp-(YTotExp+YTotRet-J10))/($E$10*YPER2)) -> 0 | H92: =IF($E$10=0,0,(YTotExp-(YTotExp+YTotRet-J10))/($E$10*YPER2)) -> 0
B93: 1 | C93: =+E10 -> 0 | E93: =IF($E$10=0,0,(YVarExp-(YTotExp+YTotRet-J10))/($E$10*YPER3)) -> 0 | H93: =IF($E$10=0,0,(YTotExp-(YTotExp+YTotRet-J10))/($E$10*YPER3)) -> 0
B94: 1.1 | C94: =E10*YPER4 -> 0 | E94: =IF($E$10=0,0,(YVarExp-(YTotExp+YTotRet-J10))/($E$10*YPER4)) -> 0 | H94: =IF($E$10=0,0,(YTotExp-(YTotExp+YTotRet-J10))/($E$10*YPER4)) -> 0
B95: 1.25 | C95: =E10*YPER5 -> 0 | E95: =IF($E$10=0,0,(YVarExp-(YTotExp+YTotRet-J10))/($E$10*YPER5)) -> 0 | H95: =IF($E$10=0,0,(YTotExp-(YTotExp+YTotRet-J10))/($E$10*YPER5)) -> 0
A97: Developed by Bill Thompson, Assistant Professor and Extension Economist, Texas A&M AgriLife Extension Service, 325-653-4576.
A99: Information presented is prepared solely as a general guide and not intended to recognize or predict the costs and returns from any one operation. Brand names are mentioned only as examples and imply no endorsement.

Sheet CowCalfNative
A1: Projections for Planning Purposes Only -- Not to be Used without Updating
A2: 2021 Estimated Costs and Returns per Animal Unit
A3: Cow-Calf Enterprise
A4: Enter your name for this budget in the cell above.
A5: Enter Your Values in the cells highlighed in MAROON.
E6: Your Cows
B7: Animal Units (AU) | D7: 100 | F7: Animal Unit | N7: Your
B8: Breeding Females | D8: 100 | F8: Calf | G8: Your | M8: Enterprise | N8: Enterprise
E9: Your | F9: Quantity | G9: Quantity | J9: Your | L9: Your | M9: Total | N9: Total
A10: REVENUE | D10: Head | E10: Head | F10: Per Head | G10: Per Head | H10: Units | I10: $/Unit | J10: $/Unit | K10: Total | L10: Total | M10: ="(" & D7 & " AUs)" -> (100 AUs) | N10: ="(" & E7 & " AUs)" -> ( AUs)
B11: Steer | D11: 0.43 | F11: 5.5 | H11: CWT | I11: 152.5 | K11: 360.6625 | L11: =+E11*G11*J11 -> 0 | M11: 36066.25 | N11: =+L11*E$7 -> 0
B12: Heifer | D12: 0.27 | F12: 5 | H12: CWT | I12: 141.5 | K12: 191.025 | L12: =+E12*G12*J12 -> 0 | M12: 19102.5 | N12: =+L12*E$7 -> 0
B13: Cull Cow | D13: 0.15 | F13: 12 | H13: CWT | I13: 60 | K13: 108 | L13: 0 | M13: 10800 | N13: 0
B14: Cull Bull | D14: 0.04 | F14: 18 | H14: CWT | I14: 70 | K14: 50.4 | L14: 0 | M14: 5040 | N14: 0
D15: 0 | F15: 0 | I15: 0 | K15: 0 | L15: 0 | M15: 0 | N15: 0
D16: 0 | F16: 0 | I16: 0 | K16: 0 | L16: 0 | M16: 0 | N16: 0
A17: Total Revenue | F17: 371.5 | K17: 710.0875 | L17: =+SUM(L11:L16) -> 0 | M17: 71008.75 | N17: =+SUM(N11:N16) -> 0
F18: 623.5
F19: 252 | M19: Enterprise | N19: Enterprise
A20: VARIABLE COSTS | F20: Quantity | G20: Quantity | H20: Units | I20: $/Unit | J20: $/Unit | K20: Total | L20: Total | M20: Total | N20: Total
A21: Production Costs
B22: Miscellaneous
C23: Trucking | F23: 1 | H23: AU | I23: 8.455 | K23: 8.455 | L23: =+J23*G23 -> 0 | M23: 845.5 | N23: =+L23*E$7 -> 0
F24: 1 | I24: 0 | K24: 0 | L24: 0 | M24: 0 | N24: 0
F25: 1 | I25: 0 | K25: 0 | L25: 0 | M25: 0 | N25: 0
B26: Marketing Expense | F26: 1 | H26: AU | I26: 17.965 | K26: 17.965 | L26: 0 | M26: 1796.5 | N26: 0
B27: Feed
C28: 12-12 Loose Mineral | F28: 50.04 | H28: Pound | I28: 0.6 | K28: 30.024 | L28: =+J28*G28 -> 0 | M28: 3002.4 | N28: =+L28*E$7 -> 0
C29: 20% Protein Cube | F29: 3.6 | H29: CWT | I29: 19.9 | K29: 71.64 | L29: 0 | M29: 7164 | N29: 0
F30: 0 | I30: 0 | K30: 0 | L30: 0 | M30: 0 | N30: 0
F31: 0 | I31: 0 | K31: 0 | L31: 0 | M31: 0 | N31: 0
F32: 0 | I32: 0 | K32: 0 | L32: 0 | M32: 0 | N32: 0
